{"text_format":"1","workbook":"xlsx","n_sheets":58,"sheets":["注文書一覧","一覧_品番","RPS-1981U-32","RP-1981U-32","RPS-3514AP-32","RP-3514AP-32","RPS-3521S-32","RP-3521S-32","RPS-3538TX-32","RP-3538TX-32","RPS-3539TX-32","RP-3539TX-32","RPS-3542AP-32","RP-3542AP-32","RPS-3647TX-32","RP-3647TX-32","RPS-3655S-32","RP-3655S-32","RPS-3660AP-32","RP-3660AP-32","RPS-3661AP-32","RP-3661AP-32","RPS-3662AP-32","RP-3662AP-32","RPS-3663PL-32","RP-3663PL-32","RPS-3664PL-32","RP-3664PL-32","RPS-3665PL-32","RP-3665PL-32","RPS-3666PL-32","RP-3666PL-32","RPS-501B-32","RP-501B-32","RPS-501T-32","RP-501T-32","RPS-502B-32","RP-502B-32","RPS-503B-32","RP-503B-32","RPS-504B-32","RP-504B-32","RPS-505B-32","RP-505B-32","RPS-506B-32","RP-506B-32","RPS-507B-32","RP-507B-32","RPS-7023U-32","RP-7023U-32","RPS-7040U-32","RP-7040U-32","RPS-7088U-32","RP-7088U-32","RPS-7090U-32","RP-7090U-32","一覧_木縁","一覧_裏面"],"not_rendered":{"charts":0,"images":81,"macros":1,"external_links":1,"defined_names":126,"comments":0,"pivot_tables":0},"unopened":[],"bounds":{"document_bytes":16777216,"sheet_cells":100000,"rows_first":2000,"rows_last":500,"rows_between":2000,"halvings":0,"cell_chars":16384,"cell_head_chars":4096},"cells_cut":0,"cells_raw":0,"read":"whole","date_system":"1900"}

{"sheet":"注文書一覧","index":0,"n_rows":55,"n_cols":3,"rows_kept":55,"cut":false,"hidden":false,"merged":[[1,0,1,3]]}
["□Repickwoodカウンター製品　注文書一覧 (厚み32㎜）"]
["① このシートで該当の品番を探し、\n　C列の【注文書】リンクをクリックしてください。\n② 注文書のシートへ移動します。\n③ 表示された注文書の青枠内に必要事項をご記入ください。\n④ 入力が完了するとオーダーシートが作成されます。\n⑤ その後、PDF保存またはプリントアウトを行い、\n　オーダーシートとしてご活用ください。"]
[null,"品番","注文書リンク"]
[1,"RPS-1981U-32",{"$f":"HYPERLINK(\"#'\" & B4 & \"'!A1\",\"▶ \" & B4 & \" の注文書\")","v":"▶ RPS-1981U-32 の注文書"}]
[3,"RP-1981U-32",{"$f":"HYPERLINK(\"#'\" & B5 & \"'!A1\",\"▶ \" & B5 & \" の注文書\")","v":"▶ RP-1981U-32 の注文書"}]
[5,"RPS-3514AP-32","▶ RPS-3514AP-32 の注文書"]
[7,"RP-3514AP-32","▶ RP-3514AP-32 の注文書"]
[9,"RPS-3521S-32","▶ RPS-3521S-32 の注文書"]
[11,"RP-3521S-32","▶ RP-3521S-32 の注文書"]
[17,"RPS-3539TX-32","▶ RPS-3539TX-32 の注文書"]
[19,"RP-3539TX-32","▶ RP-3539TX-32 の注文書"]
[21,"RPS-3542AP-32","▶ RPS-3542AP-32 の注文書"]
[23,"RP-3542AP-32","▶ RP-3542AP-32 の注文書"]
[25,"RPS-3647TX-32","▶ RPS-3647TX-32 の注文書"]
[27,"RP-3647TX-32","▶ RP-3647TX-32 の注文書"]
[29,"RPS-3655S-32","▶ RPS-3655S-32 の注文書"]
[31,"RP-3655S-32","▶ RP-3655S-32 の注文書"]
[33,"RPS-3660AP-32","▶ RPS-3660AP-32 の注文書"]
[35,"RP-3660AP-32","▶ RP-3660AP-32 の注文書"]
[37,"RPS-3661AP-32","▶ RPS-3661AP-32 の注文書"]
[39,"RP-3661AP-32","▶ RP-3661AP-32 の注文書"]
[41,"RPS-3662AP-32","▶ RPS-3662AP-32 の注文書"]
[43,"RP-3662AP-32","▶ RP-3662AP-32 の注文書"]
[45,"RPS-3663PL-32","▶ RPS-3663PL-32 の注文書"]
[47,"RP-3663PL-32","▶ RP-3663PL-32 の注文書"]
[49,"RPS-3664PL-32","▶ RPS-3664PL-32 の注文書"]
[51,"RP-3664PL-32","▶ RP-3664PL-32 の注文書"]
[53,"RPS-3665PL-32","▶ RPS-3665PL-32 の注文書"]
[55,"RP-3665PL-32","▶ RP-3665PL-32 の注文書"]
[57,"RPS-3666PL-32","▶ RPS-3666PL-32 の注文書"]
[59,"RP-3666PL-32","▶ RP-3666PL-32 の注文書"]
[61,"RPS-501B-32","▶ RPS-501B-32 の注文書"]
[63,"RP-501B-32","▶ RP-501B-32 の注文書"]
[65,"RPS-501T-32","▶ RPS-501T-32 の注文書"]
[67,"RP-501T-32",{"$f":"HYPERLINK(\"#'\" & B35 & \"'!A1\",\"▶ \" & B35 & \" の注文書\")","v":"▶ RP-501T-32 の注文書"}]
[69,"RPS-502B-32","▶ RPS-502B-32 の注文書"]
[71,"RP-502B-32","▶ RP-502B-32 の注文書"]
[73,"RPS-503B-32","▶ RPS-503B-32 の注文書"]
[75,"RP-503B-32","▶ RP-503B-32 の注文書"]
[77,"RPS-504B-32","▶ RPS-504B-32 の注文書"]
[79,"RP-504B-32","▶ RP-504B-32 の注文書"]
[81,"RPS-505B-32","▶ RPS-505B-32 の注文書"]
[83,"RP-505B-32","▶ RP-505B-32 の注文書"]
[85,"RPS-506B-32","▶ RPS-506B-32 の注文書"]
[87,"RP-506B-32","▶ RP-506B-32 の注文書"]
[89,"RPS-507B-32","▶ RPS-507B-32 の注文書"]
[91,"RP-507B-32","▶ RP-507B-32 の注文書"]
[93,"RPS-7023U-32","▶ RPS-7023U-32 の注文書"]
[95,"RP-7023U-32","▶ RP-7023U-32 の注文書"]
[97,"RPS-7040U-32","▶ RPS-7040U-32 の注文書"]
[99,"RP-7040U-32","▶ RP-7040U-32 の注文書"]
[101,"RPS-7088U-32","▶ RPS-7088U-32 の注文書"]
[103,"RP-7088U-32","▶ RP-7088U-32 の注文書"]
[105,"RPS-7090U-32","▶ RPS-7090U-32 の注文書"]
[107,"RP-7090U-32","▶ RP-7090U-32 の注文書"]

{"sheet":"一覧_品番","index":1,"n_rows":111,"n_cols":11,"rows_kept":111,"cut":false,"hidden":true,"merged":[]}
["□Repickwoodカウンター製品ラインナップ"]
["表面材","厚み","木口形状","樹種","塗装色","表面材","裏面材","W","D","順番","品番"]
["未選択"]
["RPS-1981U-32",32,"ストレート","栗","ナチュラル","VMW-1981U","BK","600～2400","300～1200",1,"1981U"]
["RPS-1981U-38",38,"ストレート","栗","ナチュラル","VMW-1981U","BK","600～2400","300～1200",2,"1981U"]
["RP-1981U-32",32,"ライブエッジ","栗","ナチュラル","VMW-1981U","BK","600～2400","300～1200",3,"1981U"]
["RP-1981U-38",38,"ライブエッジ","栗","ナチュラル","VMW‐1981","BK","600～2400","300～1200",4,"1981U"]
["RPS-3514AP-32",32,"ストレート","栗","チャコール","BC-3514AP","BK","300～2400","300～150",5,"3514AP"]
["RPS-3514AP-38",38,"ストレート","栗","チャコール","BC-3514AP","BK","300～2400","300～150",6,"3514AP"]
["RP-3514AP-32",32,"ライブエッジ","栗","チャコール","BC-3514AP","BK","300～2400","300～150",7,"3514AP"]
["RP-3514AP-38",38,"ライブエッジ","栗","チャコール","BC-3514AP","BK","300～2400","300～150",8,"3514AP"]
["RPS-3521S-32",32,"ストレート","栗","ナチュラル","VMX-3521S","BK","600～2400","300～1200",9,"3521S"]
["RPS-3521S-38",38,"ストレート","栗","ナチュラル","VMX-3521S","BK","600～2400","300～1200",10,"3521S"]
["RP-3521S-32",32,"ライブエッジ","栗","ナチュラル","VMX-3521S","BK","600～2400","300～1200",11,"3521S"]
["RP-3521S-38",38,"ライブエッジ","栗","ナチュラル","VMX-3521S","BK","600～2400","300～1200",12,"3521S"]
["RPS-3538TX-32",32,"ストレート","栗","ナチュラル","VMXW-3538TX","BK","600～2400","300～1200",13,"3538TX"]
["RPS-3538TX-38",38,"ストレート","栗","ナチュラル","VMXW-3538TX","BK","600～2400","300～1200",14,"3538TX"]
["RP-3538TX-32",32,"ライブエッジ","栗","ナチュラル","VMXW-3538TX","BK","600～2400","300～1200",15,"3538TX"]
["RP-3538TX-38",38,"ライブエッジ","栗","ナチュラル","VMXW-3538TX","BK","600～2400","300～1200",16,"3538TX"]
["RPS-3539TX-32",32,"ストレート","栗","ナチュラル","VMXW-3539TX","BK","600～2400","300～1200",17,"3539TX"]
["RPS-3539TX-38",38,"ストレート","栗","ナチュラル","VMXW-3539TX","BK","600～2400","300～1200",18,"3539TX"]
["RP-3539TX-32",32,"ライブエッジ","栗","ナチュラル","VMXW-3539TX","BK","600～2400","300～1200",19,"3539TX"]
["RP-3539TX-38",38,"ライブエッジ","栗","ナチュラル","VMXW-3539TX","BK","600～2400","300～1200",20,"3539TX"]
["RPS-3542AP-32",32,"ストレート","栗","ナチュラル","BC-3542AP","GBK","600～2400","300～1200",21,"3542AP"]
["RPS-3542AP-38",38,"ストレート","栗","ナチュラル","BC-3542AP","GBK","600～2400","300～1200",22,"3542AP"]
["RP-3542AP-32",32,"ライブエッジ","栗","ナチュラル","BC-3542AP","GBK","600～2400","300～1200",23,"3542AP"]
["RP-3542AP-38",38,"ライブエッジ","栗","ナチュラル","BC-3542AP","GBK","600～2400","300～1200",24,"3542AP"]
["RPS-3647TX-32",32,"ストレート","栗","ナチュラル","VMX-3647TX","BK","600～2400","300～1200",25,"3647TX"]
["RPS-3647TX-38",38,"ストレート","栗","ナチュラル","VMX-3647TX","BK","600～2400","300～1200",26,"3647TX"]
["RP-3647TX-32",32,"ライブエッジ","栗","ナチュラル","VMX-3647TX","BK","600～2400","300～1200",27,"3647TX"]
["RP-3647TX-38",38,"ライブエッジ","栗","ナチュラル","VMX-3647TX","BK","600～2400","300～1200",28,"3647TX"]
["RPS-3655S-32",32,"ストレート","栗","ブラウン","VMYX-3655S","BK","300～2400","300～150",29,"3655S"]
["RPS-3655S-38",38,"ストレート","栗","ブラウン","VMYX-3655S","BK","300～2400","300～150",30,"3655S"]
["RP-3655S-32",32,"ライブエッジ","栗","ブラウン","VMYX-3655S","BK","300～2400","300～150",31,"3655S"]
["RP-3655S-38",38,"ライブエッジ","栗","ブラウン","VMYX-3655S","BK","300～2400","300～150",32,"3655S"]
["RPS-3660AP-32",32,"ストレート","栗","ブラウン","BC-3660AP","BK","300～2400","300～150",33,"3660AP"]
["RPS-3660AP-38",38,"ストレート","栗","ブラウン","BC-3660AP","BK","300～2400","300～150",34,"3660AP"]
["RP-3660AP-32",32,"ライブエッジ","栗","ブラウン","BC-3660AP","BK","300～2400","300～150",35,"3660AP"]
["RP-3660AP-38",38,"ライブエッジ","栗","ブラウン","BC-3660AP","BK","300～2400","300～150",36,"3660AP"]
["RPS-3661AP-32",32,"ストレート","栗","ナチュラル","BC-3661AP","GBK","600～2400","300～1200",37,"3661AP"]
["RPS-3661AP-38",38,"ストレート","栗","ナチュラル","BC-3661AP","GBK","600～2400","300～1200",38,"3661AP"]
["RP-3661AP-32",32,"ライブエッジ","栗","ナチュラル","BC-3661AP","GBK","600～2400","300～1200",39,"3661AP"]
["RP-3661AP-38",38,"ライブエッジ","栗","ナチュラル","BC-3661AP","GBK","600～2400","300～1200",40,"3661AP"]
["RPS-3662AP-32",32,"ストレート","栗","ブラウン","BC-3662AP","BK","300～2400","300～150",41,"3662AP"]
["RPS-3662AP-38",38,"ストレート","栗","ブラウン","BC-3662AP","BK","300～2400","300～150",42,"3662AP"]
["RP-3662AP-32",32,"ライブエッジ","栗","ブラウン","BC-3662AP","BK","300～2400","300～150",43,"3662AP"]
["RP-3662AP-38",38,"ライブエッジ","栗","ブラウン","BC-3662AP","BK","300～2400","300～150",44,"3662AP"]
["RPS-3663PL-32",32,"ストレート","栗","ブラウン","BC-3663PL","BK","300～2400","300～150",45,"3663PL"]
["RPS-3663PL-38",38,"ストレート","栗","ブラウン","BC-3663PL","BK","300～2400","300～150",46,"3663PL"]
["RP-3663PL-32",32,"ライブエッジ","栗","ブラウン","BC-3663PL","BK","300～2400","300～150",47,"3663PL"]
["RP-3663PL-38",38,"ライブエッジ","栗","ブラウン","BC-3663PL","BK","300～2400","300～150",48,"3663PL"]
["RPS-3664PL-32",32,"ストレート","栗","ナチュラル","BC-3664PL","BK","600～2400","300～1200",49,"3664PL"]
["RPS-3664PL-38",38,"ストレート","栗","ナチュラル","BC-3664PL","BK","600～2400","300～1200",50,"3664PL"]
["RP-3664PL-32",32,"ライブエッジ","栗","ナチュラル","BC-3664PL","BK","600～2400","300～1200",51,"3664PL"]
["RP-3664PL-38",38,"ライブエッジ","栗","ナチュラル","BC-3664PL","BK","600～2400","300～1200",52,"3664PL"]
["RPS-3665PL-32",32,"ストレート","栗","ナチュラル","BC-3665PL","BK","600～2400","300～1200",53,"3665PL"]
["RPS-3665PL-38",38,"ストレート","栗","ナチュラル","BC-3665PL","BK","600～2400","300～1200",54,"3665PL"]
["RP-3665PL-32",32,"ライブエッジ","栗","ナチュラル","BC-3665PL","BK","600～2400","300～1200",55,"3665PL"]
["RP-3665PL-38",38,"ライブエッジ","栗","ナチュラル","BC-3665PL","BK","600～2400","300～1200",56,"3665PL"]
["RPS-3666PL-32",32,"ストレート","栗","ナチュラル","BC-3666PL","BK","600～2400","300～1200",57,"3666PL"]
["RPS-3666PL-38",38,"ストレート","栗","ナチュラル","BC-3666PL","BK","600～2400","300～1200",58,"3666PL"]
["RP-3666PL-32",32,"ライブエッジ","栗","ナチュラル","BC-3666PL","BK","600～2400","300～1200",59,"3666PL"]
["RP-3666PL-38",38,"ライブエッジ","栗","ナチュラル","BC-3666PL","BK","600～2400","300～1200",60,"3666PL"]
["RPS-501B-32",32,"ストレート","栗","ブラウン","UL-501B","BK","300～2400","300～150",61,"501B"]
["RPS-501B-38",38,"ストレート","栗","ブラウン","UL-501B","BK","300～2400","300～150",62,"501B"]
["RP-501B-32",32,"ライブエッジ","栗","ブラウン","UL-501B","BK","300～2400","300～150",63,"501B"]
["RP-501B-38",38,"ライブエッジ","栗","ブラウン","UL-501B","BK","300～2400","300～150",64,"501B"]
["RPS-501T-32",32,"ストレート","栗","ブラウン","UL-501T","BK","300～2400","300～150",65,"501T"]
["RPS-501T-38",38,"ストレート","栗","ブラウン","UL-501T","BK","300～2400","300～150",66,"501T"]
["RP-501T-32",32,"ライブエッジ","栗","ブラウン","UL-501T","BK","300～2400","300～150",67,"501T"]
["RP-501T-38",38,"ライブエッジ","栗","ブラウン","UL-501T","BK","300～2400","300～150",68,"501T"]
["RPS-502B-32",32,"ストレート","栗","ブラウン","UL-502B","BK","300～2400","300～150",69,"502B"]
["RPS-502B-38",38,"ストレート","栗","ブラウン","UL-502B","BK","300～2400","300～150",70,"502B"]
["RP-502B-32",32,"ライブエッジ","栗","ブラウン","UL-502B","BK","300～2400","300～150",71,"502B"]
["RP-502B-38",38,"ライブエッジ","栗","ブラウン","UL-502B","BK","300～2400","300～150",72,"502B"]
["RPS-503B-32",32,"ストレート","栗","ナチュラル","UL-503B","BK","600～2400","300～1200",73,"503B"]
["RPS-503B-38",38,"ストレート","栗","ナチュラル","UL-503B","BK","600～2400","300～1200",74,"503B"]
["RP-503B-32",32,"ライブエッジ","栗","ナチュラル","UL-503B","BK","600～2400","300～1200",75,"503B"]
["RP-503B-38",38,"ライブエッジ","栗","ナチュラル","UL-503B","BK","600～2400","300～1200",76,"503B"]
["RPS-504B-32",32,"ストレート","栗","ナチュラル","UL-504B","BK","600～2400","300～1200",77,"504B"]
["RPS-504B-38",38,"ストレート","栗","ナチュラル","UL-504B","BK","600～2400","300～1200",78,"504B"]
["RP-504B-32",32,"ライブエッジ","栗","ナチュラル","UL-504B","BK","600～2400","300～1200",79,"504B"]
["RP-504B-38",38,"ライブエッジ","栗","ナチュラル","UL-504B","BK","600～2400","300～1200",80,"504B"]
["RPS-505B-32",32,"ストレート","栗","ブラウン","UL-505B","BK","300～2400","300～150",81,"505B"]
["RPS-505B-38",38,"ストレート","栗","ブラウン","UL-505B","BK","300～2400","300～150",82,"505B"]
["RP-505B-32",32,"ライブエッジ","栗","ブラウン","UL-505B","BK","300～2400","300～150",83,"505B"]
["RP-505B-38",38,"ライブエッジ","栗","ブラウン","UL-505B","BK","300～2400","300～150",84,"505B"]
["RPS-506B-32",32,"ストレート","栗","ブラウン","UL-506B","BK","300～2400","300～150",85,"506B"]
["RPS-506B-38",38,"ストレート","栗","ブラウン","UL-506B","BK","300～2400","300～150",86,"506B"]
["RP-506B-32",32,"ライブエッジ","栗","ブラウン","UL-506B","BK","300～2400","300～150",87,"506B"]
["RP-506B-38",38,"ライブエッジ","栗","ブラウン","UL-506B","BK","300～2400","300～150",88,"506B"]
["RPS-507B-32",32,"ストレート","栗","ナチュラル","UL-507B","BK","600～2400","300～1200",89,"507B"]
["RPS-507B-38",38,"ストレート","栗","ナチュラル","UL-507B","BK","600～2400","300～1200",90,"507B"]
["RP-507B-32",32,"ライブエッジ","栗","ナチュラル","UL-507B","BK","600～2400","300～1200",91,"507B"]
["RP-507B-38",38,"ライブエッジ","栗","ナチュラル","UL-507B","BK","600～2400","300～1200",92,"507B"]
["RPS-7023U-32",32,"ストレート","栗","ナチュラル","VMW-7023U","BK","600～2400","300～1200",93,"7023U"]
["RPS-7023U-38",38,"ストレート","栗","ナチュラル","VMW-7023U","BK","600～2400","300～1200",94,"7023U"]
["RP-7023U-32",32,"ライブエッジ","栗","ナチュラル","VMW-7023U","BK","600～2400","300～1200",95,"7023U"]
["RP-7023U-38",38,"ライブエッジ","栗","ナチュラル","VMW-7023U","BK","600～2400","300～1200",96,"7023U"]
["RPS-7040U-32",32,"ストレート","栗","チャコール","VM-7040U","BK","300～2400","300～150",97,"7040U"]
["RPS-7040U-38",38,"ストレート","栗","チャコール","VM-7040U","BK","300～2400","300～150",98,"7040U"]
["RP-7040U-32",32,"ライブエッジ","栗","チャコール","VM-7040U","BK","300～2400","300～150",99,"7040U"]
["RP-7040U-38",38,"ライブエッジ","栗","チャコール","VM-7040U","BK","300～2400","300～150",100,"7040U"]
["RPS-7088U-32",32,"ストレート","栗","ブラウン","VM-7088U","BK","300～2400","300～150",101,"7088U"]
["RPS-7088U-38",38,"ストレート","栗","ブラウン","VM-7088U","BK","300～2400","300～150",102,"7088U"]
["RP-7088U-32",32,"ライブエッジ","栗","ブラウン","VM-7088U","BK","300～2400","300～150",103,"7088U"]
["RP-7088U-38",38,"ライブエッジ","栗","ブラウン","VM-7088U","BK","300～2400","300～150",104,"7088U"]
["RPS-7090U-32",32,"ストレート","栗","チャコール","VM-7090U","BK","300～2400","300～150",105,"7090U"]
["RPS-7090U-38",38,"ストレート","栗","チャコール","VM-7090U","BK","300～2400","300～150",106,"7090U"]
["RP-7090U-32",32,"ライブエッジ","栗","チャコール","VM-7090U","BK","300～2400","300～150",107,"7090U"]
["RP-7090U-38",38,"ライブエッジ","栗","チャコール","VM-7090U","BK","300～2400","300～150",108,"7090U"]

{"sheet":"RPS-1981U-32","index":2,"n_rows":42,"n_cols":157,"rows_kept":42,"cut":false,"hidden":false,"merged":[[37,6,38,17],[37,33,37,36],[41,6,43,17],[41,18,43,37],[41,38,43,46],[35,32,36,36],[19,29,20,33],[20,6,21,17],[21,26,22,27],[21,29,22,33],[24,6,25,17],[24,29,25,33],[28,6,29,17],[28,22,28,24],[29,22,30,24],[31,6,32,17],[34,6,35,17],[10,6,11,17],[10,26,12,33],[12,6,13,17],[13,29,14,33],[15,29,16,33],[16,6,17,17],[17,26,18,28],[17,29,18,33],[2,22,2,28],[3,31,3,33],[5,0,6,3],[5,6,6,17],[8,0,9,3],[8,6,9,17]]}
[2,null,null,null,null,null,null,null,null,null,null,null,null,null,null,null,null,null,null,null,null,"■イビケン記入箇所"]
[null,null,null,null,null,null,null,null,null,null,null,null,null,null,null,null,null,null,null,null,null,null,"オーダーNo",null,null,null,null,null,null,null,"メイン",null,null,null,null,"W寸",null,"D寸",null,"形状",null,"木縁",null,"裏面"]
[null,null,null,null,null,null,null,null,null,null,null,null,null,null,null,null,null,null,null,null,null,null,null,null,null,null,null,null,null,{"$f":"AA11","v":"RPS-1981U-32"},null,null,null,null,"-",{"$f":"G32","v":0},"-",{"$f":"G29","v":0},"-","IG","-",{"$f":"G21","v":"未選択"},"-",{"$f":"IF(AD25=\"BK（バッカー）\",\"BK\",IF(AD25=\"DS（表同柄）※オプション価格\",\"DS\",\"\"))","v":"BK"}]
["※オーダーシートは仕様指示書となります。注文書は別途ご用意ください。",null,null,null,null,null,null,null,null,null,null,null,null,null,null,null,null,null,null,null,null,null,null,null,null,null,null,null,null,null,null,null,null,null,null,null,null,null,null,null,null,null,null,null,null,null,null,null,null,null,null,null,null,null,null,null,null,null,null,null,null,null,null,null,null,null,null,null,null,null,null,null,null,null,null,null,null,null,null,null,null,null,null,null,null,null,null,null,null,null,null,null,null,null,null,null,null,null,null,null,null,null,null,null,null,null,null,null,null,null,null,null,null,null,null,null,null,null,null,null,null,null,null,null,null,null,null,null,null,null,null,null,null,null,null,null,null,null,null,null,null,null,null,null,null,null,null,null,null,null,null,null,null,null,null,null,"RPS-1981U-38"]
[]
["■発注日",null,null,null,null,null,"　　年　 　月　   日"]
[]
[]
["■発注者"]
[null,null,null,null,"会社名"]
[null,null,null,null,null,null,null,null,null,null,null,null,null,null,null,null,null,null,null,null,null,null,null,null,null,null,{"$f":"G17","v":"RPS-1981U-32"}]
[null,null,null,null,"担当者名"]
[]
[null,null,null,null,"電話番号",null,null,null,null,null,null,null,null,null,null,null,null,null,null,null,null,null,null,null,null,null,null,null,null,{"$f":"_xlfn.XLOOKUP(AA11,一覧_品番!A:A,一覧_品番!B:B, \"\", FALSE)","v":32}]
[null,null,null,null,null,null,null,null,null,null,null,null,null,null,null,null,null,null,null,null,null,null,null,null,null,null,"厚み"]
[null,null,null,null,null,null,null,null,null,null,null,null,null,null,null,null,null,null,null,null,null,null,null,null,null,null,null,null,null,{"$f":"_xlfn.XLOOKUP(AA11,一覧_品番!A:A,一覧_品番!C:C, \"\", FALSE)","v":"ストレート"}]
["■品番",null,null,null,null,null,{"$f":"_xlfn.XLOOKUP(S17,注文書一覧!A:A,注文書一覧!B:B,\"\")","v":"RPS-1981U-32"},null,null,null,null,null,null,null,null,null,null,null,1,null,null,null,null,null,null,null,"木縁形状"]
[null,null,null,null,null,null,null,null,null,null,null,null,null,null,null,null,null,null,null,null,null,null,null,null,null,null,"木縁位置",null,null,{"$f":"G21","v":"未選択"}]
[]
[null,null,null,null,null,null,"↓左のカーソルで選択下さい。→右下にイラストが表示されます",null,null,null,null,null,null,null,null,null,null,null,null,null,null,null,null,null,null,null,null,null,null,{"$f":"_xlfn.XLOOKUP(AA11,一覧_品番!A:A,一覧_品番!E:E, \"\", FALSE)","v":"ナチュラル"}]
["■木縁添付位置",null,null,null,null,null,{"$f":"VLOOKUP(AA27,一覧_木縁!A2:C9,2,FALSE)","v":"未選択"},null,null,null,null,null,null,null,null,null,null,null,null,null,null,null,null,null,null,null,"塗装色"]
[null,null,null,null,null,null,null,null,null,null,null,null,null,null,null,null,null,null,null,null,null,null,null,null,null,null,"表面材",null,null,{"$f":"_xlfn.XLOOKUP(AA11,一覧_品番!A:A,一覧_品番!F:F, \"\", FALSE)","v":"VMW-1981U"}]
[]
[null,null,null,null,null,null,"↓プルダウンで選択下さい"]
["■裏面材",null,null,null,null,null,{"$f":"INDEX(一覧_裏面!A1:A2,A1)","v":"BK（バッカ―）"},null,null,null,null,null,null,null,null,null,null,null,null,null,null,null,null,null,null,null,null,null,null,{"$f":"G25","v":"BK（バッカ―）"}]
[null,null,null,null,null,null,null,null,null,null,null,null,null,null,null,null,null,null,null,null,null,null,null,null,null,null,"裏面材"]
[null,null,null,null,null,null,null,null,null,null,null,null,null,null,null,null,null,null,null,null,null,null,null,null,null,null,8]
[null,null,null,null,null,null,"↓300～1200ｍｍの間で入力下さい"]
["■サイズ",null,null,null,"縦（D)",null,null,null,null,null,null,null,null,null,null,null,null,null,null,null,null,null,"縦（D）"]
[null,null,null,null,null,null,null,null,null,null,null,null,null,null,null,null,null,null,null,null,null,null,{"$f":"SUM(G29)","v":0}]
[null,null,null,null,null,null,"↓600～2400ｍｍの間で入力下さい"]
[null,null,null,null,"横（W)",null,null,null,null,null,null,null,null,null,null,null,null,null,null,null,null,null,null,null,"㎜"]
[]
[]
["■数量"]
[null,null,null,null,null,null,null,null,null,null,null,null,null,null,null,null,null,null,null,null,null,null,null,null,null,null,null,null,null,null,null,null,{"$f":"SUM(G32)","v":0}]
[null,null,null,null,null,null,null,null,null,null,null,null,null,null,null,null,null,null,null,null,null,null,null,null,null,null,null,null,null,null,null,null,null,null,null,null,null,"㎜"]
["■希望納期",null,null,null,null,null,"　　年　 　月　   日",null,null,null,null,null,null,null,null,null,null,null,null,null,null,null,null,null,null,null,null,null,null,null,null,null,null,"横（W)"]
[]
[]
["■納入場所",null,null,null,null,null,"納入会社名",null,null,null,null,null,null,null,null,null,null,null,"　納入住所",null,null,null,null,null,null,null,null,null,null,null,null,null,null,null,null,null,null,null,"納入電話番号"]
[null,null,null,null,null,null,null,null,null,null,null,null,null,null,null,null,null,null,"〒"]

{"sheet":"RP-1981U-32","index":3,"n_rows":42,"n_cols":157,"rows_kept":42,"cut":false,"hidden":false,"merged":[[37,6,38,17],[37,33,37,36],[41,6,43,17],[41,18,43,37],[41,38,43,46],[35,32,36,36],[19,29,20,33],[20,6,21,17],[21,26,22,27],[21,29,22,33],[24,6,25,17],[24,29,25,33],[28,6,29,17],[28,22,28,24],[29,22,30,24],[31,6,32,17],[34,6,35,17],[10,6,11,17],[10,26,12,33],[12,6,13,17],[13,29,14,33],[15,29,16,33],[16,6,17,17],[17,26,18,28],[17,29,18,33],[2,22,2,28],[3,31,3,33],[5,0,6,3],[5,6,6,17],[8,0,9,3],[8,6,9,17]]}
[2,null,null,null,null,null,null,null,null,null,null,null,null,null,null,null,null,null,null,null,null,"■イビケン記入箇所"]
[null,null,null,null,null,null,null,null,null,null,null,null,null,null,null,null,null,null,null,null,null,null,"オーダーNo",null,null,null,null,null,null,null,"メイン",null,null,null,null,"W寸",null,"D寸",null,"形状",null,"木縁",null,"裏面"]
[null,null,null,null,null,null,null,null,null,null,null,null,null,null,null,null,null,null,null,null,null,null,null,null,null,null,null,null,null,{"$f":"AA11","v":"RP-1981U-32"},null,null,null,null,"-",{"$f":"G32","v":0},"-",{"$f":"G29","v":0},"-","IG","-",{"$f":"G21","v":"未選択"},"-",{"$f":"IF(AD25=\"BK（バッカー）\",\"BK\",IF(AD25=\"DS（表同柄）※オプション価格\",\"DS\",\"\"))","v":"BK"}]
["※オーダーシートは仕様指示書となります。注文書は別途ご用意ください。",null,null,null,null,null,null,null,null,null,null,null,null,null,null,null,null,null,null,null,null,null,null,null,null,null,null,null,null,null,null,null,null,null,null,null,null,null,null,null,null,null,null,null,null,null,null,null,null,null,null,null,null,null,null,null,null,null,null,null,null,null,null,null,null,null,null,null,null,null,null,null,null,null,null,null,null,null,null,null,null,null,null,null,null,null,null,null,null,null,null,null,null,null,null,null,null,null,null,null,null,null,null,null,null,null,null,null,null,null,null,null,null,null,null,null,null,null,null,null,null,null,null,null,null,null,null,null,null,null,null,null,null,null,null,null,null,null,null,null,null,null,null,null,null,null,null,null,null,null,null,null,null,null,null,null,"RPS-1981U-38"]
[]
["■発注日",null,null,null,null,null,"　　年　 　月　   日"]
[]
[]
["■発注者"]
[null,null,null,null,"会社名"]
[null,null,null,null,null,null,null,null,null,null,null,null,null,null,null,null,null,null,null,null,null,null,null,null,null,null,{"$f":"G17","v":"RP-1981U-32"}]
[null,null,null,null,"担当者名"]
[]
[null,null,null,null,"電話番号",null,null,null,null,null,null,null,null,null,null,null,null,null,null,null,null,null,null,null,null,null,null,null,null,{"$f":"_xlfn.XLOOKUP(AA11,一覧_品番!A:A,一覧_品番!B:B, \"\", FALSE)","v":32}]
[null,null,null,null,null,null,null,null,null,null,null,null,null,null,null,null,null,null,null,null,null,null,null,null,null,null,"厚み"]
[null,null,null,null,null,null,null,null,null,null,null,null,null,null,null,null,null,null,null,null,null,null,null,null,null,null,null,null,null,{"$f":"_xlfn.XLOOKUP(AA11,一覧_品番!A:A,一覧_品番!C:C, \"\", FALSE)","v":"ライブエッジ"}]
["■品番",null,null,null,null,null,{"$f":"_xlfn.XLOOKUP(S17,注文書一覧!A:A,注文書一覧!B:B,\"\")","v":"RP-1981U-32"},null,null,null,null,null,null,null,null,null,null,null,3,null,null,null,null,null,null,null,"木縁形状"]
[null,null,null,null,null,null,null,null,null,null,null,null,null,null,null,null,null,null,null,null,null,null,null,null,null,null,"木縁位置",null,null,{"$f":"G21","v":"未選択"}]
[]
[null,null,null,null,null,null,"↓左のカーソルで選択下さい。→右下にイラストが表示されます",null,null,null,null,null,null,null,null,null,null,null,null,null,null,null,null,null,null,null,null,null,null,{"$f":"_xlfn.XLOOKUP(AA11,一覧_品番!A:A,一覧_品番!E:E, \"\", FALSE)","v":"ナチュラル"}]
["■木縁添付位置",null,null,null,null,null,{"$f":"VLOOKUP(AA27,一覧_木縁!A2:C9,2,FALSE)","v":"未選択"},null,null,null,null,null,null,null,null,null,null,null,null,null,null,null,null,null,null,null,"塗装色"]
[null,null,null,null,null,null,null,null,null,null,null,null,null,null,null,null,null,null,null,null,null,null,null,null,null,null,"表面材",null,null,{"$f":"_xlfn.XLOOKUP(AA11,一覧_品番!A:A,一覧_品番!F:F, \"\", FALSE)","v":"VMW-1981U"}]
[]
[null,null,null,null,null,null,"↓プルダウンで選択下さい"]
["■裏面材",null,null,null,null,null,{"$f":"INDEX(一覧_裏面!A1:A2,A1)","v":"BK（バッカ―）"},null,null,null,null,null,null,null,null,null,null,null,null,null,null,null,null,null,null,null,null,null,null,{"$f":"G25","v":"BK（バッカ―）"}]
[null,null,null,null,null,null,null,null,null,null,null,null,null,null,null,null,null,null,null,null,null,null,null,null,null,null,"裏面材"]
[null,null,null,null,null,null,null,null,null,null,null,null,null,null,null,null,null,null,null,null,null,null,null,null,null,null,8]
[null,null,null,null,null,null,"↓300～1200ｍｍの間で入力下さい"]
["■サイズ",null,null,null,"縦（D)",null,null,null,null,null,null,null,null,null,null,null,null,null,null,null,null,null,"縦（D）"]
[null,null,null,null,null,null,null,null,null,null,null,null,null,null,null,null,null,null,null,null,null,null,{"$f":"SUM(G29)","v":0}]
[null,null,null,null,null,null,"↓600～2400ｍｍの間で入力下さい"]
[null,null,null,null,"横（W)",null,null,null,null,null,null,null,null,null,null,null,null,null,null,null,null,null,null,null,"㎜"]
[]
[]
["■数量"]
[null,null,null,null,null,null,null,null,null,null,null,null,null,null,null,null,null,null,null,null,null,null,null,null,null,null,null,null,null,null,null,null,{"$f":"SUM(G32)","v":0}]
[null,null,null,null,null,null,null,null,null,null,null,null,null,null,null,null,null,null,null,null,null,null,null,null,null,null,null,null,null,null,null,null,null,null,null,null,null,"㎜"]
["■希望納期",null,null,null,null,null,"　　年　 　月　   日",null,null,null,null,null,null,null,null,null,null,null,null,null,null,null,null,null,null,null,null,null,null,null,null,null,null,"横（W)"]
[]
[]
["■納入場所",null,null,null,null,null,"納入会社名",null,null,null,null,null,null,null,null,null,null,null,"　納入住所",null,null,null,null,null,null,null,null,null,null,null,null,null,null,null,null,null,null,null,"納入電話番号"]
[null,null,null,null,null,null,null,null,null,null,null,null,null,null,null,null,null,null,"〒"]

{"sheet":"RPS-3514AP-32","index":4,"n_rows":42,"n_cols":157,"rows_kept":42,"cut":false,"hidden":false,"merged":[[37,6,38,17],[37,33,37,36],[41,6,43,17],[41,18,43,37],[41,38,43,46],[35,32,36,36],[19,29,20,33],[20,6,21,17],[21,26,22,27],[21,29,22,33],[24,6,25,17],[24,29,25,33],[28,6,29,17],[28,22,28,24],[29,22,30,24],[31,6,32,17],[34,6,35,17],[10,6,11,17],[10,26,12,33],[12,6,13,17],[13,29,14,33],[15,29,16,33],[16,6,17,17],[17,26,18,28],[17,29,18,33],[2,22,2,28],[3,31,3,33],[5,0,6,3],[5,6,6,17],[8,0,9,3],[8,6,9,17]]}
[2,null,null,null,null,null,null,null,null,null,null,null,null,null,null,null,null,null,null,null,null,"■イビケン記入箇所"]
[null,null,null,null,null,null,null,null,null,null,null,null,null,null,null,null,null,null,null,null,null,null,"オーダーNo",null,null,null,null,null,null,null,"メイン",null,null,null,null,"W寸",null,"D寸",null,"形状",null,"木縁",null,"裏面"]
[null,null,null,null,null,null,null,null,null,null,null,null,null,null,null,null,null,null,null,null,null,null,null,null,null,null,null,null,null,{"$f":"AA11","v":"RPS-3514AP-32"},null,null,null,null,"-",{"$f":"G32","v":0},"-",{"$f":"G29","v":0},"-","IG","-",{"$f":"G21","v":"未選択"},"-",{"$f":"IF(AD25=\"BK（バッカー）\",\"BK\",IF(AD25=\"DS（表同柄）※オプション価格\",\"DS\",\"\"))","v":"BK"}]
["※オーダーシートは仕様指示書となります。注文書は別途ご用意ください。",null,null,null,null,null,null,null,null,null,null,null,null,null,null,null,null,null,null,null,null,null,null,null,null,null,null,null,null,null,null,null,null,null,null,null,null,null,null,null,null,null,null,null,null,null,null,null,null,null,null,null,null,null,null,null,null,null,null,null,null,null,null,null,null,null,null,null,null,null,null,null,null,null,null,null,null,null,null,null,null,null,null,null,null,null,null,null,null,null,null,null,null,null,null,null,null,null,null,null,null,null,null,null,null,null,null,null,null,null,null,null,null,null,null,null,null,null,null,null,null,null,null,null,null,null,null,null,null,null,null,null,null,null,null,null,null,null,null,null,null,null,null,null,null,null,null,null,null,null,null,null,null,null,null,null,"RPS-1981U-38"]
[]
["■発注日",null,null,null,null,null,"　　年　 　月　   日"]
[]
[]
["■発注者"]
[null,null,null,null,"会社名"]
[null,null,null,null,null,null,null,null,null,null,null,null,null,null,null,null,null,null,null,null,null,null,null,null,null,null,{"$f":"G17","v":"RPS-3514AP-32"}]
[null,null,null,null,"担当者名"]
[]
[null,null,null,null,"電話番号",null,null,null,null,null,null,null,null,null,null,null,null,null,null,null,null,null,null,null,null,null,null,null,null,{"$f":"_xlfn.XLOOKUP(AA11,一覧_品番!A:A,一覧_品番!B:B, \"\", FALSE)","v":32}]
[null,null,null,null,null,null,null,null,null,null,null,null,null,null,null,null,null,null,null,null,null,null,null,null,null,null,"厚み"]
[null,null,null,null,null,null,null,null,null,null,null,null,null,null,null,null,null,null,null,null,null,null,null,null,null,null,null,null,null,{"$f":"_xlfn.XLOOKUP(AA11,一覧_品番!A:A,一覧_品番!C:C, \"\", FALSE)","v":"ストレート"}]
["■品番",null,null,null,null,null,{"$f":"_xlfn.XLOOKUP(S17,注文書一覧!A:A,注文書一覧!B:B,\"\")","v":"RPS-3514AP-32"},null,null,null,null,null,null,null,null,null,null,null,5,null,null,null,null,null,null,null,"木縁形状"]
[null,null,null,null,null,null,null,null,null,null,null,null,null,null,null,null,null,null,null,null,null,null,null,null,null,null,"木縁位置",null,null,{"$f":"G21","v":"未選択"}]
[]
[null,null,null,null,null,null,"↓左のカーソルで選択下さい。→右下にイラストが表示されます",null,null,null,null,null,null,null,null,null,null,null,null,null,null,null,null,null,null,null,null,null,null,{"$f":"_xlfn.XLOOKUP(AA11,一覧_品番!A:A,一覧_品番!E:E, \"\", FALSE)","v":"チャコール"}]
["■木縁添付位置",null,null,null,null,null,{"$f":"VLOOKUP(AA27,一覧_木縁!A2:C9,2,FALSE)","v":"未選択"},null,null,null,null,null,null,null,null,null,null,null,null,null,null,null,null,null,null,null,"塗装色"]
[null,null,null,null,null,null,null,null,null,null,null,null,null,null,null,null,null,null,null,null,null,null,null,null,null,null,"表面材",null,null,{"$f":"_xlfn.XLOOKUP(AA11,一覧_品番!A:A,一覧_品番!F:F, \"\", FALSE)","v":"BC-3514AP"}]
[]
[null,null,null,null,null,null,"↓プルダウンで選択下さい"]
["■裏面材",null,null,null,null,null,{"$f":"INDEX(一覧_裏面!A1:A2,A1)","v":"BK（バッカ―）"},null,null,null,null,null,null,null,null,null,null,null,null,null,null,null,null,null,null,null,null,null,null,{"$f":"G25","v":"BK（バッカ―）"}]
[null,null,null,null,null,null,null,null,null,null,null,null,null,null,null,null,null,null,null,null,null,null,null,null,null,null,"裏面材"]
[null,null,null,null,null,null,null,null,null,null,null,null,null,null,null,null,null,null,null,null,null,null,null,null,null,null,8]
[null,null,null,null,null,null,"↓300～1200ｍｍの間で入力下さい"]
["■サイズ",null,null,null,"縦（D)",null,null,null,null,null,null,null,null,null,null,null,null,null,null,null,null,null,"縦（D）"]
[null,null,null,null,null,null,null,null,null,null,null,null,null,null,null,null,null,null,null,null,null,null,{"$f":"SUM(G29)","v":0}]
[null,null,null,null,null,null,"↓600～2400ｍｍの間で入力下さい"]
[null,null,null,null,"横（W)",null,null,null,null,null,null,null,null,null,null,null,null,null,null,null,null,null,null,null,"㎜"]
[]
[]
["■数量"]
[null,null,null,null,null,null,null,null,null,null,null,null,null,null,null,null,null,null,null,null,null,null,null,null,null,null,null,null,null,null,null,null,{"$f":"SUM(G32)","v":0}]
[null,null,null,null,null,null,null,null,null,null,null,null,null,null,null,null,null,null,null,null,null,null,null,null,null,null,null,null,null,null,null,null,null,null,null,null,null,"㎜"]
["■希望納期",null,null,null,null,null,"　　年　 　月　   日",null,null,null,null,null,null,null,null,null,null,null,null,null,null,null,null,null,null,null,null,null,null,null,null,null,null,"横（W)"]
[]
[]
["■納入場所",null,null,null,null,null,"納入会社名",null,null,null,null,null,null,null,null,null,null,null,"　納入住所",null,null,null,null,null,null,null,null,null,null,null,null,null,null,null,null,null,null,null,"納入電話番号"]
[null,null,null,null,null,null,null,null,null,null,null,null,null,null,null,null,null,null,"〒"]

{"sheet":"RP-3514AP-32","index":5,"n_rows":42,"n_cols":157,"rows_kept":42,"cut":false,"hidden":false,"merged":[[37,6,38,17],[37,33,37,36],[41,6,43,17],[41,18,43,37],[41,38,43,46],[35,32,36,36],[19,29,20,33],[20,6,21,17],[21,26,22,27],[21,29,22,33],[24,6,25,17],[24,29,25,33],[28,6,29,17],[28,22,28,24],[29,22,30,24],[31,6,32,17],[34,6,35,17],[10,6,11,17],[10,26,12,33],[12,6,13,17],[13,29,14,33],[15,29,16,33],[16,6,17,17],[17,26,18,28],[17,29,18,33],[2,22,2,28],[3,31,3,33],[5,0,6,3],[5,6,6,17],[8,0,9,3],[8,6,9,17]]}
[2,null,null,null,null,null,null,null,null,null,null,null,null,null,null,null,null,null,null,null,null,"■イビケン記入箇所"]
[null,null,null,null,null,null,null,null,null,null,null,null,null,null,null,null,null,null,null,null,null,null,"オーダーNo",null,null,null,null,null,null,null,"メイン",null,null,null,null,"W寸",null,"D寸",null,"形状",null,"木縁",null,"裏面"]
[null,null,null,null,null,null,null,null,null,null,null,null,null,null,null,null,null,null,null,null,null,null,null,null,null,null,null,null,null,{"$f":"AA11","v":"RP-3514AP-32"},null,null,null,null,"-",{"$f":"G32","v":0},"-",{"$f":"G29","v":0},"-","IG","-",{"$f":"G21","v":"未選択"},"-",{"$f":"IF(AD25=\"BK（バッカー）\",\"BK\",IF(AD25=\"DS（表同柄）※オプション価格\",\"DS\",\"\"))","v":"BK"}]
["※オーダーシートは仕様指示書となります。注文書は別途ご用意ください。",null,null,null,null,null,null,null,null,null,null,null,null,null,null,null,null,null,null,null,null,null,null,null,null,null,null,null,null,null,null,null,null,null,null,null,null,null,null,null,null,null,null,null,null,null,null,null,null,null,null,null,null,null,null,null,null,null,null,null,null,null,null,null,null,null,null,null,null,null,null,null,null,null,null,null,null,null,null,null,null,null,null,null,null,null,null,null,null,null,null,null,null,null,null,null,null,null,null,null,null,null,null,null,null,null,null,null,null,null,null,null,null,null,null,null,null,null,null,null,null,null,null,null,null,null,null,null,null,null,null,null,null,null,null,null,null,null,null,null,null,null,null,null,null,null,null,null,null,null,null,null,null,null,null,null,"RPS-1981U-38"]
[]
["■発注日",null,null,null,null,null,"　　年　 　月　   日"]
[]
[]
["■発注者"]
[null,null,null,null,"会社名"]
[null,null,null,null,null,null,null,null,null,null,null,null,null,null,null,null,null,null,null,null,null,null,null,null,null,null,{"$f":"G17","v":"RP-3514AP-32"}]
[null,null,null,null,"担当者名"]
[]
[null,null,null,null,"電話番号",null,null,null,null,null,null,null,null,null,null,null,null,null,null,null,null,null,null,null,null,null,null,null,null,{"$f":"_xlfn.XLOOKUP(AA11,一覧_品番!A:A,一覧_品番!B:B, \"\", FALSE)","v":32}]
[null,null,null,null,null,null,null,null,null,null,null,null,null,null,null,null,null,null,null,null,null,null,null,null,null,null,"厚み"]
[null,null,null,null,null,null,null,null,null,null,null,null,null,null,null,null,null,null,null,null,null,null,null,null,null,null,null,null,null,{"$f":"_xlfn.XLOOKUP(AA11,一覧_品番!A:A,一覧_品番!C:C, \"\", FALSE)","v":"ライブエッジ"}]
["■品番",null,null,null,null,null,{"$f":"_xlfn.XLOOKUP(S17,注文書一覧!A:A,注文書一覧!B:B,\"\")","v":"RP-3514AP-32"},null,null,null,null,null,null,null,null,null,null,null,7,null,null,null,null,null,null,null,"木縁形状"]
[null,null,null,null,null,null,null,null,null,null,null,null,null,null,null,null,null,null,null,null,null,null,null,null,null,null,"木縁位置",null,null,{"$f":"G21","v":"未選択"}]
[]
[null,null,null,null,null,null,"↓左のカーソルで選択下さい。→右下にイラストが表示されます",null,null,null,null,null,null,null,null,null,null,null,null,null,null,null,null,null,null,null,null,null,null,{"$f":"_xlfn.XLOOKUP(AA11,一覧_品番!A:A,一覧_品番!E:E, \"\", FALSE)","v":"チャコール"}]
["■木縁添付位置",null,null,null,null,null,{"$f":"VLOOKUP(AA27,一覧_木縁!A2:C9,2,FALSE)","v":"未選択"},null,null,null,null,null,null,null,null,null,null,null,null,null,null,null,null,null,null,null,"塗装色"]
[null,null,null,null,null,null,null,null,null,null,null,null,null,null,null,null,null,null,null,null,null,null,null,null,null,null,"表面材",null,null,{"$f":"_xlfn.XLOOKUP(AA11,一覧_品番!A:A,一覧_品番!F:F, \"\", FALSE)","v":"BC-3514AP"}]
[]
[null,null,null,null,null,null,"↓プルダウンで選択下さい"]
["■裏面材",null,null,null,null,null,{"$f":"INDEX(一覧_裏面!A1:A2,A1)","v":"BK（バッカ―）"},null,null,null,null,null,null,null,null,null,null,null,null,null,null,null,null,null,null,null,null,null,null,{"$f":"G25","v":"BK（バッカ―）"}]
[null,null,null,null,null,null,null,null,null,null,null,null,null,null,null,null,null,null,null,null,null,null,null,null,null,null,"裏面材"]
[null,null,null,null,null,null,null,null,null,null,null,null,null,null,null,null,null,null,null,null,null,null,null,null,null,null,8]
[null,null,null,null,null,null,"↓300～1200ｍｍの間で入力下さい"]
["■サイズ",null,null,null,"縦（D)",null,null,null,null,null,null,null,null,null,null,null,null,null,null,null,null,null,"縦（D）"]
[null,null,null,null,null,null,null,null,null,null,null,null,null,null,null,null,null,null,null,null,null,null,{"$f":"SUM(G29)","v":0}]
[null,null,null,null,null,null,"↓600～2400ｍｍの間で入力下さい"]
[null,null,null,null,"横（W)",null,null,null,null,null,null,null,null,null,null,null,null,null,null,null,null,null,null,null,"㎜"]
[]
[]
["■数量"]
[null,null,null,null,null,null,null,null,null,null,null,null,null,null,null,null,null,null,null,null,null,null,null,null,null,null,null,null,null,null,null,null,{"$f":"SUM(G32)","v":0}]
[null,null,null,null,null,null,null,null,null,null,null,null,null,null,null,null,null,null,null,null,null,null,null,null,null,null,null,null,null,null,null,null,null,null,null,null,null,"㎜"]
["■希望納期",null,null,null,null,null,"　　年　 　月　   日",null,null,null,null,null,null,null,null,null,null,null,null,null,null,null,null,null,null,null,null,null,null,null,null,null,null,"横（W)"]
[]
[]
["■納入場所",null,null,null,null,null,"納入会社名",null,null,null,null,null,null,null,null,null,null,null,"　納入住所",null,null,null,null,null,null,null,null,null,null,null,null,null,null,null,null,null,null,null,"納入電話番号"]
[null,null,null,null,null,null,null,null,null,null,null,null,null,null,null,null,null,null,"〒"]

{"sheet":"RPS-3521S-32","index":6,"n_rows":41,"n_cols":157,"rows_kept":41,"cut":false,"hidden":false,"merged":[[37,6,38,17],[37,33,37,36],[41,6,43,17],[41,18,43,37],[41,38,43,46],[35,32,36,36],[19,29,20,33],[20,6,21,17],[21,26,22,27],[21,29,22,33],[24,6,25,17],[24,29,25,33],[28,6,29,17],[28,22,28,24],[29,22,30,24],[31,6,32,17],[34,6,35,17],[10,6,11,17],[10,26,12,33],[12,6,13,17],[13,29,14,33],[15,29,16,33],[16,6,17,17],[17,26,18,28],[17,29,18,33],[2,22,2,28],[3,31,3,33],[5,0,6,3],[5,6,6,17],[8,0,9,3],[8,6,9,17]]}
[2,null,null,null,null,null,null,null,null,null,null,null,null,null,null,null,null,null,null,null,null,"■イビケン記入箇所"]
[null,null,null,null,null,null,null,null,null,null,null,null,null,null,null,null,null,null,null,null,null,null,"オーダーNo",null,null,null,null,null,null,null,"メイン",null,null,null,null,"W寸",null,"D寸",null,"形状",null,"木縁",null,"裏面"]
[null,null,null,null,null,null,null,null,null,null,null,null,null,null,null,null,null,null,null,null,null,null,null,null,null,null,null,null,null,{"$f":"AA11","v":"RPS-3521S-32"},null,null,null,null,"-",{"$f":"G32","v":0},"-",{"$f":"G29","v":0},"-","IG","-",{"$f":"G21","v":"未選択"},"-",{"$f":"IF(AD25=\"BK（バッカー）\",\"BK\",IF(AD25=\"DS（表同柄）※オプション価格\",\"DS\",\"\"))","v":"BK"}]
["※オーダーシートは仕様指示書となります。注文書は別途ご用意ください。",null,null,null,null,null,null,null,null,null,null,null,null,null,null,null,null,null,null,null,null,null,null,null,null,null,null,null,null,null,null,null,null,null,null,null,null,null,null,null,null,null,null,null,null,null,null,null,null,null,null,null,null,null,null,null,null,null,null,null,null,null,null,null,null,null,null,null,null,null,null,null,null,null,null,null,null,null,null,null,null,null,null,null,null,null,null,null,null,null,null,null,null,null,null,null,null,null,null,null,null,null,null,null,null,null,null,null,null,null,null,null,null,null,null,null,null,null,null,null,null,null,null,null,null,null,null,null,null,null,null,null,null,null,null,null,null,null,null,null,null,null,null,null,null,null,null,null,null,null,null,null,null,null,null,null,"RPS-1981U-38"]
[]
["■発注日",null,null,null,null,null,"　　年　 　月　   日"]
[]
[]
["■発注者"]
[null,null,null,null,"会社名"]
[null,null,null,null,null,null,null,null,null,null,null,null,null,null,null,null,null,null,null,null,null,null,null,null,null,null,{"$f":"G17","v":"RPS-3521S-32"}]
[null,null,null,null,"担当者名"]
[]
[null,null,null,null,"電話番号",null,null,null,null,null,null,null,null,null,null,null,null,null,null,null,null,null,null,null,null,null,null,null,null,{"$f":"_xlfn.XLOOKUP(AA11,一覧_品番!A:A,一覧_品番!B:B, \"\", FALSE)","v":32}]
[null,null,null,null,null,null,null,null,null,null,null,null,null,null,null,null,null,null,null,null,null,null,null,null,null,null,"厚み"]
[null,null,null,null,null,null,null,null,null,null,null,null,null,null,null,null,null,null,null,null,null,null,null,null,null,null,null,null,null,{"$f":"_xlfn.XLOOKUP(AA11,一覧_品番!A:A,一覧_品番!C:C, \"\", FALSE)","v":"ストレート"}]
["■品番",null,null,null,null,null,{"$f":"_xlfn.XLOOKUP(S17,注文書一覧!A:A,注文書一覧!B:B,\"\")","v":"RPS-3521S-32"},null,null,null,null,null,null,null,null,null,null,null,9,null,null,null,null,null,null,null,"木縁形状"]
[null,null,null,null,null,null,null,null,null,null,null,null,null,null,null,null,null,null,null,null,null,null,null,null,null,null,"木縁位置",null,null,{"$f":"G21","v":"未選択"}]
[]
[null,null,null,null,null,null,"↓左のカーソルで選択下さい。→右下にイラストが表示されます",null,null,null,null,null,null,null,null,null,null,null,null,null,null,null,null,null,null,null,null,null,null,{"$f":"_xlfn.XLOOKUP(AA11,一覧_品番!A:A,一覧_品番!E:E, \"\", FALSE)","v":"ナチュラル"}]
["■木縁添付位置",null,null,null,null,null,{"$f":"VLOOKUP(AA27,一覧_木縁!A2:C9,2,FALSE)","v":"未選択"},null,null,null,null,null,null,null,null,null,null,null,null,null,null,null,null,null,null,null,"塗装色"]
[null,null,null,null,null,null,null,null,null,null,null,null,null,null,null,null,null,null,null,null,null,null,null,null,null,null,"表面材",null,null,{"$f":"_xlfn.XLOOKUP(AA11,一覧_品番!A:A,一覧_品番!F:F, \"\", FALSE)","v":"VMX-3521S"}]
[]
[null,null,null,null,null,null,"↓プルダウンで選択下さい"]
["■裏面材",null,null,null,null,null,{"$f":"INDEX(一覧_裏面!A1:A2,A1)","v":"BK（バッカ―）"},null,null,null,null,null,null,null,null,null,null,null,null,null,null,null,null,null,null,null,null,null,null,{"$f":"G25","v":"BK（バッカ―）"}]
[null,null,null,null,null,null,null,null,null,null,null,null,null,null,null,null,null,null,null,null,null,null,null,null,null,null,"裏面材"]
[null,null,null,null,null,null,null,null,null,null,null,null,null,null,null,null,null,null,null,null,null,null,null,null,null,null,8]
[null,null,null,null,null,null,"↓300～1200ｍｍの間で入力下さい"]
["■サイズ",null,null,null,"縦（D)",null,null,null,null,null,null,null,null,null,null,null,null,null,null,null,null,null,"縦（D）"]
[null,null,null,null,null,null,null,null,null,null,null,null,null,null,null,null,null,null,null,null,null,null,{"$f":"SUM(G29)","v":0}]
[null,null,null,null,null,null,"↓600～2400ｍｍの間で入力下さい"]
[null,null,null,null,"横（W)",null,null,null,null,null,null,null,null,null,null,null,null,null,null,null,null,null,null,null,"㎜"]
[]
[]
["■数量"]
[null,null,null,null,null,null,null,null,null,null,null,null,null,null,null,null,null,null,null,null,null,null,null,null,null,null,null,null,null,null,null,null,{"$f":"SUM(G32)","v":0}]
[null,null,null,null,null,null,null,null,null,null,null,null,null,null,null,null,null,null,null,null,null,null,null,null,null,null,null,null,null,null,null,null,null,null,null,null,null,"㎜"]
["■希望納期",null,null,null,null,null,"　　年　 　月　   日",null,null,null,null,null,null,null,null,null,null,null,null,null,null,null,null,null,null,null,null,null,null,null,null,null,null,"横（W)"]
[]
[]
["■納入場所",null,null,null,null,null,"納入会社名",null,null,null,null,null,null,null,null,null,null,null,"　納入住所",null,null,null,null,null,null,null,null,null,null,null,null,null,null,null,null,null,null,null,"納入電話番号"]

{"sheet":"RP-3521S-32","index":7,"n_rows":42,"n_cols":157,"rows_kept":42,"cut":false,"hidden":false,"merged":[[37,6,38,17],[37,33,37,36],[41,6,43,17],[41,18,43,37],[41,38,43,46],[35,32,36,36],[19,29,20,33],[20,6,21,17],[21,26,22,27],[21,29,22,33],[24,6,25,17],[24,29,25,33],[28,6,29,17],[28,22,28,24],[29,22,30,24],[31,6,32,17],[34,6,35,17],[10,6,11,17],[10,26,12,33],[12,6,13,17],[13,29,14,33],[15,29,16,33],[16,6,17,17],[17,26,18,28],[17,29,18,33],[2,22,2,28],[3,31,3,33],[5,0,6,3],[5,6,6,17],[8,0,9,3],[8,6,9,17]]}
[2,null,null,null,null,null,null,null,null,null,null,null,null,null,null,null,null,null,null,null,null,"■イビケン記入箇所"]
[null,null,null,null,null,null,null,null,null,null,null,null,null,null,null,null,null,null,null,null,null,null,"オーダーNo",null,null,null,null,null,null,null,"メイン",null,null,null,null,"W寸",null,"D寸",null,"形状",null,"木縁",null,"裏面"]
[null,null,null,null,null,null,null,null,null,null,null,null,null,null,null,null,null,null,null,null,null,null,null,null,null,null,null,null,null,{"$f":"AA11","v":"RP-3521S-32"},null,null,null,null,"-",{"$f":"G32","v":0},"-",{"$f":"G29","v":0},"-","IG","-",{"$f":"G21","v":"未選択"},"-",{"$f":"IF(AD25=\"BK（バッカー）\",\"BK\",IF(AD25=\"DS（表同柄）※オプション価格\",\"DS\",\"\"))","v":"BK"}]
["※オーダーシートは仕様指示書となります。注文書は別途ご用意ください。",null,null,null,null,null,null,null,null,null,null,null,null,null,null,null,null,null,null,null,null,null,null,null,null,null,null,null,null,null,null,null,null,null,null,null,null,null,null,null,null,null,null,null,null,null,null,null,null,null,null,null,null,null,null,null,null,null,null,null,null,null,null,null,null,null,null,null,null,null,null,null,null,null,null,null,null,null,null,null,null,null,null,null,null,null,null,null,null,null,null,null,null,null,null,null,null,null,null,null,null,null,null,null,null,null,null,null,null,null,null,null,null,null,null,null,null,null,null,null,null,null,null,null,null,null,null,null,null,null,null,null,null,null,null,null,null,null,null,null,null,null,null,null,null,null,null,null,null,null,null,null,null,null,null,null,"RPS-1981U-38"]
[]
["■発注日",null,null,null,null,null,"　　年　 　月　   日"]
[]
[]
["■発注者"]
[null,null,null,null,"会社名"]
[null,null,null,null,null,null,null,null,null,null,null,null,null,null,null,null,null,null,null,null,null,null,null,null,null,null,{"$f":"G17","v":"RP-3521S-32"}]
[null,null,null,null,"担当者名"]
[]
[null,null,null,null,"電話番号",null,null,null,null,null,null,null,null,null,null,null,null,null,null,null,null,null,null,null,null,null,null,null,null,{"$f":"_xlfn.XLOOKUP(AA11,一覧_品番!A:A,一覧_品番!B:B, \"\", FALSE)","v":32}]
[null,null,null,null,null,null,null,null,null,null,null,null,null,null,null,null,null,null,null,null,null,null,null,null,null,null,"厚み"]
[null,null,null,null,null,null,null,null,null,null,null,null,null,null,null,null,null,null,null,null,null,null,null,null,null,null,null,null,null,{"$f":"_xlfn.XLOOKUP(AA11,一覧_品番!A:A,一覧_品番!C:C, \"\", FALSE)","v":"ライブエッジ"}]
["■品番",null,null,null,null,null,{"$f":"_xlfn.XLOOKUP(S17,注文書一覧!A:A,注文書一覧!B:B,\"\")","v":"RP-3521S-32"},null,null,null,null,null,null,null,null,null,null,null,11,null,null,null,null,null,null,null,"木縁形状"]
[null,null,null,null,null,null,null,null,null,null,null,null,null,null,null,null,null,null,null,null,null,null,null,null,null,null,"木縁位置",null,null,{"$f":"G21","v":"未選択"}]
[]
[null,null,null,null,null,null,"↓左のカーソルで選択下さい。→右下にイラストが表示されます",null,null,null,null,null,null,null,null,null,null,null,null,null,null,null,null,null,null,null,null,null,null,{"$f":"_xlfn.XLOOKUP(AA11,一覧_品番!A:A,一覧_品番!E:E, \"\", FALSE)","v":"ナチュラル"}]
["■木縁添付位置",null,null,null,null,null,{"$f":"VLOOKUP(AA27,一覧_木縁!A2:C9,2,FALSE)","v":"未選択"},null,null,null,null,null,null,null,null,null,null,null,null,null,null,null,null,null,null,null,"塗装色"]
[null,null,null,null,null,null,null,null,null,null,null,null,null,null,null,null,null,null,null,null,null,null,null,null,null,null,"表面材",null,null,{"$f":"_xlfn.XLOOKUP(AA11,一覧_品番!A:A,一覧_品番!F:F, \"\", FALSE)","v":"VMX-3521S"}]
[]
[null,null,null,null,null,null,"↓プルダウンで選択下さい"]
["■裏面材",null,null,null,null,null,{"$f":"INDEX(一覧_裏面!A1:A2,A1)","v":"BK（バッカ―）"},null,null,null,null,null,null,null,null,null,null,null,null,null,null,null,null,null,null,null,null,null,null,{"$f":"G25","v":"BK（バッカ―）"}]
[null,null,null,null,null,null,null,null,null,null,null,null,null,null,null,null,null,null,null,null,null,null,null,null,null,null,"裏面材"]
[null,null,null,null,null,null,null,null,null,null,null,null,null,null,null,null,null,null,null,null,null,null,null,null,null,null,8]
[null,null,null,null,null,null,"↓300～1200ｍｍの間で入力下さい"]
["■サイズ",null,null,null,"縦（D)",null,null,null,null,null,null,null,null,null,null,null,null,null,null,null,null,null,"縦（D）"]
[null,null,null,null,null,null,null,null,null,null,null,null,null,null,null,null,null,null,null,null,null,null,{"$f":"SUM(G29)","v":0}]
[null,null,null,null,null,null,"↓600～2400ｍｍの間で入力下さい"]
[null,null,null,null,"横（W)",null,null,null,null,null,null,null,null,null,null,null,null,null,null,null,null,null,null,null,"㎜"]
[]
[]
["■数量"]
[null,null,null,null,null,null,null,null,null,null,null,null,null,null,null,null,null,null,null,null,null,null,null,null,null,null,null,null,null,null,null,null,{"$f":"SUM(G32)","v":0}]
[null,null,null,null,null,null,null,null,null,null,null,null,null,null,null,null,null,null,null,null,null,null,null,null,null,null,null,null,null,null,null,null,null,null,null,null,null,"㎜"]
["■希望納期",null,null,null,null,null,"　　年　 　月　   日",null,null,null,null,null,null,null,null,null,null,null,null,null,null,null,null,null,null,null,null,null,null,null,null,null,null,"横（W)"]
[]
[]
["■納入場所",null,null,null,null,null,"納入会社名",null,null,null,null,null,null,null,null,null,null,null,"　納入住所",null,null,null,null,null,null,null,null,null,null,null,null,null,null,null,null,null,null,null,"納入電話番号"]
[null,null,null,null,null,null,null,null,null,null,null,null,null,null,null,null,null,null,"〒"]

{"sheet":"RPS-3538TX-32","index":8,"n_rows":41,"n_cols":157,"rows_kept":41,"cut":false,"hidden":false,"merged":[[37,6,38,17],[37,33,37,36],[41,6,43,17],[41,18,43,37],[41,38,43,46],[35,32,36,36],[19,29,20,33],[20,6,21,17],[21,26,22,27],[21,29,22,33],[24,6,25,17],[24,29,25,33],[28,6,29,17],[28,22,28,24],[29,22,30,24],[31,6,32,17],[34,6,35,17],[10,6,11,17],[10,26,12,33],[12,6,13,17],[13,29,14,33],[15,29,16,33],[16,6,17,17],[17,26,18,28],[17,29,18,33],[2,22,2,28],[3,31,3,33],[5,0,6,3],[5,6,6,17],[8,0,9,3],[8,6,9,17]]}
[2,null,null,null,null,null,null,null,null,null,null,null,null,null,null,null,null,null,null,null,null,"■イビケン記入箇所"]
[null,null,null,null,null,null,null,null,null,null,null,null,null,null,null,null,null,null,null,null,null,null,"オーダーNo",null,null,null,null,null,null,null,"メイン",null,null,null,null,"W寸",null,"D寸",null,"形状",null,"木縁",null,"裏面"]
[null,null,null,null,null,null,null,null,null,null,null,null,null,null,null,null,null,null,null,null,null,null,null,null,null,null,null,null,null,{"$f":"AA11","v":""},null,null,null,null,"-",{"$f":"G32","v":0},"-",{"$f":"G29","v":0},"-","IG","-",{"$f":"G21","v":"未選択"},"-",{"$f":"IF(AD25=\"BK（バッカー）\",\"BK\",IF(AD25=\"DS（表同柄）※オプション価格\",\"DS\",\"\"))","v":"BK"}]
["※オーダーシートは仕様指示書となります。注文書は別途ご用意ください。",null,null,null,null,null,null,null,null,null,null,null,null,null,null,null,null,null,null,null,null,null,null,null,null,null,null,null,null,null,null,null,null,null,null,null,null,null,null,null,null,null,null,null,null,null,null,null,null,null,null,null,null,null,null,null,null,null,null,null,null,null,null,null,null,null,null,null,null,null,null,null,null,null,null,null,null,null,null,null,null,null,null,null,null,null,null,null,null,null,null,null,null,null,null,null,null,null,null,null,null,null,null,null,null,null,null,null,null,null,null,null,null,null,null,null,null,null,null,null,null,null,null,null,null,null,null,null,null,null,null,null,null,null,null,null,null,null,null,null,null,null,null,null,null,null,null,null,null,null,null,null,null,null,null,null,"RPS-1981U-38"]
[]
["■発注日",null,null,null,null,null,"　　年　 　月　   日"]
[]
[]
["■発注者"]
[null,null,null,null,"会社名"]
[null,null,null,null,null,null,null,null,null,null,null,null,null,null,null,null,null,null,null,null,null,null,null,null,null,null,{"$f":"G17","v":""}]
[null,null,null,null,"担当者名"]
[]
[null,null,null,null,"電話番号",null,null,null,null,null,null,null,null,null,null,null,null,null,null,null,null,null,null,null,null,null,null,null,null,{"$f":"_xlfn.XLOOKUP(AA11,一覧_品番!A:A,一覧_品番!B:B, \"\", FALSE)","v":""}]
[null,null,null,null,null,null,null,null,null,null,null,null,null,null,null,null,null,null,null,null,null,null,null,null,null,null,"厚み"]
[null,null,null,null,null,null,null,null,null,null,null,null,null,null,null,null,null,null,null,null,null,null,null,null,null,null,null,null,null,{"$f":"_xlfn.XLOOKUP(AA11,一覧_品番!A:A,一覧_品番!C:C, \"\", FALSE)","v":""}]
["■品番",null,null,null,null,null,{"$f":"_xlfn.XLOOKUP(S17,注文書一覧!A:A,注文書一覧!B:B,\"\")","v":""},null,null,null,null,null,null,null,null,null,null,null,13,null,null,null,null,null,null,null,"木縁形状"]
[null,null,null,null,null,null,null,null,null,null,null,null,null,null,null,null,null,null,null,null,null,null,null,null,null,null,"木縁位置",null,null,{"$f":"G21","v":"未選択"}]
[]
[null,null,null,null,null,null,"↓左のカーソルで選択下さい。→右下にイラストが表示されます",null,null,null,null,null,null,null,null,null,null,null,null,null,null,null,null,null,null,null,null,null,null,{"$f":"_xlfn.XLOOKUP(AA11,一覧_品番!A:A,一覧_品番!E:E, \"\", FALSE)","v":""}]
["■木縁添付位置",null,null,null,null,null,{"$f":"VLOOKUP(AA27,一覧_木縁!A2:C9,2,FALSE)","v":"未選択"},null,null,null,null,null,null,null,null,null,null,null,null,null,null,null,null,null,null,null,"塗装色"]
[null,null,null,null,null,null,null,null,null,null,null,null,null,null,null,null,null,null,null,null,null,null,null,null,null,null,"表面材",null,null,{"$f":"_xlfn.XLOOKUP(AA11,一覧_品番!A:A,一覧_品番!F:F, \"\", FALSE)","v":""}]
[]
[null,null,null,null,null,null,"↓プルダウンで選択下さい"]
["■裏面材",null,null,null,null,null,{"$f":"INDEX(一覧_裏面!A1:A2,A1)","v":"BK（バッカ―）"},null,null,null,null,null,null,null,null,null,null,null,null,null,null,null,null,null,null,null,null,null,null,{"$f":"G25","v":"BK（バッカ―）"}]
[null,null,null,null,null,null,null,null,null,null,null,null,null,null,null,null,null,null,null,null,null,null,null,null,null,null,"裏面材"]
[null,null,null,null,null,null,null,null,null,null,null,null,null,null,null,null,null,null,null,null,null,null,null,null,null,null,8]
[null,null,null,null,null,null,"↓300～1200ｍｍの間で入力下さい"]
["■サイズ",null,null,null,"縦（D)",null,null,null,null,null,null,null,null,null,null,null,null,null,null,null,null,null,"縦（D）"]
[null,null,null,null,null,null,null,null,null,null,null,null,null,null,null,null,null,null,null,null,null,null,{"$f":"SUM(G29)","v":0}]
[null,null,null,null,null,null,"↓600～2400ｍｍの間で入力下さい"]
[null,null,null,null,"横（W)",null,null,null,null,null,null,null,null,null,null,null,null,null,null,null,null,null,null,null,"㎜"]
[]
[]
["■数量"]
[null,null,null,null,null,null,null,null,null,null,null,null,null,null,null,null,null,null,null,null,null,null,null,null,null,null,null,null,null,null,null,null,{"$f":"SUM(G32)","v":0}]
[null,null,null,null,null,null,null,null,null,null,null,null,null,null,null,null,null,null,null,null,null,null,null,null,null,null,null,null,null,null,null,null,null,null,null,null,null,"㎜"]
["■希望納期",null,null,null,null,null,"　　年　 　月　   日",null,null,null,null,null,null,null,null,null,null,null,null,null,null,null,null,null,null,null,null,null,null,null,null,null,null,"横（W)"]
[]
[]
["■納入場所",null,null,null,null,null,"納入会社名",null,null,null,null,null,null,null,null,null,null,null,"　納入住所",null,null,null,null,null,null,null,null,null,null,null,null,null,null,null,null,null,null,null,"納入電話番号"]

{"sheet":"RP-3538TX-32","index":9,"n_rows":42,"n_cols":157,"rows_kept":42,"cut":false,"hidden":false,"merged":[[37,6,38,17],[37,33,37,36],[41,6,43,17],[41,18,43,37],[41,38,43,46],[35,32,36,36],[19,29,20,33],[20,6,21,17],[21,26,22,27],[21,29,22,33],[24,6,25,17],[24,29,25,33],[28,6,29,17],[28,22,28,24],[29,22,30,24],[31,6,32,17],[34,6,35,17],[10,6,11,17],[10,26,12,33],[12,6,13,17],[13,29,14,33],[15,29,16,33],[16,6,17,17],[17,26,18,28],[17,29,18,33],[2,22,2,28],[3,31,3,33],[5,0,6,3],[5,6,6,17],[8,0,9,3],[8,6,9,17]]}
[2,null,null,null,null,null,null,null,null,null,null,null,null,null,null,null,null,null,null,null,null,"■イビケン記入箇所"]
[null,null,null,null,null,null,null,null,null,null,null,null,null,null,null,null,null,null,null,null,null,null,"オーダーNo",null,null,null,null,null,null,null,"メイン",null,null,null,null,"W寸",null,"D寸",null,"形状",null,"木縁",null,"裏面"]
[null,null,null,null,null,null,null,null,null,null,null,null,null,null,null,null,null,null,null,null,null,null,null,null,null,null,null,null,null,{"$f":"AA11","v":""},null,null,null,null,"-",{"$f":"G32","v":0},"-",{"$f":"G29","v":0},"-","IG","-",{"$f":"G21","v":0},"-",{"$f":"IF(AD25=\"BK（バッカー）\",\"BK\",IF(AD25=\"DS（表同柄）※オプション価格\",\"DS\",\"\"))","v":"BK"}]
["※オーダーシートは仕様指示書となります。注文書は別途ご用意ください。",null,null,null,null,null,null,null,null,null,null,null,null,null,null,null,null,null,null,null,null,null,null,null,null,null,null,null,null,null,null,null,null,null,null,null,null,null,null,null,null,null,null,null,null,null,null,null,null,null,null,null,null,null,null,null,null,null,null,null,null,null,null,null,null,null,null,null,null,null,null,null,null,null,null,null,null,null,null,null,null,null,null,null,null,null,null,null,null,null,null,null,null,null,null,null,null,null,null,null,null,null,null,null,null,null,null,null,null,null,null,null,null,null,null,null,null,null,null,null,null,null,null,null,null,null,null,null,null,null,null,null,null,null,null,null,null,null,null,null,null,null,null,null,null,null,null,null,null,null,null,null,null,null,null,null,"RPS-1981U-38"]
[]
["■発注日",null,null,null,null,null,"　　年　 　月　   日"]
[]
[]
["■発注者"]
[null,null,null,null,"会社名"]
[null,null,null,null,null,null,null,null,null,null,null,null,null,null,null,null,null,null,null,null,null,null,null,null,null,null,{"$f":"G17","v":""}]
[null,null,null,null,"担当者名"]
[]
[null,null,null,null,"電話番号",null,null,null,null,null,null,null,null,null,null,null,null,null,null,null,null,null,null,null,null,null,null,null,null,{"$f":"_xlfn.XLOOKUP(AA11,一覧_品番!A:A,一覧_品番!B:B, \"\", FALSE)","v":""}]
[null,null,null,null,null,null,null,null,null,null,null,null,null,null,null,null,null,null,null,null,null,null,null,null,null,null,"厚み"]
[null,null,null,null,null,null,null,null,null,null,null,null,null,null,null,null,null,null,null,null,null,null,null,null,null,null,null,null,null,{"$f":"_xlfn.XLOOKUP(AA11,一覧_品番!A:A,一覧_品番!C:C, \"\", FALSE)","v":""}]
["■品番",null,null,null,null,null,{"$f":"_xlfn.XLOOKUP(S17,注文書一覧!A:A,注文書一覧!B:B,\"\")","v":""},null,null,null,null,null,null,null,null,null,null,null,15,null,null,null,null,null,null,null,"木縁形状"]
[null,null,null,null,null,null,null,null,null,null,null,null,null,null,null,null,null,null,null,null,null,null,null,null,null,null,"木縁位置",null,null,{"$f":"G21","v":0}]
[]
[null,null,null,null,null,null,"↓左のカーソルで選択下さい。→右下にイラストが表示されます",null,null,null,null,null,null,null,null,null,null,null,null,null,null,null,null,null,null,null,null,null,null,{"$f":"_xlfn.XLOOKUP(AA11,一覧_品番!A:A,一覧_品番!E:E, \"\", FALSE)","v":""}]
["■木縁添付位置",null,null,null,null,null,null,null,null,null,null,null,null,null,null,null,null,null,null,null,null,null,null,null,null,null,"塗装色"]
[null,null,null,null,null,null,null,null,null,null,null,null,null,null,null,null,null,null,null,null,null,null,null,null,null,null,"表面材",null,null,{"$f":"_xlfn.XLOOKUP(AA11,一覧_品番!A:A,一覧_品番!F:F, \"\", FALSE)","v":""}]
[]
[null,null,null,null,null,null,"↓プルダウンで選択下さい"]
["■裏面材",null,null,null,null,null,{"$f":"INDEX(一覧_裏面!A1:A2,A1)","v":"BK（バッカ―）"},null,null,null,null,null,null,null,null,null,null,null,null,null,null,null,null,null,null,null,null,null,null,{"$f":"G25","v":"BK（バッカ―）"}]
[null,null,null,null,null,null,null,null,null,null,null,null,null,null,null,null,null,null,null,null,null,null,null,null,null,null,"裏面材"]
[null,null,null,null,null,null,null,null,null,null,null,null,null,null,null,null,null,null,null,null,null,null,null,null,null,null,8]
[null,null,null,null,null,null,"↓300～1200ｍｍの間で入力下さい"]
["■サイズ",null,null,null,"縦（D)",null,null,null,null,null,null,null,null,null,null,null,null,null,null,null,null,null,"縦（D）"]
[null,null,null,null,null,null,null,null,null,null,null,null,null,null,null,null,null,null,null,null,null,null,{"$f":"SUM(G29)","v":0}]
[null,null,null,null,null,null,"↓600～2400ｍｍの間で入力下さい"]
[null,null,null,null,"横（W)",null,null,null,null,null,null,null,null,null,null,null,null,null,null,null,null,null,null,null,"㎜"]
[]
[]
["■数量"]
[null,null,null,null,null,null,null,null,null,null,null,null,null,null,null,null,null,null,null,null,null,null,null,null,null,null,null,null,null,null,null,null,{"$f":"SUM(G32)","v":0}]
[null,null,null,null,null,null,null,null,null,null,null,null,null,null,null,null,null,null,null,null,null,null,null,null,null,null,null,null,null,null,null,null,null,null,null,null,null,"㎜"]
["■希望納期",null,null,null,null,null,"　　年　 　月　   日",null,null,null,null,null,null,null,null,null,null,null,null,null,null,null,null,null,null,null,null,null,null,null,null,null,null,"横（W)"]
[]
[]
["■納入場所",null,null,null,null,null,"納入会社名",null,null,null,null,null,null,null,null,null,null,null,"　納入住所",null,null,null,null,null,null,null,null,null,null,null,null,null,null,null,null,null,null,null,"納入電話番号"]
[null,null,null,null,null,null,null,null,null,null,null,null,null,null,null,null,null,null,"〒"]

{"sheet":"RPS-3539TX-32","index":10,"n_rows":42,"n_cols":157,"rows_kept":42,"cut":false,"hidden":false,"merged":[[37,6,38,17],[37,33,37,36],[41,6,43,17],[41,18,43,37],[41,38,43,46],[35,32,36,36],[19,29,20,33],[20,6,21,17],[21,26,22,27],[21,29,22,33],[24,6,25,17],[24,29,25,33],[28,6,29,17],[28,22,28,24],[29,22,30,24],[31,6,32,17],[34,6,35,17],[10,6,11,17],[10,26,12,33],[12,6,13,17],[13,29,14,33],[15,29,16,33],[16,6,17,17],[17,26,18,28],[17,29,18,33],[2,22,2,28],[3,31,3,33],[5,0,6,3],[5,6,6,17],[8,0,9,3],[8,6,9,17]]}
[1,null,null,null,null,null,null,null,null,null,null,null,null,null,null,null,null,null,null,null,null,"■イビケン記入箇所"]
[null,null,null,null,null,null,null,null,null,null,null,null,null,null,null,null,null,null,null,null,null,null,"オーダーNo",null,null,null,null,null,null,null,"メイン",null,null,null,null,"W寸",null,"D寸",null,"形状",null,"木縁",null,"裏面"]
[null,null,null,null,null,null,null,null,null,null,null,null,null,null,null,null,null,null,null,null,null,null,null,null,null,null,null,null,null,{"$f":"AA11","v":"RPS-3539TX-32"},null,null,null,null,"-",{"$f":"G32","v":0},"-",{"$f":"G29","v":0},"-","IG","-",{"$f":"G21","v":"WDR"},"-",{"$f":"IF(AD25=\"BK（バッカー）\",\"BK\",IF(AD25=\"DS（表同柄）※オプション価格\",\"DS\",\"\"))","v":"DS"}]
["※オーダーシートは仕様指示書となります。注文書は別途ご用意ください。",null,null,null,null,null,null,null,null,null,null,null,null,null,null,null,null,null,null,null,null,null,null,null,null,null,null,null,null,null,null,null,null,null,null,null,null,null,null,null,null,null,null,null,null,null,null,null,null,null,null,null,null,null,null,null,null,null,null,null,null,null,null,null,null,null,null,null,null,null,null,null,null,null,null,null,null,null,null,null,null,null,null,null,null,null,null,null,null,null,null,null,null,null,null,null,null,null,null,null,null,null,null,null,null,null,null,null,null,null,null,null,null,null,null,null,null,null,null,null,null,null,null,null,null,null,null,null,null,null,null,null,null,null,null,null,null,null,null,null,null,null,null,null,null,null,null,null,null,null,null,null,null,null,null,null,"RPS-1981U-38"]
[]
["■発注日",null,null,null,null,null,"　　年　 　月　   日"]
[]
[]
["■発注者"]
[null,null,null,null,"会社名"]
[null,null,null,null,null,null,null,null,null,null,null,null,null,null,null,null,null,null,null,null,null,null,null,null,null,null,{"$f":"G17","v":"RPS-3539TX-32"}]
[null,null,null,null,"担当者名"]
[]
[null,null,null,null,"電話番号",null,null,null,null,null,null,null,null,null,null,null,null,null,null,null,null,null,null,null,null,null,null,null,null,{"$f":"_xlfn.XLOOKUP(AA11,一覧_品番!A:A,一覧_品番!B:B, \"\", FALSE)","v":32}]
[null,null,null,null,null,null,null,null,null,null,null,null,null,null,null,null,null,null,null,null,null,null,null,null,null,null,"厚み"]
[null,null,null,null,null,null,null,null,null,null,null,null,null,null,null,null,null,null,null,null,null,null,null,null,null,null,null,null,null,{"$f":"_xlfn.XLOOKUP(AA11,一覧_品番!A:A,一覧_品番!C:C, \"\", FALSE)","v":"ストレート"}]
["■品番",null,null,null,null,null,{"$f":"_xlfn.XLOOKUP(S17,注文書一覧!A:A,注文書一覧!B:B,\"\")","v":"RPS-3539TX-32"},null,null,null,null,null,null,null,null,null,null,null,17,null,null,null,null,null,null,null,"木縁形状"]
[null,null,null,null,null,null,null,null,null,null,null,null,null,null,null,null,null,null,null,null,null,null,null,null,null,null,"木縁位置",null,null,{"$f":"G21","v":"WDR"}]
[]
[null,null,null,null,null,null,"↓左のカーソルで選択下さい。→右下にイラストが表示されます",null,null,null,null,null,null,null,null,null,null,null,null,null,null,null,null,null,null,null,null,null,null,{"$f":"_xlfn.XLOOKUP(AA11,一覧_品番!A:A,一覧_品番!E:E, \"\", FALSE)","v":"ナチュラル"}]
["■木縁添付位置",null,null,null,null,null,{"$f":"VLOOKUP(AA27,一覧_木縁!A2:C9,2,FALSE)","v":"WDR"},null,null,null,null,null,null,null,null,null,null,null,null,null,null,null,null,null,null,null,"塗装色"]
[null,null,null,null,null,null,null,null,null,null,null,null,null,null,null,null,null,null,null,null,null,null,null,null,null,null,"表面材",null,null,{"$f":"_xlfn.XLOOKUP(AA11,一覧_品番!A:A,一覧_品番!F:F, \"\", FALSE)","v":"VMXW-3539TX"}]
[]
[null,null,null,null,null,null,"↓プルダウンで選択下さい"]
["■裏面材",null,null,null,null,null,{"$f":"INDEX(一覧_裏面!A1:A2,A1)","v":"DS（表同柄）※オプション価格"},null,null,null,null,null,null,null,null,null,null,null,null,null,null,null,null,null,null,null,null,null,null,{"$f":"G25","v":"DS（表同柄）※オプション価格"}]
[null,null,null,null,null,null,null,null,null,null,null,null,null,null,null,null,null,null,null,null,null,null,null,null,null,null,"裏面材"]
[null,null,null,null,null,null,null,null,null,null,null,null,null,null,null,null,null,null,null,null,null,null,null,null,null,null,5]
[null,null,null,null,null,null,"↓300～1200ｍｍの間で入力下さい"]
["■サイズ",null,null,null,"縦（D)",null,null,null,null,null,null,null,null,null,null,null,null,null,null,null,null,null,"縦（D）"]
[null,null,null,null,null,null,null,null,null,null,null,null,null,null,null,null,null,null,null,null,null,null,{"$f":"SUM(G29)","v":0}]
[null,null,null,null,null,null,"↓600～2400ｍｍの間で入力下さい"]
[null,null,null,null,"横（W)",null,null,null,null,null,null,null,null,null,null,null,null,null,null,null,null,null,null,null,"㎜"]
[]
[]
["■数量"]
[null,null,null,null,null,null,null,null,null,null,null,null,null,null,null,null,null,null,null,null,null,null,null,null,null,null,null,null,null,null,null,null,{"$f":"SUM(G32)","v":0}]
[null,null,null,null,null,null,null,null,null,null,null,null,null,null,null,null,null,null,null,null,null,null,null,null,null,null,null,null,null,null,null,null,null,null,null,null,null,"㎜"]
["■希望納期",null,null,null,null,null,"　　年　 　月　   日",null,null,null,null,null,null,null,null,null,null,null,null,null,null,null,null,null,null,null,null,null,null,null,null,null,null,"横（W)"]
[]
[]
["■納入場所",null,null,null,null,null,"納入会社名",null,null,null,null,null,null,null,null,null,null,null,"　納入住所",null,null,null,null,null,null,null,null,null,null,null,null,null,null,null,null,null,null,null,"納入電話番号"]
[null,null,null,null,null,null,null,null,null,null,null,null,null,null,null,null,null,null,"〒"]

{"sheet":"RP-3539TX-32","index":11,"n_rows":42,"n_cols":157,"rows_kept":42,"cut":false,"hidden":false,"merged":[[37,6,38,17],[37,33,37,36],[41,6,43,17],[41,18,43,37],[41,38,43,46],[35,32,36,36],[19,29,20,33],[20,6,21,17],[21,26,22,27],[21,29,22,33],[24,6,25,17],[24,29,25,33],[28,6,29,17],[28,22,28,24],[29,22,30,24],[31,6,32,17],[34,6,35,17],[10,6,11,17],[10,26,12,33],[12,6,13,17],[13,29,14,33],[15,29,16,33],[16,6,17,17],[17,26,18,28],[17,29,18,33],[2,22,2,28],[3,31,3,33],[5,0,6,3],[5,6,6,17],[8,0,9,3],[8,6,9,17]]}
[2,null,null,null,null,null,null,null,null,null,null,null,null,null,null,null,null,null,null,null,null,"■イビケン記入箇所"]
[null,null,null,null,null,null,null,null,null,null,null,null,null,null,null,null,null,null,null,null,null,null,"オーダーNo",null,null,null,null,null,null,null,"メイン",null,null,null,null,"W寸",null,"D寸",null,"形状",null,"木縁",null,"裏面"]
[null,null,null,null,null,null,null,null,null,null,null,null,null,null,null,null,null,null,null,null,null,null,null,null,null,null,null,null,null,{"$f":"AA11","v":"RP-3539TX-32"},null,null,null,null,"-",{"$f":"G32","v":0},"-",{"$f":"G29","v":0},"-","IG","-",{"$f":"G21","v":"未選択"},"-",{"$f":"IF(AD25=\"BK（バッカー）\",\"BK\",IF(AD25=\"DS（表同柄）※オプション価格\",\"DS\",\"\"))","v":"BK"}]
["※オーダーシートは仕様指示書となります。注文書は別途ご用意ください。",null,null,null,null,null,null,null,null,null,null,null,null,null,null,null,null,null,null,null,null,null,null,null,null,null,null,null,null,null,null,null,null,null,null,null,null,null,null,null,null,null,null,null,null,null,null,null,null,null,null,null,null,null,null,null,null,null,null,null,null,null,null,null,null,null,null,null,null,null,null,null,null,null,null,null,null,null,null,null,null,null,null,null,null,null,null,null,null,null,null,null,null,null,null,null,null,null,null,null,null,null,null,null,null,null,null,null,null,null,null,null,null,null,null,null,null,null,null,null,null,null,null,null,null,null,null,null,null,null,null,null,null,null,null,null,null,null,null,null,null,null,null,null,null,null,null,null,null,null,null,null,null,null,null,null,"RPS-1981U-38"]
[]
["■発注日",null,null,null,null,null,"　　年　 　月　   日"]
[]
[]
["■発注者"]
[null,null,null,null,"会社名"]
[null,null,null,null,null,null,null,null,null,null,null,null,null,null,null,null,null,null,null,null,null,null,null,null,null,null,{"$f":"G17","v":"RP-3539TX-32"}]
[null,null,null,null,"担当者名"]
[]
[null,null,null,null,"電話番号",null,null,null,null,null,null,null,null,null,null,null,null,null,null,null,null,null,null,null,null,null,null,null,null,{"$f":"_xlfn.XLOOKUP(AA11,一覧_品番!A:A,一覧_品番!B:B, \"\", FALSE)","v":32}]
[null,null,null,null,null,null,null,null,null,null,null,null,null,null,null,null,null,null,null,null,null,null,null,null,null,null,"厚み"]
[null,null,null,null,null,null,null,null,null,null,null,null,null,null,null,null,null,null,null,null,null,null,null,null,null,null,null,null,null,{"$f":"_xlfn.XLOOKUP(AA11,一覧_品番!A:A,一覧_品番!C:C, \"\", FALSE)","v":"ライブエッジ"}]
["■品番",null,null,null,null,null,{"$f":"_xlfn.XLOOKUP(S17,注文書一覧!A:A,注文書一覧!B:B,\"\")","v":"RP-3539TX-32"},null,null,null,null,null,null,null,null,null,null,null,19,null,null,null,null,null,null,null,"木縁形状"]
[null,null,null,null,null,null,null,null,null,null,null,null,null,null,null,null,null,null,null,null,null,null,null,null,null,null,"木縁位置",null,null,{"$f":"G21","v":"未選択"}]
[]
[null,null,null,null,null,null,"↓左のカーソルで選択下さい。→右下にイラストが表示されます",null,null,null,null,null,null,null,null,null,null,null,null,null,null,null,null,null,null,null,null,null,null,{"$f":"_xlfn.XLOOKUP(AA11,一覧_品番!A:A,一覧_品番!E:E, \"\", FALSE)","v":"ナチュラル"}]
["■木縁添付位置",null,null,null,null,null,{"$f":"VLOOKUP(AA27,一覧_木縁!A2:C9,2,FALSE)","v":"未選択"},null,null,null,null,null,null,null,null,null,null,null,null,null,null,null,null,null,null,null,"塗装色"]
[null,null,null,null,null,null,null,null,null,null,null,null,null,null,null,null,null,null,null,null,null,null,null,null,null,null,"表面材",null,null,{"$f":"_xlfn.XLOOKUP(AA11,一覧_品番!A:A,一覧_品番!F:F, \"\", FALSE)","v":"VMXW-3539TX"}]
[]
[null,null,null,null,null,null,"↓プルダウンで選択下さい"]
["■裏面材",null,null,null,null,null,{"$f":"INDEX(一覧_裏面!A1:A2,A1)","v":"BK（バッカ―）"},null,null,null,null,null,null,null,null,null,null,null,null,null,null,null,null,null,null,null,null,null,null,{"$f":"G25","v":"BK（バッカ―）"}]
[null,null,null,null,null,null,null,null,null,null,null,null,null,null,null,null,null,null,null,null,null,null,null,null,null,null,"裏面材"]
[null,null,null,null,null,null,null,null,null,null,null,null,null,null,null,null,null,null,null,null,null,null,null,null,null,null,8]
[null,null,null,null,null,null,"↓300～1200ｍｍの間で入力下さい"]
["■サイズ",null,null,null,"縦（D)",null,null,null,null,null,null,null,null,null,null,null,null,null,null,null,null,null,"縦（D）"]
[null,null,null,null,null,null,null,null,null,null,null,null,null,null,null,null,null,null,null,null,null,null,{"$f":"SUM(G29)","v":0}]
[null,null,null,null,null,null,"↓600～2400ｍｍの間で入力下さい"]
[null,null,null,null,"横（W)",null,null,null,null,null,null,null,null,null,null,null,null,null,null,null,null,null,null,null,"㎜"]
[]
[]
["■数量"]
[null,null,null,null,null,null,null,null,null,null,null,null,null,null,null,null,null,null,null,null,null,null,null,null,null,null,null,null,null,null,null,null,{"$f":"SUM(G32)","v":0}]
[null,null,null,null,null,null,null,null,null,null,null,null,null,null,null,null,null,null,null,null,null,null,null,null,null,null,null,null,null,null,null,null,null,null,null,null,null,"㎜"]
["■希望納期",null,null,null,null,null,"　　年　 　月　   日",null,null,null,null,null,null,null,null,null,null,null,null,null,null,null,null,null,null,null,null,null,null,null,null,null,null,"横（W)"]
[]
[]
["■納入場所",null,null,null,null,null,"納入会社名",null,null,null,null,null,null,null,null,null,null,null,"　納入住所",null,null,null,null,null,null,null,null,null,null,null,null,null,null,null,null,null,null,null,"納入電話番号"]
[null,null,null,null,null,null,null,null,null,null,null,null,null,null,null,null,null,null,"〒"]

{"sheet":"RPS-3542AP-32","index":12,"n_rows":42,"n_cols":157,"rows_kept":42,"cut":false,"hidden":false,"merged":[[37,6,38,17],[37,33,37,36],[41,6,43,17],[41,18,43,37],[41,38,43,46],[35,32,36,36],[19,29,20,33],[20,6,21,17],[21,26,22,27],[21,29,22,33],[24,6,25,17],[24,29,25,33],[28,6,29,17],[28,22,28,24],[29,22,30,24],[31,6,32,17],[34,6,35,17],[10,6,11,17],[10,26,12,33],[12,6,13,17],[13,29,14,33],[15,29,16,33],[16,6,17,17],[17,26,18,28],[17,29,18,33],[2,22,2,28],[3,31,3,33],[5,0,6,3],[5,6,6,17],[8,0,9,3],[8,6,9,17]]}
[2,null,null,null,null,null,null,null,null,null,null,null,null,null,null,null,null,null,null,null,null,"■イビケン記入箇所"]
[null,null,null,null,null,null,null,null,null,null,null,null,null,null,null,null,null,null,null,null,null,null,"オーダーNo",null,null,null,null,null,null,null,"メイン",null,null,null,null,"W寸",null,"D寸",null,"形状",null,"木縁",null,"裏面"]
[null,null,null,null,null,null,null,null,null,null,null,null,null,null,null,null,null,null,null,null,null,null,null,null,null,null,null,null,null,{"$f":"AA11","v":"RPS-3542AP-32"},null,null,null,null,"-",{"$f":"G32","v":0},"-",{"$f":"G29","v":0},"-","IG","-",{"$f":"G21","v":"未選択"},"-",{"$f":"IF(AD25=\"BK（バッカー）\",\"BK\",IF(AD25=\"DS（表同柄）※オプション価格\",\"DS\",\"\"))","v":"BK"}]
["※オーダーシートは仕様指示書となります。注文書は別途ご用意ください。",null,null,null,null,null,null,null,null,null,null,null,null,null,null,null,null,null,null,null,null,null,null,null,null,null,null,null,null,null,null,null,null,null,null,null,null,null,null,null,null,null,null,null,null,null,null,null,null,null,null,null,null,null,null,null,null,null,null,null,null,null,null,null,null,null,null,null,null,null,null,null,null,null,null,null,null,null,null,null,null,null,null,null,null,null,null,null,null,null,null,null,null,null,null,null,null,null,null,null,null,null,null,null,null,null,null,null,null,null,null,null,null,null,null,null,null,null,null,null,null,null,null,null,null,null,null,null,null,null,null,null,null,null,null,null,null,null,null,null,null,null,null,null,null,null,null,null,null,null,null,null,null,null,null,null,"RPS-1981U-38"]
[]
["■発注日",null,null,null,null,null,"　　年　 　月　   日"]
[]
[]
["■発注者"]
[null,null,null,null,"会社名"]
[null,null,null,null,null,null,null,null,null,null,null,null,null,null,null,null,null,null,null,null,null,null,null,null,null,null,{"$f":"G17","v":"RPS-3542AP-32"}]
[null,null,null,null,"担当者名"]
[]
[null,null,null,null,"電話番号",null,null,null,null,null,null,null,null,null,null,null,null,null,null,null,null,null,null,null,null,null,null,null,null,{"$f":"_xlfn.XLOOKUP(AA11,一覧_品番!A:A,一覧_品番!B:B, \"\", FALSE)","v":32}]
[null,null,null,null,null,null,null,null,null,null,null,null,null,null,null,null,null,null,null,null,null,null,null,null,null,null,"厚み"]
[null,null,null,null,null,null,null,null,null,null,null,null,null,null,null,null,null,null,null,null,null,null,null,null,null,null,null,null,null,{"$f":"_xlfn.XLOOKUP(AA11,一覧_品番!A:A,一覧_品番!C:C, \"\", FALSE)","v":"ストレート"}]
["■品番",null,null,null,null,null,{"$f":"_xlfn.XLOOKUP(S17,注文書一覧!A:A,注文書一覧!B:B,\"\")","v":"RPS-3542AP-32"},null,null,null,null,null,null,null,null,null,null,null,21,null,null,null,null,null,null,null,"木縁形状"]
[null,null,null,null,null,null,null,null,null,null,null,null,null,null,null,null,null,null,null,null,null,null,null,null,null,null,"木縁位置",null,null,{"$f":"G21","v":"未選択"}]
[]
[null,null,null,null,null,null,"↓左のカーソルで選択下さい。→右下にイラストが表示されます",null,null,null,null,null,null,null,null,null,null,null,null,null,null,null,null,null,null,null,null,null,null,{"$f":"_xlfn.XLOOKUP(AA11,一覧_品番!A:A,一覧_品番!E:E, \"\", FALSE)","v":"ナチュラル"}]
["■木縁添付位置",null,null,null,null,null,{"$f":"VLOOKUP(AA27,一覧_木縁!A2:C9,2,FALSE)","v":"未選択"},null,null,null,null,null,null,null,null,null,null,null,null,null,null,null,null,null,null,null,"塗装色"]
[null,null,null,null,null,null,null,null,null,null,null,null,null,null,null,null,null,null,null,null,null,null,null,null,null,null,"表面材",null,null,{"$f":"_xlfn.XLOOKUP(AA11,一覧_品番!A:A,一覧_品番!F:F, \"\", FALSE)","v":"BC-3542AP"}]
[]
[null,null,null,null,null,null,"↓プルダウンで選択下さい"]
["■裏面材",null,null,null,null,null,{"$f":"INDEX(一覧_裏面!A1:A2,A1)","v":"BK（バッカ―）"},null,null,null,null,null,null,null,null,null,null,null,null,null,null,null,null,null,null,null,null,null,null,{"$f":"G25","v":"BK（バッカ―）"}]
[null,null,null,null,null,null,null,null,null,null,null,null,null,null,null,null,null,null,null,null,null,null,null,null,null,null,"裏面材"]
[null,null,null,null,null,null,null,null,null,null,null,null,null,null,null,null,null,null,null,null,null,null,null,null,null,null,8]
[null,null,null,null,null,null,"↓300～1200ｍｍの間で入力下さい"]
["■サイズ",null,null,null,"縦（D)",null,null,null,null,null,null,null,null,null,null,null,null,null,null,null,null,null,"縦（D）"]
[null,null,null,null,null,null,null,null,null,null,null,null,null,null,null,null,null,null,null,null,null,null,{"$f":"SUM(G29)","v":0}]
[null,null,null,null,null,null,"↓600～2400ｍｍの間で入力下さい"]
[null,null,null,null,"横（W)",null,null,null,null,null,null,null,null,null,null,null,null,null,null,null,null,null,null,null,"㎜"]
[]
[]
["■数量"]
[null,null,null,null,null,null,null,null,null,null,null,null,null,null,null,null,null,null,null,null,null,null,null,null,null,null,null,null,null,null,null,null,{"$f":"SUM(G32)","v":0}]
[null,null,null,null,null,null,null,null,null,null,null,null,null,null,null,null,null,null,null,null,null,null,null,null,null,null,null,null,null,null,null,null,null,null,null,null,null,"㎜"]
["■希望納期",null,null,null,null,null,"　　年　 　月　   日",null,null,null,null,null,null,null,null,null,null,null,null,null,null,null,null,null,null,null,null,null,null,null,null,null,null,"横（W)"]
[]
[]
["■納入場所",null,null,null,null,null,"納入会社名",null,null,null,null,null,null,null,null,null,null,null,"　納入住所",null,null,null,null,null,null,null,null,null,null,null,null,null,null,null,null,null,null,null,"納入電話番号"]
[null,null,null,null,null,null,null,null,null,null,null,null,null,null,null,null,null,null,"〒"]

{"sheet":"RP-3542AP-32","index":13,"n_rows":42,"n_cols":157,"rows_kept":42,"cut":false,"hidden":false,"merged":[[37,6,38,17],[37,33,37,36],[41,6,43,17],[41,18,43,37],[41,38,43,46],[35,32,36,36],[19,29,20,33],[20,6,21,17],[21,26,22,27],[21,29,22,33],[24,6,25,17],[24,29,25,33],[28,6,29,17],[28,22,28,24],[29,22,30,24],[31,6,32,17],[34,6,35,17],[10,6,11,17],[10,26,12,33],[12,6,13,17],[13,29,14,33],[15,29,16,33],[16,6,17,17],[17,26,18,28],[17,29,18,33],[2,22,2,28],[3,31,3,33],[5,0,6,3],[5,6,6,17],[8,0,9,3],[8,6,9,17]]}
[2,null,null,null,null,null,null,null,null,null,null,null,null,null,null,null,null,null,null,null,null,"■イビケン記入箇所"]
[null,null,null,null,null,null,null,null,null,null,null,null,null,null,null,null,null,null,null,null,null,null,"オーダーNo",null,null,null,null,null,null,null,"メイン",null,null,null,null,"W寸",null,"D寸",null,"形状",null,"木縁",null,"裏面"]
[null,null,null,null,null,null,null,null,null,null,null,null,null,null,null,null,null,null,null,null,null,null,null,null,null,null,null,null,null,{"$f":"AA11","v":"RP-3542AP-32"},null,null,null,null,"-",{"$f":"G32","v":0},"-",{"$f":"G29","v":0},"-","IG","-",{"$f":"G21","v":"未選択"},"-",{"$f":"IF(AD25=\"BK（バッカー）\",\"BK\",IF(AD25=\"DS（表同柄）※オプション価格\",\"DS\",\"\"))","v":"BK"}]
["※オーダーシートは仕様指示書となります。注文書は別途ご用意ください。",null,null,null,null,null,null,null,null,null,null,null,null,null,null,null,null,null,null,null,null,null,null,null,null,null,null,null,null,null,null,null,null,null,null,null,null,null,null,null,null,null,null,null,null,null,null,null,null,null,null,null,null,null,null,null,null,null,null,null,null,null,null,null,null,null,null,null,null,null,null,null,null,null,null,null,null,null,null,null,null,null,null,null,null,null,null,null,null,null,null,null,null,null,null,null,null,null,null,null,null,null,null,null,null,null,null,null,null,null,null,null,null,null,null,null,null,null,null,null,null,null,null,null,null,null,null,null,null,null,null,null,null,null,null,null,null,null,null,null,null,null,null,null,null,null,null,null,null,null,null,null,null,null,null,null,"RPS-1981U-38"]
[]
["■発注日",null,null,null,null,null,"　　年　 　月　   日"]
[]
[]
["■発注者"]
[null,null,null,null,"会社名"]
[null,null,null,null,null,null,null,null,null,null,null,null,null,null,null,null,null,null,null,null,null,null,null,null,null,null,{"$f":"G17","v":"RP-3542AP-32"}]
[null,null,null,null,"担当者名"]
[]
[null,null,null,null,"電話番号",null,null,null,null,null,null,null,null,null,null,null,null,null,null,null,null,null,null,null,null,null,null,null,null,{"$f":"_xlfn.XLOOKUP(AA11,一覧_品番!A:A,一覧_品番!B:B, \"\", FALSE)","v":32}]
[null,null,null,null,null,null,null,null,null,null,null,null,null,null,null,null,null,null,null,null,null,null,null,null,null,null,"厚み"]
[null,null,null,null,null,null,null,null,null,null,null,null,null,null,null,null,null,null,null,null,null,null,null,null,null,null,null,null,null,{"$f":"_xlfn.XLOOKUP(AA11,一覧_品番!A:A,一覧_品番!C:C, \"\", FALSE)","v":"ライブエッジ"}]
["■品番",null,null,null,null,null,{"$f":"_xlfn.XLOOKUP(S17,注文書一覧!A:A,注文書一覧!B:B,\"\")","v":"RP-3542AP-32"},null,null,null,null,null,null,null,null,null,null,null,23,null,null,null,null,null,null,null,"木縁形状"]
[null,null,null,null,null,null,null,null,null,null,null,null,null,null,null,null,null,null,null,null,null,null,null,null,null,null,"木縁位置",null,null,{"$f":"G21","v":"未選択"}]
[]
[null,null,null,null,null,null,"↓左のカーソルで選択下さい。→右下にイラストが表示されます",null,null,null,null,null,null,null,null,null,null,null,null,null,null,null,null,null,null,null,null,null,null,{"$f":"_xlfn.XLOOKUP(AA11,一覧_品番!A:A,一覧_品番!E:E, \"\", FALSE)","v":"ナチュラル"}]
["■木縁添付位置",null,null,null,null,null,{"$f":"VLOOKUP(AA27,一覧_木縁!A2:C9,2,FALSE)","v":"未選択"},null,null,null,null,null,null,null,null,null,null,null,null,null,null,null,null,null,null,null,"塗装色"]
[null,null,null,null,null,null,null,null,null,null,null,null,null,null,null,null,null,null,null,null,null,null,null,null,null,null,"表面材",null,null,{"$f":"_xlfn.XLOOKUP(AA11,一覧_品番!A:A,一覧_品番!F:F, \"\", FALSE)","v":"BC-3542AP"}]
[]
[null,null,null,null,null,null,"↓プルダウンで選択下さい"]
["■裏面材",null,null,null,null,null,{"$f":"INDEX(一覧_裏面!A1:A2,A1)","v":"BK（バッカ―）"},null,null,null,null,null,null,null,null,null,null,null,null,null,null,null,null,null,null,null,null,null,null,{"$f":"G25","v":"BK（バッカ―）"}]
[null,null,null,null,null,null,null,null,null,null,null,null,null,null,null,null,null,null,null,null,null,null,null,null,null,null,"裏面材"]
[null,null,null,null,null,null,null,null,null,null,null,null,null,null,null,null,null,null,null,null,null,null,null,null,null,null,8]
[null,null,null,null,null,null,"↓300～1200ｍｍの間で入力下さい"]
["■サイズ",null,null,null,"縦（D)",null,null,null,null,null,null,null,null,null,null,null,null,null,null,null,null,null,"縦（D）"]
[null,null,null,null,null,null,null,null,null,null,null,null,null,null,null,null,null,null,null,null,null,null,{"$f":"SUM(G29)","v":0}]
[null,null,null,null,null,null,"↓600～2400ｍｍの間で入力下さい"]
[null,null,null,null,"横（W)",null,null,null,null,null,null,null,null,null,null,null,null,null,null,null,null,null,null,null,"㎜"]
[]
[]
["■数量"]
[null,null,null,null,null,null,null,null,null,null,null,null,null,null,null,null,null,null,null,null,null,null,null,null,null,null,null,null,null,null,null,null,{"$f":"SUM(G32)","v":0}]
[null,null,null,null,null,null,null,null,null,null,null,null,null,null,null,null,null,null,null,null,null,null,null,null,null,null,null,null,null,null,null,null,null,null,null,null,null,"㎜"]
["■希望納期",null,null,null,null,null,"　　年　 　月　   日",null,null,null,null,null,null,null,null,null,null,null,null,null,null,null,null,null,null,null,null,null,null,null,null,null,null,"横（W)"]
[]
[]
["■納入場所",null,null,null,null,null,"納入会社名",null,null,null,null,null,null,null,null,null,null,null,"　納入住所",null,null,null,null,null,null,null,null,null,null,null,null,null,null,null,null,null,null,null,"納入電話番号"]
[null,null,null,null,null,null,null,null,null,null,null,null,null,null,null,null,null,null,"〒"]

{"sheet":"RPS-3647TX-32","index":14,"n_rows":42,"n_cols":157,"rows_kept":42,"cut":false,"hidden":false,"merged":[[37,6,38,17],[37,33,37,36],[41,6,43,17],[41,18,43,37],[41,38,43,46],[35,32,36,36],[19,29,20,33],[20,6,21,17],[21,26,22,27],[21,29,22,33],[24,6,25,17],[24,29,25,33],[28,6,29,17],[28,22,28,24],[29,22,30,24],[31,6,32,17],[34,6,35,17],[10,6,11,17],[10,26,12,33],[12,6,13,17],[13,29,14,33],[15,29,16,33],[16,6,17,17],[17,26,18,28],[17,29,18,33],[2,22,2,28],[3,31,3,33],[5,0,6,3],[5,6,6,17],[8,0,9,3],[8,6,9,17]]}
[2,null,null,null,null,null,null,null,null,null,null,null,null,null,null,null,null,null,null,null,null,"■イビケン記入箇所"]
[null,null,null,null,null,null,null,null,null,null,null,null,null,null,null,null,null,null,null,null,null,null,"オーダーNo",null,null,null,null,null,null,null,"メイン",null,null,null,null,"W寸",null,"D寸",null,"形状",null,"木縁",null,"裏面"]
[null,null,null,null,null,null,null,null,null,null,null,null,null,null,null,null,null,null,null,null,null,null,null,null,null,null,null,null,null,{"$f":"AA11","v":"RPS-3647TX-32"},null,null,null,null,"-",{"$f":"G32","v":0},"-",{"$f":"G29","v":0},"-","IG","-",{"$f":"G21","v":0},"-",{"$f":"IF(AD25=\"BK（バッカー）\",\"BK\",IF(AD25=\"DS（表同柄）※オプション価格\",\"DS\",\"\"))","v":"BK"}]
["※オーダーシートは仕様指示書となります。注文書は別途ご用意ください。",null,null,null,null,null,null,null,null,null,null,null,null,null,null,null,null,null,null,null,null,null,null,null,null,null,null,null,null,null,null,null,null,null,null,null,null,null,null,null,null,null,null,null,null,null,null,null,null,null,null,null,null,null,null,null,null,null,null,null,null,null,null,null,null,null,null,null,null,null,null,null,null,null,null,null,null,null,null,null,null,null,null,null,null,null,null,null,null,null,null,null,null,null,null,null,null,null,null,null,null,null,null,null,null,null,null,null,null,null,null,null,null,null,null,null,null,null,null,null,null,null,null,null,null,null,null,null,null,null,null,null,null,null,null,null,null,null,null,null,null,null,null,null,null,null,null,null,null,null,null,null,null,null,null,null,"RPS-1981U-38"]
[]
["■発注日",null,null,null,null,null,"　　年　 　月　   日"]
[]
[]
["■発注者"]
[null,null,null,null,"会社名"]
[null,null,null,null,null,null,null,null,null,null,null,null,null,null,null,null,null,null,null,null,null,null,null,null,null,null,{"$f":"G17","v":"RPS-3647TX-32"}]
[null,null,null,null,"担当者名"]
[]
[null,null,null,null,"電話番号",null,null,null,null,null,null,null,null,null,null,null,null,null,null,null,null,null,null,null,null,null,null,null,null,{"$f":"_xlfn.XLOOKUP(AA11,一覧_品番!A:A,一覧_品番!B:B, \"\", FALSE)","v":32}]
[null,null,null,null,null,null,null,null,null,null,null,null,null,null,null,null,null,null,null,null,null,null,null,null,null,null,"厚み"]
[null,null,null,null,null,null,null,null,null,null,null,null,null,null,null,null,null,null,null,null,null,null,null,null,null,null,null,null,null,{"$f":"_xlfn.XLOOKUP(AA11,一覧_品番!A:A,一覧_品番!C:C, \"\", FALSE)","v":"ストレート"}]
["■品番",null,null,null,null,null,{"$f":"_xlfn.XLOOKUP(S17,注文書一覧!A:A,注文書一覧!B:B,\"\")","v":"RPS-3647TX-32"},null,null,null,null,null,null,null,null,null,null,null,25,null,null,null,null,null,null,null,"木縁形状"]
[null,null,null,null,null,null,null,null,null,null,null,null,null,null,null,null,null,null,null,null,null,null,null,null,null,null,"木縁位置",null,null,{"$f":"G21","v":0}]
[]
[null,null,null,null,null,null,"↓左のカーソルで選択下さい。→右下にイラストが表示されます",null,null,null,null,null,null,null,null,null,null,null,null,null,null,null,null,null,null,null,null,null,null,{"$f":"_xlfn.XLOOKUP(AA11,一覧_品番!A:A,一覧_品番!E:E, \"\", FALSE)","v":"ナチュラル"}]
["■木縁添付位置",null,null,null,null,null,null,null,null,null,null,null,null,null,null,null,null,null,null,null,null,null,null,null,null,null,"塗装色"]
[null,null,null,null,null,null,null,null,null,null,null,null,null,null,null,null,null,null,null,null,null,null,null,null,null,null,"表面材",null,null,{"$f":"_xlfn.XLOOKUP(AA11,一覧_品番!A:A,一覧_品番!F:F, \"\", FALSE)","v":"VMX-3647TX"}]
[]
[null,null,null,null,null,null,"↓プルダウンで選択下さい"]
["■裏面材",null,null,null,null,null,{"$f":"INDEX(一覧_裏面!A1:A2,A1)","v":"BK（バッカ―）"},null,null,null,null,null,null,null,null,null,null,null,null,null,null,null,null,null,null,null,null,null,null,{"$f":"G25","v":"BK（バッカ―）"}]
[null,null,null,null,null,null,null,null,null,null,null,null,null,null,null,null,null,null,null,null,null,null,null,null,null,null,"裏面材"]
[null,null,null,null,null,null,null,null,null,null,null,null,null,null,null,null,null,null,null,null,null,null,null,null,null,null,8]
[null,null,null,null,null,null,"↓300～1200ｍｍの間で入力下さい"]
["■サイズ",null,null,null,"縦（D)",null,null,null,null,null,null,null,null,null,null,null,null,null,null,null,null,null,"縦（D）"]
[null,null,null,null,null,null,null,null,null,null,null,null,null,null,null,null,null,null,null,null,null,null,{"$f":"SUM(G29)","v":0}]
[null,null,null,null,null,null,"↓600～2400ｍｍの間で入力下さい"]
[null,null,null,null,"横（W)",null,null,null,null,null,null,null,null,null,null,null,null,null,null,null,null,null,null,null,"㎜"]
[]
[]
["■数量"]
[null,null,null,null,null,null,null,null,null,null,null,null,null,null,null,null,null,null,null,null,null,null,null,null,null,null,null,null,null,null,null,null,{"$f":"SUM(G32)","v":0}]
[null,null,null,null,null,null,null,null,null,null,null,null,null,null,null,null,null,null,null,null,null,null,null,null,null,null,null,null,null,null,null,null,null,null,null,null,null,"㎜"]
["■希望納期",null,null,null,null,null,"　　年　 　月　   日",null,null,null,null,null,null,null,null,null,null,null,null,null,null,null,null,null,null,null,null,null,null,null,null,null,null,"横（W)"]
[]
[]
["■納入場所",null,null,null,null,null,"納入会社名",null,null,null,null,null,null,null,null,null,null,null,"　納入住所",null,null,null,null,null,null,null,null,null,null,null,null,null,null,null,null,null,null,null,"納入電話番号"]
[null,null,null,null,null,null,null,null,null,null,null,null,null,null,null,null,null,null,"〒"]

{"sheet":"RP-3647TX-32","index":15,"n_rows":42,"n_cols":157,"rows_kept":42,"cut":false,"hidden":false,"merged":[[37,6,38,17],[37,33,37,36],[41,6,43,17],[41,18,43,37],[41,38,43,46],[35,32,36,36],[19,29,20,33],[20,6,21,17],[21,26,22,27],[21,29,22,33],[24,6,25,17],[24,29,25,33],[28,6,29,17],[28,22,28,24],[29,22,30,24],[31,6,32,17],[34,6,35,17],[10,6,11,17],[10,26,12,33],[12,6,13,17],[13,29,14,33],[15,29,16,33],[16,6,17,17],[17,26,18,28],[17,29,18,33],[2,22,2,28],[3,31,3,33],[5,0,6,3],[5,6,6,17],[8,0,9,3],[8,6,9,17]]}
[2,null,null,null,null,null,null,null,null,null,null,null,null,null,null,null,null,null,null,null,null,"■イビケン記入箇所"]
[null,null,null,null,null,null,null,null,null,null,null,null,null,null,null,null,null,null,null,null,null,null,"オーダーNo",null,null,null,null,null,null,null,"メイン",null,null,null,null,"W寸",null,"D寸",null,"形状",null,"木縁",null,"裏面"]
[null,null,null,null,null,null,null,null,null,null,null,null,null,null,null,null,null,null,null,null,null,null,null,null,null,null,null,null,null,{"$f":"AA11","v":"RP-3647TX-32"},null,null,null,null,"-",{"$f":"G32","v":0},"-",{"$f":"G29","v":0},"-","IG","-",{"$f":"G21","v":"未選択"},"-",{"$f":"IF(AD25=\"BK（バッカー）\",\"BK\",IF(AD25=\"DS（表同柄）※オプション価格\",\"DS\",\"\"))","v":"BK"}]
["※オーダーシートは仕様指示書となります。注文書は別途ご用意ください。",null,null,null,null,null,null,null,null,null,null,null,null,null,null,null,null,null,null,null,null,null,null,null,null,null,null,null,null,null,null,null,null,null,null,null,null,null,null,null,null,null,null,null,null,null,null,null,null,null,null,null,null,null,null,null,null,null,null,null,null,null,null,null,null,null,null,null,null,null,null,null,null,null,null,null,null,null,null,null,null,null,null,null,null,null,null,null,null,null,null,null,null,null,null,null,null,null,null,null,null,null,null,null,null,null,null,null,null,null,null,null,null,null,null,null,null,null,null,null,null,null,null,null,null,null,null,null,null,null,null,null,null,null,null,null,null,null,null,null,null,null,null,null,null,null,null,null,null,null,null,null,null,null,null,null,"RPS-1981U-38"]
[]
["■発注日",null,null,null,null,null,"　　年　 　月　   日"]
[]
[]
["■発注者"]
[null,null,null,null,"会社名"]
[null,null,null,null,null,null,null,null,null,null,null,null,null,null,null,null,null,null,null,null,null,null,null,null,null,null,{"$f":"G17","v":"RP-3647TX-32"}]
[null,null,null,null,"担当者名"]
[]
[null,null,null,null,"電話番号",null,null,null,null,null,null,null,null,null,null,null,null,null,null,null,null,null,null,null,null,null,null,null,null,{"$f":"_xlfn.XLOOKUP(AA11,一覧_品番!A:A,一覧_品番!B:B, \"\", FALSE)","v":32}]
[null,null,null,null,null,null,null,null,null,null,null,null,null,null,null,null,null,null,null,null,null,null,null,null,null,null,"厚み"]
[null,null,null,null,null,null,null,null,null,null,null,null,null,null,null,null,null,null,null,null,null,null,null,null,null,null,null,null,null,{"$f":"_xlfn.XLOOKUP(AA11,一覧_品番!A:A,一覧_品番!C:C, \"\", FALSE)","v":"ライブエッジ"}]
["■品番",null,null,null,null,null,{"$f":"_xlfn.XLOOKUP(S17,注文書一覧!A:A,注文書一覧!B:B,\"\")","v":"RP-3647TX-32"},null,null,null,null,null,null,null,null,null,null,null,27,null,null,null,null,null,null,null,"木縁形状"]
[null,null,null,null,null,null,null,null,null,null,null,null,null,null,null,null,null,null,null,null,null,null,null,null,null,null,"木縁位置",null,null,{"$f":"G21","v":"未選択"}]
[]
[null,null,null,null,null,null,"↓左のカーソルで選択下さい。→右下にイラストが表示されます",null,null,null,null,null,null,null,null,null,null,null,null,null,null,null,null,null,null,null,null,null,null,{"$f":"_xlfn.XLOOKUP(AA11,一覧_品番!A:A,一覧_品番!E:E, \"\", FALSE)","v":"ナチュラル"}]
["■木縁添付位置",null,null,null,null,null,{"$f":"VLOOKUP(AA27,一覧_木縁!A2:C9,2,FALSE)","v":"未選択"},null,null,null,null,null,null,null,null,null,null,null,null,null,null,null,null,null,null,null,"塗装色"]
[null,null,null,null,null,null,null,null,null,null,null,null,null,null,null,null,null,null,null,null,null,null,null,null,null,null,"表面材",null,null,{"$f":"_xlfn.XLOOKUP(AA11,一覧_品番!A:A,一覧_品番!F:F, \"\", FALSE)","v":"VMX-3647TX"}]
[]
[null,null,null,null,null,null,"↓プルダウンで選択下さい"]
["■裏面材",null,null,null,null,null,{"$f":"INDEX(一覧_裏面!A1:A2,A1)","v":"BK（バッカ―）"},null,null,null,null,null,null,null,null,null,null,null,null,null,null,null,null,null,null,null,null,null,null,{"$f":"G25","v":"BK（バッカ―）"}]
[null,null,null,null,null,null,null,null,null,null,null,null,null,null,null,null,null,null,null,null,null,null,null,null,null,null,"裏面材"]
[null,null,null,null,null,null,null,null,null,null,null,null,null,null,null,null,null,null,null,null,null,null,null,null,null,null,8]
[null,null,null,null,null,null,"↓300～1200ｍｍの間で入力下さい"]
["■サイズ",null,null,null,"縦（D)",null,null,null,null,null,null,null,null,null,null,null,null,null,null,null,null,null,"縦（D）"]
[null,null,null,null,null,null,null,null,null,null,null,null,null,null,null,null,null,null,null,null,null,null,{"$f":"SUM(G29)","v":0}]
[null,null,null,null,null,null,"↓600～2400ｍｍの間で入力下さい"]
[null,null,null,null,"横（W)",null,null,null,null,null,null,null,null,null,null,null,null,null,null,null,null,null,null,null,"㎜"]
[]
[]
["■数量"]
[null,null,null,null,null,null,null,null,null,null,null,null,null,null,null,null,null,null,null,null,null,null,null,null,null,null,null,null,null,null,null,null,{"$f":"SUM(G32)","v":0}]
[null,null,null,null,null,null,null,null,null,null,null,null,null,null,null,null,null,null,null,null,null,null,null,null,null,null,null,null,null,null,null,null,null,null,null,null,null,"㎜"]
["■希望納期",null,null,null,null,null,"　　年　 　月　   日",null,null,null,null,null,null,null,null,null,null,null,null,null,null,null,null,null,null,null,null,null,null,null,null,null,null,"横（W)"]
[]
[]
["■納入場所",null,null,null,null,null,"納入会社名",null,null,null,null,null,null,null,null,null,null,null,"　納入住所",null,null,null,null,null,null,null,null,null,null,null,null,null,null,null,null,null,null,null,"納入電話番号"]
[null,null,null,null,null,null,null,null,null,null,null,null,null,null,null,null,null,null,"〒"]

{"sheet":"RPS-3655S-32","index":16,"n_rows":42,"n_cols":157,"rows_kept":42,"cut":false,"hidden":false,"merged":[[37,6,38,17],[37,33,37,36],[41,6,43,17],[41,18,43,37],[41,38,43,46],[35,32,36,36],[19,29,20,33],[20,6,21,17],[21,26,22,27],[21,29,22,33],[24,6,25,17],[24,29,25,33],[28,6,29,17],[28,22,28,24],[29,22,30,24],[31,6,32,17],[34,6,35,17],[10,6,11,17],[10,26,12,33],[12,6,13,17],[13,29,14,33],[15,29,16,33],[16,6,17,17],[17,26,18,28],[17,29,18,33],[2,22,2,28],[3,31,3,33],[5,0,6,3],[5,6,6,17],[8,0,9,3],[8,6,9,17]]}
[2,null,null,null,null,null,null,null,null,null,null,null,null,null,null,null,null,null,null,null,null,"■イビケン記入箇所"]
[null,null,null,null,null,null,null,null,null,null,null,null,null,null,null,null,null,null,null,null,null,null,"オーダーNo",null,null,null,null,null,null,null,"メイン",null,null,null,null,"W寸",null,"D寸",null,"形状",null,"木縁",null,"裏面"]
[null,null,null,null,null,null,null,null,null,null,null,null,null,null,null,null,null,null,null,null,null,null,null,null,null,null,null,null,null,{"$f":"AA11","v":"RPS-3655S-32"},null,null,null,null,"-",{"$f":"G32","v":0},"-",{"$f":"G29","v":0},"-","IG","-",{"$f":"G21","v":"未選択"},"-",{"$f":"IF(AD25=\"BK（バッカー）\",\"BK\",IF(AD25=\"DS（表同柄）※オプション価格\",\"DS\",\"\"))","v":"BK"}]
["※オーダーシートは仕様指示書となります。注文書は別途ご用意ください。",null,null,null,null,null,null,null,null,null,null,null,null,null,null,null,null,null,null,null,null,null,null,null,null,null,null,null,null,null,null,null,null,null,null,null,null,null,null,null,null,null,null,null,null,null,null,null,null,null,null,null,null,null,null,null,null,null,null,null,null,null,null,null,null,null,null,null,null,null,null,null,null,null,null,null,null,null,null,null,null,null,null,null,null,null,null,null,null,null,null,null,null,null,null,null,null,null,null,null,null,null,null,null,null,null,null,null,null,null,null,null,null,null,null,null,null,null,null,null,null,null,null,null,null,null,null,null,null,null,null,null,null,null,null,null,null,null,null,null,null,null,null,null,null,null,null,null,null,null,null,null,null,null,null,null,"RPS-1981U-38"]
[]
["■発注日",null,null,null,null,null,"　　年　 　月　   日"]
[]
[]
["■発注者"]
[null,null,null,null,"会社名"]
[null,null,null,null,null,null,null,null,null,null,null,null,null,null,null,null,null,null,null,null,null,null,null,null,null,null,{"$f":"G17","v":"RPS-3655S-32"}]
[null,null,null,null,"担当者名"]
[]
[null,null,null,null,"電話番号",null,null,null,null,null,null,null,null,null,null,null,null,null,null,null,null,null,null,null,null,null,null,null,null,{"$f":"_xlfn.XLOOKUP(AA11,一覧_品番!A:A,一覧_品番!B:B, \"\", FALSE)","v":32}]
[null,null,null,null,null,null,null,null,null,null,null,null,null,null,null,null,null,null,null,null,null,null,null,null,null,null,"厚み"]
[null,null,null,null,null,null,null,null,null,null,null,null,null,null,null,null,null,null,null,null,null,null,null,null,null,null,null,null,null,{"$f":"_xlfn.XLOOKUP(AA11,一覧_品番!A:A,一覧_品番!C:C, \"\", FALSE)","v":"ストレート"}]
["■品番",null,null,null,null,null,{"$f":"_xlfn.XLOOKUP(S17,注文書一覧!A:A,注文書一覧!B:B,\"\")","v":"RPS-3655S-32"},null,null,null,null,null,null,null,null,null,null,null,29,null,null,null,null,null,null,null,"木縁形状"]
[null,null,null,null,null,null,null,null,null,null,null,null,null,null,null,null,null,null,null,null,null,null,null,null,null,null,"木縁位置",null,null,{"$f":"G21","v":"未選択"}]
[]
[null,null,null,null,null,null,"↓左のカーソルで選択下さい。→右下にイラストが表示されます",null,null,null,null,null,null,null,null,null,null,null,null,null,null,null,null,null,null,null,null,null,null,{"$f":"_xlfn.XLOOKUP(AA11,一覧_品番!A:A,一覧_品番!E:E, \"\", FALSE)","v":"ブラウン"}]
["■木縁添付位置",null,null,null,null,null,{"$f":"VLOOKUP(AA27,一覧_木縁!A2:C9,2,FALSE)","v":"未選択"},null,null,null,null,null,null,null,null,null,null,null,null,null,null,null,null,null,null,null,"塗装色"]
[null,null,null,null,null,null,null,null,null,null,null,null,null,null,null,null,null,null,null,null,null,null,null,null,null,null,"表面材",null,null,{"$f":"_xlfn.XLOOKUP(AA11,一覧_品番!A:A,一覧_品番!F:F, \"\", FALSE)","v":"VMYX-3655S"}]
[]
[null,null,null,null,null,null,"↓プルダウンで選択下さい"]
["■裏面材",null,null,null,null,null,{"$f":"INDEX(一覧_裏面!A1:A2,A1)","v":"BK（バッカ―）"},null,null,null,null,null,null,null,null,null,null,null,null,null,null,null,null,null,null,null,null,null,null,{"$f":"G25","v":"BK（バッカ―）"}]
[null,null,null,null,null,null,null,null,null,null,null,null,null,null,null,null,null,null,null,null,null,null,null,null,null,null,"裏面材"]
[null,null,null,null,null,null,null,null,null,null,null,null,null,null,null,null,null,null,null,null,null,null,null,null,null,null,8]
[null,null,null,null,null,null,"↓300～1200ｍｍの間で入力下さい"]
["■サイズ",null,null,null,"縦（D)",null,null,null,null,null,null,null,null,null,null,null,null,null,null,null,null,null,"縦（D）"]
[null,null,null,null,null,null,null,null,null,null,null,null,null,null,null,null,null,null,null,null,null,null,{"$f":"SUM(G29)","v":0}]
[null,null,null,null,null,null,"↓600～2400ｍｍの間で入力下さい"]
[null,null,null,null,"横（W)",null,null,null,null,null,null,null,null,null,null,null,null,null,null,null,null,null,null,null,"㎜"]
[]
[]
["■数量"]
[null,null,null,null,null,null,null,null,null,null,null,null,null,null,null,null,null,null,null,null,null,null,null,null,null,null,null,null,null,null,null,null,{"$f":"SUM(G32)","v":0}]
[null,null,null,null,null,null,null,null,null,null,null,null,null,null,null,null,null,null,null,null,null,null,null,null,null,null,null,null,null,null,null,null,null,null,null,null,null,"㎜"]
["■希望納期",null,null,null,null,null,"　　年　 　月　   日",null,null,null,null,null,null,null,null,null,null,null,null,null,null,null,null,null,null,null,null,null,null,null,null,null,null,"横（W)"]
[]
[]
["■納入場所",null,null,null,null,null,"納入会社名",null,null,null,null,null,null,null,null,null,null,null,"　納入住所",null,null,null,null,null,null,null,null,null,null,null,null,null,null,null,null,null,null,null,"納入電話番号"]
[null,null,null,null,null,null,null,null,null,null,null,null,null,null,null,null,null,null,"〒"]

{"sheet":"RP-3655S-32","index":17,"n_rows":42,"n_cols":157,"rows_kept":42,"cut":false,"hidden":false,"merged":[[37,6,38,17],[37,33,37,36],[41,6,43,17],[41,18,43,37],[41,38,43,46],[35,32,36,36],[19,29,20,33],[20,6,21,17],[21,26,22,27],[21,29,22,33],[24,6,25,17],[24,29,25,33],[28,6,29,17],[28,22,28,24],[29,22,30,24],[31,6,32,17],[34,6,35,17],[10,6,11,17],[10,26,12,33],[12,6,13,17],[13,29,14,33],[15,29,16,33],[16,6,17,17],[17,26,18,28],[17,29,18,33],[2,22,2,28],[3,31,3,33],[5,0,6,3],[5,6,6,17],[8,0,9,3],[8,6,9,17]]}
[2,null,null,null,null,null,null,null,null,null,null,null,null,null,null,null,null,null,null,null,null,"■イビケン記入箇所"]
[null,null,null,null,null,null,null,null,null,null,null,null,null,null,null,null,null,null,null,null,null,null,"オーダーNo",null,null,null,null,null,null,null,"メイン",null,null,null,null,"W寸",null,"D寸",null,"形状",null,"木縁",null,"裏面"]
[null,null,null,null,null,null,null,null,null,null,null,null,null,null,null,null,null,null,null,null,null,null,null,null,null,null,null,null,null,{"$f":"AA11","v":"RP-3655S-32"},null,null,null,null,"-",{"$f":"G32","v":0},"-",{"$f":"G29","v":0},"-","IG","-",{"$f":"G21","v":"未選択"},"-",{"$f":"IF(AD25=\"BK（バッカー）\",\"BK\",IF(AD25=\"DS（表同柄）※オプション価格\",\"DS\",\"\"))","v":"BK"}]
["※オーダーシートは仕様指示書となります。注文書は別途ご用意ください。",null,null,null,null,null,null,null,null,null,null,null,null,null,null,null,null,null,null,null,null,null,null,null,null,null,null,null,null,null,null,null,null,null,null,null,null,null,null,null,null,null,null,null,null,null,null,null,null,null,null,null,null,null,null,null,null,null,null,null,null,null,null,null,null,null,null,null,null,null,null,null,null,null,null,null,null,null,null,null,null,null,null,null,null,null,null,null,null,null,null,null,null,null,null,null,null,null,null,null,null,null,null,null,null,null,null,null,null,null,null,null,null,null,null,null,null,null,null,null,null,null,null,null,null,null,null,null,null,null,null,null,null,null,null,null,null,null,null,null,null,null,null,null,null,null,null,null,null,null,null,null,null,null,null,null,"RPS-1981U-38"]
[]
["■発注日",null,null,null,null,null,"　　年　 　月　   日"]
[]
[]
["■発注者"]
[null,null,null,null,"会社名"]
[null,null,null,null,null,null,null,null,null,null,null,null,null,null,null,null,null,null,null,null,null,null,null,null,null,null,{"$f":"G17","v":"RP-3655S-32"}]
[null,null,null,null,"担当者名"]
[]
[null,null,null,null,"電話番号",null,null,null,null,null,null,null,null,null,null,null,null,null,null,null,null,null,null,null,null,null,null,null,null,{"$f":"_xlfn.XLOOKUP(AA11,一覧_品番!A:A,一覧_品番!B:B, \"\", FALSE)","v":32}]
[null,null,null,null,null,null,null,null,null,null,null,null,null,null,null,null,null,null,null,null,null,null,null,null,null,null,"厚み"]
[null,null,null,null,null,null,null,null,null,null,null,null,null,null,null,null,null,null,null,null,null,null,null,null,null,null,null,null,null,{"$f":"_xlfn.XLOOKUP(AA11,一覧_品番!A:A,一覧_品番!C:C, \"\", FALSE)","v":"ライブエッジ"}]
["■品番",null,null,null,null,null,{"$f":"_xlfn.XLOOKUP(S17,注文書一覧!A:A,注文書一覧!B:B,\"\")","v":"RP-3655S-32"},null,null,null,null,null,null,null,null,null,null,null,31,null,null,null,null,null,null,null,"木縁形状"]
[null,null,null,null,null,null,null,null,null,null,null,null,null,null,null,null,null,null,null,null,null,null,null,null,null,null,"木縁位置",null,null,{"$f":"G21","v":"未選択"}]
[]
[null,null,null,null,null,null,"↓左のカーソルで選択下さい。→右下にイラストが表示されます",null,null,null,null,null,null,null,null,null,null,null,null,null,null,null,null,null,null,null,null,null,null,{"$f":"_xlfn.XLOOKUP(AA11,一覧_品番!A:A,一覧_品番!E:E, \"\", FALSE)","v":"ブラウン"}]
["■木縁添付位置",null,null,null,null,null,{"$f":"VLOOKUP(AA27,一覧_木縁!A2:C9,2,FALSE)","v":"未選択"},null,null,null,null,null,null,null,null,null,null,null,null,null,null,null,null,null,null,null,"塗装色"]
[null,null,null,null,null,null,null,null,null,null,null,null,null,null,null,null,null,null,null,null,null,null,null,null,null,null,"表面材",null,null,{"$f":"_xlfn.XLOOKUP(AA11,一覧_品番!A:A,一覧_品番!F:F, \"\", FALSE)","v":"VMYX-3655S"}]
[]
[null,null,null,null,null,null,"↓プルダウンで選択下さい"]
["■裏面材",null,null,null,null,null,{"$f":"INDEX(一覧_裏面!A1:A2,A1)","v":"BK（バッカ―）"},null,null,null,null,null,null,null,null,null,null,null,null,null,null,null,null,null,null,null,null,null,null,{"$f":"G25","v":"BK（バッカ―）"}]
[null,null,null,null,null,null,null,null,null,null,null,null,null,null,null,null,null,null,null,null,null,null,null,null,null,null,"裏面材"]
[null,null,null,null,null,null,null,null,null,null,null,null,null,null,null,null,null,null,null,null,null,null,null,null,null,null,8]
[null,null,null,null,null,null,"↓300～1200ｍｍの間で入力下さい"]
["■サイズ",null,null,null,"縦（D)",null,null,null,null,null,null,null,null,null,null,null,null,null,null,null,null,null,"縦（D）"]
[null,null,null,null,null,null,null,null,null,null,null,null,null,null,null,null,null,null,null,null,null,null,{"$f":"SUM(G29)","v":0}]
[null,null,null,null,null,null,"↓600～2400ｍｍの間で入力下さい"]
[null,null,null,null,"横（W)",null,null,null,null,null,null,null,null,null,null,null,null,null,null,null,null,null,null,null,"㎜"]
[]
[]
["■数量"]
[null,null,null,null,null,null,null,null,null,null,null,null,null,null,null,null,null,null,null,null,null,null,null,null,null,null,null,null,null,null,null,null,{"$f":"SUM(G32)","v":0}]
[null,null,null,null,null,null,null,null,null,null,null,null,null,null,null,null,null,null,null,null,null,null,null,null,null,null,null,null,null,null,null,null,null,null,null,null,null,"㎜"]
["■希望納期",null,null,null,null,null,"　　年　 　月　   日",null,null,null,null,null,null,null,null,null,null,null,null,null,null,null,null,null,null,null,null,null,null,null,null,null,null,"横（W)"]
[]
[]
["■納入場所",null,null,null,null,null,"納入会社名",null,null,null,null,null,null,null,null,null,null,null,"　納入住所",null,null,null,null,null,null,null,null,null,null,null,null,null,null,null,null,null,null,null,"納入電話番号"]
[null,null,null,null,null,null,null,null,null,null,null,null,null,null,null,null,null,null,"〒"]

{"sheet":"RPS-3660AP-32","index":18,"n_rows":42,"n_cols":157,"rows_kept":42,"cut":false,"hidden":false,"merged":[[37,6,38,17],[37,33,37,36],[41,6,43,17],[41,18,43,37],[41,38,43,46],[35,32,36,36],[19,29,20,33],[20,6,21,17],[21,26,22,27],[21,29,22,33],[24,6,25,17],[24,29,25,33],[28,6,29,17],[28,22,28,24],[29,22,30,24],[31,6,32,17],[34,6,35,17],[10,6,11,17],[10,26,12,33],[12,6,13,17],[13,29,14,33],[15,29,16,33],[16,6,17,17],[17,26,18,28],[17,29,18,33],[2,22,2,28],[3,31,3,33],[5,0,6,3],[5,6,6,17],[8,0,9,3],[8,6,9,17]]}
[2,null,null,null,null,null,null,null,null,null,null,null,null,null,null,null,null,null,null,null,null,"■イビケン記入箇所"]
[null,null,null,null,null,null,null,null,null,null,null,null,null,null,null,null,null,null,null,null,null,null,"オーダーNo",null,null,null,null,null,null,null,"メイン",null,null,null,null,"W寸",null,"D寸",null,"形状",null,"木縁",null,"裏面"]
[null,null,null,null,null,null,null,null,null,null,null,null,null,null,null,null,null,null,null,null,null,null,null,null,null,null,null,null,null,{"$f":"AA11","v":"RPS-3660AP-32"},null,null,null,null,"-",{"$f":"G32","v":0},"-",{"$f":"G29","v":0},"-","IG","-",{"$f":"G21","v":"未選択"},"-",{"$f":"IF(AD25=\"BK（バッカー）\",\"BK\",IF(AD25=\"DS（表同柄）※オプション価格\",\"DS\",\"\"))","v":"BK"}]
["※オーダーシートは仕様指示書となります。注文書は別途ご用意ください。",null,null,null,null,null,null,null,null,null,null,null,null,null,null,null,null,null,null,null,null,null,null,null,null,null,null,null,null,null,null,null,null,null,null,null,null,null,null,null,null,null,null,null,null,null,null,null,null,null,null,null,null,null,null,null,null,null,null,null,null,null,null,null,null,null,null,null,null,null,null,null,null,null,null,null,null,null,null,null,null,null,null,null,null,null,null,null,null,null,null,null,null,null,null,null,null,null,null,null,null,null,null,null,null,null,null,null,null,null,null,null,null,null,null,null,null,null,null,null,null,null,null,null,null,null,null,null,null,null,null,null,null,null,null,null,null,null,null,null,null,null,null,null,null,null,null,null,null,null,null,null,null,null,null,null,"RPS-1981U-38"]
[]
["■発注日",null,null,null,null,null,"　　年　 　月　   日"]
[]
[]
["■発注者"]
[null,null,null,null,"会社名"]
[null,null,null,null,null,null,null,null,null,null,null,null,null,null,null,null,null,null,null,null,null,null,null,null,null,null,{"$f":"G17","v":"RPS-3660AP-32"}]
[null,null,null,null,"担当者名"]
[]
[null,null,null,null,"電話番号",null,null,null,null,null,null,null,null,null,null,null,null,null,null,null,null,null,null,null,null,null,null,null,null,{"$f":"_xlfn.XLOOKUP(AA11,一覧_品番!A:A,一覧_品番!B:B, \"\", FALSE)","v":32}]
[null,null,null,null,null,null,null,null,null,null,null,null,null,null,null,null,null,null,null,null,null,null,null,null,null,null,"厚み"]
[null,null,null,null,null,null,null,null,null,null,null,null,null,null,null,null,null,null,null,null,null,null,null,null,null,null,null,null,null,{"$f":"_xlfn.XLOOKUP(AA11,一覧_品番!A:A,一覧_品番!C:C, \"\", FALSE)","v":"ストレート"}]
["■品番",null,null,null,null,null,{"$f":"_xlfn.XLOOKUP(S17,注文書一覧!A:A,注文書一覧!B:B,\"\")","v":"RPS-3660AP-32"},null,null,null,null,null,null,null,null,null,null,null,33,null,null,null,null,null,null,null,"木縁形状"]
[null,null,null,null,null,null,null,null,null,null,null,null,null,null,null,null,null,null,null,null,null,null,null,null,null,null,"木縁位置",null,null,{"$f":"G21","v":"未選択"}]
[]
[null,null,null,null,null,null,"↓左のカーソルで選択下さい。→右下にイラストが表示されます",null,null,null,null,null,null,null,null,null,null,null,null,null,null,null,null,null,null,null,null,null,null,{"$f":"_xlfn.XLOOKUP(AA11,一覧_品番!A:A,一覧_品番!E:E, \"\", FALSE)","v":"ブラウン"}]
["■木縁添付位置",null,null,null,null,null,{"$f":"VLOOKUP(AA27,一覧_木縁!A2:C9,2,FALSE)","v":"未選択"},null,null,null,null,null,null,null,null,null,null,null,null,null,null,null,null,null,null,null,"塗装色"]
[null,null,null,null,null,null,null,null,null,null,null,null,null,null,null,null,null,null,null,null,null,null,null,null,null,null,"表面材",null,null,{"$f":"_xlfn.XLOOKUP(AA11,一覧_品番!A:A,一覧_品番!F:F, \"\", FALSE)","v":"BC-3660AP"}]
[]
[null,null,null,null,null,null,"↓プルダウンで選択下さい"]
["■裏面材",null,null,null,null,null,{"$f":"INDEX(一覧_裏面!A1:A2,A1)","v":"BK（バッカ―）"},null,null,null,null,null,null,null,null,null,null,null,null,null,null,null,null,null,null,null,null,null,null,{"$f":"G25","v":"BK（バッカ―）"}]
[null,null,null,null,null,null,null,null,null,null,null,null,null,null,null,null,null,null,null,null,null,null,null,null,null,null,"裏面材"]
[null,null,null,null,null,null,null,null,null,null,null,null,null,null,null,null,null,null,null,null,null,null,null,null,null,null,8]
[null,null,null,null,null,null,"↓300～1200ｍｍの間で入力下さい"]
["■サイズ",null,null,null,"縦（D)",null,null,null,null,null,null,null,null,null,null,null,null,null,null,null,null,null,"縦（D）"]
[null,null,null,null,null,null,null,null,null,null,null,null,null,null,null,null,null,null,null,null,null,null,{"$f":"SUM(G29)","v":0}]
[null,null,null,null,null,null,"↓600～2400ｍｍの間で入力下さい"]
[null,null,null,null,"横（W)",null,null,null,null,null,null,null,null,null,null,null,null,null,null,null,null,null,null,null,"㎜"]
[]
[]
["■数量"]
[null,null,null,null,null,null,null,null,null,null,null,null,null,null,null,null,null,null,null,null,null,null,null,null,null,null,null,null,null,null,null,null,{"$f":"SUM(G32)","v":0}]
[null,null,null,null,null,null,null,null,null,null,null,null,null,null,null,null,null,null,null,null,null,null,null,null,null,null,null,null,null,null,null,null,null,null,null,null,null,"㎜"]
["■希望納期",null,null,null,null,null,"　　年　 　月　   日",null,null,null,null,null,null,null,null,null,null,null,null,null,null,null,null,null,null,null,null,null,null,null,null,null,null,"横（W)"]
[]
[]
["■納入場所",null,null,null,null,null,"納入会社名",null,null,null,null,null,null,null,null,null,null,null,"　納入住所",null,null,null,null,null,null,null,null,null,null,null,null,null,null,null,null,null,null,null,"納入電話番号"]
[null,null,null,null,null,null,null,null,null,null,null,null,null,null,null,null,null,null,"〒"]

{"sheet":"RP-3660AP-32","index":19,"n_rows":42,"n_cols":157,"rows_kept":42,"cut":false,"hidden":false,"merged":[[37,6,38,17],[37,33,37,36],[41,6,43,17],[41,18,43,37],[41,38,43,46],[35,32,36,36],[19,29,20,33],[20,6,21,17],[21,26,22,27],[21,29,22,33],[24,6,25,17],[24,29,25,33],[28,6,29,17],[28,22,28,24],[29,22,30,24],[31,6,32,17],[34,6,35,17],[10,6,11,17],[10,26,12,33],[12,6,13,17],[13,29,14,33],[15,29,16,33],[16,6,17,17],[17,26,18,28],[17,29,18,33],[2,22,2,28],[3,31,3,33],[5,0,6,3],[5,6,6,17],[8,0,9,3],[8,6,9,17]]}
[2,null,null,null,null,null,null,null,null,null,null,null,null,null,null,null,null,null,null,null,null,"■イビケン記入箇所"]
[null,null,null,null,null,null,null,null,null,null,null,null,null,null,null,null,null,null,null,null,null,null,"オーダーNo",null,null,null,null,null,null,null,"メイン",null,null,null,null,"W寸",null,"D寸",null,"形状",null,"木縁",null,"裏面"]
[null,null,null,null,null,null,null,null,null,null,null,null,null,null,null,null,null,null,null,null,null,null,null,null,null,null,null,null,null,{"$f":"AA11","v":"RP-3660AP-32"},null,null,null,null,"-",{"$f":"G32","v":0},"-",{"$f":"G29","v":0},"-","IG","-",{"$f":"G21","v":"未選択"},"-",{"$f":"IF(AD25=\"BK（バッカー）\",\"BK\",IF(AD25=\"DS（表同柄）※オプション価格\",\"DS\",\"\"))","v":"BK"}]
["※オーダーシートは仕様指示書となります。注文書は別途ご用意ください。",null,null,null,null,null,null,null,null,null,null,null,null,null,null,null,null,null,null,null,null,null,null,null,null,null,null,null,null,null,null,null,null,null,null,null,null,null,null,null,null,null,null,null,null,null,null,null,null,null,null,null,null,null,null,null,null,null,null,null,null,null,null,null,null,null,null,null,null,null,null,null,null,null,null,null,null,null,null,null,null,null,null,null,null,null,null,null,null,null,null,null,null,null,null,null,null,null,null,null,null,null,null,null,null,null,null,null,null,null,null,null,null,null,null,null,null,null,null,null,null,null,null,null,null,null,null,null,null,null,null,null,null,null,null,null,null,null,null,null,null,null,null,null,null,null,null,null,null,null,null,null,null,null,null,null,"RPS-1981U-38"]
[]
["■発注日",null,null,null,null,null,"　　年　 　月　   日"]
[]
[]
["■発注者"]
[null,null,null,null,"会社名"]
[null,null,null,null,null,null,null,null,null,null,null,null,null,null,null,null,null,null,null,null,null,null,null,null,null,null,{"$f":"G17","v":"RP-3660AP-32"}]
[null,null,null,null,"担当者名"]
[]
[null,null,null,null,"電話番号",null,null,null,null,null,null,null,null,null,null,null,null,null,null,null,null,null,null,null,null,null,null,null,null,{"$f":"_xlfn.XLOOKUP(AA11,一覧_品番!A:A,一覧_品番!B:B, \"\", FALSE)","v":32}]
[null,null,null,null,null,null,null,null,null,null,null,null,null,null,null,null,null,null,null,null,null,null,null,null,null,null,"厚み"]
[null,null,null,null,null,null,null,null,null,null,null,null,null,null,null,null,null,null,null,null,null,null,null,null,null,null,null,null,null,{"$f":"_xlfn.XLOOKUP(AA11,一覧_品番!A:A,一覧_品番!C:C, \"\", FALSE)","v":"ライブエッジ"}]
["■品番",null,null,null,null,null,{"$f":"_xlfn.XLOOKUP(S17,注文書一覧!A:A,注文書一覧!B:B,\"\")","v":"RP-3660AP-32"},null,null,null,null,null,null,null,null,null,null,null,35,null,null,null,null,null,null,null,"木縁形状"]
[null,null,null,null,null,null,null,null,null,null,null,null,null,null,null,null,null,null,null,null,null,null,null,null,null,null,"木縁位置",null,null,{"$f":"G21","v":"未選択"}]
[]
[null,null,null,null,null,null,"↓左のカーソルで選択下さい。→右下にイラストが表示されます",null,null,null,null,null,null,null,null,null,null,null,null,null,null,null,null,null,null,null,null,null,null,{"$f":"_xlfn.XLOOKUP(AA11,一覧_品番!A:A,一覧_品番!E:E, \"\", FALSE)","v":"ブラウン"}]
["■木縁添付位置",null,null,null,null,null,{"$f":"VLOOKUP(AA27,一覧_木縁!A2:C9,2,FALSE)","v":"未選択"},null,null,null,null,null,null,null,null,null,null,null,null,null,null,null,null,null,null,null,"塗装色"]
[null,null,null,null,null,null,null,null,null,null,null,null,null,null,null,null,null,null,null,null,null,null,null,null,null,null,"表面材",null,null,{"$f":"_xlfn.XLOOKUP(AA11,一覧_品番!A:A,一覧_品番!F:F, \"\", FALSE)","v":"BC-3660AP"}]
[]
[null,null,null,null,null,null,"↓プルダウンで選択下さい"]
["■裏面材",null,null,null,null,null,{"$f":"INDEX(一覧_裏面!A1:A2,A1)","v":"BK（バッカ―）"},null,null,null,null,null,null,null,null,null,null,null,null,null,null,null,null,null,null,null,null,null,null,{"$f":"G25","v":"BK（バッカ―）"}]
[null,null,null,null,null,null,null,null,null,null,null,null,null,null,null,null,null,null,null,null,null,null,null,null,null,null,"裏面材"]
[null,null,null,null,null,null,null,null,null,null,null,null,null,null,null,null,null,null,null,null,null,null,null,null,null,null,8]
[null,null,null,null,null,null,"↓300～1200ｍｍの間で入力下さい"]
["■サイズ",null,null,null,"縦（D)",null,null,null,null,null,null,null,null,null,null,null,null,null,null,null,null,null,"縦（D）"]
[null,null,null,null,null,null,null,null,null,null,null,null,null,null,null,null,null,null,null,null,null,null,{"$f":"SUM(G29)","v":0}]
[null,null,null,null,null,null,"↓600～2400ｍｍの間で入力下さい"]
[null,null,null,null,"横（W)",null,null,null,null,null,null,null,null,null,null,null,null,null,null,null,null,null,null,null,"㎜"]
[]
[]
["■数量"]
[null,null,null,null,null,null,null,null,null,null,null,null,null,null,null,null,null,null,null,null,null,null,null,null,null,null,null,null,null,null,null,null,{"$f":"SUM(G32)","v":0}]
[null,null,null,null,null,null,null,null,null,null,null,null,null,null,null,null,null,null,null,null,null,null,null,null,null,null,null,null,null,null,null,null,null,null,null,null,null,"㎜"]
["■希望納期",null,null,null,null,null,"　　年　 　月　   日",null,null,null,null,null,null,null,null,null,null,null,null,null,null,null,null,null,null,null,null,null,null,null,null,null,null,"横（W)"]
[]
[]
["■納入場所",null,null,null,null,null,"納入会社名",null,null,null,null,null,null,null,null,null,null,null,"　納入住所",null,null,null,null,null,null,null,null,null,null,null,null,null,null,null,null,null,null,null,"納入電話番号"]
[null,null,null,null,null,null,null,null,null,null,null,null,null,null,null,null,null,null,"〒"]

{"sheet":"RPS-3661AP-32","index":20,"n_rows":42,"n_cols":157,"rows_kept":42,"cut":false,"hidden":false,"merged":[[37,6,38,17],[37,33,37,36],[41,6,43,17],[41,18,43,37],[41,38,43,46],[35,32,36,36],[19,29,20,33],[20,6,21,17],[21,26,22,27],[21,29,22,33],[24,6,25,17],[24,29,25,33],[28,6,29,17],[28,22,28,24],[29,22,30,24],[31,6,32,17],[34,6,35,17],[10,6,11,17],[10,26,12,33],[12,6,13,17],[13,29,14,33],[15,29,16,33],[16,6,17,17],[17,26,18,28],[17,29,18,33],[2,22,2,28],[3,31,3,33],[5,0,6,3],[5,6,6,17],[8,0,9,3],[8,6,9,17]]}
[2,null,null,null,null,null,null,null,null,null,null,null,null,null,null,null,null,null,null,null,null,"■イビケン記入箇所"]
[null,null,null,null,null,null,null,null,null,null,null,null,null,null,null,null,null,null,null,null,null,null,"オーダーNo",null,null,null,null,null,null,null,"メイン",null,null,null,null,"W寸",null,"D寸",null,"形状",null,"木縁",null,"裏面"]
[null,null,null,null,null,null,null,null,null,null,null,null,null,null,null,null,null,null,null,null,null,null,null,null,null,null,null,null,null,{"$f":"AA11","v":"RPS-3661AP-32"},null,null,null,null,"-",{"$f":"G32","v":0},"-",{"$f":"G29","v":0},"-","IG","-",{"$f":"G21","v":"未選択"},"-",{"$f":"IF(AD25=\"BK（バッカー）\",\"BK\",IF(AD25=\"DS（表同柄）※オプション価格\",\"DS\",\"\"))","v":"BK"}]
["※オーダーシートは仕様指示書となります。注文書は別途ご用意ください。",null,null,null,null,null,null,null,null,null,null,null,null,null,null,null,null,null,null,null,null,null,null,null,null,null,null,null,null,null,null,null,null,null,null,null,null,null,null,null,null,null,null,null,null,null,null,null,null,null,null,null,null,null,null,null,null,null,null,null,null,null,null,null,null,null,null,null,null,null,null,null,null,null,null,null,null,null,null,null,null,null,null,null,null,null,null,null,null,null,null,null,null,null,null,null,null,null,null,null,null,null,null,null,null,null,null,null,null,null,null,null,null,null,null,null,null,null,null,null,null,null,null,null,null,null,null,null,null,null,null,null,null,null,null,null,null,null,null,null,null,null,null,null,null,null,null,null,null,null,null,null,null,null,null,null,"RPS-1981U-38"]
[]
["■発注日",null,null,null,null,null,"　　年　 　月　   日"]
[]
[]
["■発注者"]
[null,null,null,null,"会社名"]
[null,null,null,null,null,null,null,null,null,null,null,null,null,null,null,null,null,null,null,null,null,null,null,null,null,null,{"$f":"G17","v":"RPS-3661AP-32"}]
[null,null,null,null,"担当者名"]
[]
[null,null,null,null,"電話番号",null,null,null,null,null,null,null,null,null,null,null,null,null,null,null,null,null,null,null,null,null,null,null,null,{"$f":"_xlfn.XLOOKUP(AA11,一覧_品番!A:A,一覧_品番!B:B, \"\", FALSE)","v":32}]
[null,null,null,null,null,null,null,null,null,null,null,null,null,null,null,null,null,null,null,null,null,null,null,null,null,null,"厚み"]
[null,null,null,null,null,null,null,null,null,null,null,null,null,null,null,null,null,null,null,null,null,null,null,null,null,null,null,null,null,{"$f":"_xlfn.XLOOKUP(AA11,一覧_品番!A:A,一覧_品番!C:C, \"\", FALSE)","v":"ストレート"}]
["■品番",null,null,null,null,null,{"$f":"_xlfn.XLOOKUP(S17,注文書一覧!A:A,注文書一覧!B:B,\"\")","v":"RPS-3661AP-32"},null,null,null,null,null,null,null,null,null,null,null,37,null,null,null,null,null,null,null,"木縁形状"]
[null,null,null,null,null,null,null,null,null,null,null,null,null,null,null,null,null,null,null,null,null,null,null,null,null,null,"木縁位置",null,null,{"$f":"G21","v":"未選択"}]
[]
[null,null,null,null,null,null,"↓左のカーソルで選択下さい。→右下にイラストが表示されます",null,null,null,null,null,null,null,null,null,null,null,null,null,null,null,null,null,null,null,null,null,null,{"$f":"_xlfn.XLOOKUP(AA11,一覧_品番!A:A,一覧_品番!E:E, \"\", FALSE)","v":"ナチュラル"}]
["■木縁添付位置",null,null,null,null,null,{"$f":"VLOOKUP(AA27,一覧_木縁!A2:C9,2,FALSE)","v":"未選択"},null,null,null,null,null,null,null,null,null,null,null,null,null,null,null,null,null,null,null,"塗装色"]
[null,null,null,null,null,null,null,null,null,null,null,null,null,null,null,null,null,null,null,null,null,null,null,null,null,null,"表面材",null,null,{"$f":"_xlfn.XLOOKUP(AA11,一覧_品番!A:A,一覧_品番!F:F, \"\", FALSE)","v":"BC-3661AP"}]
[]
[null,null,null,null,null,null,"↓プルダウンで選択下さい"]
["■裏面材",null,null,null,null,null,{"$f":"INDEX(一覧_裏面!A1:A2,A1)","v":"BK（バッカ―）"},null,null,null,null,null,null,null,null,null,null,null,null,null,null,null,null,null,null,null,null,null,null,{"$f":"G25","v":"BK（バッカ―）"}]
[null,null,null,null,null,null,null,null,null,null,null,null,null,null,null,null,null,null,null,null,null,null,null,null,null,null,"裏面材"]
[null,null,null,null,null,null,null,null,null,null,null,null,null,null,null,null,null,null,null,null,null,null,null,null,null,null,8]
[null,null,null,null,null,null,"↓300～1200ｍｍの間で入力下さい"]
["■サイズ",null,null,null,"縦（D)",null,null,null,null,null,null,null,null,null,null,null,null,null,null,null,null,null,"縦（D）"]
[null,null,null,null,null,null,null,null,null,null,null,null,null,null,null,null,null,null,null,null,null,null,{"$f":"SUM(G29)","v":0}]
[null,null,null,null,null,null,"↓600～2400ｍｍの間で入力下さい"]
[null,null,null,null,"横（W)",null,null,null,null,null,null,null,null,null,null,null,null,null,null,null,null,null,null,null,"㎜"]
[]
[]
["■数量"]
[null,null,null,null,null,null,null,null,null,null,null,null,null,null,null,null,null,null,null,null,null,null,null,null,null,null,null,null,null,null,null,null,{"$f":"SUM(G32)","v":0}]
[null,null,null,null,null,null,null,null,null,null,null,null,null,null,null,null,null,null,null,null,null,null,null,null,null,null,null,null,null,null,null,null,null,null,null,null,null,"㎜"]
["■希望納期",null,null,null,null,null,"　　年　 　月　   日",null,null,null,null,null,null,null,null,null,null,null,null,null,null,null,null,null,null,null,null,null,null,null,null,null,null,"横（W)"]
[]
[]
["■納入場所",null,null,null,null,null,"納入会社名",null,null,null,null,null,null,null,null,null,null,null,"　納入住所",null,null,null,null,null,null,null,null,null,null,null,null,null,null,null,null,null,null,null,"納入電話番号"]
[null,null,null,null,null,null,null,null,null,null,null,null,null,null,null,null,null,null,"〒"]

{"sheet":"RP-3661AP-32","index":21,"n_rows":42,"n_cols":157,"rows_kept":42,"cut":false,"hidden":false,"merged":[[37,6,38,17],[37,33,37,36],[41,6,43,17],[41,18,43,37],[41,38,43,46],[35,32,36,36],[19,29,20,33],[20,6,21,17],[21,26,22,27],[21,29,22,33],[24,6,25,17],[24,29,25,33],[28,6,29,17],[28,22,28,24],[29,22,30,24],[31,6,32,17],[34,6,35,17],[10,6,11,17],[10,26,12,33],[12,6,13,17],[13,29,14,33],[15,29,16,33],[16,6,17,17],[17,26,18,28],[17,29,18,33],[2,22,2,28],[3,31,3,33],[5,0,6,3],[5,6,6,17],[8,0,9,3],[8,6,9,17]]}
[2,null,null,null,null,null,null,null,null,null,null,null,null,null,null,null,null,null,null,null,null,"■イビケン記入箇所"]
[null,null,null,null,null,null,null,null,null,null,null,null,null,null,null,null,null,null,null,null,null,null,"オーダーNo",null,null,null,null,null,null,null,"メイン",null,null,null,null,"W寸",null,"D寸",null,"形状",null,"木縁",null,"裏面"]
[null,null,null,null,null,null,null,null,null,null,null,null,null,null,null,null,null,null,null,null,null,null,null,null,null,null,null,null,null,{"$f":"AA11","v":"RP-3661AP-32"},null,null,null,null,"-",{"$f":"G32","v":0},"-",{"$f":"G29","v":0},"-","IG","-",{"$f":"G21","v":"RP-3661AP-32"},"-",{"$f":"IF(AD25=\"BK（バッカー）\",\"BK\",IF(AD25=\"DS（表同柄）※オプション価格\",\"DS\",\"\"))","v":"BK"}]
["※オーダーシートは仕様指示書となります。注文書は別途ご用意ください。",null,null,null,null,null,null,null,null,null,null,null,null,null,null,null,null,null,null,null,null,null,null,null,null,null,null,null,null,null,null,null,null,null,null,null,null,null,null,null,null,null,null,null,null,null,null,null,null,null,null,null,null,null,null,null,null,null,null,null,null,null,null,null,null,null,null,null,null,null,null,null,null,null,null,null,null,null,null,null,null,null,null,null,null,null,null,null,null,null,null,null,null,null,null,null,null,null,null,null,null,null,null,null,null,null,null,null,null,null,null,null,null,null,null,null,null,null,null,null,null,null,null,null,null,null,null,null,null,null,null,null,null,null,null,null,null,null,null,null,null,null,null,null,null,null,null,null,null,null,null,null,null,null,null,null,"RPS-1981U-38"]
[]
["■発注日",null,null,null,null,null,"　　年　 　月　   日"]
[]
[]
["■発注者"]
[null,null,null,null,"会社名"]
[null,null,null,null,null,null,null,null,null,null,null,null,null,null,null,null,null,null,null,null,null,null,null,null,null,null,{"$f":"G17","v":"RP-3661AP-32"}]
[null,null,null,null,"担当者名"]
[]
[null,null,null,null,"電話番号",null,null,null,null,null,null,null,null,null,null,null,null,null,null,null,null,null,null,null,null,null,null,null,null,{"$f":"_xlfn.XLOOKUP(AA11,一覧_品番!A:A,一覧_品番!B:B, \"\", FALSE)","v":32}]
[null,null,null,null,null,null,null,null,null,null,null,null,null,null,null,null,null,null,null,null,null,null,null,null,null,null,"厚み"]
[null,null,null,null,null,null,null,null,null,null,null,null,null,null,null,null,null,null,null,null,null,null,null,null,null,null,null,null,null,{"$f":"_xlfn.XLOOKUP(AA11,一覧_品番!A:A,一覧_品番!C:C, \"\", FALSE)","v":"ライブエッジ"}]
["■品番",null,null,null,null,null,{"$f":"_xlfn.XLOOKUP(S17,注文書一覧!A:A,注文書一覧!B:B,\"\")","v":"RP-3661AP-32"},null,null,null,null,null,null,null,null,null,null,null,39,null,null,null,null,null,null,null,"木縁形状"]
[null,null,null,null,null,null,null,null,null,null,null,null,null,null,null,null,null,null,null,null,null,null,null,null,null,null,"木縁位置",null,null,{"$f":"G21","v":"RP-3661AP-32"}]
[]
[null,null,null,null,null,null,"↓左のカーソルで選択下さい。→右下にイラストが表示されます",null,null,null,null,null,null,null,null,null,null,null,null,null,null,null,null,null,null,null,null,null,null,{"$f":"_xlfn.XLOOKUP(AA11,一覧_品番!A:A,一覧_品番!E:E, \"\", FALSE)","v":"ナチュラル"}]
["■木縁添付位置",null,null,null,null,null,"RP-3661AP-32",null,null,null,null,null,null,null,null,null,null,null,null,null,null,null,null,null,null,null,"塗装色"]
[null,null,null,null,null,null,null,null,null,null,null,null,null,null,null,null,null,null,null,null,null,null,null,null,null,null,"表面材",null,null,{"$f":"_xlfn.XLOOKUP(AA11,一覧_品番!A:A,一覧_品番!F:F, \"\", FALSE)","v":"BC-3661AP"}]
[]
[null,null,null,null,null,null,"↓プルダウンで選択下さい"]
["■裏面材",null,null,null,null,null,{"$f":"INDEX(一覧_裏面!A1:A2,A1)","v":"BK（バッカ―）"},null,null,null,null,null,null,null,null,null,null,null,null,null,null,null,null,null,null,null,null,null,null,{"$f":"G25","v":"BK（バッカ―）"}]
[null,null,null,null,null,null,null,null,null,null,null,null,null,null,null,null,null,null,null,null,null,null,null,null,null,null,"裏面材"]
[null,null,null,null,null,null,null,null,null,null,null,null,null,null,null,null,null,null,null,null,null,null,null,null,null,null,8]
[null,null,null,null,null,null,"↓300～1200ｍｍの間で入力下さい"]
["■サイズ",null,null,null,"縦（D)",null,null,null,null,null,null,null,null,null,null,null,null,null,null,null,null,null,"縦（D）"]
[null,null,null,null,null,null,null,null,null,null,null,null,null,null,null,null,null,null,null,null,null,null,{"$f":"SUM(G29)","v":0}]
[null,null,null,null,null,null,"↓600～2400ｍｍの間で入力下さい"]
[null,null,null,null,"横（W)",null,null,null,null,null,null,null,null,null,null,null,null,null,null,null,null,null,null,null,"㎜"]
[]
[]
["■数量"]
[null,null,null,null,null,null,null,null,null,null,null,null,null,null,null,null,null,null,null,null,null,null,null,null,null,null,null,null,null,null,null,null,{"$f":"SUM(G32)","v":0}]
[null,null,null,null,null,null,null,null,null,null,null,null,null,null,null,null,null,null,null,null,null,null,null,null,null,null,null,null,null,null,null,null,null,null,null,null,null,"㎜"]
["■希望納期",null,null,null,null,null,"　　年　 　月　   日",null,null,null,null,null,null,null,null,null,null,null,null,null,null,null,null,null,null,null,null,null,null,null,null,null,null,"横（W)"]
[]
[]
["■納入場所",null,null,null,null,null,"納入会社名",null,null,null,null,null,null,null,null,null,null,null,"　納入住所",null,null,null,null,null,null,null,null,null,null,null,null,null,null,null,null,null,null,null,"納入電話番号"]
[null,null,null,null,null,null,null,null,null,null,null,null,null,null,null,null,null,null,"〒"]

{"sheet":"RPS-3662AP-32","index":22,"n_rows":42,"n_cols":157,"rows_kept":42,"cut":false,"hidden":false,"merged":[[37,6,38,17],[37,33,37,36],[41,6,43,17],[41,18,43,37],[41,38,43,46],[35,32,36,36],[19,29,20,33],[20,6,21,17],[21,26,22,27],[21,29,22,33],[24,6,25,17],[24,29,25,33],[28,6,29,17],[28,22,28,24],[29,22,30,24],[31,6,32,17],[34,6,35,17],[10,6,11,17],[10,26,12,33],[12,6,13,17],[13,29,14,33],[15,29,16,33],[16,6,17,17],[17,26,18,28],[17,29,18,33],[2,22,2,28],[3,31,3,33],[5,0,6,3],[5,6,6,17],[8,0,9,3],[8,6,9,17]]}
[2,null,null,null,null,null,null,null,null,null,null,null,null,null,null,null,null,null,null,null,null,"■イビケン記入箇所"]
[null,null,null,null,null,null,null,null,null,null,null,null,null,null,null,null,null,null,null,null,null,null,"オーダーNo",null,null,null,null,null,null,null,"メイン",null,null,null,null,"W寸",null,"D寸",null,"形状",null,"木縁",null,"裏面"]
[null,null,null,null,null,null,null,null,null,null,null,null,null,null,null,null,null,null,null,null,null,null,null,null,null,null,null,null,null,{"$f":"AA11","v":"RPS-3662AP-32"},null,null,null,null,"-",{"$f":"G32","v":0},"-",{"$f":"G29","v":0},"-","IG","-",{"$f":"G21","v":"未選択"},"-",{"$f":"IF(AD25=\"BK（バッカー）\",\"BK\",IF(AD25=\"DS（表同柄）※オプション価格\",\"DS\",\"\"))","v":"BK"}]
["※オーダーシートは仕様指示書となります。注文書は別途ご用意ください。",null,null,null,null,null,null,null,null,null,null,null,null,null,null,null,null,null,null,null,null,null,null,null,null,null,null,null,null,null,null,null,null,null,null,null,null,null,null,null,null,null,null,null,null,null,null,null,null,null,null,null,null,null,null,null,null,null,null,null,null,null,null,null,null,null,null,null,null,null,null,null,null,null,null,null,null,null,null,null,null,null,null,null,null,null,null,null,null,null,null,null,null,null,null,null,null,null,null,null,null,null,null,null,null,null,null,null,null,null,null,null,null,null,null,null,null,null,null,null,null,null,null,null,null,null,null,null,null,null,null,null,null,null,null,null,null,null,null,null,null,null,null,null,null,null,null,null,null,null,null,null,null,null,null,null,"RPS-1981U-38"]
[]
["■発注日",null,null,null,null,null,"　　年　 　月　   日"]
[]
[]
["■発注者"]
[null,null,null,null,"会社名"]
[null,null,null,null,null,null,null,null,null,null,null,null,null,null,null,null,null,null,null,null,null,null,null,null,null,null,{"$f":"G17","v":"RPS-3662AP-32"}]
[null,null,null,null,"担当者名"]
[]
[null,null,null,null,"電話番号",null,null,null,null,null,null,null,null,null,null,null,null,null,null,null,null,null,null,null,null,null,null,null,null,{"$f":"_xlfn.XLOOKUP(AA11,一覧_品番!A:A,一覧_品番!B:B, \"\", FALSE)","v":32}]
[null,null,null,null,null,null,null,null,null,null,null,null,null,null,null,null,null,null,null,null,null,null,null,null,null,null,"厚み"]
[null,null,null,null,null,null,null,null,null,null,null,null,null,null,null,null,null,null,null,null,null,null,null,null,null,null,null,null,null,{"$f":"_xlfn.XLOOKUP(AA11,一覧_品番!A:A,一覧_品番!C:C, \"\", FALSE)","v":"ストレート"}]
["■品番",null,null,null,null,null,{"$f":"_xlfn.XLOOKUP(S17,注文書一覧!A:A,注文書一覧!B:B,\"\")","v":"RPS-3662AP-32"},null,null,null,null,null,null,null,null,null,null,null,41,null,null,null,null,null,null,null,"木縁形状"]
[null,null,null,null,null,null,null,null,null,null,null,null,null,null,null,null,null,null,null,null,null,null,null,null,null,null,"木縁位置",null,null,{"$f":"G21","v":"未選択"}]
[]
[null,null,null,null,null,null,"↓左のカーソルで選択下さい。→右下にイラストが表示されます",null,null,null,null,null,null,null,null,null,null,null,null,null,null,null,null,null,null,null,null,null,null,{"$f":"_xlfn.XLOOKUP(AA11,一覧_品番!A:A,一覧_品番!E:E, \"\", FALSE)","v":"ブラウン"}]
["■木縁添付位置",null,null,null,null,null,{"$f":"VLOOKUP(AA27,一覧_木縁!A2:C9,2,FALSE)","v":"未選択"},null,null,null,null,null,null,null,null,null,null,null,null,null,null,null,null,null,null,null,"塗装色"]
[null,null,null,null,null,null,null,null,null,null,null,null,null,null,null,null,null,null,null,null,null,null,null,null,null,null,"表面材",null,null,{"$f":"_xlfn.XLOOKUP(AA11,一覧_品番!A:A,一覧_品番!F:F, \"\", FALSE)","v":"BC-3662AP"}]
[]
[null,null,null,null,null,null,"↓プルダウンで選択下さい"]
["■裏面材",null,null,null,null,null,{"$f":"INDEX(一覧_裏面!A1:A2,A1)","v":"BK（バッカ―）"},null,null,null,null,null,null,null,null,null,null,null,null,null,null,null,null,null,null,null,null,null,null,{"$f":"G25","v":"BK（バッカ―）"}]
[null,null,null,null,null,null,null,null,null,null,null,null,null,null,null,null,null,null,null,null,null,null,null,null,null,null,"裏面材"]
[null,null,null,null,null,null,null,null,null,null,null,null,null,null,null,null,null,null,null,null,null,null,null,null,null,null,8]
[null,null,null,null,null,null,"↓300～1200ｍｍの間で入力下さい"]
["■サイズ",null,null,null,"縦（D)",null,null,null,null,null,null,null,null,null,null,null,null,null,null,null,null,null,"縦（D）"]
[null,null,null,null,null,null,null,null,null,null,null,null,null,null,null,null,null,null,null,null,null,null,{"$f":"SUM(G29)","v":0}]
[null,null,null,null,null,null,"↓600～2400ｍｍの間で入力下さい"]
[null,null,null,null,"横（W)",null,null,null,null,null,null,null,null,null,null,null,null,null,null,null,null,null,null,null,"㎜"]
[]
[]
["■数量"]
[null,null,null,null,null,null,null,null,null,null,null,null,null,null,null,null,null,null,null,null,null,null,null,null,null,null,null,null,null,null,null,null,{"$f":"SUM(G32)","v":0}]
[null,null,null,null,null,null,null,null,null,null,null,null,null,null,null,null,null,null,null,null,null,null,null,null,null,null,null,null,null,null,null,null,null,null,null,null,null,"㎜"]
["■希望納期",null,null,null,null,null,"　　年　 　月　   日",null,null,null,null,null,null,null,null,null,null,null,null,null,null,null,null,null,null,null,null,null,null,null,null,null,null,"横（W)"]
[]
[]
["■納入場所",null,null,null,null,null,"納入会社名",null,null,null,null,null,null,null,null,null,null,null,"　納入住所",null,null,null,null,null,null,null,null,null,null,null,null,null,null,null,null,null,null,null,"納入電話番号"]
[null,null,null,null,null,null,null,null,null,null,null,null,null,null,null,null,null,null,"〒"]

{"sheet":"RP-3662AP-32","index":23,"n_rows":42,"n_cols":157,"rows_kept":42,"cut":false,"hidden":false,"merged":[[37,6,38,17],[37,33,37,36],[41,6,43,17],[41,18,43,37],[41,38,43,46],[35,32,36,36],[19,29,20,33],[20,6,21,17],[21,26,22,27],[21,29,22,33],[24,6,25,17],[24,29,25,33],[28,6,29,17],[28,22,28,24],[29,22,30,24],[31,6,32,17],[34,6,35,17],[10,6,11,17],[10,26,12,33],[12,6,13,17],[13,29,14,33],[15,29,16,33],[16,6,17,17],[17,26,18,28],[17,29,18,33],[2,22,2,28],[3,31,3,33],[5,0,6,3],[5,6,6,17],[8,0,9,3],[8,6,9,17]]}
[2,null,null,null,null,null,null,null,null,null,null,null,null,null,null,null,null,null,null,null,null,"■イビケン記入箇所"]
[null,null,null,null,null,null,null,null,null,null,null,null,null,null,null,null,null,null,null,null,null,null,"オーダーNo",null,null,null,null,null,null,null,"メイン",null,null,null,null,"W寸",null,"D寸",null,"形状",null,"木縁",null,"裏面"]
[null,null,null,null,null,null,null,null,null,null,null,null,null,null,null,null,null,null,null,null,null,null,null,null,null,null,null,null,null,{"$f":"AA11","v":"RP-3662AP-32"},null,null,null,null,"-",{"$f":"G32","v":0},"-",{"$f":"G29","v":0},"-","IG","-",{"$f":"G21","v":"未選択"},"-",{"$f":"IF(AD25=\"BK（バッカー）\",\"BK\",IF(AD25=\"DS（表同柄）※オプション価格\",\"DS\",\"\"))","v":"BK"}]
["※オーダーシートは仕様指示書となります。注文書は別途ご用意ください。",null,null,null,null,null,null,null,null,null,null,null,null,null,null,null,null,null,null,null,null,null,null,null,null,null,null,null,null,null,null,null,null,null,null,null,null,null,null,null,null,null,null,null,null,null,null,null,null,null,null,null,null,null,null,null,null,null,null,null,null,null,null,null,null,null,null,null,null,null,null,null,null,null,null,null,null,null,null,null,null,null,null,null,null,null,null,null,null,null,null,null,null,null,null,null,null,null,null,null,null,null,null,null,null,null,null,null,null,null,null,null,null,null,null,null,null,null,null,null,null,null,null,null,null,null,null,null,null,null,null,null,null,null,null,null,null,null,null,null,null,null,null,null,null,null,null,null,null,null,null,null,null,null,null,null,"RPS-1981U-38"]
[]
["■発注日",null,null,null,null,null,"　　年　 　月　   日"]
[]
[]
["■発注者"]
[null,null,null,null,"会社名"]
[null,null,null,null,null,null,null,null,null,null,null,null,null,null,null,null,null,null,null,null,null,null,null,null,null,null,{"$f":"G17","v":"RP-3662AP-32"}]
[null,null,null,null,"担当者名"]
[]
[null,null,null,null,"電話番号",null,null,null,null,null,null,null,null,null,null,null,null,null,null,null,null,null,null,null,null,null,null,null,null,{"$f":"_xlfn.XLOOKUP(AA11,一覧_品番!A:A,一覧_品番!B:B, \"\", FALSE)","v":32}]
[null,null,null,null,null,null,null,null,null,null,null,null,null,null,null,null,null,null,null,null,null,null,null,null,null,null,"厚み"]
[null,null,null,null,null,null,null,null,null,null,null,null,null,null,null,null,null,null,null,null,null,null,null,null,null,null,null,null,null,{"$f":"_xlfn.XLOOKUP(AA11,一覧_品番!A:A,一覧_品番!C:C, \"\", FALSE)","v":"ライブエッジ"}]
["■品番",null,null,null,null,null,{"$f":"_xlfn.XLOOKUP(S17,注文書一覧!A:A,注文書一覧!B:B,\"\")","v":"RP-3662AP-32"},null,null,null,null,null,null,null,null,null,null,null,43,null,null,null,null,null,null,null,"木縁形状"]
[null,null,null,null,null,null,null,null,null,null,null,null,null,null,null,null,null,null,null,null,null,null,null,null,null,null,"木縁位置",null,null,{"$f":"G21","v":"未選択"}]
[]
[null,null,null,null,null,null,"↓左のカーソルで選択下さい。→右下にイラストが表示されます",null,null,null,null,null,null,null,null,null,null,null,null,null,null,null,null,null,null,null,null,null,null,{"$f":"_xlfn.XLOOKUP(AA11,一覧_品番!A:A,一覧_品番!E:E, \"\", FALSE)","v":"ブラウン"}]
["■木縁添付位置",null,null,null,null,null,{"$f":"VLOOKUP(AA27,一覧_木縁!A2:C9,2,FALSE)","v":"未選択"},null,null,null,null,null,null,null,null,null,null,null,null,null,null,null,null,null,null,null,"塗装色"]
[null,null,null,null,null,null,null,null,null,null,null,null,null,null,null,null,null,null,null,null,null,null,null,null,null,null,"表面材",null,null,{"$f":"_xlfn.XLOOKUP(AA11,一覧_品番!A:A,一覧_品番!F:F, \"\", FALSE)","v":"BC-3662AP"}]
[]
[null,null,null,null,null,null,"↓プルダウンで選択下さい"]
["■裏面材",null,null,null,null,null,{"$f":"INDEX(一覧_裏面!A1:A2,A1)","v":"BK（バッカ―）"},null,null,null,null,null,null,null,null,null,null,null,null,null,null,null,null,null,null,null,null,null,null,{"$f":"G25","v":"BK（バッカ―）"}]
[null,null,null,null,null,null,null,null,null,null,null,null,null,null,null,null,null,null,null,null,null,null,null,null,null,null,"裏面材"]
[null,null,null,null,null,null,null,null,null,null,null,null,null,null,null,null,null,null,null,null,null,null,null,null,null,null,8]
[null,null,null,null,null,null,"↓300～1200ｍｍの間で入力下さい"]
["■サイズ",null,null,null,"縦（D)",null,null,null,null,null,null,null,null,null,null,null,null,null,null,null,null,null,"縦（D）"]
[null,null,null,null,null,null,null,null,null,null,null,null,null,null,null,null,null,null,null,null,null,null,{"$f":"SUM(G29)","v":0}]
[null,null,null,null,null,null,"↓600～2400ｍｍの間で入力下さい"]
[null,null,null,null,"横（W)",null,null,null,null,null,null,null,null,null,null,null,null,null,null,null,null,null,null,null,"㎜"]
[]
[]
["■数量"]
[null,null,null,null,null,null,null,null,null,null,null,null,null,null,null,null,null,null,null,null,null,null,null,null,null,null,null,null,null,null,null,null,{"$f":"SUM(G32)","v":0}]
[null,null,null,null,null,null,null,null,null,null,null,null,null,null,null,null,null,null,null,null,null,null,null,null,null,null,null,null,null,null,null,null,null,null,null,null,null,"㎜"]
["■希望納期",null,null,null,null,null,"　　年　 　月　   日",null,null,null,null,null,null,null,null,null,null,null,null,null,null,null,null,null,null,null,null,null,null,null,null,null,null,"横（W)"]
[]
[]
["■納入場所",null,null,null,null,null,"納入会社名",null,null,null,null,null,null,null,null,null,null,null,"　納入住所",null,null,null,null,null,null,null,null,null,null,null,null,null,null,null,null,null,null,null,"納入電話番号"]
[null,null,null,null,null,null,null,null,null,null,null,null,null,null,null,null,null,null,"〒"]

{"sheet":"RPS-3663PL-32","index":24,"n_rows":42,"n_cols":157,"rows_kept":42,"cut":false,"hidden":false,"merged":[[37,6,38,17],[37,33,37,36],[41,6,43,17],[41,18,43,37],[41,38,43,46],[35,32,36,36],[19,29,20,33],[20,6,21,17],[21,26,22,27],[21,29,22,33],[24,6,25,17],[24,29,25,33],[28,6,29,17],[28,22,28,24],[29,22,30,24],[31,6,32,17],[34,6,35,17],[10,6,11,17],[10,26,12,33],[12,6,13,17],[13,29,14,33],[15,29,16,33],[16,6,17,17],[17,26,18,28],[17,29,18,33],[2,22,2,28],[3,31,3,33],[5,0,6,3],[5,6,6,17],[8,0,9,3],[8,6,9,17]]}
[2,null,null,null,null,null,null,null,null,null,null,null,null,null,null,null,null,null,null,null,null,"■イビケン記入箇所"]
[null,null,null,null,null,null,null,null,null,null,null,null,null,null,null,null,null,null,null,null,null,null,"オーダーNo",null,null,null,null,null,null,null,"メイン",null,null,null,null,"W寸",null,"D寸",null,"形状",null,"木縁",null,"裏面"]
[null,null,null,null,null,null,null,null,null,null,null,null,null,null,null,null,null,null,null,null,null,null,null,null,null,null,null,null,null,{"$f":"AA11","v":"RPS-3663PL-32"},null,null,null,null,"-",{"$f":"G32","v":0},"-",{"$f":"G29","v":0},"-","IG","-",{"$f":"G21","v":"未選択"},"-",{"$f":"IF(AD25=\"BK（バッカー）\",\"BK\",IF(AD25=\"DS（表同柄）※オプション価格\",\"DS\",\"\"))","v":"BK"}]
["※オーダーシートは仕様指示書となります。注文書は別途ご用意ください。",null,null,null,null,null,null,null,null,null,null,null,null,null,null,null,null,null,null,null,null,null,null,null,null,null,null,null,null,null,null,null,null,null,null,null,null,null,null,null,null,null,null,null,null,null,null,null,null,null,null,null,null,null,null,null,null,null,null,null,null,null,null,null,null,null,null,null,null,null,null,null,null,null,null,null,null,null,null,null,null,null,null,null,null,null,null,null,null,null,null,null,null,null,null,null,null,null,null,null,null,null,null,null,null,null,null,null,null,null,null,null,null,null,null,null,null,null,null,null,null,null,null,null,null,null,null,null,null,null,null,null,null,null,null,null,null,null,null,null,null,null,null,null,null,null,null,null,null,null,null,null,null,null,null,null,"RPS-1981U-38"]
[]
["■発注日",null,null,null,null,null,"　　年　 　月　   日"]
[]
[]
["■発注者"]
[null,null,null,null,"会社名"]
[null,null,null,null,null,null,null,null,null,null,null,null,null,null,null,null,null,null,null,null,null,null,null,null,null,null,{"$f":"G17","v":"RPS-3663PL-32"}]
[null,null,null,null,"担当者名"]
[]
[null,null,null,null,"電話番号",null,null,null,null,null,null,null,null,null,null,null,null,null,null,null,null,null,null,null,null,null,null,null,null,{"$f":"_xlfn.XLOOKUP(AA11,一覧_品番!A:A,一覧_品番!B:B, \"\", FALSE)","v":32}]
[null,null,null,null,null,null,null,null,null,null,null,null,null,null,null,null,null,null,null,null,null,null,null,null,null,null,"厚み"]
[null,null,null,null,null,null,null,null,null,null,null,null,null,null,null,null,null,null,null,null,null,null,null,null,null,null,null,null,null,{"$f":"_xlfn.XLOOKUP(AA11,一覧_品番!A:A,一覧_品番!C:C, \"\", FALSE)","v":"ストレート"}]
["■品番",null,null,null,null,null,{"$f":"_xlfn.XLOOKUP(S17,注文書一覧!A:A,注文書一覧!B:B,\"\")","v":"RPS-3663PL-32"},null,null,null,null,null,null,null,null,null,null,null,45,null,null,null,null,null,null,null,"木縁形状"]
[null,null,null,null,null,null,null,null,null,null,null,null,null,null,null,null,null,null,null,null,null,null,null,null,null,null,"木縁位置",null,null,{"$f":"G21","v":"未選択"}]
[]
[null,null,null,null,null,null,"↓左のカーソルで選択下さい。→右下にイラストが表示されます",null,null,null,null,null,null,null,null,null,null,null,null,null,null,null,null,null,null,null,null,null,null,{"$f":"_xlfn.XLOOKUP(AA11,一覧_品番!A:A,一覧_品番!E:E, \"\", FALSE)","v":"ブラウン"}]
["■木縁添付位置",null,null,null,null,null,{"$f":"VLOOKUP(AA27,一覧_木縁!A2:C9,2,FALSE)","v":"未選択"},null,null,null,null,null,null,null,null,null,null,null,null,null,null,null,null,null,null,null,"塗装色"]
[null,null,null,null,null,null,null,null,null,null,null,null,null,null,null,null,null,null,null,null,null,null,null,null,null,null,"表面材",null,null,{"$f":"_xlfn.XLOOKUP(AA11,一覧_品番!A:A,一覧_品番!F:F, \"\", FALSE)","v":"BC-3663PL"}]
[]
[null,null,null,null,null,null,"↓プルダウンで選択下さい"]
["■裏面材",null,null,null,null,null,{"$f":"INDEX(一覧_裏面!A1:A2,A1)","v":"BK（バッカ―）"},null,null,null,null,null,null,null,null,null,null,null,null,null,null,null,null,null,null,null,null,null,null,{"$f":"G25","v":"BK（バッカ―）"}]
[null,null,null,null,null,null,null,null,null,null,null,null,null,null,null,null,null,null,null,null,null,null,null,null,null,null,"裏面材"]
[null,null,null,null,null,null,null,null,null,null,null,null,null,null,null,null,null,null,null,null,null,null,null,null,null,null,8]
[null,null,null,null,null,null,"↓300～1200ｍｍの間で入力下さい"]
["■サイズ",null,null,null,"縦（D)",null,null,null,null,null,null,null,null,null,null,null,null,null,null,null,null,null,"縦（D）"]
[null,null,null,null,null,null,null,null,null,null,null,null,null,null,null,null,null,null,null,null,null,null,{"$f":"SUM(G29)","v":0}]
[null,null,null,null,null,null,"↓600～2400ｍｍの間で入力下さい"]
[null,null,null,null,"横（W)",null,null,null,null,null,null,null,null,null,null,null,null,null,null,null,null,null,null,null,"㎜"]
[]
[]
["■数量"]
[null,null,null,null,null,null,null,null,null,null,null,null,null,null,null,null,null,null,null,null,null,null,null,null,null,null,null,null,null,null,null,null,{"$f":"SUM(G32)","v":0}]
[null,null,null,null,null,null,null,null,null,null,null,null,null,null,null,null,null,null,null,null,null,null,null,null,null,null,null,null,null,null,null,null,null,null,null,null,null,"㎜"]
["■希望納期",null,null,null,null,null,"　　年　 　月　   日",null,null,null,null,null,null,null,null,null,null,null,null,null,null,null,null,null,null,null,null,null,null,null,null,null,null,"横（W)"]
[]
[]
["■納入場所",null,null,null,null,null,"納入会社名",null,null,null,null,null,null,null,null,null,null,null,"　納入住所",null,null,null,null,null,null,null,null,null,null,null,null,null,null,null,null,null,null,null,"納入電話番号"]
[null,null,null,null,null,null,null,null,null,null,null,null,null,null,null,null,null,null,"〒"]

{"sheet":"RP-3663PL-32","index":25,"n_rows":42,"n_cols":157,"rows_kept":42,"cut":false,"hidden":false,"merged":[[37,6,38,17],[37,33,37,36],[41,6,43,17],[41,18,43,37],[41,38,43,46],[35,32,36,36],[19,29,20,33],[20,6,21,17],[21,26,22,27],[21,29,22,33],[24,6,25,17],[24,29,25,33],[28,6,29,17],[28,22,28,24],[29,22,30,24],[31,6,32,17],[34,6,35,17],[10,6,11,17],[10,26,12,33],[12,6,13,17],[13,29,14,33],[15,29,16,33],[16,6,17,17],[17,26,18,28],[17,29,18,33],[2,22,2,28],[3,31,3,33],[5,0,6,3],[5,6,6,17],[8,0,9,3],[8,6,9,17]]}
[2,null,null,null,null,null,null,null,null,null,null,null,null,null,null,null,null,null,null,null,null,"■イビケン記入箇所"]
[null,null,null,null,null,null,null,null,null,null,null,null,null,null,null,null,null,null,null,null,null,null,"オーダーNo",null,null,null,null,null,null,null,"メイン",null,null,null,null,"W寸",null,"D寸",null,"形状",null,"木縁",null,"裏面"]
[null,null,null,null,null,null,null,null,null,null,null,null,null,null,null,null,null,null,null,null,null,null,null,null,null,null,null,null,null,{"$f":"AA11","v":"RP-3663PL-32"},null,null,null,null,"-",{"$f":"G32","v":0},"-",{"$f":"G29","v":0},"-","IG","-",{"$f":"G21","v":0},"-",{"$f":"IF(AD25=\"BK（バッカー）\",\"BK\",IF(AD25=\"DS（表同柄）※オプション価格\",\"DS\",\"\"))","v":"BK"}]
["※オーダーシートは仕様指示書となります。注文書は別途ご用意ください。",null,null,null,null,null,null,null,null,null,null,null,null,null,null,null,null,null,null,null,null,null,null,null,null,null,null,null,null,null,null,null,null,null,null,null,null,null,null,null,null,null,null,null,null,null,null,null,null,null,null,null,null,null,null,null,null,null,null,null,null,null,null,null,null,null,null,null,null,null,null,null,null,null,null,null,null,null,null,null,null,null,null,null,null,null,null,null,null,null,null,null,null,null,null,null,null,null,null,null,null,null,null,null,null,null,null,null,null,null,null,null,null,null,null,null,null,null,null,null,null,null,null,null,null,null,null,null,null,null,null,null,null,null,null,null,null,null,null,null,null,null,null,null,null,null,null,null,null,null,null,null,null,null,null,null,"RPS-1981U-38"]
[]
["■発注日",null,null,null,null,null,"　　年　 　月　   日"]
[]
[]
["■発注者"]
[null,null,null,null,"会社名"]
[null,null,null,null,null,null,null,null,null,null,null,null,null,null,null,null,null,null,null,null,null,null,null,null,null,null,{"$f":"G17","v":"RP-3663PL-32"}]
[null,null,null,null,"担当者名"]
[]
[null,null,null,null,"電話番号",null,null,null,null,null,null,null,null,null,null,null,null,null,null,null,null,null,null,null,null,null,null,null,null,{"$f":"_xlfn.XLOOKUP(AA11,一覧_品番!A:A,一覧_品番!B:B, \"\", FALSE)","v":32}]
[null,null,null,null,null,null,null,null,null,null,null,null,null,null,null,null,null,null,null,null,null,null,null,null,null,null,"厚み"]
[null,null,null,null,null,null,null,null,null,null,null,null,null,null,null,null,null,null,null,null,null,null,null,null,null,null,null,null,null,{"$f":"_xlfn.XLOOKUP(AA11,一覧_品番!A:A,一覧_品番!C:C, \"\", FALSE)","v":"ライブエッジ"}]
["■品番",null,null,null,null,null,{"$f":"_xlfn.XLOOKUP(S17,注文書一覧!A:A,注文書一覧!B:B,\"\")","v":"RP-3663PL-32"},null,null,null,null,null,null,null,null,null,null,null,47,null,null,null,null,null,null,null,"木縁形状"]
[null,null,null,null,null,null,null,null,null,null,null,null,null,null,null,null,null,null,null,null,null,null,null,null,null,null,"木縁位置",null,null,{"$f":"G21","v":0}]
[]
[null,null,null,null,null,null,"↓左のカーソルで選択下さい。→右下にイラストが表示されます",null,null,null,null,null,null,null,null,null,null,null,null,null,null,null,null,null,null,null,null,null,null,{"$f":"_xlfn.XLOOKUP(AA11,一覧_品番!A:A,一覧_品番!E:E, \"\", FALSE)","v":"ブラウン"}]
["■木縁添付位置",null,null,null,null,null,null,null,null,null,null,null,null,null,null,null,null,null,null,null,null,null,null,null,null,null,"塗装色"]
[null,null,null,null,null,null,null,null,null,null,null,null,null,null,null,null,null,null,null,null,null,null,null,null,null,null,"表面材",null,null,{"$f":"_xlfn.XLOOKUP(AA11,一覧_品番!A:A,一覧_品番!F:F, \"\", FALSE)","v":"BC-3663PL"}]
[]
[null,null,null,null,null,null,"↓プルダウンで選択下さい"]
["■裏面材",null,null,null,null,null,{"$f":"INDEX(一覧_裏面!A1:A2,A1)","v":"BK（バッカ―）"},null,null,null,null,null,null,null,null,null,null,null,null,null,null,null,null,null,null,null,null,null,null,{"$f":"G25","v":"BK（バッカ―）"}]
[null,null,null,null,null,null,null,null,null,null,null,null,null,null,null,null,null,null,null,null,null,null,null,null,null,null,"裏面材"]
[null,null,null,null,null,null,null,null,null,null,null,null,null,null,null,null,null,null,null,null,null,null,null,null,null,null,8]
[null,null,null,null,null,null,"↓300～1200ｍｍの間で入力下さい"]
["■サイズ",null,null,null,"縦（D)",null,null,null,null,null,null,null,null,null,null,null,null,null,null,null,null,null,"縦（D）"]
[null,null,null,null,null,null,null,null,null,null,null,null,null,null,null,null,null,null,null,null,null,null,{"$f":"SUM(G29)","v":0}]
[null,null,null,null,null,null,"↓600～2400ｍｍの間で入力下さい"]
[null,null,null,null,"横（W)",null,null,null,null,null,null,null,null,null,null,null,null,null,null,null,null,null,null,null,"㎜"]
[]
[]
["■数量"]
[null,null,null,null,null,null,null,null,null,null,null,null,null,null,null,null,null,null,null,null,null,null,null,null,null,null,null,null,null,null,null,null,{"$f":"SUM(G32)","v":0}]
[null,null,null,null,null,null,null,null,null,null,null,null,null,null,null,null,null,null,null,null,null,null,null,null,null,null,null,null,null,null,null,null,null,null,null,null,null,"㎜"]
["■希望納期",null,null,null,null,null,"　　年　 　月　   日",null,null,null,null,null,null,null,null,null,null,null,null,null,null,null,null,null,null,null,null,null,null,null,null,null,null,"横（W)"]
[]
[]
["■納入場所",null,null,null,null,null,"納入会社名",null,null,null,null,null,null,null,null,null,null,null,"　納入住所",null,null,null,null,null,null,null,null,null,null,null,null,null,null,null,null,null,null,null,"納入電話番号"]
[null,null,null,null,null,null,null,null,null,null,null,null,null,null,null,null,null,null,"〒"]

{"sheet":"RPS-3664PL-32","index":26,"n_rows":42,"n_cols":157,"rows_kept":42,"cut":false,"hidden":false,"merged":[[37,6,38,17],[37,33,37,36],[41,6,43,17],[41,18,43,37],[41,38,43,46],[35,32,36,36],[19,29,20,33],[20,6,21,17],[21,26,22,27],[21,29,22,33],[24,6,25,17],[24,29,25,33],[28,6,29,17],[28,22,28,24],[29,22,30,24],[31,6,32,17],[34,6,35,17],[10,6,11,17],[10,26,12,33],[12,6,13,17],[13,29,14,33],[15,29,16,33],[16,6,17,17],[17,26,18,28],[17,29,18,33],[2,22,2,28],[3,31,3,33],[5,0,6,3],[5,6,6,17],[8,0,9,3],[8,6,9,17]]}
[2,null,null,null,null,null,null,null,null,null,null,null,null,null,null,null,null,null,null,null,null,"■イビケン記入箇所"]
[null,null,null,null,null,null,null,null,null,null,null,null,null,null,null,null,null,null,null,null,null,null,"オーダーNo",null,null,null,null,null,null,null,"メイン",null,null,null,null,"W寸",null,"D寸",null,"形状",null,"木縁",null,"裏面"]
[null,null,null,null,null,null,null,null,null,null,null,null,null,null,null,null,null,null,null,null,null,null,null,null,null,null,null,null,null,{"$f":"AA11","v":"RPS-3664PL-32"},null,null,null,null,"-",{"$f":"G32","v":0},"-",{"$f":"G29","v":0},"-","IG","-",{"$f":"G21","v":"未選択"},"-",{"$f":"IF(AD25=\"BK（バッカー）\",\"BK\",IF(AD25=\"DS（表同柄）※オプション価格\",\"DS\",\"\"))","v":"BK"}]
["※オーダーシートは仕様指示書となります。注文書は別途ご用意ください。",null,null,null,null,null,null,null,null,null,null,null,null,null,null,null,null,null,null,null,null,null,null,null,null,null,null,null,null,null,null,null,null,null,null,null,null,null,null,null,null,null,null,null,null,null,null,null,null,null,null,null,null,null,null,null,null,null,null,null,null,null,null,null,null,null,null,null,null,null,null,null,null,null,null,null,null,null,null,null,null,null,null,null,null,null,null,null,null,null,null,null,null,null,null,null,null,null,null,null,null,null,null,null,null,null,null,null,null,null,null,null,null,null,null,null,null,null,null,null,null,null,null,null,null,null,null,null,null,null,null,null,null,null,null,null,null,null,null,null,null,null,null,null,null,null,null,null,null,null,null,null,null,null,null,null,"RPS-1981U-38"]
[]
["■発注日",null,null,null,null,null,"　　年　 　月　   日"]
[]
[]
["■発注者"]
[null,null,null,null,"会社名"]
[null,null,null,null,null,null,null,null,null,null,null,null,null,null,null,null,null,null,null,null,null,null,null,null,null,null,{"$f":"G17","v":"RPS-3664PL-32"}]
[null,null,null,null,"担当者名"]
[]
[null,null,null,null,"電話番号",null,null,null,null,null,null,null,null,null,null,null,null,null,null,null,null,null,null,null,null,null,null,null,null,{"$f":"_xlfn.XLOOKUP(AA11,一覧_品番!A:A,一覧_品番!B:B, \"\", FALSE)","v":32}]
[null,null,null,null,null,null,null,null,null,null,null,null,null,null,null,null,null,null,null,null,null,null,null,null,null,null,"厚み"]
[null,null,null,null,null,null,null,null,null,null,null,null,null,null,null,null,null,null,null,null,null,null,null,null,null,null,null,null,null,{"$f":"_xlfn.XLOOKUP(AA11,一覧_品番!A:A,一覧_品番!C:C, \"\", FALSE)","v":"ストレート"}]
["■品番",null,null,null,null,null,{"$f":"_xlfn.XLOOKUP(S17,注文書一覧!A:A,注文書一覧!B:B,\"\")","v":"RPS-3664PL-32"},null,null,null,null,null,null,null,null,null,null,null,49,null,null,null,null,null,null,null,"木縁形状"]
[null,null,null,null,null,null,null,null,null,null,null,null,null,null,null,null,null,null,null,null,null,null,null,null,null,null,"木縁位置",null,null,{"$f":"G21","v":"未選択"}]
[]
[null,null,null,null,null,null,"↓左のカーソルで選択下さい。→右下にイラストが表示されます",null,null,null,null,null,null,null,null,null,null,null,null,null,null,null,null,null,null,null,null,null,null,{"$f":"_xlfn.XLOOKUP(AA11,一覧_品番!A:A,一覧_品番!E:E, \"\", FALSE)","v":"ナチュラル"}]
["■木縁添付位置",null,null,null,null,null,{"$f":"VLOOKUP(AA27,一覧_木縁!A2:C9,2,FALSE)","v":"未選択"},null,null,null,null,null,null,null,null,null,null,null,null,null,null,null,null,null,null,null,"塗装色"]
[null,null,null,null,null,null,null,null,null,null,null,null,null,null,null,null,null,null,null,null,null,null,null,null,null,null,"表面材",null,null,{"$f":"_xlfn.XLOOKUP(AA11,一覧_品番!A:A,一覧_品番!F:F, \"\", FALSE)","v":"BC-3664PL"}]
[]
[null,null,null,null,null,null,"↓プルダウンで選択下さい"]
["■裏面材",null,null,null,null,null,{"$f":"INDEX(一覧_裏面!A1:A2,A1)","v":"BK（バッカ―）"},null,null,null,null,null,null,null,null,null,null,null,null,null,null,null,null,null,null,null,null,null,null,{"$f":"G25","v":"BK（バッカ―）"}]
[null,null,null,null,null,null,null,null,null,null,null,null,null,null,null,null,null,null,null,null,null,null,null,null,null,null,"裏面材"]
[null,null,null,null,null,null,null,null,null,null,null,null,null,null,null,null,null,null,null,null,null,null,null,null,null,null,8]
[null,null,null,null,null,null,"↓300～1200ｍｍの間で入力下さい"]
["■サイズ",null,null,null,"縦（D)",null,null,null,null,null,null,null,null,null,null,null,null,null,null,null,null,null,"縦（D）"]
[null,null,null,null,null,null,null,null,null,null,null,null,null,null,null,null,null,null,null,null,null,null,{"$f":"SUM(G29)","v":0}]
[null,null,null,null,null,null,"↓600～2400ｍｍの間で入力下さい"]
[null,null,null,null,"横（W)",null,null,null,null,null,null,null,null,null,null,null,null,null,null,null,null,null,null,null,"㎜"]
[]
[]
["■数量"]
[null,null,null,null,null,null,null,null,null,null,null,null,null,null,null,null,null,null,null,null,null,null,null,null,null,null,null,null,null,null,null,null,{"$f":"SUM(G32)","v":0}]
[null,null,null,null,null,null,null,null,null,null,null,null,null,null,null,null,null,null,null,null,null,null,null,null,null,null,null,null,null,null,null,null,null,null,null,null,null,"㎜"]
["■希望納期",null,null,null,null,null,"　　年　 　月　   日",null,null,null,null,null,null,null,null,null,null,null,null,null,null,null,null,null,null,null,null,null,null,null,null,null,null,"横（W)"]
[]
[]
["■納入場所",null,null,null,null,null,"納入会社名",null,null,null,null,null,null,null,null,null,null,null,"　納入住所",null,null,null,null,null,null,null,null,null,null,null,null,null,null,null,null,null,null,null,"納入電話番号"]
[null,null,null,null,null,null,null,null,null,null,null,null,null,null,null,null,null,null,"〒"]

{"sheet":"RP-3664PL-32","index":27,"n_rows":42,"n_cols":157,"rows_kept":42,"cut":false,"hidden":false,"merged":[[37,6,38,17],[37,33,37,36],[41,6,43,17],[41,18,43,37],[41,38,43,46],[35,32,36,36],[19,29,20,33],[20,6,21,17],[21,26,22,27],[21,29,22,33],[24,6,25,17],[24,29,25,33],[28,6,29,17],[28,22,28,24],[29,22,30,24],[31,6,32,17],[34,6,35,17],[10,6,11,17],[10,26,12,33],[12,6,13,17],[13,29,14,33],[15,29,16,33],[16,6,17,17],[17,26,18,28],[17,29,18,33],[2,22,2,28],[3,31,3,33],[5,0,6,3],[5,6,6,17],[8,0,9,3],[8,6,9,17]]}
[2,null,null,null,null,null,null,null,null,null,null,null,null,null,null,null,null,null,null,null,null,"■イビケン記入箇所"]
[null,null,null,null,null,null,null,null,null,null,null,null,null,null,null,null,null,null,null,null,null,null,"オーダーNo",null,null,null,null,null,null,null,"メイン",null,null,null,null,"W寸",null,"D寸",null,"形状",null,"木縁",null,"裏面"]
[null,null,null,null,null,null,null,null,null,null,null,null,null,null,null,null,null,null,null,null,null,null,null,null,null,null,null,null,null,{"$f":"AA11","v":"RP-3664PL-32"},null,null,null,null,"-",{"$f":"G32","v":0},"-",{"$f":"G29","v":0},"-","IG","-",{"$f":"G21","v":"未選択"},"-",{"$f":"IF(AD25=\"BK（バッカー）\",\"BK\",IF(AD25=\"DS（表同柄）※オプション価格\",\"DS\",\"\"))","v":"BK"}]
["※オーダーシートは仕様指示書となります。注文書は別途ご用意ください。",null,null,null,null,null,null,null,null,null,null,null,null,null,null,null,null,null,null,null,null,null,null,null,null,null,null,null,null,null,null,null,null,null,null,null,null,null,null,null,null,null,null,null,null,null,null,null,null,null,null,null,null,null,null,null,null,null,null,null,null,null,null,null,null,null,null,null,null,null,null,null,null,null,null,null,null,null,null,null,null,null,null,null,null,null,null,null,null,null,null,null,null,null,null,null,null,null,null,null,null,null,null,null,null,null,null,null,null,null,null,null,null,null,null,null,null,null,null,null,null,null,null,null,null,null,null,null,null,null,null,null,null,null,null,null,null,null,null,null,null,null,null,null,null,null,null,null,null,null,null,null,null,null,null,null,"RPS-1981U-38"]
[]
["■発注日",null,null,null,null,null,"　　年　 　月　   日"]
[]
[]
["■発注者"]
[null,null,null,null,"会社名"]
[null,null,null,null,null,null,null,null,null,null,null,null,null,null,null,null,null,null,null,null,null,null,null,null,null,null,{"$f":"G17","v":"RP-3664PL-32"}]
[null,null,null,null,"担当者名"]
[]
[null,null,null,null,"電話番号",null,null,null,null,null,null,null,null,null,null,null,null,null,null,null,null,null,null,null,null,null,null,null,null,{"$f":"_xlfn.XLOOKUP(AA11,一覧_品番!A:A,一覧_品番!B:B, \"\", FALSE)","v":32}]
[null,null,null,null,null,null,null,null,null,null,null,null,null,null,null,null,null,null,null,null,null,null,null,null,null,null,"厚み"]
[null,null,null,null,null,null,null,null,null,null,null,null,null,null,null,null,null,null,null,null,null,null,null,null,null,null,null,null,null,{"$f":"_xlfn.XLOOKUP(AA11,一覧_品番!A:A,一覧_品番!C:C, \"\", FALSE)","v":"ライブエッジ"}]
["■品番",null,null,null,null,null,{"$f":"_xlfn.XLOOKUP(S17,注文書一覧!A:A,注文書一覧!B:B,\"\")","v":"RP-3664PL-32"},null,null,null,null,null,null,null,null,null,null,null,51,null,null,null,null,null,null,null,"木縁形状"]
[null,null,null,null,null,null,null,null,null,null,null,null,null,null,null,null,null,null,null,null,null,null,null,null,null,null,"木縁位置",null,null,{"$f":"G21","v":"未選択"}]
[]
[null,null,null,null,null,null,"↓左のカーソルで選択下さい。→右下にイラストが表示されます",null,null,null,null,null,null,null,null,null,null,null,null,null,null,null,null,null,null,null,null,null,null,{"$f":"_xlfn.XLOOKUP(AA11,一覧_品番!A:A,一覧_品番!E:E, \"\", FALSE)","v":"ナチュラル"}]
["■木縁添付位置",null,null,null,null,null,{"$f":"VLOOKUP(AA27,一覧_木縁!A2:C9,2,FALSE)","v":"未選択"},null,null,null,null,null,null,null,null,null,null,null,null,null,null,null,null,null,null,null,"塗装色"]
[null,null,null,null,null,null,null,null,null,null,null,null,null,null,null,null,null,null,null,null,null,null,null,null,null,null,"表面材",null,null,{"$f":"_xlfn.XLOOKUP(AA11,一覧_品番!A:A,一覧_品番!F:F, \"\", FALSE)","v":"BC-3664PL"}]
[]
[null,null,null,null,null,null,"↓プルダウンで選択下さい"]
["■裏面材",null,null,null,null,null,{"$f":"INDEX(一覧_裏面!A1:A2,A1)","v":"BK（バッカ―）"},null,null,null,null,null,null,null,null,null,null,null,null,null,null,null,null,null,null,null,null,null,null,{"$f":"G25","v":"BK（バッカ―）"}]
[null,null,null,null,null,null,null,null,null,null,null,null,null,null,null,null,null,null,null,null,null,null,null,null,null,null,"裏面材"]
[null,null,null,null,null,null,null,null,null,null,null,null,null,null,null,null,null,null,null,null,null,null,null,null,null,null,8]
[null,null,null,null,null,null,"↓300～1200ｍｍの間で入力下さい"]
["■サイズ",null,null,null,"縦（D)",null,null,null,null,null,null,null,null,null,null,null,null,null,null,null,null,null,"縦（D）"]
[null,null,null,null,null,null,null,null,null,null,null,null,null,null,null,null,null,null,null,null,null,null,{"$f":"SUM(G29)","v":0}]
[null,null,null,null,null,null,"↓600～2400ｍｍの間で入力下さい"]
[null,null,null,null,"横（W)",null,null,null,null,null,null,null,null,null,null,null,null,null,null,null,null,null,null,null,"㎜"]
[]
[]
["■数量"]
[null,null,null,null,null,null,null,null,null,null,null,null,null,null,null,null,null,null,null,null,null,null,null,null,null,null,null,null,null,null,null,null,{"$f":"SUM(G32)","v":0}]
[null,null,null,null,null,null,null,null,null,null,null,null,null,null,null,null,null,null,null,null,null,null,null,null,null,null,null,null,null,null,null,null,null,null,null,null,null,"㎜"]
["■希望納期",null,null,null,null,null,"　　年　 　月　   日",null,null,null,null,null,null,null,null,null,null,null,null,null,null,null,null,null,null,null,null,null,null,null,null,null,null,"横（W)"]
[]
[]
["■納入場所",null,null,null,null,null,"納入会社名",null,null,null,null,null,null,null,null,null,null,null,"　納入住所",null,null,null,null,null,null,null,null,null,null,null,null,null,null,null,null,null,null,null,"納入電話番号"]
[null,null,null,null,null,null,null,null,null,null,null,null,null,null,null,null,null,null,"〒"]

{"sheet":"RPS-3665PL-32","index":28,"n_rows":42,"n_cols":157,"rows_kept":42,"cut":false,"hidden":false,"merged":[[37,6,38,17],[37,33,37,36],[41,6,43,17],[41,18,43,37],[41,38,43,46],[35,32,36,36],[19,29,20,33],[20,6,21,17],[21,26,22,27],[21,29,22,33],[24,6,25,17],[24,29,25,33],[28,6,29,17],[28,22,28,24],[29,22,30,24],[31,6,32,17],[34,6,35,17],[10,6,11,17],[10,26,12,33],[12,6,13,17],[13,29,14,33],[15,29,16,33],[16,6,17,17],[17,26,18,28],[17,29,18,33],[2,22,2,28],[3,31,3,33],[5,0,6,3],[5,6,6,17],[8,0,9,3],[8,6,9,17]]}
[2,null,null,null,null,null,null,null,null,null,null,null,null,null,null,null,null,null,null,null,null,"■イビケン記入箇所"]
[null,null,null,null,null,null,null,null,null,null,null,null,null,null,null,null,null,null,null,null,null,null,"オーダーNo",null,null,null,null,null,null,null,"メイン",null,null,null,null,"W寸",null,"D寸",null,"形状",null,"木縁",null,"裏面"]
[null,null,null,null,null,null,null,null,null,null,null,null,null,null,null,null,null,null,null,null,null,null,null,null,null,null,null,null,null,{"$f":"AA11","v":"RPS-3665PL-32"},null,null,null,null,"-",{"$f":"G32","v":0},"-",{"$f":"G29","v":0},"-","IG","-",{"$f":"G21","v":"未選択"},"-",{"$f":"IF(AD25=\"BK（バッカー）\",\"BK\",IF(AD25=\"DS（表同柄）※オプション価格\",\"DS\",\"\"))","v":"BK"}]
["※オーダーシートは仕様指示書となります。注文書は別途ご用意ください。",null,null,null,null,null,null,null,null,null,null,null,null,null,null,null,null,null,null,null,null,null,null,null,null,null,null,null,null,null,null,null,null,null,null,null,null,null,null,null,null,null,null,null,null,null,null,null,null,null,null,null,null,null,null,null,null,null,null,null,null,null,null,null,null,null,null,null,null,null,null,null,null,null,null,null,null,null,null,null,null,null,null,null,null,null,null,null,null,null,null,null,null,null,null,null,null,null,null,null,null,null,null,null,null,null,null,null,null,null,null,null,null,null,null,null,null,null,null,null,null,null,null,null,null,null,null,null,null,null,null,null,null,null,null,null,null,null,null,null,null,null,null,null,null,null,null,null,null,null,null,null,null,null,null,null,"RPS-1981U-38"]
[]
["■発注日",null,null,null,null,null,"　　年　 　月　   日"]
[]
[]
["■発注者"]
[null,null,null,null,"会社名"]
[null,null,null,null,null,null,null,null,null,null,null,null,null,null,null,null,null,null,null,null,null,null,null,null,null,null,{"$f":"G17","v":"RPS-3665PL-32"}]
[null,null,null,null,"担当者名"]
[]
[null,null,null,null,"電話番号",null,null,null,null,null,null,null,null,null,null,null,null,null,null,null,null,null,null,null,null,null,null,null,null,{"$f":"_xlfn.XLOOKUP(AA11,一覧_品番!A:A,一覧_品番!B:B, \"\", FALSE)","v":32}]
[null,null,null,null,null,null,null,null,null,null,null,null,null,null,null,null,null,null,null,null,null,null,null,null,null,null,"厚み"]
[null,null,null,null,null,null,null,null,null,null,null,null,null,null,null,null,null,null,null,null,null,null,null,null,null,null,null,null,null,{"$f":"_xlfn.XLOOKUP(AA11,一覧_品番!A:A,一覧_品番!C:C, \"\", FALSE)","v":"ストレート"}]
["■品番",null,null,null,null,null,{"$f":"_xlfn.XLOOKUP(S17,注文書一覧!A:A,注文書一覧!B:B,\"\")","v":"RPS-3665PL-32"},null,null,null,null,null,null,null,null,null,null,null,53,null,null,null,null,null,null,null,"木縁形状"]
[null,null,null,null,null,null,null,null,null,null,null,null,null,null,null,null,null,null,null,null,null,null,null,null,null,null,"木縁位置",null,null,{"$f":"G21","v":"未選択"}]
[]
[null,null,null,null,null,null,"↓左のカーソルで選択下さい。→右下にイラストが表示されます",null,null,null,null,null,null,null,null,null,null,null,null,null,null,null,null,null,null,null,null,null,null,{"$f":"_xlfn.XLOOKUP(AA11,一覧_品番!A:A,一覧_品番!E:E, \"\", FALSE)","v":"ナチュラル"}]
["■木縁添付位置",null,null,null,null,null,{"$f":"VLOOKUP(AA27,一覧_木縁!A2:C9,2,FALSE)","v":"未選択"},null,null,null,null,null,null,null,null,null,null,null,null,null,null,null,null,null,null,null,"塗装色"]
[null,null,null,null,null,null,null,null,null,null,null,null,null,null,null,null,null,null,null,null,null,null,null,null,null,null,"表面材",null,null,{"$f":"_xlfn.XLOOKUP(AA11,一覧_品番!A:A,一覧_品番!F:F, \"\", FALSE)","v":"BC-3665PL"}]
[]
[null,null,null,null,null,null,"↓プルダウンで選択下さい"]
["■裏面材",null,null,null,null,null,{"$f":"INDEX(一覧_裏面!A1:A2,A1)","v":"BK（バッカ―）"},null,null,null,null,null,null,null,null,null,null,null,null,null,null,null,null,null,null,null,null,null,null,{"$f":"G25","v":"BK（バッカ―）"}]
[null,null,null,null,null,null,null,null,null,null,null,null,null,null,null,null,null,null,null,null,null,null,null,null,null,null,"裏面材"]
[null,null,null,null,null,null,null,null,null,null,null,null,null,null,null,null,null,null,null,null,null,null,null,null,null,null,8]
[null,null,null,null,null,null,"↓300～1200ｍｍの間で入力下さい"]
["■サイズ",null,null,null,"縦（D)",null,null,null,null,null,null,null,null,null,null,null,null,null,null,null,null,null,"縦（D）"]
[null,null,null,null,null,null,null,null,null,null,null,null,null,null,null,null,null,null,null,null,null,null,{"$f":"SUM(G29)","v":0}]
[null,null,null,null,null,null,"↓600～2400ｍｍの間で入力下さい"]
[null,null,null,null,"横（W)",null,null,null,null,null,null,null,null,null,null,null,null,null,null,null,null,null,null,null,"㎜"]
[]
[]
["■数量"]
[null,null,null,null,null,null,null,null,null,null,null,null,null,null,null,null,null,null,null,null,null,null,null,null,null,null,null,null,null,null,null,null,{"$f":"SUM(G32)","v":0}]
[null,null,null,null,null,null,null,null,null,null,null,null,null,null,null,null,null,null,null,null,null,null,null,null,null,null,null,null,null,null,null,null,null,null,null,null,null,"㎜"]
["■希望納期",null,null,null,null,null,"　　年　 　月　   日",null,null,null,null,null,null,null,null,null,null,null,null,null,null,null,null,null,null,null,null,null,null,null,null,null,null,"横（W)"]
[]
[]
["■納入場所",null,null,null,null,null,"納入会社名",null,null,null,null,null,null,null,null,null,null,null,"　納入住所",null,null,null,null,null,null,null,null,null,null,null,null,null,null,null,null,null,null,null,"納入電話番号"]
[null,null,null,null,null,null,null,null,null,null,null,null,null,null,null,null,null,null,"〒"]

{"sheet":"RP-3665PL-32","index":29,"n_rows":42,"n_cols":157,"rows_kept":42,"cut":false,"hidden":false,"merged":[[37,6,38,17],[37,33,37,36],[41,6,43,17],[41,18,43,37],[41,38,43,46],[35,32,36,36],[19,29,20,33],[20,6,21,17],[21,26,22,27],[21,29,22,33],[24,6,25,17],[24,29,25,33],[28,6,29,17],[28,22,28,24],[29,22,30,24],[31,6,32,17],[34,6,35,17],[10,6,11,17],[10,26,12,33],[12,6,13,17],[13,29,14,33],[15,29,16,33],[16,6,17,17],[17,26,18,28],[17,29,18,33],[2,22,2,28],[3,31,3,33],[5,0,6,3],[5,6,6,17],[8,0,9,3],[8,6,9,17]]}
[2,null,null,null,null,null,null,null,null,null,null,null,null,null,null,null,null,null,null,null,null,"■イビケン記入箇所"]
[null,null,null,null,null,null,null,null,null,null,null,null,null,null,null,null,null,null,null,null,null,null,"オーダーNo",null,null,null,null,null,null,null,"メイン",null,null,null,null,"W寸",null,"D寸",null,"形状",null,"木縁",null,"裏面"]
[null,null,null,null,null,null,null,null,null,null,null,null,null,null,null,null,null,null,null,null,null,null,null,null,null,null,null,null,null,{"$f":"AA11","v":"RP-3665PL-32"},null,null,null,null,"-",{"$f":"G32","v":0},"-",{"$f":"G29","v":0},"-","IG","-",{"$f":"G21","v":"未選択"},"-",{"$f":"IF(AD25=\"BK（バッカー）\",\"BK\",IF(AD25=\"DS（表同柄）※オプション価格\",\"DS\",\"\"))","v":"BK"}]
["※オーダーシートは仕様指示書となります。注文書は別途ご用意ください。",null,null,null,null,null,null,null,null,null,null,null,null,null,null,null,null,null,null,null,null,null,null,null,null,null,null,null,null,null,null,null,null,null,null,null,null,null,null,null,null,null,null,null,null,null,null,null,null,null,null,null,null,null,null,null,null,null,null,null,null,null,null,null,null,null,null,null,null,null,null,null,null,null,null,null,null,null,null,null,null,null,null,null,null,null,null,null,null,null,null,null,null,null,null,null,null,null,null,null,null,null,null,null,null,null,null,null,null,null,null,null,null,null,null,null,null,null,null,null,null,null,null,null,null,null,null,null,null,null,null,null,null,null,null,null,null,null,null,null,null,null,null,null,null,null,null,null,null,null,null,null,null,null,null,null,"RPS-1981U-38"]
[]
["■発注日",null,null,null,null,null,"　　年　 　月　   日"]
[]
[]
["■発注者"]
[null,null,null,null,"会社名"]
[null,null,null,null,null,null,null,null,null,null,null,null,null,null,null,null,null,null,null,null,null,null,null,null,null,null,{"$f":"G17","v":"RP-3665PL-32"}]
[null,null,null,null,"担当者名"]
[]
[null,null,null,null,"電話番号",null,null,null,null,null,null,null,null,null,null,null,null,null,null,null,null,null,null,null,null,null,null,null,null,{"$f":"_xlfn.XLOOKUP(AA11,一覧_品番!A:A,一覧_品番!B:B, \"\", FALSE)","v":32}]
[null,null,null,null,null,null,null,null,null,null,null,null,null,null,null,null,null,null,null,null,null,null,null,null,null,null,"厚み"]
[null,null,null,null,null,null,null,null,null,null,null,null,null,null,null,null,null,null,null,null,null,null,null,null,null,null,null,null,null,{"$f":"_xlfn.XLOOKUP(AA11,一覧_品番!A:A,一覧_品番!C:C, \"\", FALSE)","v":"ライブエッジ"}]
["■品番",null,null,null,null,null,{"$f":"_xlfn.XLOOKUP(S17,注文書一覧!A:A,注文書一覧!B:B,\"\")","v":"RP-3665PL-32"},null,null,null,null,null,null,null,null,null,null,null,55,null,null,null,null,null,null,null,"木縁形状"]
[null,null,null,null,null,null,null,null,null,null,null,null,null,null,null,null,null,null,null,null,null,null,null,null,null,null,"木縁位置",null,null,{"$f":"G21","v":"未選択"}]
[]
[null,null,null,null,null,null,"↓左のカーソルで選択下さい。→右下にイラストが表示されます",null,null,null,null,null,null,null,null,null,null,null,null,null,null,null,null,null,null,null,null,null,null,{"$f":"_xlfn.XLOOKUP(AA11,一覧_品番!A:A,一覧_品番!E:E, \"\", FALSE)","v":"ナチュラル"}]
["■木縁添付位置",null,null,null,null,null,{"$f":"VLOOKUP(AA27,一覧_木縁!A2:C9,2,FALSE)","v":"未選択"},null,null,null,null,null,null,null,null,null,null,null,null,null,null,null,null,null,null,null,"塗装色"]
[null,null,null,null,null,null,null,null,null,null,null,null,null,null,null,null,null,null,null,null,null,null,null,null,null,null,"表面材",null,null,{"$f":"_xlfn.XLOOKUP(AA11,一覧_品番!A:A,一覧_品番!F:F, \"\", FALSE)","v":"BC-3665PL"}]
[]
[null,null,null,null,null,null,"↓プルダウンで選択下さい"]
["■裏面材",null,null,null,null,null,{"$f":"INDEX(一覧_裏面!A1:A2,A1)","v":"BK（バッカ―）"},null,null,null,null,null,null,null,null,null,null,null,null,null,null,null,null,null,null,null,null,null,null,{"$f":"G25","v":"BK（バッカ―）"}]
[null,null,null,null,null,null,null,null,null,null,null,null,null,null,null,null,null,null,null,null,null,null,null,null,null,null,"裏面材"]
[null,null,null,null,null,null,null,null,null,null,null,null,null,null,null,null,null,null,null,null,null,null,null,null,null,null,8]
[null,null,null,null,null,null,"↓300～1200ｍｍの間で入力下さい"]
["■サイズ",null,null,null,"縦（D)",null,null,null,null,null,null,null,null,null,null,null,null,null,null,null,null,null,"縦（D）"]
[null,null,null,null,null,null,null,null,null,null,null,null,null,null,null,null,null,null,null,null,null,null,{"$f":"SUM(G29)","v":0}]
[null,null,null,null,null,null,"↓600～2400ｍｍの間で入力下さい"]
[null,null,null,null,"横（W)",null,null,null,null,null,null,null,null,null,null,null,null,null,null,null,null,null,null,null,"㎜"]
[]
[]
["■数量"]
[null,null,null,null,null,null,null,null,null,null,null,null,null,null,null,null,null,null,null,null,null,null,null,null,null,null,null,null,null,null,null,null,{"$f":"SUM(G32)","v":0}]
[null,null,null,null,null,null,null,null,null,null,null,null,null,null,null,null,null,null,null,null,null,null,null,null,null,null,null,null,null,null,null,null,null,null,null,null,null,"㎜"]
["■希望納期",null,null,null,null,null,"　　年　 　月　   日",null,null,null,null,null,null,null,null,null,null,null,null,null,null,null,null,null,null,null,null,null,null,null,null,null,null,"横（W)"]
[]
[]
["■納入場所",null,null,null,null,null,"納入会社名",null,null,null,null,null,null,null,null,null,null,null,"　納入住所",null,null,null,null,null,null,null,null,null,null,null,null,null,null,null,null,null,null,null,"納入電話番号"]
[null,null,null,null,null,null,null,null,null,null,null,null,null,null,null,null,null,null,"〒"]

{"sheet":"RPS-3666PL-32","index":30,"n_rows":42,"n_cols":157,"rows_kept":42,"cut":false,"hidden":false,"merged":[[37,6,38,17],[37,33,37,36],[41,6,43,17],[41,18,43,37],[41,38,43,46],[35,32,36,36],[19,29,20,33],[20,6,21,17],[21,26,22,27],[21,29,22,33],[24,6,25,17],[24,29,25,33],[28,6,29,17],[28,22,28,24],[29,22,30,24],[31,6,32,17],[34,6,35,17],[10,6,11,17],[10,26,12,33],[12,6,13,17],[13,29,14,33],[15,29,16,33],[16,6,17,17],[17,26,18,28],[17,29,18,33],[2,22,2,28],[3,31,3,33],[5,0,6,3],[5,6,6,17],[8,0,9,3],[8,6,9,17]]}
[2,null,null,null,null,null,null,null,null,null,null,null,null,null,null,null,null,null,null,null,null,"■イビケン記入箇所"]
[null,null,null,null,null,null,null,null,null,null,null,null,null,null,null,null,null,null,null,null,null,null,"オーダーNo",null,null,null,null,null,null,null,"メイン",null,null,null,null,"W寸",null,"D寸",null,"形状",null,"木縁",null,"裏面"]
[null,null,null,null,null,null,null,null,null,null,null,null,null,null,null,null,null,null,null,null,null,null,null,null,null,null,null,null,null,{"$f":"AA11","v":"RPS-3666PL-32"},null,null,null,null,"-",{"$f":"G32","v":0},"-",{"$f":"G29","v":0},"-","IG","-",{"$f":"G21","v":"未選択"},"-",{"$f":"IF(AD25=\"BK（バッカー）\",\"BK\",IF(AD25=\"DS（表同柄）※オプション価格\",\"DS\",\"\"))","v":"BK"}]
["※オーダーシートは仕様指示書となります。注文書は別途ご用意ください。",null,null,null,null,null,null,null,null,null,null,null,null,null,null,null,null,null,null,null,null,null,null,null,null,null,null,null,null,null,null,null,null,null,null,null,null,null,null,null,null,null,null,null,null,null,null,null,null,null,null,null,null,null,null,null,null,null,null,null,null,null,null,null,null,null,null,null,null,null,null,null,null,null,null,null,null,null,null,null,null,null,null,null,null,null,null,null,null,null,null,null,null,null,null,null,null,null,null,null,null,null,null,null,null,null,null,null,null,null,null,null,null,null,null,null,null,null,null,null,null,null,null,null,null,null,null,null,null,null,null,null,null,null,null,null,null,null,null,null,null,null,null,null,null,null,null,null,null,null,null,null,null,null,null,null,"RPS-1981U-38"]
[]
["■発注日",null,null,null,null,null,"　　年　 　月　   日"]
[]
[]
["■発注者"]
[null,null,null,null,"会社名"]
[null,null,null,null,null,null,null,null,null,null,null,null,null,null,null,null,null,null,null,null,null,null,null,null,null,null,{"$f":"G17","v":"RPS-3666PL-32"}]
[null,null,null,null,"担当者名"]
[]
[null,null,null,null,"電話番号",null,null,null,null,null,null,null,null,null,null,null,null,null,null,null,null,null,null,null,null,null,null,null,null,{"$f":"_xlfn.XLOOKUP(AA11,一覧_品番!A:A,一覧_品番!B:B, \"\", FALSE)","v":32}]
[null,null,null,null,null,null,null,null,null,null,null,null,null,null,null,null,null,null,null,null,null,null,null,null,null,null,"厚み"]
[null,null,null,null,null,null,null,null,null,null,null,null,null,null,null,null,null,null,null,null,null,null,null,null,null,null,null,null,null,{"$f":"_xlfn.XLOOKUP(AA11,一覧_品番!A:A,一覧_品番!C:C, \"\", FALSE)","v":"ストレート"}]
["■品番",null,null,null,null,null,{"$f":"_xlfn.XLOOKUP(S17,注文書一覧!A:A,注文書一覧!B:B,\"\")","v":"RPS-3666PL-32"},null,null,null,null,null,null,null,null,null,null,null,57,null,null,null,null,null,null,null,"木縁形状"]
[null,null,null,null,null,null,null,null,null,null,null,null,null,null,null,null,null,null,null,null,null,null,null,null,null,null,"木縁位置",null,null,{"$f":"G21","v":"未選択"}]
[]
[null,null,null,null,null,null,"↓左のカーソルで選択下さい。→右下にイラストが表示されます",null,null,null,null,null,null,null,null,null,null,null,null,null,null,null,null,null,null,null,null,null,null,{"$f":"_xlfn.XLOOKUP(AA11,一覧_品番!A:A,一覧_品番!E:E, \"\", FALSE)","v":"ナチュラル"}]
["■木縁添付位置",null,null,null,null,null,{"$f":"VLOOKUP(AA27,一覧_木縁!A2:C9,2,FALSE)","v":"未選択"},null,null,null,null,null,null,null,null,null,null,null,null,null,null,null,null,null,null,null,"塗装色"]
[null,null,null,null,null,null,null,null,null,null,null,null,null,null,null,null,null,null,null,null,null,null,null,null,null,null,"表面材",null,null,{"$f":"_xlfn.XLOOKUP(AA11,一覧_品番!A:A,一覧_品番!F:F, \"\", FALSE)","v":"BC-3666PL"}]
[]
[null,null,null,null,null,null,"↓プルダウンで選択下さい"]
["■裏面材",null,null,null,null,null,{"$f":"INDEX(一覧_裏面!A1:A2,A1)","v":"BK（バッカ―）"},null,null,null,null,null,null,null,null,null,null,null,null,null,null,null,null,null,null,null,null,null,null,{"$f":"G25","v":"BK（バッカ―）"}]
[null,null,null,null,null,null,null,null,null,null,null,null,null,null,null,null,null,null,null,null,null,null,null,null,null,null,"裏面材"]
[null,null,null,null,null,null,null,null,null,null,null,null,null,null,null,null,null,null,null,null,null,null,null,null,null,null,8]
[null,null,null,null,null,null,"↓300～1200ｍｍの間で入力下さい"]
["■サイズ",null,null,null,"縦（D)",null,null,null,null,null,null,null,null,null,null,null,null,null,null,null,null,null,"縦（D）"]
[null,null,null,null,null,null,null,null,null,null,null,null,null,null,null,null,null,null,null,null,null,null,{"$f":"SUM(G29)","v":0}]
[null,null,null,null,null,null,"↓600～2400ｍｍの間で入力下さい"]
[null,null,null,null,"横（W)",null,null,null,null,null,null,null,null,null,null,null,null,null,null,null,null,null,null,null,"㎜"]
[]
[]
["■数量"]
[null,null,null,null,null,null,null,null,null,null,null,null,null,null,null,null,null,null,null,null,null,null,null,null,null,null,null,null,null,null,null,null,{"$f":"SUM(G32)","v":0}]
[null,null,null,null,null,null,null,null,null,null,null,null,null,null,null,null,null,null,null,null,null,null,null,null,null,null,null,null,null,null,null,null,null,null,null,null,null,"㎜"]
["■希望納期",null,null,null,null,null,"　　年　 　月　   日",null,null,null,null,null,null,null,null,null,null,null,null,null,null,null,null,null,null,null,null,null,null,null,null,null,null,"横（W)"]
[]
[]
["■納入場所",null,null,null,null,null,"納入会社名",null,null,null,null,null,null,null,null,null,null,null,"　納入住所",null,null,null,null,null,null,null,null,null,null,null,null,null,null,null,null,null,null,null,"納入電話番号"]
[null,null,null,null,null,null,null,null,null,null,null,null,null,null,null,null,null,null,"〒"]

{"sheet":"RP-3666PL-32","index":31,"n_rows":42,"n_cols":157,"rows_kept":42,"cut":false,"hidden":false,"merged":[[37,6,38,17],[37,33,37,36],[41,6,43,17],[41,18,43,37],[41,38,43,46],[35,32,36,36],[19,29,20,33],[20,6,21,17],[21,26,22,27],[21,29,22,33],[24,6,25,17],[24,29,25,33],[28,6,29,17],[28,22,28,24],[29,22,30,24],[31,6,32,17],[34,6,35,17],[10,6,11,17],[10,26,12,33],[12,6,13,17],[13,29,14,33],[15,29,16,33],[16,6,17,17],[17,26,18,28],[17,29,18,33],[2,22,2,28],[3,31,3,33],[5,0,6,3],[5,6,6,17],[8,0,9,3],[8,6,9,17]]}
[2,null,null,null,null,null,null,null,null,null,null,null,null,null,null,null,null,null,null,null,null,"■イビケン記入箇所"]
[null,null,null,null,null,null,null,null,null,null,null,null,null,null,null,null,null,null,null,null,null,null,"オーダーNo",null,null,null,null,null,null,null,"メイン",null,null,null,null,"W寸",null,"D寸",null,"形状",null,"木縁",null,"裏面"]
[null,null,null,null,null,null,null,null,null,null,null,null,null,null,null,null,null,null,null,null,null,null,null,null,null,null,null,null,null,{"$f":"AA11","v":"RP-3666PL-32"},null,null,null,null,"-",{"$f":"G32","v":0},"-",{"$f":"G29","v":0},"-","IG","-",{"$f":"G21","v":"未選択"},"-",{"$f":"IF(AD25=\"BK（バッカー）\",\"BK\",IF(AD25=\"DS（表同柄）※オプション価格\",\"DS\",\"\"))","v":"BK"}]
["※オーダーシートは仕様指示書となります。注文書は別途ご用意ください。",null,null,null,null,null,null,null,null,null,null,null,null,null,null,null,null,null,null,null,null,null,null,null,null,null,null,null,null,null,null,null,null,null,null,null,null,null,null,null,null,null,null,null,null,null,null,null,null,null,null,null,null,null,null,null,null,null,null,null,null,null,null,null,null,null,null,null,null,null,null,null,null,null,null,null,null,null,null,null,null,null,null,null,null,null,null,null,null,null,null,null,null,null,null,null,null,null,null,null,null,null,null,null,null,null,null,null,null,null,null,null,null,null,null,null,null,null,null,null,null,null,null,null,null,null,null,null,null,null,null,null,null,null,null,null,null,null,null,null,null,null,null,null,null,null,null,null,null,null,null,null,null,null,null,null,"RPS-1981U-38"]
[]
["■発注日",null,null,null,null,null,"　　年　 　月　   日"]
[]
[]
["■発注者"]
[null,null,null,null,"会社名"]
[null,null,null,null,null,null,null,null,null,null,null,null,null,null,null,null,null,null,null,null,null,null,null,null,null,null,{"$f":"G17","v":"RP-3666PL-32"}]
[null,null,null,null,"担当者名"]
[]
[null,null,null,null,"電話番号",null,null,null,null,null,null,null,null,null,null,null,null,null,null,null,null,null,null,null,null,null,null,null,null,{"$f":"_xlfn.XLOOKUP(AA11,一覧_品番!A:A,一覧_品番!B:B, \"\", FALSE)","v":32}]
[null,null,null,null,null,null,null,null,null,null,null,null,null,null,null,null,null,null,null,null,null,null,null,null,null,null,"厚み"]
[null,null,null,null,null,null,null,null,null,null,null,null,null,null,null,null,null,null,null,null,null,null,null,null,null,null,null,null,null,{"$f":"_xlfn.XLOOKUP(AA11,一覧_品番!A:A,一覧_品番!C:C, \"\", FALSE)","v":"ライブエッジ"}]
["■品番",null,null,null,null,null,{"$f":"_xlfn.XLOOKUP(S17,注文書一覧!A:A,注文書一覧!B:B,\"\")","v":"RP-3666PL-32"},null,null,null,null,null,null,null,null,null,null,null,59,null,null,null,null,null,null,null,"木縁形状"]
[null,null,null,null,null,null,null,null,null,null,null,null,null,null,null,null,null,null,null,null,null,null,null,null,null,null,"木縁位置",null,null,{"$f":"G21","v":"未選択"}]
[]
[null,null,null,null,null,null,"↓左のカーソルで選択下さい。→右下にイラストが表示されます",null,null,null,null,null,null,null,null,null,null,null,null,null,null,null,null,null,null,null,null,null,null,{"$f":"_xlfn.XLOOKUP(AA11,一覧_品番!A:A,一覧_品番!E:E, \"\", FALSE)","v":"ナチュラル"}]
["■木縁添付位置",null,null,null,null,null,{"$f":"VLOOKUP(AA27,一覧_木縁!A2:C9,2,FALSE)","v":"未選択"},null,null,null,null,null,null,null,null,null,null,null,null,null,null,null,null,null,null,null,"塗装色"]
[null,null,null,null,null,null,null,null,null,null,null,null,null,null,null,null,null,null,null,null,null,null,null,null,null,null,"表面材",null,null,{"$f":"_xlfn.XLOOKUP(AA11,一覧_品番!A:A,一覧_品番!F:F, \"\", FALSE)","v":"BC-3666PL"}]
[]
[null,null,null,null,null,null,"↓プルダウンで選択下さい"]
["■裏面材",null,null,null,null,null,{"$f":"INDEX(一覧_裏面!A1:A2,A1)","v":"BK（バッカ―）"},null,null,null,null,null,null,null,null,null,null,null,null,null,null,null,null,null,null,null,null,null,null,{"$f":"G25","v":"BK（バッカ―）"}]
[null,null,null,null,null,null,null,null,null,null,null,null,null,null,null,null,null,null,null,null,null,null,null,null,null,null,"裏面材"]
[null,null,null,null,null,null,null,null,null,null,null,null,null,null,null,null,null,null,null,null,null,null,null,null,null,null,8]
[null,null,null,null,null,null,"↓300～1200ｍｍの間で入力下さい"]
["■サイズ",null,null,null,"縦（D)",null,null,null,null,null,null,null,null,null,null,null,null,null,null,null,null,null,"縦（D）"]
[null,null,null,null,null,null,null,null,null,null,null,null,null,null,null,null,null,null,null,null,null,null,{"$f":"SUM(G29)","v":0}]
[null,null,null,null,null,null,"↓600～2400ｍｍの間で入力下さい"]
[null,null,null,null,"横（W)",null,null,null,null,null,null,null,null,null,null,null,null,null,null,null,null,null,null,null,"㎜"]
[]
[]
["■数量"]
[null,null,null,null,null,null,null,null,null,null,null,null,null,null,null,null,null,null,null,null,null,null,null,null,null,null,null,null,null,null,null,null,{"$f":"SUM(G32)","v":0}]
[null,null,null,null,null,null,null,null,null,null,null,null,null,null,null,null,null,null,null,null,null,null,null,null,null,null,null,null,null,null,null,null,null,null,null,null,null,"㎜"]
["■希望納期",null,null,null,null,null,"　　年　 　月　   日",null,null,null,null,null,null,null,null,null,null,null,null,null,null,null,null,null,null,null,null,null,null,null,null,null,null,"横（W)"]
[]
[]
["■納入場所",null,null,null,null,null,"納入会社名",null,null,null,null,null,null,null,null,null,null,null,"　納入住所",null,null,null,null,null,null,null,null,null,null,null,null,null,null,null,null,null,null,null,"納入電話番号"]
[null,null,null,null,null,null,null,null,null,null,null,null,null,null,null,null,null,null,"〒"]

{"sheet":"RPS-501B-32","index":32,"n_rows":42,"n_cols":157,"rows_kept":42,"cut":false,"hidden":false,"merged":[[37,6,38,17],[37,33,37,36],[41,6,43,17],[41,18,43,37],[41,38,43,46],[35,32,36,36],[19,29,20,33],[20,6,21,17],[21,26,22,27],[21,29,22,33],[24,6,25,17],[24,29,25,33],[28,6,29,17],[28,22,28,24],[29,22,30,24],[31,6,32,17],[34,6,35,17],[10,6,11,17],[10,26,12,33],[12,6,13,17],[13,29,14,33],[15,29,16,33],[16,6,17,17],[17,26,18,28],[17,29,18,33],[2,22,2,28],[3,31,3,33],[5,0,6,3],[5,6,6,17],[8,0,9,3],[8,6,9,17]]}
[2,null,null,null,null,null,null,null,null,null,null,null,null,null,null,null,null,null,null,null,null,"■イビケン記入箇所"]
[null,null,null,null,null,null,null,null,null,null,null,null,null,null,null,null,null,null,null,null,null,null,"オーダーNo",null,null,null,null,null,null,null,"メイン",null,null,null,null,"W寸",null,"D寸",null,"形状",null,"木縁",null,"裏面"]
[null,null,null,null,null,null,null,null,null,null,null,null,null,null,null,null,null,null,null,null,null,null,null,null,null,null,null,null,null,{"$f":"AA11","v":"RPS-501B-32"},null,null,null,null,"-",{"$f":"G32","v":0},"-",{"$f":"G29","v":0},"-","IG","-",{"$f":"G21","v":"未選択"},"-",{"$f":"IF(AD25=\"BK（バッカー）\",\"BK\",IF(AD25=\"DS（表同柄）※オプション価格\",\"DS\",\"\"))","v":"BK"}]
["※オーダーシートは仕様指示書となります。注文書は別途ご用意ください。",null,null,null,null,null,null,null,null,null,null,null,null,null,null,null,null,null,null,null,null,null,null,null,null,null,null,null,null,null,null,null,null,null,null,null,null,null,null,null,null,null,null,null,null,null,null,null,null,null,null,null,null,null,null,null,null,null,null,null,null,null,null,null,null,null,null,null,null,null,null,null,null,null,null,null,null,null,null,null,null,null,null,null,null,null,null,null,null,null,null,null,null,null,null,null,null,null,null,null,null,null,null,null,null,null,null,null,null,null,null,null,null,null,null,null,null,null,null,null,null,null,null,null,null,null,null,null,null,null,null,null,null,null,null,null,null,null,null,null,null,null,null,null,null,null,null,null,null,null,null,null,null,null,null,null,"RPS-1981U-38"]
[]
["■発注日",null,null,null,null,null,"　　年　 　月　   日"]
[]
[]
["■発注者"]
[null,null,null,null,"会社名"]
[null,null,null,null,null,null,null,null,null,null,null,null,null,null,null,null,null,null,null,null,null,null,null,null,null,null,{"$f":"G17","v":"RPS-501B-32"}]
[null,null,null,null,"担当者名"]
[]
[null,null,null,null,"電話番号",null,null,null,null,null,null,null,null,null,null,null,null,null,null,null,null,null,null,null,null,null,null,null,null,{"$f":"_xlfn.XLOOKUP(AA11,一覧_品番!A:A,一覧_品番!B:B, \"\", FALSE)","v":32}]
[null,null,null,null,null,null,null,null,null,null,null,null,null,null,null,null,null,null,null,null,null,null,null,null,null,null,"厚み"]
[null,null,null,null,null,null,null,null,null,null,null,null,null,null,null,null,null,null,null,null,null,null,null,null,null,null,null,null,null,{"$f":"_xlfn.XLOOKUP(AA11,一覧_品番!A:A,一覧_品番!C:C, \"\", FALSE)","v":"ストレート"}]
["■品番",null,null,null,null,null,{"$f":"_xlfn.XLOOKUP(S17,注文書一覧!A:A,注文書一覧!B:B,\"\")","v":"RPS-501B-32"},null,null,null,null,null,null,null,null,null,null,null,61,null,null,null,null,null,null,null,"木縁形状"]
[null,null,null,null,null,null,null,null,null,null,null,null,null,null,null,null,null,null,null,null,null,null,null,null,null,null,"木縁位置",null,null,{"$f":"G21","v":"未選択"}]
[]
[null,null,null,null,null,null,"↓左のカーソルで選択下さい。→右下にイラストが表示されます",null,null,null,null,null,null,null,null,null,null,null,null,null,null,null,null,null,null,null,null,null,null,{"$f":"_xlfn.XLOOKUP(AA11,一覧_品番!A:A,一覧_品番!E:E, \"\", FALSE)","v":"ブラウン"}]
["■木縁添付位置",null,null,null,null,null,{"$f":"VLOOKUP(AA27,一覧_木縁!A2:C9,2,FALSE)","v":"未選択"},null,null,null,null,null,null,null,null,null,null,null,null,null,null,null,null,null,null,null,"塗装色"]
[null,null,null,null,null,null,null,null,null,null,null,null,null,null,null,null,null,null,null,null,null,null,null,null,null,null,"表面材",null,null,{"$f":"_xlfn.XLOOKUP(AA11,一覧_品番!A:A,一覧_品番!F:F, \"\", FALSE)","v":"UL-501B"}]
[]
[null,null,null,null,null,null,"↓プルダウンで選択下さい"]
["■裏面材",null,null,null,null,null,{"$f":"INDEX(一覧_裏面!A1:A2,A1)","v":"BK（バッカ―）"},null,null,null,null,null,null,null,null,null,null,null,null,null,null,null,null,null,null,null,null,null,null,{"$f":"G25","v":"BK（バッカ―）"}]
[null,null,null,null,null,null,null,null,null,null,null,null,null,null,null,null,null,null,null,null,null,null,null,null,null,null,"裏面材"]
[null,null,null,null,null,null,null,null,null,null,null,null,null,null,null,null,null,null,null,null,null,null,null,null,null,null,8]
[null,null,null,null,null,null,"↓300～1200ｍｍの間で入力下さい"]
["■サイズ",null,null,null,"縦（D)",null,null,null,null,null,null,null,null,null,null,null,null,null,null,null,null,null,"縦（D）"]
[null,null,null,null,null,null,null,null,null,null,null,null,null,null,null,null,null,null,null,null,null,null,{"$f":"SUM(G29)","v":0}]
[null,null,null,null,null,null,"↓600～2400ｍｍの間で入力下さい"]
[null,null,null,null,"横（W)",null,null,null,null,null,null,null,null,null,null,null,null,null,null,null,null,null,null,null,"㎜"]
[]
[]
["■数量"]
[null,null,null,null,null,null,null,null,null,null,null,null,null,null,null,null,null,null,null,null,null,null,null,null,null,null,null,null,null,null,null,null,{"$f":"SUM(G32)","v":0}]
[null,null,null,null,null,null,null,null,null,null,null,null,null,null,null,null,null,null,null,null,null,null,null,null,null,null,null,null,null,null,null,null,null,null,null,null,null,"㎜"]
["■希望納期",null,null,null,null,null,"　　年　 　月　   日",null,null,null,null,null,null,null,null,null,null,null,null,null,null,null,null,null,null,null,null,null,null,null,null,null,null,"横（W)"]
[]
[]
["■納入場所",null,null,null,null,null,"納入会社名",null,null,null,null,null,null,null,null,null,null,null,"　納入住所",null,null,null,null,null,null,null,null,null,null,null,null,null,null,null,null,null,null,null,"納入電話番号"]
[null,null,null,null,null,null,null,null,null,null,null,null,null,null,null,null,null,null,"〒"]

{"sheet":"RP-501B-32","index":33,"n_rows":42,"n_cols":157,"rows_kept":42,"cut":false,"hidden":false,"merged":[[37,6,38,17],[37,33,37,36],[41,6,43,17],[41,18,43,37],[41,38,43,46],[35,32,36,36],[19,29,20,33],[20,6,21,17],[21,26,22,27],[21,29,22,33],[24,6,25,17],[24,29,25,33],[28,6,29,17],[28,22,28,24],[29,22,30,24],[31,6,32,17],[34,6,35,17],[10,6,11,17],[10,26,12,33],[12,6,13,17],[13,29,14,33],[15,29,16,33],[16,6,17,17],[17,26,18,28],[17,29,18,33],[2,22,2,28],[3,31,3,33],[5,0,6,3],[5,6,6,17],[8,0,9,3],[8,6,9,17]]}
[2,null,null,null,null,null,null,null,null,null,null,null,null,null,null,null,null,null,null,null,null,"■イビケン記入箇所"]
[null,null,null,null,null,null,null,null,null,null,null,null,null,null,null,null,null,null,null,null,null,null,"オーダーNo",null,null,null,null,null,null,null,"メイン",null,null,null,null,"W寸",null,"D寸",null,"形状",null,"木縁",null,"裏面"]
[null,null,null,null,null,null,null,null,null,null,null,null,null,null,null,null,null,null,null,null,null,null,null,null,null,null,null,null,null,{"$f":"AA11","v":"RP-501B-32"},null,null,null,null,"-",{"$f":"G32","v":0},"-",{"$f":"G29","v":0},"-","IG","-",{"$f":"G21","v":"未選択"},"-",{"$f":"IF(AD25=\"BK（バッカー）\",\"BK\",IF(AD25=\"DS（表同柄）※オプション価格\",\"DS\",\"\"))","v":"BK"}]
["※オーダーシートは仕様指示書となります。注文書は別途ご用意ください。",null,null,null,null,null,null,null,null,null,null,null,null,null,null,null,null,null,null,null,null,null,null,null,null,null,null,null,null,null,null,null,null,null,null,null,null,null,null,null,null,null,null,null,null,null,null,null,null,null,null,null,null,null,null,null,null,null,null,null,null,null,null,null,null,null,null,null,null,null,null,null,null,null,null,null,null,null,null,null,null,null,null,null,null,null,null,null,null,null,null,null,null,null,null,null,null,null,null,null,null,null,null,null,null,null,null,null,null,null,null,null,null,null,null,null,null,null,null,null,null,null,null,null,null,null,null,null,null,null,null,null,null,null,null,null,null,null,null,null,null,null,null,null,null,null,null,null,null,null,null,null,null,null,null,null,"RPS-1981U-38"]
[]
["■発注日",null,null,null,null,null,"　　年　 　月　   日"]
[]
[]
["■発注者"]
[null,null,null,null,"会社名"]
[null,null,null,null,null,null,null,null,null,null,null,null,null,null,null,null,null,null,null,null,null,null,null,null,null,null,{"$f":"G17","v":"RP-501B-32"}]
[null,null,null,null,"担当者名"]
[]
[null,null,null,null,"電話番号",null,null,null,null,null,null,null,null,null,null,null,null,null,null,null,null,null,null,null,null,null,null,null,null,{"$f":"_xlfn.XLOOKUP(AA11,一覧_品番!A:A,一覧_品番!B:B, \"\", FALSE)","v":32}]
[null,null,null,null,null,null,null,null,null,null,null,null,null,null,null,null,null,null,null,null,null,null,null,null,null,null,"厚み"]
[null,null,null,null,null,null,null,null,null,null,null,null,null,null,null,null,null,null,null,null,null,null,null,null,null,null,null,null,null,{"$f":"_xlfn.XLOOKUP(AA11,一覧_品番!A:A,一覧_品番!C:C, \"\", FALSE)","v":"ライブエッジ"}]
["■品番",null,null,null,null,null,{"$f":"_xlfn.XLOOKUP(S17,注文書一覧!A:A,注文書一覧!B:B,\"\")","v":"RP-501B-32"},null,null,null,null,null,null,null,null,null,null,null,63,null,null,null,null,null,null,null,"木縁形状"]
[null,null,null,null,null,null,null,null,null,null,null,null,null,null,null,null,null,null,null,null,null,null,null,null,null,null,"木縁位置",null,null,{"$f":"G21","v":"未選択"}]
[]
[null,null,null,null,null,null,"↓左のカーソルで選択下さい。→右下にイラストが表示されます",null,null,null,null,null,null,null,null,null,null,null,null,null,null,null,null,null,null,null,null,null,null,{"$f":"_xlfn.XLOOKUP(AA11,一覧_品番!A:A,一覧_品番!E:E, \"\", FALSE)","v":"ブラウン"}]
["■木縁添付位置",null,null,null,null,null,{"$f":"VLOOKUP(AA27,一覧_木縁!A2:C9,2,FALSE)","v":"未選択"},null,null,null,null,null,null,null,null,null,null,null,null,null,null,null,null,null,null,null,"塗装色"]
[null,null,null,null,null,null,null,null,null,null,null,null,null,null,null,null,null,null,null,null,null,null,null,null,null,null,"表面材",null,null,{"$f":"_xlfn.XLOOKUP(AA11,一覧_品番!A:A,一覧_品番!F:F, \"\", FALSE)","v":"UL-501B"}]
[]
[null,null,null,null,null,null,"↓プルダウンで選択下さい"]
["■裏面材",null,null,null,null,null,{"$f":"INDEX(一覧_裏面!A1:A2,A1)","v":"BK（バッカ―）"},null,null,null,null,null,null,null,null,null,null,null,null,null,null,null,null,null,null,null,null,null,null,{"$f":"G25","v":"BK（バッカ―）"}]
[null,null,null,null,null,null,null,null,null,null,null,null,null,null,null,null,null,null,null,null,null,null,null,null,null,null,"裏面材"]
[null,null,null,null,null,null,null,null,null,null,null,null,null,null,null,null,null,null,null,null,null,null,null,null,null,null,8]
[null,null,null,null,null,null,"↓300～1200ｍｍの間で入力下さい"]
["■サイズ",null,null,null,"縦（D)",null,null,null,null,null,null,null,null,null,null,null,null,null,null,null,null,null,"縦（D）"]
[null,null,null,null,null,null,null,null,null,null,null,null,null,null,null,null,null,null,null,null,null,null,{"$f":"SUM(G29)","v":0}]
[null,null,null,null,null,null,"↓600～2400ｍｍの間で入力下さい"]
[null,null,null,null,"横（W)",null,null,null,null,null,null,null,null,null,null,null,null,null,null,null,null,null,null,null,"㎜"]
[]
[]
["■数量"]
[null,null,null,null,null,null,null,null,null,null,null,null,null,null,null,null,null,null,null,null,null,null,null,null,null,null,null,null,null,null,null,null,{"$f":"SUM(G32)","v":0}]
[null,null,null,null,null,null,null,null,null,null,null,null,null,null,null,null,null,null,null,null,null,null,null,null,null,null,null,null,null,null,null,null,null,null,null,null,null,"㎜"]
["■希望納期",null,null,null,null,null,"　　年　 　月　   日",null,null,null,null,null,null,null,null,null,null,null,null,null,null,null,null,null,null,null,null,null,null,null,null,null,null,"横（W)"]
[]
[]
["■納入場所",null,null,null,null,null,"納入会社名",null,null,null,null,null,null,null,null,null,null,null,"　納入住所",null,null,null,null,null,null,null,null,null,null,null,null,null,null,null,null,null,null,null,"納入電話番号"]
[null,null,null,null,null,null,null,null,null,null,null,null,null,null,null,null,null,null,"〒"]

{"sheet":"RPS-501T-32","index":34,"n_rows":42,"n_cols":157,"rows_kept":42,"cut":false,"hidden":false,"merged":[[37,6,38,17],[37,33,37,36],[41,6,43,17],[41,18,43,37],[41,38,43,46],[35,32,36,36],[19,29,20,33],[20,6,21,17],[21,26,22,27],[21,29,22,33],[24,6,25,17],[24,29,25,33],[28,6,29,17],[28,22,28,24],[29,22,30,24],[31,6,32,17],[34,6,35,17],[10,6,11,17],[10,26,12,33],[12,6,13,17],[13,29,14,33],[15,29,16,33],[16,6,17,17],[17,26,18,28],[17,29,18,33],[2,22,2,28],[3,31,3,33],[5,0,6,3],[5,6,6,17],[8,0,9,3],[8,6,9,17]]}
[2,null,null,null,null,null,null,null,null,null,null,null,null,null,null,null,null,null,null,null,null,"■イビケン記入箇所"]
[null,null,null,null,null,null,null,null,null,null,null,null,null,null,null,null,null,null,null,null,null,null,"オーダーNo",null,null,null,null,null,null,null,"メイン",null,null,null,null,"W寸",null,"D寸",null,"形状",null,"木縁",null,"裏面"]
[null,null,null,null,null,null,null,null,null,null,null,null,null,null,null,null,null,null,null,null,null,null,null,null,null,null,null,null,null,{"$f":"AA11","v":"RPS-501T-32"},null,null,null,null,"-",{"$f":"G32","v":0},"-",{"$f":"G29","v":0},"-","IG","-",{"$f":"G21","v":"未選択"},"-",{"$f":"IF(AD25=\"BK（バッカー）\",\"BK\",IF(AD25=\"DS（表同柄）※オプション価格\",\"DS\",\"\"))","v":"BK"}]
["※オーダーシートは仕様指示書となります。注文書は別途ご用意ください。",null,null,null,null,null,null,null,null,null,null,null,null,null,null,null,null,null,null,null,null,null,null,null,null,null,null,null,null,null,null,null,null,null,null,null,null,null,null,null,null,null,null,null,null,null,null,null,null,null,null,null,null,null,null,null,null,null,null,null,null,null,null,null,null,null,null,null,null,null,null,null,null,null,null,null,null,null,null,null,null,null,null,null,null,null,null,null,null,null,null,null,null,null,null,null,null,null,null,null,null,null,null,null,null,null,null,null,null,null,null,null,null,null,null,null,null,null,null,null,null,null,null,null,null,null,null,null,null,null,null,null,null,null,null,null,null,null,null,null,null,null,null,null,null,null,null,null,null,null,null,null,null,null,null,null,"RPS-1981U-38"]
[]
["■発注日",null,null,null,null,null,"　　年　 　月　   日"]
[]
[]
["■発注者"]
[null,null,null,null,"会社名"]
[null,null,null,null,null,null,null,null,null,null,null,null,null,null,null,null,null,null,null,null,null,null,null,null,null,null,{"$f":"G17","v":"RPS-501T-32"}]
[null,null,null,null,"担当者名"]
[]
[null,null,null,null,"電話番号",null,null,null,null,null,null,null,null,null,null,null,null,null,null,null,null,null,null,null,null,null,null,null,null,{"$f":"_xlfn.XLOOKUP(AA11,一覧_品番!A:A,一覧_品番!B:B, \"\", FALSE)","v":32}]
[null,null,null,null,null,null,null,null,null,null,null,null,null,null,null,null,null,null,null,null,null,null,null,null,null,null,"厚み"]
[null,null,null,null,null,null,null,null,null,null,null,null,null,null,null,null,null,null,null,null,null,null,null,null,null,null,null,null,null,{"$f":"_xlfn.XLOOKUP(AA11,一覧_品番!A:A,一覧_品番!C:C, \"\", FALSE)","v":"ストレート"}]
["■品番",null,null,null,null,null,{"$f":"_xlfn.XLOOKUP(S17,注文書一覧!A:A,注文書一覧!B:B,\"\")","v":"RPS-501T-32"},null,null,null,null,null,null,null,null,null,null,null,65,null,null,null,null,null,null,null,"木縁形状"]
[null,null,null,null,null,null,null,null,null,null,null,null,null,null,null,null,null,null,null,null,null,null,null,null,null,null,"木縁位置",null,null,{"$f":"G21","v":"未選択"}]
[]
[null,null,null,null,null,null,"↓左のカーソルで選択下さい。→右下にイラストが表示されます",null,null,null,null,null,null,null,null,null,null,null,null,null,null,null,null,null,null,null,null,null,null,{"$f":"_xlfn.XLOOKUP(AA11,一覧_品番!A:A,一覧_品番!E:E, \"\", FALSE)","v":"ブラウン"}]
["■木縁添付位置",null,null,null,null,null,{"$f":"VLOOKUP(AA27,一覧_木縁!A2:C9,2,FALSE)","v":"未選択"},null,null,null,null,null,null,null,null,null,null,null,null,null,null,null,null,null,null,null,"塗装色"]
[null,null,null,null,null,null,null,null,null,null,null,null,null,null,null,null,null,null,null,null,null,null,null,null,null,null,"表面材",null,null,{"$f":"_xlfn.XLOOKUP(AA11,一覧_品番!A:A,一覧_品番!F:F, \"\", FALSE)","v":"UL-501T"}]
[]
[null,null,null,null,null,null,"↓プルダウンで選択下さい"]
["■裏面材",null,null,null,null,null,{"$f":"INDEX(一覧_裏面!A1:A2,A1)","v":"BK（バッカ―）"},null,null,null,null,null,null,null,null,null,null,null,null,null,null,null,null,null,null,null,null,null,null,{"$f":"G25","v":"BK（バッカ―）"}]
[null,null,null,null,null,null,null,null,null,null,null,null,null,null,null,null,null,null,null,null,null,null,null,null,null,null,"裏面材"]
[null,null,null,null,null,null,null,null,null,null,null,null,null,null,null,null,null,null,null,null,null,null,null,null,null,null,8]
[null,null,null,null,null,null,"↓300～1200ｍｍの間で入力下さい"]
["■サイズ",null,null,null,"縦（D)",null,null,null,null,null,null,null,null,null,null,null,null,null,null,null,null,null,"縦（D）"]
[null,null,null,null,null,null,null,null,null,null,null,null,null,null,null,null,null,null,null,null,null,null,{"$f":"SUM(G29)","v":0}]
[null,null,null,null,null,null,"↓600～2400ｍｍの間で入力下さい"]
[null,null,null,null,"横（W)",null,null,null,null,null,null,null,null,null,null,null,null,null,null,null,null,null,null,null,"㎜"]
[]
[]
["■数量"]
[null,null,null,null,null,null,null,null,null,null,null,null,null,null,null,null,null,null,null,null,null,null,null,null,null,null,null,null,null,null,null,null,{"$f":"SUM(G32)","v":0}]
[null,null,null,null,null,null,null,null,null,null,null,null,null,null,null,null,null,null,null,null,null,null,null,null,null,null,null,null,null,null,null,null,null,null,null,null,null,"㎜"]
["■希望納期",null,null,null,null,null,"　　年　 　月　   日",null,null,null,null,null,null,null,null,null,null,null,null,null,null,null,null,null,null,null,null,null,null,null,null,null,null,"横（W)"]
[]
[]
["■納入場所",null,null,null,null,null,"納入会社名",null,null,null,null,null,null,null,null,null,null,null,"　納入住所",null,null,null,null,null,null,null,null,null,null,null,null,null,null,null,null,null,null,null,"納入電話番号"]
[null,null,null,null,null,null,null,null,null,null,null,null,null,null,null,null,null,null,"〒"]

{"sheet":"RP-501T-32","index":35,"n_rows":42,"n_cols":157,"rows_kept":42,"cut":false,"hidden":false,"merged":[[37,6,38,17],[37,33,37,36],[41,6,43,17],[41,18,43,37],[41,38,43,46],[35,32,36,36],[19,29,20,33],[20,6,21,17],[21,26,22,27],[21,29,22,33],[24,6,25,17],[24,29,25,33],[28,6,29,17],[28,22,28,24],[29,22,30,24],[31,6,32,17],[34,6,35,17],[10,6,11,17],[10,26,12,33],[12,6,13,17],[13,29,14,33],[15,29,16,33],[16,6,17,17],[17,26,18,28],[17,29,18,33],[2,22,2,28],[3,31,3,33],[5,0,6,3],[5,6,6,17],[8,0,9,3],[8,6,9,17]]}
[2,null,null,null,null,null,null,null,null,null,null,null,null,null,null,null,null,null,null,null,null,"■イビケン記入箇所"]
[null,null,null,null,null,null,null,null,null,null,null,null,null,null,null,null,null,null,null,null,null,null,"オーダーNo",null,null,null,null,null,null,null,"メイン",null,null,null,null,"W寸",null,"D寸",null,"形状",null,"木縁",null,"裏面"]
[null,null,null,null,null,null,null,null,null,null,null,null,null,null,null,null,null,null,null,null,null,null,null,null,null,null,null,null,null,{"$f":"AA11","v":"RP-501T-32"},null,null,null,null,"-",{"$f":"G32","v":0},"-",{"$f":"G29","v":0},"-","IG","-",{"$f":"G21","v":"未選択"},"-",{"$f":"IF(AD25=\"BK（バッカー）\",\"BK\",IF(AD25=\"DS（表同柄）※オプション価格\",\"DS\",\"\"))","v":"BK"}]
["※オーダーシートは仕様指示書となります。注文書は別途ご用意ください。",null,null,null,null,null,null,null,null,null,null,null,null,null,null,null,null,null,null,null,null,null,null,null,null,null,null,null,null,null,null,null,null,null,null,null,null,null,null,null,null,null,null,null,null,null,null,null,null,null,null,null,null,null,null,null,null,null,null,null,null,null,null,null,null,null,null,null,null,null,null,null,null,null,null,null,null,null,null,null,null,null,null,null,null,null,null,null,null,null,null,null,null,null,null,null,null,null,null,null,null,null,null,null,null,null,null,null,null,null,null,null,null,null,null,null,null,null,null,null,null,null,null,null,null,null,null,null,null,null,null,null,null,null,null,null,null,null,null,null,null,null,null,null,null,null,null,null,null,null,null,null,null,null,null,null,"RPS-1981U-38"]
[]
["■発注日",null,null,null,null,null,"　　年　 　月　   日"]
[]
[]
["■発注者"]
[null,null,null,null,"会社名"]
[null,null,null,null,null,null,null,null,null,null,null,null,null,null,null,null,null,null,null,null,null,null,null,null,null,null,{"$f":"G17","v":"RP-501T-32"}]
[null,null,null,null,"担当者名"]
[]
[null,null,null,null,"電話番号",null,null,null,null,null,null,null,null,null,null,null,null,null,null,null,null,null,null,null,null,null,null,null,null,{"$f":"_xlfn.XLOOKUP(AA11,一覧_品番!A:A,一覧_品番!B:B, \"\", FALSE)","v":32}]
[null,null,null,null,null,null,null,null,null,null,null,null,null,null,null,null,null,null,null,null,null,null,null,null,null,null,"厚み"]
[null,null,null,null,null,null,null,null,null,null,null,null,null,null,null,null,null,null,null,null,null,null,null,null,null,null,null,null,null,{"$f":"_xlfn.XLOOKUP(AA11,一覧_品番!A:A,一覧_品番!C:C, \"\", FALSE)","v":"ライブエッジ"}]
["■品番",null,null,null,null,null,{"$f":"_xlfn.XLOOKUP(S17,注文書一覧!A:A,注文書一覧!B:B,\"\")","v":"RP-501T-32"},null,null,null,null,null,null,null,null,null,null,null,67,null,null,null,null,null,null,null,"木縁形状"]
[null,null,null,null,null,null,null,null,null,null,null,null,null,null,null,null,null,null,null,null,null,null,null,null,null,null,"木縁位置",null,null,{"$f":"G21","v":"未選択"}]
[]
[null,null,null,null,null,null,"↓左のカーソルで選択下さい。→右下にイラストが表示されます",null,null,null,null,null,null,null,null,null,null,null,null,null,null,null,null,null,null,null,null,null,null,{"$f":"_xlfn.XLOOKUP(AA11,一覧_品番!A:A,一覧_品番!E:E, \"\", FALSE)","v":"ブラウン"}]
["■木縁添付位置",null,null,null,null,null,{"$f":"VLOOKUP(AA27,一覧_木縁!A2:C9,2,FALSE)","v":"未選択"},null,null,null,null,null,null,null,null,null,null,null,null,null,null,null,null,null,null,null,"塗装色"]
[null,null,null,null,null,null,null,null,null,null,null,null,null,null,null,null,null,null,null,null,null,null,null,null,null,null,"表面材",null,null,{"$f":"_xlfn.XLOOKUP(AA11,一覧_品番!A:A,一覧_品番!F:F, \"\", FALSE)","v":"UL-501T"}]
[]
[null,null,null,null,null,null,"↓プルダウンで選択下さい"]
["■裏面材",null,null,null,null,null,{"$f":"INDEX(一覧_裏面!A1:A2,A1)","v":"BK（バッカ―）"},null,null,null,null,null,null,null,null,null,null,null,null,null,null,null,null,null,null,null,null,null,null,{"$f":"G25","v":"BK（バッカ―）"}]
[null,null,null,null,null,null,null,null,null,null,null,null,null,null,null,null,null,null,null,null,null,null,null,null,null,null,"裏面材"]
[null,null,null,null,null,null,null,null,null,null,null,null,null,null,null,null,null,null,null,null,null,null,null,null,null,null,8]
[null,null,null,null,null,null,"↓300～1200ｍｍの間で入力下さい"]
["■サイズ",null,null,null,"縦（D)",null,null,null,null,null,null,null,null,null,null,null,null,null,null,null,null,null,"縦（D）"]
[null,null,null,null,null,null,null,null,null,null,null,null,null,null,null,null,null,null,null,null,null,null,{"$f":"SUM(G29)","v":0}]
[null,null,null,null,null,null,"↓600～2400ｍｍの間で入力下さい"]
[null,null,null,null,"横（W)",null,null,null,null,null,null,null,null,null,null,null,null,null,null,null,null,null,null,null,"㎜"]
[]
[]
["■数量"]
[null,null,null,null,null,null,null,null,null,null,null,null,null,null,null,null,null,null,null,null,null,null,null,null,null,null,null,null,null,null,null,null,{"$f":"SUM(G32)","v":0}]
[null,null,null,null,null,null,null,null,null,null,null,null,null,null,null,null,null,null,null,null,null,null,null,null,null,null,null,null,null,null,null,null,null,null,null,null,null,"㎜"]
["■希望納期",null,null,null,null,null,"　　年　 　月　   日",null,null,null,null,null,null,null,null,null,null,null,null,null,null,null,null,null,null,null,null,null,null,null,null,null,null,"横（W)"]
[]
[]
["■納入場所",null,null,null,null,null,"納入会社名",null,null,null,null,null,null,null,null,null,null,null,"　納入住所",null,null,null,null,null,null,null,null,null,null,null,null,null,null,null,null,null,null,null,"納入電話番号"]
[null,null,null,null,null,null,null,null,null,null,null,null,null,null,null,null,null,null,"〒"]

{"sheet":"RPS-502B-32","index":36,"n_rows":42,"n_cols":157,"rows_kept":42,"cut":false,"hidden":false,"merged":[[37,6,38,17],[37,33,37,36],[41,6,43,17],[41,18,43,37],[41,38,43,46],[35,32,36,36],[19,29,20,33],[20,6,21,17],[21,26,22,27],[21,29,22,33],[24,6,25,17],[24,29,25,33],[28,6,29,17],[28,22,28,24],[29,22,30,24],[31,6,32,17],[34,6,35,17],[10,6,11,17],[10,26,12,33],[12,6,13,17],[13,29,14,33],[15,29,16,33],[16,6,17,17],[17,26,18,28],[17,29,18,33],[2,22,2,28],[3,31,3,33],[5,0,6,3],[5,6,6,17],[8,0,9,3],[8,6,9,17]]}
[2,null,null,null,null,null,null,null,null,null,null,null,null,null,null,null,null,null,null,null,null,"■イビケン記入箇所"]
[null,null,null,null,null,null,null,null,null,null,null,null,null,null,null,null,null,null,null,null,null,null,"オーダーNo",null,null,null,null,null,null,null,"メイン",null,null,null,null,"W寸",null,"D寸",null,"形状",null,"木縁",null,"裏面"]
[null,null,null,null,null,null,null,null,null,null,null,null,null,null,null,null,null,null,null,null,null,null,null,null,null,null,null,null,null,{"$f":"AA11","v":"RPS-502B-32"},null,null,null,null,"-",{"$f":"G32","v":0},"-",{"$f":"G29","v":0},"-","IG","-",{"$f":"G21","v":"未選択"},"-",{"$f":"IF(AD25=\"BK（バッカー）\",\"BK\",IF(AD25=\"DS（表同柄）※オプション価格\",\"DS\",\"\"))","v":"BK"}]
["※オーダーシートは仕様指示書となります。注文書は別途ご用意ください。",null,null,null,null,null,null,null,null,null,null,null,null,null,null,null,null,null,null,null,null,null,null,null,null,null,null,null,null,null,null,null,null,null,null,null,null,null,null,null,null,null,null,null,null,null,null,null,null,null,null,null,null,null,null,null,null,null,null,null,null,null,null,null,null,null,null,null,null,null,null,null,null,null,null,null,null,null,null,null,null,null,null,null,null,null,null,null,null,null,null,null,null,null,null,null,null,null,null,null,null,null,null,null,null,null,null,null,null,null,null,null,null,null,null,null,null,null,null,null,null,null,null,null,null,null,null,null,null,null,null,null,null,null,null,null,null,null,null,null,null,null,null,null,null,null,null,null,null,null,null,null,null,null,null,null,"RPS-1981U-38"]
[]
["■発注日",null,null,null,null,null,"　　年　 　月　   日"]
[]
[]
["■発注者"]
[null,null,null,null,"会社名"]
[null,null,null,null,null,null,null,null,null,null,null,null,null,null,null,null,null,null,null,null,null,null,null,null,null,null,{"$f":"G17","v":"RPS-502B-32"}]
[null,null,null,null,"担当者名"]
[]
[null,null,null,null,"電話番号",null,null,null,null,null,null,null,null,null,null,null,null,null,null,null,null,null,null,null,null,null,null,null,null,{"$f":"_xlfn.XLOOKUP(AA11,一覧_品番!A:A,一覧_品番!B:B, \"\", FALSE)","v":32}]
[null,null,null,null,null,null,null,null,null,null,null,null,null,null,null,null,null,null,null,null,null,null,null,null,null,null,"厚み"]
[null,null,null,null,null,null,null,null,null,null,null,null,null,null,null,null,null,null,null,null,null,null,null,null,null,null,null,null,null,{"$f":"_xlfn.XLOOKUP(AA11,一覧_品番!A:A,一覧_品番!C:C, \"\", FALSE)","v":"ストレート"}]
["■品番",null,null,null,null,null,{"$f":"_xlfn.XLOOKUP(S17,注文書一覧!A:A,注文書一覧!B:B,\"\")","v":"RPS-502B-32"},null,null,null,null,null,null,null,null,null,null,null,69,null,null,null,null,null,null,null,"木縁形状"]
[null,null,null,null,null,null,null,null,null,null,null,null,null,null,null,null,null,null,null,null,null,null,null,null,null,null,"木縁位置",null,null,{"$f":"G21","v":"未選択"}]
[]
[null,null,null,null,null,null,"↓左のカーソルで選択下さい。→右下にイラストが表示されます",null,null,null,null,null,null,null,null,null,null,null,null,null,null,null,null,null,null,null,null,null,null,{"$f":"_xlfn.XLOOKUP(AA11,一覧_品番!A:A,一覧_品番!E:E, \"\", FALSE)","v":"ブラウン"}]
["■木縁添付位置",null,null,null,null,null,{"$f":"VLOOKUP(AA27,一覧_木縁!A2:C9,2,FALSE)","v":"未選択"},null,null,null,null,null,null,null,null,null,null,null,null,null,null,null,null,null,null,null,"塗装色"]
[null,null,null,null,null,null,null,null,null,null,null,null,null,null,null,null,null,null,null,null,null,null,null,null,null,null,"表面材",null,null,{"$f":"_xlfn.XLOOKUP(AA11,一覧_品番!A:A,一覧_品番!F:F, \"\", FALSE)","v":"UL-502B"}]
[]
[null,null,null,null,null,null,"↓プルダウンで選択下さい"]
["■裏面材",null,null,null,null,null,{"$f":"INDEX(一覧_裏面!A1:A2,A1)","v":"BK（バッカ―）"},null,null,null,null,null,null,null,null,null,null,null,null,null,null,null,null,null,null,null,null,null,null,{"$f":"G25","v":"BK（バッカ―）"}]
[null,null,null,null,null,null,null,null,null,null,null,null,null,null,null,null,null,null,null,null,null,null,null,null,null,null,"裏面材"]
[null,null,null,null,null,null,null,null,null,null,null,null,null,null,null,null,null,null,null,null,null,null,null,null,null,null,8]
[null,null,null,null,null,null,"↓300～1200ｍｍの間で入力下さい"]
["■サイズ",null,null,null,"縦（D)",null,null,null,null,null,null,null,null,null,null,null,null,null,null,null,null,null,"縦（D）"]
[null,null,null,null,null,null,null,null,null,null,null,null,null,null,null,null,null,null,null,null,null,null,{"$f":"SUM(G29)","v":0}]
[null,null,null,null,null,null,"↓600～2400ｍｍの間で入力下さい"]
[null,null,null,null,"横（W)",null,null,null,null,null,null,null,null,null,null,null,null,null,null,null,null,null,null,null,"㎜"]
[]
[]
["■数量"]
[null,null,null,null,null,null,null,null,null,null,null,null,null,null,null,null,null,null,null,null,null,null,null,null,null,null,null,null,null,null,null,null,{"$f":"SUM(G32)","v":0}]
[null,null,null,null,null,null,null,null,null,null,null,null,null,null,null,null,null,null,null,null,null,null,null,null,null,null,null,null,null,null,null,null,null,null,null,null,null,"㎜"]
["■希望納期",null,null,null,null,null,"　　年　 　月　   日",null,null,null,null,null,null,null,null,null,null,null,null,null,null,null,null,null,null,null,null,null,null,null,null,null,null,"横（W)"]
[]
[]
["■納入場所",null,null,null,null,null,"納入会社名",null,null,null,null,null,null,null,null,null,null,null,"　納入住所",null,null,null,null,null,null,null,null,null,null,null,null,null,null,null,null,null,null,null,"納入電話番号"]
[null,null,null,null,null,null,null,null,null,null,null,null,null,null,null,null,null,null,"〒"]

{"sheet":"RP-502B-32","index":37,"n_rows":42,"n_cols":157,"rows_kept":42,"cut":false,"hidden":false,"merged":[[37,6,38,17],[37,33,37,36],[41,6,43,17],[41,18,43,37],[41,38,43,46],[35,32,36,36],[19,29,20,33],[20,6,21,17],[21,26,22,27],[21,29,22,33],[24,6,25,17],[24,29,25,33],[28,6,29,17],[28,22,28,24],[29,22,30,24],[31,6,32,17],[34,6,35,17],[10,6,11,17],[10,26,12,33],[12,6,13,17],[13,29,14,33],[15,29,16,33],[16,6,17,17],[17,26,18,28],[17,29,18,33],[2,22,2,28],[3,31,3,33],[5,0,6,3],[5,6,6,17],[8,0,9,3],[8,6,9,17]]}
[2,null,null,null,null,null,null,null,null,null,null,null,null,null,null,null,null,null,null,null,null,"■イビケン記入箇所"]
[null,null,null,null,null,null,null,null,null,null,null,null,null,null,null,null,null,null,null,null,null,null,"オーダーNo",null,null,null,null,null,null,null,"メイン",null,null,null,null,"W寸",null,"D寸",null,"形状",null,"木縁",null,"裏面"]
[null,null,null,null,null,null,null,null,null,null,null,null,null,null,null,null,null,null,null,null,null,null,null,null,null,null,null,null,null,{"$f":"AA11","v":"RP-502B-32"},null,null,null,null,"-",{"$f":"G32","v":0},"-",{"$f":"G29","v":0},"-","IG","-",{"$f":"G21","v":"未選択"},"-",{"$f":"IF(AD25=\"BK（バッカー）\",\"BK\",IF(AD25=\"DS（表同柄）※オプション価格\",\"DS\",\"\"))","v":"BK"}]
["※オーダーシートは仕様指示書となります。注文書は別途ご用意ください。",null,null,null,null,null,null,null,null,null,null,null,null,null,null,null,null,null,null,null,null,null,null,null,null,null,null,null,null,null,null,null,null,null,null,null,null,null,null,null,null,null,null,null,null,null,null,null,null,null,null,null,null,null,null,null,null,null,null,null,null,null,null,null,null,null,null,null,null,null,null,null,null,null,null,null,null,null,null,null,null,null,null,null,null,null,null,null,null,null,null,null,null,null,null,null,null,null,null,null,null,null,null,null,null,null,null,null,null,null,null,null,null,null,null,null,null,null,null,null,null,null,null,null,null,null,null,null,null,null,null,null,null,null,null,null,null,null,null,null,null,null,null,null,null,null,null,null,null,null,null,null,null,null,null,null,"RPS-1981U-38"]
[]
["■発注日",null,null,null,null,null,"　　年　 　月　   日"]
[]
[]
["■発注者"]
[null,null,null,null,"会社名"]
[null,null,null,null,null,null,null,null,null,null,null,null,null,null,null,null,null,null,null,null,null,null,null,null,null,null,{"$f":"G17","v":"RP-502B-32"}]
[null,null,null,null,"担当者名"]
[]
[null,null,null,null,"電話番号",null,null,null,null,null,null,null,null,null,null,null,null,null,null,null,null,null,null,null,null,null,null,null,null,{"$f":"_xlfn.XLOOKUP(AA11,一覧_品番!A:A,一覧_品番!B:B, \"\", FALSE)","v":32}]
[null,null,null,null,null,null,null,null,null,null,null,null,null,null,null,null,null,null,null,null,null,null,null,null,null,null,"厚み"]
[null,null,null,null,null,null,null,null,null,null,null,null,null,null,null,null,null,null,null,null,null,null,null,null,null,null,null,null,null,{"$f":"_xlfn.XLOOKUP(AA11,一覧_品番!A:A,一覧_品番!C:C, \"\", FALSE)","v":"ライブエッジ"}]
["■品番",null,null,null,null,null,{"$f":"_xlfn.XLOOKUP(S17,注文書一覧!A:A,注文書一覧!B:B,\"\")","v":"RP-502B-32"},null,null,null,null,null,null,null,null,null,null,null,71,null,null,null,null,null,null,null,"木縁形状"]
[null,null,null,null,null,null,null,null,null,null,null,null,null,null,null,null,null,null,null,null,null,null,null,null,null,null,"木縁位置",null,null,{"$f":"G21","v":"未選択"}]
[]
[null,null,null,null,null,null,"↓左のカーソルで選択下さい。→右下にイラストが表示されます",null,null,null,null,null,null,null,null,null,null,null,null,null,null,null,null,null,null,null,null,null,null,{"$f":"_xlfn.XLOOKUP(AA11,一覧_品番!A:A,一覧_品番!E:E, \"\", FALSE)","v":"ブラウン"}]
["■木縁添付位置",null,null,null,null,null,{"$f":"VLOOKUP(AA27,一覧_木縁!A2:C9,2,FALSE)","v":"未選択"},null,null,null,null,null,null,null,null,null,null,null,null,null,null,null,null,null,null,null,"塗装色"]
[null,null,null,null,null,null,null,null,null,null,null,null,null,null,null,null,null,null,null,null,null,null,null,null,null,null,"表面材",null,null,{"$f":"_xlfn.XLOOKUP(AA11,一覧_品番!A:A,一覧_品番!F:F, \"\", FALSE)","v":"UL-502B"}]
[]
[null,null,null,null,null,null,"↓プルダウンで選択下さい"]
["■裏面材",null,null,null,null,null,{"$f":"INDEX(一覧_裏面!A1:A2,A1)","v":"BK（バッカ―）"},null,null,null,null,null,null,null,null,null,null,null,null,null,null,null,null,null,null,null,null,null,null,{"$f":"G25","v":"BK（バッカ―）"}]
[null,null,null,null,null,null,null,null,null,null,null,null,null,null,null,null,null,null,null,null,null,null,null,null,null,null,"裏面材"]
[null,null,null,null,null,null,null,null,null,null,null,null,null,null,null,null,null,null,null,null,null,null,null,null,null,null,8]
[null,null,null,null,null,null,"↓300～1200ｍｍの間で入力下さい"]
["■サイズ",null,null,null,"縦（D)",null,null,null,null,null,null,null,null,null,null,null,null,null,null,null,null,null,"縦（D）"]
[null,null,null,null,null,null,null,null,null,null,null,null,null,null,null,null,null,null,null,null,null,null,{"$f":"SUM(G29)","v":0}]
[null,null,null,null,null,null,"↓600～2400ｍｍの間で入力下さい"]
[null,null,null,null,"横（W)",null,null,null,null,null,null,null,null,null,null,null,null,null,null,null,null,null,null,null,"㎜"]
[]
[]
["■数量"]
[null,null,null,null,null,null,null,null,null,null,null,null,null,null,null,null,null,null,null,null,null,null,null,null,null,null,null,null,null,null,null,null,{"$f":"SUM(G32)","v":0}]
[null,null,null,null,null,null,null,null,null,null,null,null,null,null,null,null,null,null,null,null,null,null,null,null,null,null,null,null,null,null,null,null,null,null,null,null,null,"㎜"]
["■希望納期",null,null,null,null,null,"　　年　 　月　   日",null,null,null,null,null,null,null,null,null,null,null,null,null,null,null,null,null,null,null,null,null,null,null,null,null,null,"横（W)"]
[]
[]
["■納入場所",null,null,null,null,null,"納入会社名",null,null,null,null,null,null,null,null,null,null,null,"　納入住所",null,null,null,null,null,null,null,null,null,null,null,null,null,null,null,null,null,null,null,"納入電話番号"]
[null,null,null,null,null,null,null,null,null,null,null,null,null,null,null,null,null,null,"〒"]

{"sheet":"RPS-503B-32","index":38,"n_rows":42,"n_cols":157,"rows_kept":42,"cut":false,"hidden":false,"merged":[[37,6,38,17],[37,33,37,36],[41,6,43,17],[41,18,43,37],[41,38,43,46],[35,32,36,36],[19,29,20,33],[20,6,21,17],[21,26,22,27],[21,29,22,33],[24,6,25,17],[24,29,25,33],[28,6,29,17],[28,22,28,24],[29,22,30,24],[31,6,32,17],[34,6,35,17],[10,6,11,17],[10,26,12,33],[12,6,13,17],[13,29,14,33],[15,29,16,33],[16,6,17,17],[17,26,18,28],[17,29,18,33],[2,22,2,28],[3,31,3,33],[5,0,6,3],[5,6,6,17],[8,0,9,3],[8,6,9,17]]}
[2,null,null,null,null,null,null,null,null,null,null,null,null,null,null,null,null,null,null,null,null,"■イビケン記入箇所"]
[null,null,null,null,null,null,null,null,null,null,null,null,null,null,null,null,null,null,null,null,null,null,"オーダーNo",null,null,null,null,null,null,null,"メイン",null,null,null,null,"W寸",null,"D寸",null,"形状",null,"木縁",null,"裏面"]
[null,null,null,null,null,null,null,null,null,null,null,null,null,null,null,null,null,null,null,null,null,null,null,null,null,null,null,null,null,{"$f":"AA11","v":"RPS-503B-32"},null,null,null,null,"-",{"$f":"G32","v":0},"-",{"$f":"G29","v":0},"-","IG","-",{"$f":"G21","v":"未選択"},"-",{"$f":"IF(AD25=\"BK（バッカー）\",\"BK\",IF(AD25=\"DS（表同柄）※オプション価格\",\"DS\",\"\"))","v":"BK"}]
["※オーダーシートは仕様指示書となります。注文書は別途ご用意ください。",null,null,null,null,null,null,null,null,null,null,null,null,null,null,null,null,null,null,null,null,null,null,null,null,null,null,null,null,null,null,null,null,null,null,null,null,null,null,null,null,null,null,null,null,null,null,null,null,null,null,null,null,null,null,null,null,null,null,null,null,null,null,null,null,null,null,null,null,null,null,null,null,null,null,null,null,null,null,null,null,null,null,null,null,null,null,null,null,null,null,null,null,null,null,null,null,null,null,null,null,null,null,null,null,null,null,null,null,null,null,null,null,null,null,null,null,null,null,null,null,null,null,null,null,null,null,null,null,null,null,null,null,null,null,null,null,null,null,null,null,null,null,null,null,null,null,null,null,null,null,null,null,null,null,null,"RPS-1981U-38"]
[]
["■発注日",null,null,null,null,null,"　　年　 　月　   日"]
[]
[]
["■発注者"]
[null,null,null,null,"会社名"]
[null,null,null,null,null,null,null,null,null,null,null,null,null,null,null,null,null,null,null,null,null,null,null,null,null,null,{"$f":"G17","v":"RPS-503B-32"}]
[null,null,null,null,"担当者名"]
[]
[null,null,null,null,"電話番号",null,null,null,null,null,null,null,null,null,null,null,null,null,null,null,null,null,null,null,null,null,null,null,null,{"$f":"_xlfn.XLOOKUP(AA11,一覧_品番!A:A,一覧_品番!B:B, \"\", FALSE)","v":32}]
[null,null,null,null,null,null,null,null,null,null,null,null,null,null,null,null,null,null,null,null,null,null,null,null,null,null,"厚み"]
[null,null,null,null,null,null,null,null,null,null,null,null,null,null,null,null,null,null,null,null,null,null,null,null,null,null,null,null,null,{"$f":"_xlfn.XLOOKUP(AA11,一覧_品番!A:A,一覧_品番!C:C, \"\", FALSE)","v":"ストレート"}]
["■品番",null,null,null,null,null,{"$f":"_xlfn.XLOOKUP(S17,注文書一覧!A:A,注文書一覧!B:B,\"\")","v":"RPS-503B-32"},null,null,null,null,null,null,null,null,null,null,null,73,null,null,null,null,null,null,null,"木縁形状"]
[null,null,null,null,null,null,null,null,null,null,null,null,null,null,null,null,null,null,null,null,null,null,null,null,null,null,"木縁位置",null,null,{"$f":"G21","v":"未選択"}]
[]
[null,null,null,null,null,null,"↓左のカーソルで選択下さい。→右下にイラストが表示されます",null,null,null,null,null,null,null,null,null,null,null,null,null,null,null,null,null,null,null,null,null,null,{"$f":"_xlfn.XLOOKUP(AA11,一覧_品番!A:A,一覧_品番!E:E, \"\", FALSE)","v":"ナチュラル"}]
["■木縁添付位置",null,null,null,null,null,{"$f":"VLOOKUP(AA27,一覧_木縁!A2:C9,2,FALSE)","v":"未選択"},null,null,null,null,null,null,null,null,null,null,null,null,null,null,null,null,null,null,null,"塗装色"]
[null,null,null,null,null,null,null,null,null,null,null,null,null,null,null,null,null,null,null,null,null,null,null,null,null,null,"表面材",null,null,{"$f":"_xlfn.XLOOKUP(AA11,一覧_品番!A:A,一覧_品番!F:F, \"\", FALSE)","v":"UL-503B"}]
[]
[null,null,null,null,null,null,"↓プルダウンで選択下さい"]
["■裏面材",null,null,null,null,null,{"$f":"INDEX(一覧_裏面!A1:A2,A1)","v":"BK（バッカ―）"},null,null,null,null,null,null,null,null,null,null,null,null,null,null,null,null,null,null,null,null,null,null,{"$f":"G25","v":"BK（バッカ―）"}]
[null,null,null,null,null,null,null,null,null,null,null,null,null,null,null,null,null,null,null,null,null,null,null,null,null,null,"裏面材"]
[null,null,null,null,null,null,null,null,null,null,null,null,null,null,null,null,null,null,null,null,null,null,null,null,null,null,8]
[null,null,null,null,null,null,"↓300～1200ｍｍの間で入力下さい"]
["■サイズ",null,null,null,"縦（D)",null,null,null,null,null,null,null,null,null,null,null,null,null,null,null,null,null,"縦（D）"]
[null,null,null,null,null,null,null,null,null,null,null,null,null,null,null,null,null,null,null,null,null,null,{"$f":"SUM(G29)","v":0}]
[null,null,null,null,null,null,"↓600～2400ｍｍの間で入力下さい"]
[null,null,null,null,"横（W)",null,null,null,null,null,null,null,null,null,null,null,null,null,null,null,null,null,null,null,"㎜"]
[]
[]
["■数量"]
[null,null,null,null,null,null,null,null,null,null,null,null,null,null,null,null,null,null,null,null,null,null,null,null,null,null,null,null,null,null,null,null,{"$f":"SUM(G32)","v":0}]
[null,null,null,null,null,null,null,null,null,null,null,null,null,null,null,null,null,null,null,null,null,null,null,null,null,null,null,null,null,null,null,null,null,null,null,null,null,"㎜"]
["■希望納期",null,null,null,null,null,"　　年　 　月　   日",null,null,null,null,null,null,null,null,null,null,null,null,null,null,null,null,null,null,null,null,null,null,null,null,null,null,"横（W)"]
[]
[]
["■納入場所",null,null,null,null,null,"納入会社名",null,null,null,null,null,null,null,null,null,null,null,"　納入住所",null,null,null,null,null,null,null,null,null,null,null,null,null,null,null,null,null,null,null,"納入電話番号"]
[null,null,null,null,null,null,null,null,null,null,null,null,null,null,null,null,null,null,"〒"]

{"sheet":"RP-503B-32","index":39,"n_rows":42,"n_cols":157,"rows_kept":42,"cut":false,"hidden":false,"merged":[[37,6,38,17],[37,33,37,36],[41,6,43,17],[41,18,43,37],[41,38,43,46],[35,32,36,36],[19,29,20,33],[20,6,21,17],[21,26,22,27],[21,29,22,33],[24,6,25,17],[24,29,25,33],[28,6,29,17],[28,22,28,24],[29,22,30,24],[31,6,32,17],[34,6,35,17],[10,6,11,17],[10,26,12,33],[12,6,13,17],[13,29,14,33],[15,29,16,33],[16,6,17,17],[17,26,18,28],[17,29,18,33],[2,22,2,28],[3,31,3,33],[5,0,6,3],[5,6,6,17],[8,0,9,3],[8,6,9,17]]}
[2,null,null,null,null,null,null,null,null,null,null,null,null,null,null,null,null,null,null,null,null,"■イビケン記入箇所"]
[null,null,null,null,null,null,null,null,null,null,null,null,null,null,null,null,null,null,null,null,null,null,"オーダーNo",null,null,null,null,null,null,null,"メイン",null,null,null,null,"W寸",null,"D寸",null,"形状",null,"木縁",null,"裏面"]
[null,null,null,null,null,null,null,null,null,null,null,null,null,null,null,null,null,null,null,null,null,null,null,null,null,null,null,null,null,{"$f":"AA11","v":"RP-503B-32"},null,null,null,null,"-",{"$f":"G32","v":0},"-",{"$f":"G29","v":0},"-","IG","-",{"$f":"G21","v":"未選択"},"-",{"$f":"IF(AD25=\"BK（バッカー）\",\"BK\",IF(AD25=\"DS（表同柄）※オプション価格\",\"DS\",\"\"))","v":"BK"}]
["※オーダーシートは仕様指示書となります。注文書は別途ご用意ください。",null,null,null,null,null,null,null,null,null,null,null,null,null,null,null,null,null,null,null,null,null,null,null,null,null,null,null,null,null,null,null,null,null,null,null,null,null,null,null,null,null,null,null,null,null,null,null,null,null,null,null,null,null,null,null,null,null,null,null,null,null,null,null,null,null,null,null,null,null,null,null,null,null,null,null,null,null,null,null,null,null,null,null,null,null,null,null,null,null,null,null,null,null,null,null,null,null,null,null,null,null,null,null,null,null,null,null,null,null,null,null,null,null,null,null,null,null,null,null,null,null,null,null,null,null,null,null,null,null,null,null,null,null,null,null,null,null,null,null,null,null,null,null,null,null,null,null,null,null,null,null,null,null,null,null,"RPS-1981U-38"]
[]
["■発注日",null,null,null,null,null,"　　年　 　月　   日"]
[]
[]
["■発注者"]
[null,null,null,null,"会社名"]
[null,null,null,null,null,null,null,null,null,null,null,null,null,null,null,null,null,null,null,null,null,null,null,null,null,null,{"$f":"G17","v":"RP-503B-32"}]
[null,null,null,null,"担当者名"]
[]
[null,null,null,null,"電話番号",null,null,null,null,null,null,null,null,null,null,null,null,null,null,null,null,null,null,null,null,null,null,null,null,{"$f":"_xlfn.XLOOKUP(AA11,一覧_品番!A:A,一覧_品番!B:B, \"\", FALSE)","v":32}]
[null,null,null,null,null,null,null,null,null,null,null,null,null,null,null,null,null,null,null,null,null,null,null,null,null,null,"厚み"]
[null,null,null,null,null,null,null,null,null,null,null,null,null,null,null,null,null,null,null,null,null,null,null,null,null,null,null,null,null,{"$f":"_xlfn.XLOOKUP(AA11,一覧_品番!A:A,一覧_品番!C:C, \"\", FALSE)","v":"ライブエッジ"}]
["■品番",null,null,null,null,null,{"$f":"_xlfn.XLOOKUP(S17,注文書一覧!A:A,注文書一覧!B:B,\"\")","v":"RP-503B-32"},null,null,null,null,null,null,null,null,null,null,null,75,null,null,null,null,null,null,null,"木縁形状"]
[null,null,null,null,null,null,null,null,null,null,null,null,null,null,null,null,null,null,null,null,null,null,null,null,null,null,"木縁位置",null,null,{"$f":"G21","v":"未選択"}]
[]
[null,null,null,null,null,null,"↓左のカーソルで選択下さい。→右下にイラストが表示されます",null,null,null,null,null,null,null,null,null,null,null,null,null,null,null,null,null,null,null,null,null,null,{"$f":"_xlfn.XLOOKUP(AA11,一覧_品番!A:A,一覧_品番!E:E, \"\", FALSE)","v":"ナチュラル"}]
["■木縁添付位置",null,null,null,null,null,{"$f":"VLOOKUP(AA27,一覧_木縁!A2:C9,2,FALSE)","v":"未選択"},null,null,null,null,null,null,null,null,null,null,null,null,null,null,null,null,null,null,null,"塗装色"]
[null,null,null,null,null,null,null,null,null,null,null,null,null,null,null,null,null,null,null,null,null,null,null,null,null,null,"表面材",null,null,{"$f":"_xlfn.XLOOKUP(AA11,一覧_品番!A:A,一覧_品番!F:F, \"\", FALSE)","v":"UL-503B"}]
[]
[null,null,null,null,null,null,"↓プルダウンで選択下さい"]
["■裏面材",null,null,null,null,null,{"$f":"INDEX(一覧_裏面!A1:A2,A1)","v":"BK（バッカ―）"},null,null,null,null,null,null,null,null,null,null,null,null,null,null,null,null,null,null,null,null,null,null,{"$f":"G25","v":"BK（バッカ―）"}]
[null,null,null,null,null,null,null,null,null,null,null,null,null,null,null,null,null,null,null,null,null,null,null,null,null,null,"裏面材"]
[null,null,null,null,null,null,null,null,null,null,null,null,null,null,null,null,null,null,null,null,null,null,null,null,null,null,8]
[null,null,null,null,null,null,"↓300～1200ｍｍの間で入力下さい"]
["■サイズ",null,null,null,"縦（D)",null,null,null,null,null,null,null,null,null,null,null,null,null,null,null,null,null,"縦（D）"]
[null,null,null,null,null,null,null,null,null,null,null,null,null,null,null,null,null,null,null,null,null,null,{"$f":"SUM(G29)","v":0}]
[null,null,null,null,null,null,"↓600～2400ｍｍの間で入力下さい"]
[null,null,null,null,"横（W)",null,null,null,null,null,null,null,null,null,null,null,null,null,null,null,null,null,null,null,"㎜"]
[]
[]
["■数量"]
[null,null,null,null,null,null,null,null,null,null,null,null,null,null,null,null,null,null,null,null,null,null,null,null,null,null,null,null,null,null,null,null,{"$f":"SUM(G32)","v":0}]
[null,null,null,null,null,null,null,null,null,null,null,null,null,null,null,null,null,null,null,null,null,null,null,null,null,null,null,null,null,null,null,null,null,null,null,null,null,"㎜"]
["■希望納期",null,null,null,null,null,"　　年　 　月　   日",null,null,null,null,null,null,null,null,null,null,null,null,null,null,null,null,null,null,null,null,null,null,null,null,null,null,"横（W)"]
[]
[]
["■納入場所",null,null,null,null,null,"納入会社名",null,null,null,null,null,null,null,null,null,null,null,"　納入住所",null,null,null,null,null,null,null,null,null,null,null,null,null,null,null,null,null,null,null,"納入電話番号"]
[null,null,null,null,null,null,null,null,null,null,null,null,null,null,null,null,null,null,"〒"]

{"sheet":"RPS-504B-32","index":40,"n_rows":42,"n_cols":157,"rows_kept":42,"cut":false,"hidden":false,"merged":[[37,6,38,17],[37,33,37,36],[41,6,43,17],[41,18,43,37],[41,38,43,46],[35,32,36,36],[19,29,20,33],[20,6,21,17],[21,26,22,27],[21,29,22,33],[24,6,25,17],[24,29,25,33],[28,6,29,17],[28,22,28,24],[29,22,30,24],[31,6,32,17],[34,6,35,17],[10,6,11,17],[10,26,12,33],[12,6,13,17],[13,29,14,33],[15,29,16,33],[16,6,17,17],[17,26,18,28],[17,29,18,33],[2,22,2,28],[3,31,3,33],[5,0,6,3],[5,6,6,17],[8,0,9,3],[8,6,9,17]]}
[2,null,null,null,null,null,null,null,null,null,null,null,null,null,null,null,null,null,null,null,null,"■イビケン記入箇所"]
[null,null,null,null,null,null,null,null,null,null,null,null,null,null,null,null,null,null,null,null,null,null,"オーダーNo",null,null,null,null,null,null,null,"メイン",null,null,null,null,"W寸",null,"D寸",null,"形状",null,"木縁",null,"裏面"]
[null,null,null,null,null,null,null,null,null,null,null,null,null,null,null,null,null,null,null,null,null,null,null,null,null,null,null,null,null,{"$f":"AA11","v":"RPS-504B-32"},null,null,null,null,"-",{"$f":"G32","v":0},"-",{"$f":"G29","v":0},"-","IG","-",{"$f":"G21","v":"未選択"},"-",{"$f":"IF(AD25=\"BK（バッカー）\",\"BK\",IF(AD25=\"DS（表同柄）※オプション価格\",\"DS\",\"\"))","v":"BK"}]
["※オーダーシートは仕様指示書となります。注文書は別途ご用意ください。",null,null,null,null,null,null,null,null,null,null,null,null,null,null,null,null,null,null,null,null,null,null,null,null,null,null,null,null,null,null,null,null,null,null,null,null,null,null,null,null,null,null,null,null,null,null,null,null,null,null,null,null,null,null,null,null,null,null,null,null,null,null,null,null,null,null,null,null,null,null,null,null,null,null,null,null,null,null,null,null,null,null,null,null,null,null,null,null,null,null,null,null,null,null,null,null,null,null,null,null,null,null,null,null,null,null,null,null,null,null,null,null,null,null,null,null,null,null,null,null,null,null,null,null,null,null,null,null,null,null,null,null,null,null,null,null,null,null,null,null,null,null,null,null,null,null,null,null,null,null,null,null,null,null,null,"RPS-1981U-38"]
[]
["■発注日",null,null,null,null,null,"　　年　 　月　   日"]
[]
[]
["■発注者"]
[null,null,null,null,"会社名"]
[null,null,null,null,null,null,null,null,null,null,null,null,null,null,null,null,null,null,null,null,null,null,null,null,null,null,{"$f":"G17","v":"RPS-504B-32"}]
[null,null,null,null,"担当者名"]
[]
[null,null,null,null,"電話番号",null,null,null,null,null,null,null,null,null,null,null,null,null,null,null,null,null,null,null,null,null,null,null,null,{"$f":"_xlfn.XLOOKUP(AA11,一覧_品番!A:A,一覧_品番!B:B, \"\", FALSE)","v":32}]
[null,null,null,null,null,null,null,null,null,null,null,null,null,null,null,null,null,null,null,null,null,null,null,null,null,null,"厚み"]
[null,null,null,null,null,null,null,null,null,null,null,null,null,null,null,null,null,null,null,null,null,null,null,null,null,null,null,null,null,{"$f":"_xlfn.XLOOKUP(AA11,一覧_品番!A:A,一覧_品番!C:C, \"\", FALSE)","v":"ストレート"}]
["■品番",null,null,null,null,null,{"$f":"_xlfn.XLOOKUP(S17,注文書一覧!A:A,注文書一覧!B:B,\"\")","v":"RPS-504B-32"},null,null,null,null,null,null,null,null,null,null,null,77,null,null,null,null,null,null,null,"木縁形状"]
[null,null,null,null,null,null,null,null,null,null,null,null,null,null,null,null,null,null,null,null,null,null,null,null,null,null,"木縁位置",null,null,{"$f":"G21","v":"未選択"}]
[]
[null,null,null,null,null,null,"↓左のカーソルで選択下さい。→右下にイラストが表示されます",null,null,null,null,null,null,null,null,null,null,null,null,null,null,null,null,null,null,null,null,null,null,{"$f":"_xlfn.XLOOKUP(AA11,一覧_品番!A:A,一覧_品番!E:E, \"\", FALSE)","v":"ナチュラル"}]
["■木縁添付位置",null,null,null,null,null,{"$f":"VLOOKUP(AA27,一覧_木縁!A2:C9,2,FALSE)","v":"未選択"},null,null,null,null,null,null,null,null,null,null,null,null,null,null,null,null,null,null,null,"塗装色"]
[null,null,null,null,null,null,null,null,null,null,null,null,null,null,null,null,null,null,null,null,null,null,null,null,null,null,"表面材",null,null,{"$f":"_xlfn.XLOOKUP(AA11,一覧_品番!A:A,一覧_品番!F:F, \"\", FALSE)","v":"UL-504B"}]
[]
[null,null,null,null,null,null,"↓プルダウンで選択下さい"]
["■裏面材",null,null,null,null,null,{"$f":"INDEX(一覧_裏面!A1:A2,A1)","v":"BK（バッカ―）"},null,null,null,null,null,null,null,null,null,null,null,null,null,null,null,null,null,null,null,null,null,null,{"$f":"G25","v":"BK（バッカ―）"}]
[null,null,null,null,null,null,null,null,null,null,null,null,null,null,null,null,null,null,null,null,null,null,null,null,null,null,"裏面材"]
[null,null,null,null,null,null,null,null,null,null,null,null,null,null,null,null,null,null,null,null,null,null,null,null,null,null,8]
[null,null,null,null,null,null,"↓300～1200ｍｍの間で入力下さい"]
["■サイズ",null,null,null,"縦（D)",null,null,null,null,null,null,null,null,null,null,null,null,null,null,null,null,null,"縦（D）"]
[null,null,null,null,null,null,null,null,null,null,null,null,null,null,null,null,null,null,null,null,null,null,{"$f":"SUM(G29)","v":0}]
[null,null,null,null,null,null,"↓600～2400ｍｍの間で入力下さい"]
[null,null,null,null,"横（W)",null,null,null,null,null,null,null,null,null,null,null,null,null,null,null,null,null,null,null,"㎜"]
[]
[]
["■数量"]
[null,null,null,null,null,null,null,null,null,null,null,null,null,null,null,null,null,null,null,null,null,null,null,null,null,null,null,null,null,null,null,null,{"$f":"SUM(G32)","v":0}]
[null,null,null,null,null,null,null,null,null,null,null,null,null,null,null,null,null,null,null,null,null,null,null,null,null,null,null,null,null,null,null,null,null,null,null,null,null,"㎜"]
["■希望納期",null,null,null,null,null,"　　年　 　月　   日",null,null,null,null,null,null,null,null,null,null,null,null,null,null,null,null,null,null,null,null,null,null,null,null,null,null,"横（W)"]
[]
[]
["■納入場所",null,null,null,null,null,"納入会社名",null,null,null,null,null,null,null,null,null,null,null,"　納入住所",null,null,null,null,null,null,null,null,null,null,null,null,null,null,null,null,null,null,null,"納入電話番号"]
[null,null,null,null,null,null,null,null,null,null,null,null,null,null,null,null,null,null,"〒"]

{"sheet":"RP-504B-32","index":41,"n_rows":42,"n_cols":157,"rows_kept":42,"cut":false,"hidden":false,"merged":[[37,6,38,17],[37,33,37,36],[41,6,43,17],[41,18,43,37],[41,38,43,46],[35,32,36,36],[19,29,20,33],[20,6,21,17],[21,26,22,27],[21,29,22,33],[24,6,25,17],[24,29,25,33],[28,6,29,17],[28,22,28,24],[29,22,30,24],[31,6,32,17],[34,6,35,17],[10,6,11,17],[10,26,12,33],[12,6,13,17],[13,29,14,33],[15,29,16,33],[16,6,17,17],[17,26,18,28],[17,29,18,33],[2,22,2,28],[3,31,3,33],[5,0,6,3],[5,6,6,17],[8,0,9,3],[8,6,9,17]]}
[2,null,null,null,null,null,null,null,null,null,null,null,null,null,null,null,null,null,null,null,null,"■イビケン記入箇所"]
[null,null,null,null,null,null,null,null,null,null,null,null,null,null,null,null,null,null,null,null,null,null,"オーダーNo",null,null,null,null,null,null,null,"メイン",null,null,null,null,"W寸",null,"D寸",null,"形状",null,"木縁",null,"裏面"]
[null,null,null,null,null,null,null,null,null,null,null,null,null,null,null,null,null,null,null,null,null,null,null,null,null,null,null,null,null,{"$f":"AA11","v":"RP-504B-32"},null,null,null,null,"-",{"$f":"G32","v":0},"-",{"$f":"G29","v":0},"-","IG","-",{"$f":"G21","v":"未選択"},"-",{"$f":"IF(AD25=\"BK（バッカー）\",\"BK\",IF(AD25=\"DS（表同柄）※オプション価格\",\"DS\",\"\"))","v":"BK"}]
["※オーダーシートは仕様指示書となります。注文書は別途ご用意ください。",null,null,null,null,null,null,null,null,null,null,null,null,null,null,null,null,null,null,null,null,null,null,null,null,null,null,null,null,null,null,null,null,null,null,null,null,null,null,null,null,null,null,null,null,null,null,null,null,null,null,null,null,null,null,null,null,null,null,null,null,null,null,null,null,null,null,null,null,null,null,null,null,null,null,null,null,null,null,null,null,null,null,null,null,null,null,null,null,null,null,null,null,null,null,null,null,null,null,null,null,null,null,null,null,null,null,null,null,null,null,null,null,null,null,null,null,null,null,null,null,null,null,null,null,null,null,null,null,null,null,null,null,null,null,null,null,null,null,null,null,null,null,null,null,null,null,null,null,null,null,null,null,null,null,null,"RPS-1981U-38"]
[]
["■発注日",null,null,null,null,null,"　　年　 　月　   日"]
[]
[]
["■発注者"]
[null,null,null,null,"会社名"]
[null,null,null,null,null,null,null,null,null,null,null,null,null,null,null,null,null,null,null,null,null,null,null,null,null,null,{"$f":"G17","v":"RP-504B-32"}]
[null,null,null,null,"担当者名"]
[]
[null,null,null,null,"電話番号",null,null,null,null,null,null,null,null,null,null,null,null,null,null,null,null,null,null,null,null,null,null,null,null,{"$f":"_xlfn.XLOOKUP(AA11,一覧_品番!A:A,一覧_品番!B:B, \"\", FALSE)","v":32}]
[null,null,null,null,null,null,null,null,null,null,null,null,null,null,null,null,null,null,null,null,null,null,null,null,null,null,"厚み"]
[null,null,null,null,null,null,null,null,null,null,null,null,null,null,null,null,null,null,null,null,null,null,null,null,null,null,null,null,null,{"$f":"_xlfn.XLOOKUP(AA11,一覧_品番!A:A,一覧_品番!C:C, \"\", FALSE)","v":"ライブエッジ"}]
["■品番",null,null,null,null,null,{"$f":"_xlfn.XLOOKUP(S17,注文書一覧!A:A,注文書一覧!B:B,\"\")","v":"RP-504B-32"},null,null,null,null,null,null,null,null,null,null,null,79,null,null,null,null,null,null,null,"木縁形状"]
[null,null,null,null,null,null,null,null,null,null,null,null,null,null,null,null,null,null,null,null,null,null,null,null,null,null,"木縁位置",null,null,{"$f":"G21","v":"未選択"}]
[]
[null,null,null,null,null,null,"↓左のカーソルで選択下さい。→右下にイラストが表示されます",null,null,null,null,null,null,null,null,null,null,null,null,null,null,null,null,null,null,null,null,null,null,{"$f":"_xlfn.XLOOKUP(AA11,一覧_品番!A:A,一覧_品番!E:E, \"\", FALSE)","v":"ナチュラル"}]
["■木縁添付位置",null,null,null,null,null,{"$f":"VLOOKUP(AA27,一覧_木縁!A2:C9,2,FALSE)","v":"未選択"},null,null,null,null,null,null,null,null,null,null,null,null,null,null,null,null,null,null,null,"塗装色"]
[null,null,null,null,null,null,null,null,null,null,null,null,null,null,null,null,null,null,null,null,null,null,null,null,null,null,"表面材",null,null,{"$f":"_xlfn.XLOOKUP(AA11,一覧_品番!A:A,一覧_品番!F:F, \"\", FALSE)","v":"UL-504B"}]
[]
[null,null,null,null,null,null,"↓プルダウンで選択下さい"]
["■裏面材",null,null,null,null,null,{"$f":"INDEX(一覧_裏面!A1:A2,A1)","v":"BK（バッカ―）"},null,null,null,null,null,null,null,null,null,null,null,null,null,null,null,null,null,null,null,null,null,null,{"$f":"G25","v":"BK（バッカ―）"}]
[null,null,null,null,null,null,null,null,null,null,null,null,null,null,null,null,null,null,null,null,null,null,null,null,null,null,"裏面材"]
[null,null,null,null,null,null,null,null,null,null,null,null,null,null,null,null,null,null,null,null,null,null,null,null,null,null,8]
[null,null,null,null,null,null,"↓300～1200ｍｍの間で入力下さい"]
["■サイズ",null,null,null,"縦（D)",null,null,null,null,null,null,null,null,null,null,null,null,null,null,null,null,null,"縦（D）"]
[null,null,null,null,null,null,null,null,null,null,null,null,null,null,null,null,null,null,null,null,null,null,{"$f":"SUM(G29)","v":0}]
[null,null,null,null,null,null,"↓600～2400ｍｍの間で入力下さい"]
[null,null,null,null,"横（W)",null,null,null,null,null,null,null,null,null,null,null,null,null,null,null,null,null,null,null,"㎜"]
[]
[]
["■数量"]
[null,null,null,null,null,null,null,null,null,null,null,null,null,null,null,null,null,null,null,null,null,null,null,null,null,null,null,null,null,null,null,null,{"$f":"SUM(G32)","v":0}]
[null,null,null,null,null,null,null,null,null,null,null,null,null,null,null,null,null,null,null,null,null,null,null,null,null,null,null,null,null,null,null,null,null,null,null,null,null,"㎜"]
["■希望納期",null,null,null,null,null,"　　年　 　月　   日",null,null,null,null,null,null,null,null,null,null,null,null,null,null,null,null,null,null,null,null,null,null,null,null,null,null,"横（W)"]
[]
[]
["■納入場所",null,null,null,null,null,"納入会社名",null,null,null,null,null,null,null,null,null,null,null,"　納入住所",null,null,null,null,null,null,null,null,null,null,null,null,null,null,null,null,null,null,null,"納入電話番号"]
[null,null,null,null,null,null,null,null,null,null,null,null,null,null,null,null,null,null,"〒"]

{"sheet":"RPS-505B-32","index":42,"n_rows":42,"n_cols":157,"rows_kept":42,"cut":false,"hidden":false,"merged":[[37,6,38,17],[37,33,37,36],[41,6,43,17],[41,18,43,37],[41,38,43,46],[35,32,36,36],[19,29,20,33],[20,6,21,17],[21,26,22,27],[21,29,22,33],[24,6,25,17],[24,29,25,33],[28,6,29,17],[28,22,28,24],[29,22,30,24],[31,6,32,17],[34,6,35,17],[10,6,11,17],[10,26,12,33],[12,6,13,17],[13,29,14,33],[15,29,16,33],[16,6,17,17],[17,26,18,28],[17,29,18,33],[2,22,2,28],[3,31,3,33],[5,0,6,3],[5,6,6,17],[8,0,9,3],[8,6,9,17]]}
[2,null,null,null,null,null,null,null,null,null,null,null,null,null,null,null,null,null,null,null,null,"■イビケン記入箇所"]
[null,null,null,null,null,null,null,null,null,null,null,null,null,null,null,null,null,null,null,null,null,null,"オーダーNo",null,null,null,null,null,null,null,"メイン",null,null,null,null,"W寸",null,"D寸",null,"形状",null,"木縁",null,"裏面"]
[null,null,null,null,null,null,null,null,null,null,null,null,null,null,null,null,null,null,null,null,null,null,null,null,null,null,null,null,null,{"$f":"AA11","v":"RPS-505B-32"},null,null,null,null,"-",{"$f":"G32","v":0},"-",{"$f":"G29","v":0},"-","IG","-",{"$f":"G21","v":"未選択"},"-",{"$f":"IF(AD25=\"BK（バッカー）\",\"BK\",IF(AD25=\"DS（表同柄）※オプション価格\",\"DS\",\"\"))","v":"BK"}]
["※オーダーシートは仕様指示書となります。注文書は別途ご用意ください。",null,null,null,null,null,null,null,null,null,null,null,null,null,null,null,null,null,null,null,null,null,null,null,null,null,null,null,null,null,null,null,null,null,null,null,null,null,null,null,null,null,null,null,null,null,null,null,null,null,null,null,null,null,null,null,null,null,null,null,null,null,null,null,null,null,null,null,null,null,null,null,null,null,null,null,null,null,null,null,null,null,null,null,null,null,null,null,null,null,null,null,null,null,null,null,null,null,null,null,null,null,null,null,null,null,null,null,null,null,null,null,null,null,null,null,null,null,null,null,null,null,null,null,null,null,null,null,null,null,null,null,null,null,null,null,null,null,null,null,null,null,null,null,null,null,null,null,null,null,null,null,null,null,null,null,"RPS-1981U-38"]
[]
["■発注日",null,null,null,null,null,"　　年　 　月　   日"]
[]
[]
["■発注者"]
[null,null,null,null,"会社名"]
[null,null,null,null,null,null,null,null,null,null,null,null,null,null,null,null,null,null,null,null,null,null,null,null,null,null,{"$f":"G17","v":"RPS-505B-32"}]
[null,null,null,null,"担当者名"]
[]
[null,null,null,null,"電話番号",null,null,null,null,null,null,null,null,null,null,null,null,null,null,null,null,null,null,null,null,null,null,null,null,{"$f":"_xlfn.XLOOKUP(AA11,一覧_品番!A:A,一覧_品番!B:B, \"\", FALSE)","v":32}]
[null,null,null,null,null,null,null,null,null,null,null,null,null,null,null,null,null,null,null,null,null,null,null,null,null,null,"厚み"]
[null,null,null,null,null,null,null,null,null,null,null,null,null,null,null,null,null,null,null,null,null,null,null,null,null,null,null,null,null,{"$f":"_xlfn.XLOOKUP(AA11,一覧_品番!A:A,一覧_品番!C:C, \"\", FALSE)","v":"ストレート"}]
["■品番",null,null,null,null,null,{"$f":"_xlfn.XLOOKUP(S17,注文書一覧!A:A,注文書一覧!B:B,\"\")","v":"RPS-505B-32"},null,null,null,null,null,null,null,null,null,null,null,81,null,null,null,null,null,null,null,"木縁形状"]
[null,null,null,null,null,null,null,null,null,null,null,null,null,null,null,null,null,null,null,null,null,null,null,null,null,null,"木縁位置",null,null,{"$f":"G21","v":"未選択"}]
[]
[null,null,null,null,null,null,"↓左のカーソルで選択下さい。→右下にイラストが表示されます",null,null,null,null,null,null,null,null,null,null,null,null,null,null,null,null,null,null,null,null,null,null,{"$f":"_xlfn.XLOOKUP(AA11,一覧_品番!A:A,一覧_品番!E:E, \"\", FALSE)","v":"ブラウン"}]
["■木縁添付位置",null,null,null,null,null,{"$f":"VLOOKUP(AA27,一覧_木縁!A2:C9,2,FALSE)","v":"未選択"},null,null,null,null,null,null,null,null,null,null,null,null,null,null,null,null,null,null,null,"塗装色"]
[null,null,null,null,null,null,null,null,null,null,null,null,null,null,null,null,null,null,null,null,null,null,null,null,null,null,"表面材",null,null,{"$f":"_xlfn.XLOOKUP(AA11,一覧_品番!A:A,一覧_品番!F:F, \"\", FALSE)","v":"UL-505B"}]
[]
[null,null,null,null,null,null,"↓プルダウンで選択下さい"]
["■裏面材",null,null,null,null,null,{"$f":"INDEX(一覧_裏面!A1:A2,A1)","v":"BK（バッカ―）"},null,null,null,null,null,null,null,null,null,null,null,null,null,null,null,null,null,null,null,null,null,null,{"$f":"G25","v":"BK（バッカ―）"}]
[null,null,null,null,null,null,null,null,null,null,null,null,null,null,null,null,null,null,null,null,null,null,null,null,null,null,"裏面材"]
[null,null,null,null,null,null,null,null,null,null,null,null,null,null,null,null,null,null,null,null,null,null,null,null,null,null,8]
[null,null,null,null,null,null,"↓300～1200ｍｍの間で入力下さい"]
["■サイズ",null,null,null,"縦（D)",null,null,null,null,null,null,null,null,null,null,null,null,null,null,null,null,null,"縦（D）"]
[null,null,null,null,null,null,null,null,null,null,null,null,null,null,null,null,null,null,null,null,null,null,{"$f":"SUM(G29)","v":0}]
[null,null,null,null,null,null,"↓600～2400ｍｍの間で入力下さい"]
[null,null,null,null,"横（W)",null,null,null,null,null,null,null,null,null,null,null,null,null,null,null,null,null,null,null,"㎜"]
[]
[]
["■数量"]
[null,null,null,null,null,null,null,null,null,null,null,null,null,null,null,null,null,null,null,null,null,null,null,null,null,null,null,null,null,null,null,null,{"$f":"SUM(G32)","v":0}]
[null,null,null,null,null,null,null,null,null,null,null,null,null,null,null,null,null,null,null,null,null,null,null,null,null,null,null,null,null,null,null,null,null,null,null,null,null,"㎜"]
["■希望納期",null,null,null,null,null,"　　年　 　月　   日",null,null,null,null,null,null,null,null,null,null,null,null,null,null,null,null,null,null,null,null,null,null,null,null,null,null,"横（W)"]
[]
[]
["■納入場所",null,null,null,null,null,"納入会社名",null,null,null,null,null,null,null,null,null,null,null,"　納入住所",null,null,null,null,null,null,null,null,null,null,null,null,null,null,null,null,null,null,null,"納入電話番号"]
[null,null,null,null,null,null,null,null,null,null,null,null,null,null,null,null,null,null,"〒"]

{"sheet":"RP-505B-32","index":43,"n_rows":42,"n_cols":157,"rows_kept":42,"cut":false,"hidden":false,"merged":[[37,6,38,17],[37,33,37,36],[41,6,43,17],[41,18,43,37],[41,38,43,46],[35,32,36,36],[19,29,20,33],[20,6,21,17],[21,26,22,27],[21,29,22,33],[24,6,25,17],[24,29,25,33],[28,6,29,17],[28,22,28,24],[29,22,30,24],[31,6,32,17],[34,6,35,17],[10,6,11,17],[10,26,12,33],[12,6,13,17],[13,29,14,33],[15,29,16,33],[16,6,17,17],[17,26,18,28],[17,29,18,33],[2,22,2,28],[3,31,3,33],[5,0,6,3],[5,6,6,17],[8,0,9,3],[8,6,9,17]]}
[2,null,null,null,null,null,null,null,null,null,null,null,null,null,null,null,null,null,null,null,null,"■イビケン記入箇所"]
[null,null,null,null,null,null,null,null,null,null,null,null,null,null,null,null,null,null,null,null,null,null,"オーダーNo",null,null,null,null,null,null,null,"メイン",null,null,null,null,"W寸",null,"D寸",null,"形状",null,"木縁",null,"裏面"]
[null,null,null,null,null,null,null,null,null,null,null,null,null,null,null,null,null,null,null,null,null,null,null,null,null,null,null,null,null,{"$f":"AA11","v":"RP-505B-32"},null,null,null,null,"-",{"$f":"G32","v":0},"-",{"$f":"G29","v":0},"-","IG","-",{"$f":"G21","v":"未選択"},"-",{"$f":"IF(AD25=\"BK（バッカー）\",\"BK\",IF(AD25=\"DS（表同柄）※オプション価格\",\"DS\",\"\"))","v":"BK"}]
["※オーダーシートは仕様指示書となります。注文書は別途ご用意ください。",null,null,null,null,null,null,null,null,null,null,null,null,null,null,null,null,null,null,null,null,null,null,null,null,null,null,null,null,null,null,null,null,null,null,null,null,null,null,null,null,null,null,null,null,null,null,null,null,null,null,null,null,null,null,null,null,null,null,null,null,null,null,null,null,null,null,null,null,null,null,null,null,null,null,null,null,null,null,null,null,null,null,null,null,null,null,null,null,null,null,null,null,null,null,null,null,null,null,null,null,null,null,null,null,null,null,null,null,null,null,null,null,null,null,null,null,null,null,null,null,null,null,null,null,null,null,null,null,null,null,null,null,null,null,null,null,null,null,null,null,null,null,null,null,null,null,null,null,null,null,null,null,null,null,null,"RPS-1981U-38"]
[]
["■発注日",null,null,null,null,null,"　　年　 　月　   日"]
[]
[]
["■発注者"]
[null,null,null,null,"会社名"]
[null,null,null,null,null,null,null,null,null,null,null,null,null,null,null,null,null,null,null,null,null,null,null,null,null,null,{"$f":"G17","v":"RP-505B-32"}]
[null,null,null,null,"担当者名"]
[]
[null,null,null,null,"電話番号",null,null,null,null,null,null,null,null,null,null,null,null,null,null,null,null,null,null,null,null,null,null,null,null,{"$f":"_xlfn.XLOOKUP(AA11,一覧_品番!A:A,一覧_品番!B:B, \"\", FALSE)","v":32}]
[null,null,null,null,null,null,null,null,null,null,null,null,null,null,null,null,null,null,null,null,null,null,null,null,null,null,"厚み"]
[null,null,null,null,null,null,null,null,null,null,null,null,null,null,null,null,null,null,null,null,null,null,null,null,null,null,null,null,null,{"$f":"_xlfn.XLOOKUP(AA11,一覧_品番!A:A,一覧_品番!C:C, \"\", FALSE)","v":"ライブエッジ"}]
["■品番",null,null,null,null,null,{"$f":"_xlfn.XLOOKUP(S17,注文書一覧!A:A,注文書一覧!B:B,\"\")","v":"RP-505B-32"},null,null,null,null,null,null,null,null,null,null,null,83,null,null,null,null,null,null,null,"木縁形状"]
[null,null,null,null,null,null,null,null,null,null,null,null,null,null,null,null,null,null,null,null,null,null,null,null,null,null,"木縁位置",null,null,{"$f":"G21","v":"未選択"}]
[]
[null,null,null,null,null,null,"↓左のカーソルで選択下さい。→右下にイラストが表示されます",null,null,null,null,null,null,null,null,null,null,null,null,null,null,null,null,null,null,null,null,null,null,{"$f":"_xlfn.XLOOKUP(AA11,一覧_品番!A:A,一覧_品番!E:E, \"\", FALSE)","v":"ブラウン"}]
["■木縁添付位置",null,null,null,null,null,{"$f":"VLOOKUP(AA27,一覧_木縁!A2:C9,2,FALSE)","v":"未選択"},null,null,null,null,null,null,null,null,null,null,null,null,null,null,null,null,null,null,null,"塗装色"]
[null,null,null,null,null,null,null,null,null,null,null,null,null,null,null,null,null,null,null,null,null,null,null,null,null,null,"表面材",null,null,{"$f":"_xlfn.XLOOKUP(AA11,一覧_品番!A:A,一覧_品番!F:F, \"\", FALSE)","v":"UL-505B"}]
[]
[null,null,null,null,null,null,"↓プルダウンで選択下さい"]
["■裏面材",null,null,null,null,null,{"$f":"INDEX(一覧_裏面!A1:A2,A1)","v":"BK（バッカ―）"},null,null,null,null,null,null,null,null,null,null,null,null,null,null,null,null,null,null,null,null,null,null,{"$f":"G25","v":"BK（バッカ―）"}]
[null,null,null,null,null,null,null,null,null,null,null,null,null,null,null,null,null,null,null,null,null,null,null,null,null,null,"裏面材"]
[null,null,null,null,null,null,null,null,null,null,null,null,null,null,null,null,null,null,null,null,null,null,null,null,null,null,8]
[null,null,null,null,null,null,"↓300～1200ｍｍの間で入力下さい"]
["■サイズ",null,null,null,"縦（D)",null,null,null,null,null,null,null,null,null,null,null,null,null,null,null,null,null,"縦（D）"]
[null,null,null,null,null,null,null,null,null,null,null,null,null,null,null,null,null,null,null,null,null,null,{"$f":"SUM(G29)","v":0}]
[null,null,null,null,null,null,"↓600～2400ｍｍの間で入力下さい"]
[null,null,null,null,"横（W)",null,null,null,null,null,null,null,null,null,null,null,null,null,null,null,null,null,null,null,"㎜"]
[]
[]
["■数量"]
[null,null,null,null,null,null,null,null,null,null,null,null,null,null,null,null,null,null,null,null,null,null,null,null,null,null,null,null,null,null,null,null,{"$f":"SUM(G32)","v":0}]
[null,null,null,null,null,null,null,null,null,null,null,null,null,null,null,null,null,null,null,null,null,null,null,null,null,null,null,null,null,null,null,null,null,null,null,null,null,"㎜"]
["■希望納期",null,null,null,null,null,"　　年　 　月　   日",null,null,null,null,null,null,null,null,null,null,null,null,null,null,null,null,null,null,null,null,null,null,null,null,null,null,"横（W)"]
[]
[]
["■納入場所",null,null,null,null,null,"納入会社名",null,null,null,null,null,null,null,null,null,null,null,"　納入住所",null,null,null,null,null,null,null,null,null,null,null,null,null,null,null,null,null,null,null,"納入電話番号"]
[null,null,null,null,null,null,null,null,null,null,null,null,null,null,null,null,null,null,"〒"]

{"sheet":"RPS-506B-32","index":44,"n_rows":42,"n_cols":157,"rows_kept":42,"cut":false,"hidden":false,"merged":[[37,6,38,17],[37,33,37,36],[41,6,43,17],[41,18,43,37],[41,38,43,46],[35,32,36,36],[19,29,20,33],[20,6,21,17],[21,26,22,27],[21,29,22,33],[24,6,25,17],[24,29,25,33],[28,6,29,17],[28,22,28,24],[29,22,30,24],[31,6,32,17],[34,6,35,17],[10,6,11,17],[10,26,12,33],[12,6,13,17],[13,29,14,33],[15,29,16,33],[16,6,17,17],[17,26,18,28],[17,29,18,33],[2,22,2,28],[3,31,3,33],[5,0,6,3],[5,6,6,17],[8,0,9,3],[8,6,9,17]]}
[2,null,null,null,null,null,null,null,null,null,null,null,null,null,null,null,null,null,null,null,null,"■イビケン記入箇所"]
[null,null,null,null,null,null,null,null,null,null,null,null,null,null,null,null,null,null,null,null,null,null,"オーダーNo",null,null,null,null,null,null,null,"メイン",null,null,null,null,"W寸",null,"D寸",null,"形状",null,"木縁",null,"裏面"]
[null,null,null,null,null,null,null,null,null,null,null,null,null,null,null,null,null,null,null,null,null,null,null,null,null,null,null,null,null,{"$f":"AA11","v":"RPS-506B-32"},null,null,null,null,"-",{"$f":"G32","v":0},"-",{"$f":"G29","v":0},"-","IG","-",{"$f":"G21","v":"未選択"},"-",{"$f":"IF(AD25=\"BK（バッカー）\",\"BK\",IF(AD25=\"DS（表同柄）※オプション価格\",\"DS\",\"\"))","v":"BK"}]
["※オーダーシートは仕様指示書となります。注文書は別途ご用意ください。",null,null,null,null,null,null,null,null,null,null,null,null,null,null,null,null,null,null,null,null,null,null,null,null,null,null,null,null,null,null,null,null,null,null,null,null,null,null,null,null,null,null,null,null,null,null,null,null,null,null,null,null,null,null,null,null,null,null,null,null,null,null,null,null,null,null,null,null,null,null,null,null,null,null,null,null,null,null,null,null,null,null,null,null,null,null,null,null,null,null,null,null,null,null,null,null,null,null,null,null,null,null,null,null,null,null,null,null,null,null,null,null,null,null,null,null,null,null,null,null,null,null,null,null,null,null,null,null,null,null,null,null,null,null,null,null,null,null,null,null,null,null,null,null,null,null,null,null,null,null,null,null,null,null,null,"RPS-1981U-38"]
[]
["■発注日",null,null,null,null,null,"　　年　 　月　   日"]
[]
[]
["■発注者"]
[null,null,null,null,"会社名"]
[null,null,null,null,null,null,null,null,null,null,null,null,null,null,null,null,null,null,null,null,null,null,null,null,null,null,{"$f":"G17","v":"RPS-506B-32"}]
[null,null,null,null,"担当者名"]
[]
[null,null,null,null,"電話番号",null,null,null,null,null,null,null,null,null,null,null,null,null,null,null,null,null,null,null,null,null,null,null,null,{"$f":"_xlfn.XLOOKUP(AA11,一覧_品番!A:A,一覧_品番!B:B, \"\", FALSE)","v":32}]
[null,null,null,null,null,null,null,null,null,null,null,null,null,null,null,null,null,null,null,null,null,null,null,null,null,null,"厚み"]
[null,null,null,null,null,null,null,null,null,null,null,null,null,null,null,null,null,null,null,null,null,null,null,null,null,null,null,null,null,{"$f":"_xlfn.XLOOKUP(AA11,一覧_品番!A:A,一覧_品番!C:C, \"\", FALSE)","v":"ストレート"}]
["■品番",null,null,null,null,null,{"$f":"_xlfn.XLOOKUP(S17,注文書一覧!A:A,注文書一覧!B:B,\"\")","v":"RPS-506B-32"},null,null,null,null,null,null,null,null,null,null,null,85,null,null,null,null,null,null,null,"木縁形状"]
[null,null,null,null,null,null,null,null,null,null,null,null,null,null,null,null,null,null,null,null,null,null,null,null,null,null,"木縁位置",null,null,{"$f":"G21","v":"未選択"}]
[]
[null,null,null,null,null,null,"↓左のカーソルで選択下さい。→右下にイラストが表示されます",null,null,null,null,null,null,null,null,null,null,null,null,null,null,null,null,null,null,null,null,null,null,{"$f":"_xlfn.XLOOKUP(AA11,一覧_品番!A:A,一覧_品番!E:E, \"\", FALSE)","v":"ブラウン"}]
["■木縁添付位置",null,null,null,null,null,{"$f":"VLOOKUP(AA27,一覧_木縁!A2:C9,2,FALSE)","v":"未選択"},null,null,null,null,null,null,null,null,null,null,null,null,null,null,null,null,null,null,null,"塗装色"]
[null,null,null,null,null,null,null,null,null,null,null,null,null,null,null,null,null,null,null,null,null,null,null,null,null,null,"表面材",null,null,{"$f":"_xlfn.XLOOKUP(AA11,一覧_品番!A:A,一覧_品番!F:F, \"\", FALSE)","v":"UL-506B"}]
[]
[null,null,null,null,null,null,"↓プルダウンで選択下さい"]
["■裏面材",null,null,null,null,null,{"$f":"INDEX(一覧_裏面!A1:A2,A1)","v":"BK（バッカ―）"},null,null,null,null,null,null,null,null,null,null,null,null,null,null,null,null,null,null,null,null,null,null,{"$f":"G25","v":"BK（バッカ―）"}]
[null,null,null,null,null,null,null,null,null,null,null,null,null,null,null,null,null,null,null,null,null,null,null,null,null,null,"裏面材"]
[null,null,null,null,null,null,null,null,null,null,null,null,null,null,null,null,null,null,null,null,null,null,null,null,null,null,8]
[null,null,null,null,null,null,"↓300～1200ｍｍの間で入力下さい"]
["■サイズ",null,null,null,"縦（D)",null,null,null,null,null,null,null,null,null,null,null,null,null,null,null,null,null,"縦（D）"]
[null,null,null,null,null,null,null,null,null,null,null,null,null,null,null,null,null,null,null,null,null,null,{"$f":"SUM(G29)","v":0}]
[null,null,null,null,null,null,"↓600～2400ｍｍの間で入力下さい"]
[null,null,null,null,"横（W)",null,null,null,null,null,null,null,null,null,null,null,null,null,null,null,null,null,null,null,"㎜"]
[]
[]
["■数量"]
[null,null,null,null,null,null,null,null,null,null,null,null,null,null,null,null,null,null,null,null,null,null,null,null,null,null,null,null,null,null,null,null,{"$f":"SUM(G32)","v":0}]
[null,null,null,null,null,null,null,null,null,null,null,null,null,null,null,null,null,null,null,null,null,null,null,null,null,null,null,null,null,null,null,null,null,null,null,null,null,"㎜"]
["■希望納期",null,null,null,null,null,"　　年　 　月　   日",null,null,null,null,null,null,null,null,null,null,null,null,null,null,null,null,null,null,null,null,null,null,null,null,null,null,"横（W)"]
[]
[]
["■納入場所",null,null,null,null,null,"納入会社名",null,null,null,null,null,null,null,null,null,null,null,"　納入住所",null,null,null,null,null,null,null,null,null,null,null,null,null,null,null,null,null,null,null,"納入電話番号"]
[null,null,null,null,null,null,null,null,null,null,null,null,null,null,null,null,null,null,"〒"]

{"sheet":"RP-506B-32","index":45,"n_rows":42,"n_cols":157,"rows_kept":42,"cut":false,"hidden":false,"merged":[[37,6,38,17],[37,33,37,36],[41,6,43,17],[41,18,43,37],[41,38,43,46],[35,32,36,36],[19,29,20,33],[20,6,21,17],[21,26,22,27],[21,29,22,33],[24,6,25,17],[24,29,25,33],[28,6,29,17],[28,22,28,24],[29,22,30,24],[31,6,32,17],[34,6,35,17],[10,6,11,17],[10,26,12,33],[12,6,13,17],[13,29,14,33],[15,29,16,33],[16,6,17,17],[17,26,18,28],[17,29,18,33],[2,22,2,28],[3,31,3,33],[5,0,6,3],[5,6,6,17],[8,0,9,3],[8,6,9,17]]}
[2,null,null,null,null,null,null,null,null,null,null,null,null,null,null,null,null,null,null,null,null,"■イビケン記入箇所"]
[null,null,null,null,null,null,null,null,null,null,null,null,null,null,null,null,null,null,null,null,null,null,"オーダーNo",null,null,null,null,null,null,null,"メイン",null,null,null,null,"W寸",null,"D寸",null,"形状",null,"木縁",null,"裏面"]
[null,null,null,null,null,null,null,null,null,null,null,null,null,null,null,null,null,null,null,null,null,null,null,null,null,null,null,null,null,{"$f":"AA11","v":"RP-506B-32"},null,null,null,null,"-",{"$f":"G32","v":0},"-",{"$f":"G29","v":0},"-","IG","-",{"$f":"G21","v":"未選択"},"-",{"$f":"IF(AD25=\"BK（バッカー）\",\"BK\",IF(AD25=\"DS（表同柄）※オプション価格\",\"DS\",\"\"))","v":"BK"}]
["※オーダーシートは仕様指示書となります。注文書は別途ご用意ください。",null,null,null,null,null,null,null,null,null,null,null,null,null,null,null,null,null,null,null,null,null,null,null,null,null,null,null,null,null,null,null,null,null,null,null,null,null,null,null,null,null,null,null,null,null,null,null,null,null,null,null,null,null,null,null,null,null,null,null,null,null,null,null,null,null,null,null,null,null,null,null,null,null,null,null,null,null,null,null,null,null,null,null,null,null,null,null,null,null,null,null,null,null,null,null,null,null,null,null,null,null,null,null,null,null,null,null,null,null,null,null,null,null,null,null,null,null,null,null,null,null,null,null,null,null,null,null,null,null,null,null,null,null,null,null,null,null,null,null,null,null,null,null,null,null,null,null,null,null,null,null,null,null,null,null,"RPS-1981U-38"]
[]
["■発注日",null,null,null,null,null,"　　年　 　月　   日"]
[]
[]
["■発注者"]
[null,null,null,null,"会社名"]
[null,null,null,null,null,null,null,null,null,null,null,null,null,null,null,null,null,null,null,null,null,null,null,null,null,null,{"$f":"G17","v":"RP-506B-32"}]
[null,null,null,null,"担当者名"]
[]
[null,null,null,null,"電話番号",null,null,null,null,null,null,null,null,null,null,null,null,null,null,null,null,null,null,null,null,null,null,null,null,{"$f":"_xlfn.XLOOKUP(AA11,一覧_品番!A:A,一覧_品番!B:B, \"\", FALSE)","v":32}]
[null,null,null,null,null,null,null,null,null,null,null,null,null,null,null,null,null,null,null,null,null,null,null,null,null,null,"厚み"]
[null,null,null,null,null,null,null,null,null,null,null,null,null,null,null,null,null,null,null,null,null,null,null,null,null,null,null,null,null,{"$f":"_xlfn.XLOOKUP(AA11,一覧_品番!A:A,一覧_品番!C:C, \"\", FALSE)","v":"ライブエッジ"}]
["■品番",null,null,null,null,null,{"$f":"_xlfn.XLOOKUP(S17,注文書一覧!A:A,注文書一覧!B:B,\"\")","v":"RP-506B-32"},null,null,null,null,null,null,null,null,null,null,null,87,null,null,null,null,null,null,null,"木縁形状"]
[null,null,null,null,null,null,null,null,null,null,null,null,null,null,null,null,null,null,null,null,null,null,null,null,null,null,"木縁位置",null,null,{"$f":"G21","v":"未選択"}]
[]
[null,null,null,null,null,null,"↓左のカーソルで選択下さい。→右下にイラストが表示されます",null,null,null,null,null,null,null,null,null,null,null,null,null,null,null,null,null,null,null,null,null,null,{"$f":"_xlfn.XLOOKUP(AA11,一覧_品番!A:A,一覧_品番!E:E, \"\", FALSE)","v":"ブラウン"}]
["■木縁添付位置",null,null,null,null,null,{"$f":"VLOOKUP(AA27,一覧_木縁!A2:C9,2,FALSE)","v":"未選択"},null,null,null,null,null,null,null,null,null,null,null,null,null,null,null,null,null,null,null,"塗装色"]
[null,null,null,null,null,null,null,null,null,null,null,null,null,null,null,null,null,null,null,null,null,null,null,null,null,null,"表面材",null,null,{"$f":"_xlfn.XLOOKUP(AA11,一覧_品番!A:A,一覧_品番!F:F, \"\", FALSE)","v":"UL-506B"}]
[]
[null,null,null,null,null,null,"↓プルダウンで選択下さい"]
["■裏面材",null,null,null,null,null,{"$f":"INDEX(一覧_裏面!A1:A2,A1)","v":"BK（バッカ―）"},null,null,null,null,null,null,null,null,null,null,null,null,null,null,null,null,null,null,null,null,null,null,{"$f":"G25","v":"BK（バッカ―）"}]
[null,null,null,null,null,null,null,null,null,null,null,null,null,null,null,null,null,null,null,null,null,null,null,null,null,null,"裏面材"]
[null,null,null,null,null,null,null,null,null,null,null,null,null,null,null,null,null,null,null,null,null,null,null,null,null,null,8]
[null,null,null,null,null,null,"↓300～1200ｍｍの間で入力下さい"]
["■サイズ",null,null,null,"縦（D)",null,null,null,null,null,null,null,null,null,null,null,null,null,null,null,null,null,"縦（D）"]
[null,null,null,null,null,null,null,null,null,null,null,null,null,null,null,null,null,null,null,null,null,null,{"$f":"SUM(G29)","v":0}]
[null,null,null,null,null,null,"↓600～2400ｍｍの間で入力下さい"]
[null,null,null,null,"横（W)",null,null,null,null,null,null,null,null,null,null,null,null,null,null,null,null,null,null,null,"㎜"]
[]
[]
["■数量"]
[null,null,null,null,null,null,null,null,null,null,null,null,null,null,null,null,null,null,null,null,null,null,null,null,null,null,null,null,null,null,null,null,{"$f":"SUM(G32)","v":0}]
[null,null,null,null,null,null,null,null,null,null,null,null,null,null,null,null,null,null,null,null,null,null,null,null,null,null,null,null,null,null,null,null,null,null,null,null,null,"㎜"]
["■希望納期",null,null,null,null,null,"　　年　 　月　   日",null,null,null,null,null,null,null,null,null,null,null,null,null,null,null,null,null,null,null,null,null,null,null,null,null,null,"横（W)"]
[]
[]
["■納入場所",null,null,null,null,null,"納入会社名",null,null,null,null,null,null,null,null,null,null,null,"　納入住所",null,null,null,null,null,null,null,null,null,null,null,null,null,null,null,null,null,null,null,"納入電話番号"]
[null,null,null,null,null,null,null,null,null,null,null,null,null,null,null,null,null,null,"〒"]

{"sheet":"RPS-507B-32","index":46,"n_rows":42,"n_cols":157,"rows_kept":42,"cut":false,"hidden":false,"merged":[[37,6,38,17],[37,33,37,36],[41,6,43,17],[41,18,43,37],[41,38,43,46],[35,32,36,36],[19,29,20,33],[20,6,21,17],[21,26,22,27],[21,29,22,33],[24,6,25,17],[24,29,25,33],[28,6,29,17],[28,22,28,24],[29,22,30,24],[31,6,32,17],[34,6,35,17],[10,6,11,17],[10,26,12,33],[12,6,13,17],[13,29,14,33],[15,29,16,33],[16,6,17,17],[17,26,18,28],[17,29,18,33],[2,22,2,28],[3,31,3,33],[5,0,6,3],[5,6,6,17],[8,0,9,3],[8,6,9,17]]}
[2,null,null,null,null,null,null,null,null,null,null,null,null,null,null,null,null,null,null,null,null,"■イビケン記入箇所"]
[null,null,null,null,null,null,null,null,null,null,null,null,null,null,null,null,null,null,null,null,null,null,"オーダーNo",null,null,null,null,null,null,null,"メイン",null,null,null,null,"W寸",null,"D寸",null,"形状",null,"木縁",null,"裏面"]
[null,null,null,null,null,null,null,null,null,null,null,null,null,null,null,null,null,null,null,null,null,null,null,null,null,null,null,null,null,{"$f":"AA11","v":"RPS-507B-32"},null,null,null,null,"-",{"$f":"G32","v":0},"-",{"$f":"G29","v":0},"-","IG","-",{"$f":"G21","v":"未選択"},"-",{"$f":"IF(AD25=\"BK（バッカー）\",\"BK\",IF(AD25=\"DS（表同柄）※オプション価格\",\"DS\",\"\"))","v":"BK"}]
["※オーダーシートは仕様指示書となります。注文書は別途ご用意ください。",null,null,null,null,null,null,null,null,null,null,null,null,null,null,null,null,null,null,null,null,null,null,null,null,null,null,null,null,null,null,null,null,null,null,null,null,null,null,null,null,null,null,null,null,null,null,null,null,null,null,null,null,null,null,null,null,null,null,null,null,null,null,null,null,null,null,null,null,null,null,null,null,null,null,null,null,null,null,null,null,null,null,null,null,null,null,null,null,null,null,null,null,null,null,null,null,null,null,null,null,null,null,null,null,null,null,null,null,null,null,null,null,null,null,null,null,null,null,null,null,null,null,null,null,null,null,null,null,null,null,null,null,null,null,null,null,null,null,null,null,null,null,null,null,null,null,null,null,null,null,null,null,null,null,null,"RPS-1981U-38"]
[]
["■発注日",null,null,null,null,null,"　　年　 　月　   日"]
[]
[]
["■発注者"]
[null,null,null,null,"会社名"]
[null,null,null,null,null,null,null,null,null,null,null,null,null,null,null,null,null,null,null,null,null,null,null,null,null,null,{"$f":"G17","v":"RPS-507B-32"}]
[null,null,null,null,"担当者名"]
[]
[null,null,null,null,"電話番号",null,null,null,null,null,null,null,null,null,null,null,null,null,null,null,null,null,null,null,null,null,null,null,null,{"$f":"_xlfn.XLOOKUP(AA11,一覧_品番!A:A,一覧_品番!B:B, \"\", FALSE)","v":32}]
[null,null,null,null,null,null,null,null,null,null,null,null,null,null,null,null,null,null,null,null,null,null,null,null,null,null,"厚み"]
[null,null,null,null,null,null,null,null,null,null,null,null,null,null,null,null,null,null,null,null,null,null,null,null,null,null,null,null,null,{"$f":"_xlfn.XLOOKUP(AA11,一覧_品番!A:A,一覧_品番!C:C, \"\", FALSE)","v":"ストレート"}]
["■品番",null,null,null,null,null,{"$f":"_xlfn.XLOOKUP(S17,注文書一覧!A:A,注文書一覧!B:B,\"\")","v":"RPS-507B-32"},null,null,null,null,null,null,null,null,null,null,null,89,null,null,null,null,null,null,null,"木縁形状"]
[null,null,null,null,null,null,null,null,null,null,null,null,null,null,null,null,null,null,null,null,null,null,null,null,null,null,"木縁位置",null,null,{"$f":"G21","v":"未選択"}]
[]
[null,null,null,null,null,null,"↓左のカーソルで選択下さい。→右下にイラストが表示されます",null,null,null,null,null,null,null,null,null,null,null,null,null,null,null,null,null,null,null,null,null,null,{"$f":"_xlfn.XLOOKUP(AA11,一覧_品番!A:A,一覧_品番!E:E, \"\", FALSE)","v":"ナチュラル"}]
["■木縁添付位置",null,null,null,null,null,{"$f":"VLOOKUP(AA27,一覧_木縁!A2:C9,2,FALSE)","v":"未選択"},null,null,null,null,null,null,null,null,null,null,null,null,null,null,null,null,null,null,null,"塗装色"]
[null,null,null,null,null,null,null,null,null,null,null,null,null,null,null,null,null,null,null,null,null,null,null,null,null,null,"表面材",null,null,{"$f":"_xlfn.XLOOKUP(AA11,一覧_品番!A:A,一覧_品番!F:F, \"\", FALSE)","v":"UL-507B"}]
[]
[null,null,null,null,null,null,"↓プルダウンで選択下さい"]
["■裏面材",null,null,null,null,null,{"$f":"INDEX(一覧_裏面!A1:A2,A1)","v":"BK（バッカ―）"},null,null,null,null,null,null,null,null,null,null,null,null,null,null,null,null,null,null,null,null,null,null,{"$f":"G25","v":"BK（バッカ―）"}]
[null,null,null,null,null,null,null,null,null,null,null,null,null,null,null,null,null,null,null,null,null,null,null,null,null,null,"裏面材"]
[null,null,null,null,null,null,null,null,null,null,null,null,null,null,null,null,null,null,null,null,null,null,null,null,null,null,8]
[null,null,null,null,null,null,"↓300～1200ｍｍの間で入力下さい"]
["■サイズ",null,null,null,"縦（D)",null,null,null,null,null,null,null,null,null,null,null,null,null,null,null,null,null,"縦（D）"]
[null,null,null,null,null,null,null,null,null,null,null,null,null,null,null,null,null,null,null,null,null,null,{"$f":"SUM(G29)","v":0}]
[null,null,null,null,null,null,"↓600～2400ｍｍの間で入力下さい"]
[null,null,null,null,"横（W)",null,null,null,null,null,null,null,null,null,null,null,null,null,null,null,null,null,null,null,"㎜"]
[]
[]
["■数量"]
[null,null,null,null,null,null,null,null,null,null,null,null,null,null,null,null,null,null,null,null,null,null,null,null,null,null,null,null,null,null,null,null,{"$f":"SUM(G32)","v":0}]
[null,null,null,null,null,null,null,null,null,null,null,null,null,null,null,null,null,null,null,null,null,null,null,null,null,null,null,null,null,null,null,null,null,null,null,null,null,"㎜"]
["■希望納期",null,null,null,null,null,"　　年　 　月　   日",null,null,null,null,null,null,null,null,null,null,null,null,null,null,null,null,null,null,null,null,null,null,null,null,null,null,"横（W)"]
[]
[]
["■納入場所",null,null,null,null,null,"納入会社名",null,null,null,null,null,null,null,null,null,null,null,"　納入住所",null,null,null,null,null,null,null,null,null,null,null,null,null,null,null,null,null,null,null,"納入電話番号"]
[null,null,null,null,null,null,null,null,null,null,null,null,null,null,null,null,null,null,"〒"]

{"sheet":"RP-507B-32","index":47,"n_rows":42,"n_cols":157,"rows_kept":42,"cut":false,"hidden":false,"merged":[[37,6,38,17],[37,33,37,36],[41,6,43,17],[41,18,43,37],[41,38,43,46],[35,32,36,36],[19,29,20,33],[20,6,21,17],[21,26,22,27],[21,29,22,33],[24,6,25,17],[24,29,25,33],[28,6,29,17],[28,22,28,24],[29,22,30,24],[31,6,32,17],[34,6,35,17],[10,6,11,17],[10,26,12,33],[12,6,13,17],[13,29,14,33],[15,29,16,33],[16,6,17,17],[17,26,18,28],[17,29,18,33],[2,22,2,28],[3,31,3,33],[5,0,6,3],[5,6,6,17],[8,0,9,3],[8,6,9,17]]}
[2,null,null,null,null,null,null,null,null,null,null,null,null,null,null,null,null,null,null,null,null,"■イビケン記入箇所"]
[null,null,null,null,null,null,null,null,null,null,null,null,null,null,null,null,null,null,null,null,null,null,"オーダーNo",null,null,null,null,null,null,null,"メイン",null,null,null,null,"W寸",null,"D寸",null,"形状",null,"木縁",null,"裏面"]
[null,null,null,null,null,null,null,null,null,null,null,null,null,null,null,null,null,null,null,null,null,null,null,null,null,null,null,null,null,{"$f":"AA11","v":"RP-507B-32"},null,null,null,null,"-",{"$f":"G32","v":0},"-",{"$f":"G29","v":0},"-","IG","-",{"$f":"G21","v":"未選択"},"-",{"$f":"IF(AD25=\"BK（バッカー）\",\"BK\",IF(AD25=\"DS（表同柄）※オプション価格\",\"DS\",\"\"))","v":"BK"}]
["※オーダーシートは仕様指示書となります。注文書は別途ご用意ください。",null,null,null,null,null,null,null,null,null,null,null,null,null,null,null,null,null,null,null,null,null,null,null,null,null,null,null,null,null,null,null,null,null,null,null,null,null,null,null,null,null,null,null,null,null,null,null,null,null,null,null,null,null,null,null,null,null,null,null,null,null,null,null,null,null,null,null,null,null,null,null,null,null,null,null,null,null,null,null,null,null,null,null,null,null,null,null,null,null,null,null,null,null,null,null,null,null,null,null,null,null,null,null,null,null,null,null,null,null,null,null,null,null,null,null,null,null,null,null,null,null,null,null,null,null,null,null,null,null,null,null,null,null,null,null,null,null,null,null,null,null,null,null,null,null,null,null,null,null,null,null,null,null,null,null,"RPS-1981U-38"]
[]
["■発注日",null,null,null,null,null,"　　年　 　月　   日"]
[]
[]
["■発注者"]
[null,null,null,null,"会社名"]
[null,null,null,null,null,null,null,null,null,null,null,null,null,null,null,null,null,null,null,null,null,null,null,null,null,null,{"$f":"G17","v":"RP-507B-32"}]
[null,null,null,null,"担当者名"]
[]
[null,null,null,null,"電話番号",null,null,null,null,null,null,null,null,null,null,null,null,null,null,null,null,null,null,null,null,null,null,null,null,{"$f":"_xlfn.XLOOKUP(AA11,一覧_品番!A:A,一覧_品番!B:B, \"\", FALSE)","v":32}]
[null,null,null,null,null,null,null,null,null,null,null,null,null,null,null,null,null,null,null,null,null,null,null,null,null,null,"厚み"]
[null,null,null,null,null,null,null,null,null,null,null,null,null,null,null,null,null,null,null,null,null,null,null,null,null,null,null,null,null,{"$f":"_xlfn.XLOOKUP(AA11,一覧_品番!A:A,一覧_品番!C:C, \"\", FALSE)","v":"ライブエッジ"}]
["■品番",null,null,null,null,null,{"$f":"_xlfn.XLOOKUP(S17,注文書一覧!A:A,注文書一覧!B:B,\"\")","v":"RP-507B-32"},null,null,null,null,null,null,null,null,null,null,null,91,null,null,null,null,null,null,null,"木縁形状"]
[null,null,null,null,null,null,null,null,null,null,null,null,null,null,null,null,null,null,null,null,null,null,null,null,null,null,"木縁位置",null,null,{"$f":"G21","v":"未選択"}]
[]
[null,null,null,null,null,null,"↓左のカーソルで選択下さい。→右下にイラストが表示されます",null,null,null,null,null,null,null,null,null,null,null,null,null,null,null,null,null,null,null,null,null,null,{"$f":"_xlfn.XLOOKUP(AA11,一覧_品番!A:A,一覧_品番!E:E, \"\", FALSE)","v":"ナチュラル"}]
["■木縁添付位置",null,null,null,null,null,{"$f":"VLOOKUP(AA27,一覧_木縁!A2:C9,2,FALSE)","v":"未選択"},null,null,null,null,null,null,null,null,null,null,null,null,null,null,null,null,null,null,null,"塗装色"]
[null,null,null,null,null,null,null,null,null,null,null,null,null,null,null,null,null,null,null,null,null,null,null,null,null,null,"表面材",null,null,{"$f":"_xlfn.XLOOKUP(AA11,一覧_品番!A:A,一覧_品番!F:F, \"\", FALSE)","v":"UL-507B"}]
[]
[null,null,null,null,null,null,"↓プルダウンで選択下さい"]
["■裏面材",null,null,null,null,null,{"$f":"INDEX(一覧_裏面!A1:A2,A1)","v":"BK（バッカ―）"},null,null,null,null,null,null,null,null,null,null,null,null,null,null,null,null,null,null,null,null,null,null,{"$f":"G25","v":"BK（バッカ―）"}]
[null,null,null,null,null,null,null,null,null,null,null,null,null,null,null,null,null,null,null,null,null,null,null,null,null,null,"裏面材"]
[null,null,null,null,null,null,null,null,null,null,null,null,null,null,null,null,null,null,null,null,null,null,null,null,null,null,8]
[null,null,null,null,null,null,"↓300～1200ｍｍの間で入力下さい"]
["■サイズ",null,null,null,"縦（D)",null,null,null,null,null,null,null,null,null,null,null,null,null,null,null,null,null,"縦（D）"]
[null,null,null,null,null,null,null,null,null,null,null,null,null,null,null,null,null,null,null,null,null,null,{"$f":"SUM(G29)","v":0}]
[null,null,null,null,null,null,"↓600～2400ｍｍの間で入力下さい"]
[null,null,null,null,"横（W)",null,null,null,null,null,null,null,null,null,null,null,null,null,null,null,null,null,null,null,"㎜"]
[]
[]
["■数量"]
[null,null,null,null,null,null,null,null,null,null,null,null,null,null,null,null,null,null,null,null,null,null,null,null,null,null,null,null,null,null,null,null,{"$f":"SUM(G32)","v":0}]
[null,null,null,null,null,null,null,null,null,null,null,null,null,null,null,null,null,null,null,null,null,null,null,null,null,null,null,null,null,null,null,null,null,null,null,null,null,"㎜"]
["■希望納期",null,null,null,null,null,"　　年　 　月　   日",null,null,null,null,null,null,null,null,null,null,null,null,null,null,null,null,null,null,null,null,null,null,null,null,null,null,"横（W)"]
[]
[]
["■納入場所",null,null,null,null,null,"納入会社名",null,null,null,null,null,null,null,null,null,null,null,"　納入住所",null,null,null,null,null,null,null,null,null,null,null,null,null,null,null,null,null,null,null,"納入電話番号"]
[null,null,null,null,null,null,null,null,null,null,null,null,null,null,null,null,null,null,"〒"]

{"sheet":"RPS-7023U-32","index":48,"n_rows":42,"n_cols":157,"rows_kept":42,"cut":false,"hidden":false,"merged":[[37,6,38,17],[37,33,37,36],[41,6,43,17],[41,18,43,37],[41,38,43,46],[35,32,36,36],[19,29,20,33],[20,6,21,17],[21,26,22,27],[21,29,22,33],[24,6,25,17],[24,29,25,33],[28,6,29,17],[28,22,28,24],[29,22,30,24],[31,6,32,17],[34,6,35,17],[10,6,11,17],[10,26,12,33],[12,6,13,17],[13,29,14,33],[15,29,16,33],[16,6,17,17],[17,26,18,28],[17,29,18,33],[2,22,2,28],[3,31,3,33],[5,0,6,3],[5,6,6,17],[8,0,9,3],[8,6,9,17]]}
[2,null,null,null,null,null,null,null,null,null,null,null,null,null,null,null,null,null,null,null,null,"■イビケン記入箇所"]
[null,null,null,null,null,null,null,null,null,null,null,null,null,null,null,null,null,null,null,null,null,null,"オーダーNo",null,null,null,null,null,null,null,"メイン",null,null,null,null,"W寸",null,"D寸",null,"形状",null,"木縁",null,"裏面"]
[null,null,null,null,null,null,null,null,null,null,null,null,null,null,null,null,null,null,null,null,null,null,null,null,null,null,null,null,null,{"$f":"AA11","v":"RPS-7023U-32"},null,null,null,null,"-",{"$f":"G32","v":0},"-",{"$f":"G29","v":0},"-","IG","-",{"$f":"G21","v":"未選択"},"-",{"$f":"IF(AD25=\"BK（バッカー）\",\"BK\",IF(AD25=\"DS（表同柄）※オプション価格\",\"DS\",\"\"))","v":"BK"}]
["※オーダーシートは仕様指示書となります。注文書は別途ご用意ください。",null,null,null,null,null,null,null,null,null,null,null,null,null,null,null,null,null,null,null,null,null,null,null,null,null,null,null,null,null,null,null,null,null,null,null,null,null,null,null,null,null,null,null,null,null,null,null,null,null,null,null,null,null,null,null,null,null,null,null,null,null,null,null,null,null,null,null,null,null,null,null,null,null,null,null,null,null,null,null,null,null,null,null,null,null,null,null,null,null,null,null,null,null,null,null,null,null,null,null,null,null,null,null,null,null,null,null,null,null,null,null,null,null,null,null,null,null,null,null,null,null,null,null,null,null,null,null,null,null,null,null,null,null,null,null,null,null,null,null,null,null,null,null,null,null,null,null,null,null,null,null,null,null,null,null,"RPS-1981U-38"]
[]
["■発注日",null,null,null,null,null,"　　年　 　月　   日"]
[]
[]
["■発注者"]
[null,null,null,null,"会社名"]
[null,null,null,null,null,null,null,null,null,null,null,null,null,null,null,null,null,null,null,null,null,null,null,null,null,null,{"$f":"G17","v":"RPS-7023U-32"}]
[null,null,null,null,"担当者名"]
[]
[null,null,null,null,"電話番号",null,null,null,null,null,null,null,null,null,null,null,null,null,null,null,null,null,null,null,null,null,null,null,null,{"$f":"_xlfn.XLOOKUP(AA11,一覧_品番!A:A,一覧_品番!B:B, \"\", FALSE)","v":32}]
[null,null,null,null,null,null,null,null,null,null,null,null,null,null,null,null,null,null,null,null,null,null,null,null,null,null,"厚み"]
[null,null,null,null,null,null,null,null,null,null,null,null,null,null,null,null,null,null,null,null,null,null,null,null,null,null,null,null,null,{"$f":"_xlfn.XLOOKUP(AA11,一覧_品番!A:A,一覧_品番!C:C, \"\", FALSE)","v":"ストレート"}]
["■品番",null,null,null,null,null,{"$f":"_xlfn.XLOOKUP(S17,注文書一覧!A:A,注文書一覧!B:B,\"\")","v":"RPS-7023U-32"},null,null,null,null,null,null,null,null,null,null,null,93,null,null,null,null,null,null,null,"木縁形状"]
[null,null,null,null,null,null,null,null,null,null,null,null,null,null,null,null,null,null,null,null,null,null,null,null,null,null,"木縁位置",null,null,{"$f":"G21","v":"未選択"}]
[]
[null,null,null,null,null,null,"↓左のカーソルで選択下さい。→右下にイラストが表示されます",null,null,null,null,null,null,null,null,null,null,null,null,null,null,null,null,null,null,null,null,null,null,{"$f":"_xlfn.XLOOKUP(AA11,一覧_品番!A:A,一覧_品番!E:E, \"\", FALSE)","v":"ナチュラル"}]
["■木縁添付位置",null,null,null,null,null,{"$f":"VLOOKUP(AA27,一覧_木縁!A2:C9,2,FALSE)","v":"未選択"},null,null,null,null,null,null,null,null,null,null,null,null,null,null,null,null,null,null,null,"塗装色"]
[null,null,null,null,null,null,null,null,null,null,null,null,null,null,null,null,null,null,null,null,null,null,null,null,null,null,"表面材",null,null,{"$f":"_xlfn.XLOOKUP(AA11,一覧_品番!A:A,一覧_品番!F:F, \"\", FALSE)","v":"VMW-7023U"}]
[]
[null,null,null,null,null,null,"↓プルダウンで選択下さい"]
["■裏面材",null,null,null,null,null,{"$f":"INDEX(一覧_裏面!A1:A2,A1)","v":"BK（バッカ―）"},null,null,null,null,null,null,null,null,null,null,null,null,null,null,null,null,null,null,null,null,null,null,{"$f":"G25","v":"BK（バッカ―）"}]
[null,null,null,null,null,null,null,null,null,null,null,null,null,null,null,null,null,null,null,null,null,null,null,null,null,null,"裏面材"]
[null,null,null,null,null,null,null,null,null,null,null,null,null,null,null,null,null,null,null,null,null,null,null,null,null,null,8]
[null,null,null,null,null,null,"↓300～1200ｍｍの間で入力下さい"]
["■サイズ",null,null,null,"縦（D)",null,null,null,null,null,null,null,null,null,null,null,null,null,null,null,null,null,"縦（D）"]
[null,null,null,null,null,null,null,null,null,null,null,null,null,null,null,null,null,null,null,null,null,null,{"$f":"SUM(G29)","v":0}]
[null,null,null,null,null,null,"↓600～2400ｍｍの間で入力下さい"]
[null,null,null,null,"横（W)",null,null,null,null,null,null,null,null,null,null,null,null,null,null,null,null,null,null,null,"㎜"]
[]
[]
["■数量"]
[null,null,null,null,null,null,null,null,null,null,null,null,null,null,null,null,null,null,null,null,null,null,null,null,null,null,null,null,null,null,null,null,{"$f":"SUM(G32)","v":0}]
[null,null,null,null,null,null,null,null,null,null,null,null,null,null,null,null,null,null,null,null,null,null,null,null,null,null,null,null,null,null,null,null,null,null,null,null,null,"㎜"]
["■希望納期",null,null,null,null,null,"　　年　 　月　   日",null,null,null,null,null,null,null,null,null,null,null,null,null,null,null,null,null,null,null,null,null,null,null,null,null,null,"横（W)"]
[]
[]
["■納入場所",null,null,null,null,null,"納入会社名",null,null,null,null,null,null,null,null,null,null,null,"　納入住所",null,null,null,null,null,null,null,null,null,null,null,null,null,null,null,null,null,null,null,"納入電話番号"]
[null,null,null,null,null,null,null,null,null,null,null,null,null,null,null,null,null,null,"〒"]

{"sheet":"RP-7023U-32","index":49,"n_rows":42,"n_cols":157,"rows_kept":42,"cut":false,"hidden":false,"merged":[[37,6,38,17],[37,33,37,36],[41,6,43,17],[41,18,43,37],[41,38,43,46],[35,32,36,36],[19,29,20,33],[20,6,21,17],[21,26,22,27],[21,29,22,33],[24,6,25,17],[24,29,25,33],[28,6,29,17],[28,22,28,24],[29,22,30,24],[31,6,32,17],[34,6,35,17],[10,6,11,17],[10,26,12,33],[12,6,13,17],[13,29,14,33],[15,29,16,33],[16,6,17,17],[17,26,18,28],[17,29,18,33],[2,22,2,28],[3,31,3,33],[5,0,6,3],[5,6,6,17],[8,0,9,3],[8,6,9,17]]}
[2,null,null,null,null,null,null,null,null,null,null,null,null,null,null,null,null,null,null,null,null,"■イビケン記入箇所"]
[null,null,null,null,null,null,null,null,null,null,null,null,null,null,null,null,null,null,null,null,null,null,"オーダーNo",null,null,null,null,null,null,null,"メイン",null,null,null,null,"W寸",null,"D寸",null,"形状",null,"木縁",null,"裏面"]
[null,null,null,null,null,null,null,null,null,null,null,null,null,null,null,null,null,null,null,null,null,null,null,null,null,null,null,null,null,{"$f":"AA11","v":"RP-7023U-32"},null,null,null,null,"-",{"$f":"G32","v":0},"-",{"$f":"G29","v":0},"-","IG","-",{"$f":"G21","v":"未選択"},"-",{"$f":"IF(AD25=\"BK（バッカー）\",\"BK\",IF(AD25=\"DS（表同柄）※オプション価格\",\"DS\",\"\"))","v":"BK"}]
["※オーダーシートは仕様指示書となります。注文書は別途ご用意ください。",null,null,null,null,null,null,null,null,null,null,null,null,null,null,null,null,null,null,null,null,null,null,null,null,null,null,null,null,null,null,null,null,null,null,null,null,null,null,null,null,null,null,null,null,null,null,null,null,null,null,null,null,null,null,null,null,null,null,null,null,null,null,null,null,null,null,null,null,null,null,null,null,null,null,null,null,null,null,null,null,null,null,null,null,null,null,null,null,null,null,null,null,null,null,null,null,null,null,null,null,null,null,null,null,null,null,null,null,null,null,null,null,null,null,null,null,null,null,null,null,null,null,null,null,null,null,null,null,null,null,null,null,null,null,null,null,null,null,null,null,null,null,null,null,null,null,null,null,null,null,null,null,null,null,null,"RPS-1981U-38"]
[]
["■発注日",null,null,null,null,null,"　　年　 　月　   日"]
[]
[]
["■発注者"]
[null,null,null,null,"会社名"]
[null,null,null,null,null,null,null,null,null,null,null,null,null,null,null,null,null,null,null,null,null,null,null,null,null,null,{"$f":"G17","v":"RP-7023U-32"}]
[null,null,null,null,"担当者名"]
[]
[null,null,null,null,"電話番号",null,null,null,null,null,null,null,null,null,null,null,null,null,null,null,null,null,null,null,null,null,null,null,null,{"$f":"_xlfn.XLOOKUP(AA11,一覧_品番!A:A,一覧_品番!B:B, \"\", FALSE)","v":32}]
[null,null,null,null,null,null,null,null,null,null,null,null,null,null,null,null,null,null,null,null,null,null,null,null,null,null,"厚み"]
[null,null,null,null,null,null,null,null,null,null,null,null,null,null,null,null,null,null,null,null,null,null,null,null,null,null,null,null,null,{"$f":"_xlfn.XLOOKUP(AA11,一覧_品番!A:A,一覧_品番!C:C, \"\", FALSE)","v":"ライブエッジ"}]
["■品番",null,null,null,null,null,{"$f":"_xlfn.XLOOKUP(S17,注文書一覧!A:A,注文書一覧!B:B,\"\")","v":"RP-7023U-32"},null,null,null,null,null,null,null,null,null,null,null,95,null,null,null,null,null,null,null,"木縁形状"]
[null,null,null,null,null,null,null,null,null,null,null,null,null,null,null,null,null,null,null,null,null,null,null,null,null,null,"木縁位置",null,null,{"$f":"G21","v":"未選択"}]
[]
[null,null,null,null,null,null,"↓左のカーソルで選択下さい。→右下にイラストが表示されます",null,null,null,null,null,null,null,null,null,null,null,null,null,null,null,null,null,null,null,null,null,null,{"$f":"_xlfn.XLOOKUP(AA11,一覧_品番!A:A,一覧_品番!E:E, \"\", FALSE)","v":"ナチュラル"}]
["■木縁添付位置",null,null,null,null,null,{"$f":"VLOOKUP(AA27,一覧_木縁!A2:C9,2,FALSE)","v":"未選択"},null,null,null,null,null,null,null,null,null,null,null,null,null,null,null,null,null,null,null,"塗装色"]
[null,null,null,null,null,null,null,null,null,null,null,null,null,null,null,null,null,null,null,null,null,null,null,null,null,null,"表面材",null,null,{"$f":"_xlfn.XLOOKUP(AA11,一覧_品番!A:A,一覧_品番!F:F, \"\", FALSE)","v":"VMW-7023U"}]
[]
[null,null,null,null,null,null,"↓プルダウンで選択下さい"]
["■裏面材",null,null,null,null,null,{"$f":"INDEX(一覧_裏面!A1:A2,A1)","v":"BK（バッカ―）"},null,null,null,null,null,null,null,null,null,null,null,null,null,null,null,null,null,null,null,null,null,null,{"$f":"G25","v":"BK（バッカ―）"}]
[null,null,null,null,null,null,null,null,null,null,null,null,null,null,null,null,null,null,null,null,null,null,null,null,null,null,"裏面材"]
[null,null,null,null,null,null,null,null,null,null,null,null,null,null,null,null,null,null,null,null,null,null,null,null,null,null,8]
[null,null,null,null,null,null,"↓300～1200ｍｍの間で入力下さい"]
["■サイズ",null,null,null,"縦（D)",null,null,null,null,null,null,null,null,null,null,null,null,null,null,null,null,null,"縦（D）"]
[null,null,null,null,null,null,null,null,null,null,null,null,null,null,null,null,null,null,null,null,null,null,{"$f":"SUM(G29)","v":0}]
[null,null,null,null,null,null,"↓600～2400ｍｍの間で入力下さい"]
[null,null,null,null,"横（W)",null,null,null,null,null,null,null,null,null,null,null,null,null,null,null,null,null,null,null,"㎜"]
[]
[]
["■数量"]
[null,null,null,null,null,null,null,null,null,null,null,null,null,null,null,null,null,null,null,null,null,null,null,null,null,null,null,null,null,null,null,null,{"$f":"SUM(G32)","v":0}]
[null,null,null,null,null,null,null,null,null,null,null,null,null,null,null,null,null,null,null,null,null,null,null,null,null,null,null,null,null,null,null,null,null,null,null,null,null,"㎜"]
["■希望納期",null,null,null,null,null,"　　年　 　月　   日",null,null,null,null,null,null,null,null,null,null,null,null,null,null,null,null,null,null,null,null,null,null,null,null,null,null,"横（W)"]
[]
[]
["■納入場所",null,null,null,null,null,"納入会社名",null,null,null,null,null,null,null,null,null,null,null,"　納入住所",null,null,null,null,null,null,null,null,null,null,null,null,null,null,null,null,null,null,null,"納入電話番号"]
[null,null,null,null,null,null,null,null,null,null,null,null,null,null,null,null,null,null,"〒"]

{"sheet":"RPS-7040U-32","index":50,"n_rows":42,"n_cols":157,"rows_kept":42,"cut":false,"hidden":false,"merged":[[37,6,38,17],[37,33,37,36],[41,6,43,17],[41,18,43,37],[41,38,43,46],[35,32,36,36],[19,29,20,33],[20,6,21,17],[21,26,22,27],[21,29,22,33],[24,6,25,17],[24,29,25,33],[28,6,29,17],[28,22,28,24],[29,22,30,24],[31,6,32,17],[34,6,35,17],[10,6,11,17],[10,26,12,33],[12,6,13,17],[13,29,14,33],[15,29,16,33],[16,6,17,17],[17,26,18,28],[17,29,18,33],[2,22,2,28],[3,31,3,33],[5,0,6,3],[5,6,6,17],[8,0,9,3],[8,6,9,17]]}
[2,null,null,null,null,null,null,null,null,null,null,null,null,null,null,null,null,null,null,null,null,"■イビケン記入箇所"]
[null,null,null,null,null,null,null,null,null,null,null,null,null,null,null,null,null,null,null,null,null,null,"オーダーNo",null,null,null,null,null,null,null,"メイン",null,null,null,null,"W寸",null,"D寸",null,"形状",null,"木縁",null,"裏面"]
[null,null,null,null,null,null,null,null,null,null,null,null,null,null,null,null,null,null,null,null,null,null,null,null,null,null,null,null,null,{"$f":"AA11","v":"RPS-7040U-32"},null,null,null,null,"-",{"$f":"G32","v":0},"-",{"$f":"G29","v":0},"-","IG","-",{"$f":"G21","v":"未選択"},"-",{"$f":"IF(AD25=\"BK（バッカー）\",\"BK\",IF(AD25=\"DS（表同柄）※オプション価格\",\"DS\",\"\"))","v":"BK"}]
["※オーダーシートは仕様指示書となります。注文書は別途ご用意ください。",null,null,null,null,null,null,null,null,null,null,null,null,null,null,null,null,null,null,null,null,null,null,null,null,null,null,null,null,null,null,null,null,null,null,null,null,null,null,null,null,null,null,null,null,null,null,null,null,null,null,null,null,null,null,null,null,null,null,null,null,null,null,null,null,null,null,null,null,null,null,null,null,null,null,null,null,null,null,null,null,null,null,null,null,null,null,null,null,null,null,null,null,null,null,null,null,null,null,null,null,null,null,null,null,null,null,null,null,null,null,null,null,null,null,null,null,null,null,null,null,null,null,null,null,null,null,null,null,null,null,null,null,null,null,null,null,null,null,null,null,null,null,null,null,null,null,null,null,null,null,null,null,null,null,null,"RPS-1981U-38"]
[]
["■発注日",null,null,null,null,null,"　　年　 　月　   日"]
[]
[]
["■発注者"]
[null,null,null,null,"会社名"]
[null,null,null,null,null,null,null,null,null,null,null,null,null,null,null,null,null,null,null,null,null,null,null,null,null,null,{"$f":"G17","v":"RPS-7040U-32"}]
[null,null,null,null,"担当者名"]
[]
[null,null,null,null,"電話番号",null,null,null,null,null,null,null,null,null,null,null,null,null,null,null,null,null,null,null,null,null,null,null,null,{"$f":"_xlfn.XLOOKUP(AA11,一覧_品番!A:A,一覧_品番!B:B, \"\", FALSE)","v":32}]
[null,null,null,null,null,null,null,null,null,null,null,null,null,null,null,null,null,null,null,null,null,null,null,null,null,null,"厚み"]
[null,null,null,null,null,null,null,null,null,null,null,null,null,null,null,null,null,null,null,null,null,null,null,null,null,null,null,null,null,{"$f":"_xlfn.XLOOKUP(AA11,一覧_品番!A:A,一覧_品番!C:C, \"\", FALSE)","v":"ストレート"}]
["■品番",null,null,null,null,null,{"$f":"_xlfn.XLOOKUP(S17,注文書一覧!A:A,注文書一覧!B:B,\"\")","v":"RPS-7040U-32"},null,null,null,null,null,null,null,null,null,null,null,97,null,null,null,null,null,null,null,"木縁形状"]
[null,null,null,null,null,null,null,null,null,null,null,null,null,null,null,null,null,null,null,null,null,null,null,null,null,null,"木縁位置",null,null,{"$f":"G21","v":"未選択"}]
[]
[null,null,null,null,null,null,"↓左のカーソルで選択下さい。→右下にイラストが表示されます",null,null,null,null,null,null,null,null,null,null,null,null,null,null,null,null,null,null,null,null,null,null,{"$f":"_xlfn.XLOOKUP(AA11,一覧_品番!A:A,一覧_品番!E:E, \"\", FALSE)","v":"チャコール"}]
["■木縁添付位置",null,null,null,null,null,{"$f":"VLOOKUP(AA27,一覧_木縁!A2:C9,2,FALSE)","v":"未選択"},null,null,null,null,null,null,null,null,null,null,null,null,null,null,null,null,null,null,null,"塗装色"]
[null,null,null,null,null,null,null,null,null,null,null,null,null,null,null,null,null,null,null,null,null,null,null,null,null,null,"表面材",null,null,{"$f":"_xlfn.XLOOKUP(AA11,一覧_品番!A:A,一覧_品番!F:F, \"\", FALSE)","v":"VM-7040U"}]
[]
[null,null,null,null,null,null,"↓プルダウンで選択下さい"]
["■裏面材",null,null,null,null,null,{"$f":"INDEX(一覧_裏面!A1:A2,A1)","v":"BK（バッカ―）"},null,null,null,null,null,null,null,null,null,null,null,null,null,null,null,null,null,null,null,null,null,null,{"$f":"G25","v":"BK（バッカ―）"}]
[null,null,null,null,null,null,null,null,null,null,null,null,null,null,null,null,null,null,null,null,null,null,null,null,null,null,"裏面材"]
[null,null,null,null,null,null,null,null,null,null,null,null,null,null,null,null,null,null,null,null,null,null,null,null,null,null,8]
[null,null,null,null,null,null,"↓300～1200ｍｍの間で入力下さい"]
["■サイズ",null,null,null,"縦（D)",null,null,null,null,null,null,null,null,null,null,null,null,null,null,null,null,null,"縦（D）"]
[null,null,null,null,null,null,null,null,null,null,null,null,null,null,null,null,null,null,null,null,null,null,{"$f":"SUM(G29)","v":0}]
[null,null,null,null,null,null,"↓600～2400ｍｍの間で入力下さい"]
[null,null,null,null,"横（W)",null,null,null,null,null,null,null,null,null,null,null,null,null,null,null,null,null,null,null,"㎜"]
[]
[]
["■数量"]
[null,null,null,null,null,null,null,null,null,null,null,null,null,null,null,null,null,null,null,null,null,null,null,null,null,null,null,null,null,null,null,null,{"$f":"SUM(G32)","v":0}]
[null,null,null,null,null,null,null,null,null,null,null,null,null,null,null,null,null,null,null,null,null,null,null,null,null,null,null,null,null,null,null,null,null,null,null,null,null,"㎜"]
["■希望納期",null,null,null,null,null,"　　年　 　月　   日",null,null,null,null,null,null,null,null,null,null,null,null,null,null,null,null,null,null,null,null,null,null,null,null,null,null,"横（W)"]
[]
[]
["■納入場所",null,null,null,null,null,"納入会社名",null,null,null,null,null,null,null,null,null,null,null,"　納入住所",null,null,null,null,null,null,null,null,null,null,null,null,null,null,null,null,null,null,null,"納入電話番号"]
[null,null,null,null,null,null,null,null,null,null,null,null,null,null,null,null,null,null,"〒"]

{"sheet":"RP-7040U-32","index":51,"n_rows":42,"n_cols":157,"rows_kept":42,"cut":false,"hidden":false,"merged":[[37,6,38,17],[37,33,37,36],[41,6,43,17],[41,18,43,37],[41,38,43,46],[35,32,36,36],[19,29,20,33],[20,6,21,17],[21,26,22,27],[21,29,22,33],[24,6,25,17],[24,29,25,33],[28,6,29,17],[28,22,28,24],[29,22,30,24],[31,6,32,17],[34,6,35,17],[10,6,11,17],[10,26,12,33],[12,6,13,17],[13,29,14,33],[15,29,16,33],[16,6,17,17],[17,26,18,28],[17,29,18,33],[2,22,2,28],[3,31,3,33],[5,0,6,3],[5,6,6,17],[8,0,9,3],[8,6,9,17]]}
[2,null,null,null,null,null,null,null,null,null,null,null,null,null,null,null,null,null,null,null,null,"■イビケン記入箇所"]
[null,null,null,null,null,null,null,null,null,null,null,null,null,null,null,null,null,null,null,null,null,null,"オーダーNo",null,null,null,null,null,null,null,"メイン",null,null,null,null,"W寸",null,"D寸",null,"形状",null,"木縁",null,"裏面"]
[null,null,null,null,null,null,null,null,null,null,null,null,null,null,null,null,null,null,null,null,null,null,null,null,null,null,null,null,null,{"$f":"AA11","v":"RP-7040U-32"},null,null,null,null,"-",{"$f":"G32","v":0},"-",{"$f":"G29","v":0},"-","IG","-",{"$f":"G21","v":"未選択"},"-",{"$f":"IF(AD25=\"BK（バッカー）\",\"BK\",IF(AD25=\"DS（表同柄）※オプション価格\",\"DS\",\"\"))","v":"BK"}]
["※オーダーシートは仕様指示書となります。注文書は別途ご用意ください。",null,null,null,null,null,null,null,null,null,null,null,null,null,null,null,null,null,null,null,null,null,null,null,null,null,null,null,null,null,null,null,null,null,null,null,null,null,null,null,null,null,null,null,null,null,null,null,null,null,null,null,null,null,null,null,null,null,null,null,null,null,null,null,null,null,null,null,null,null,null,null,null,null,null,null,null,null,null,null,null,null,null,null,null,null,null,null,null,null,null,null,null,null,null,null,null,null,null,null,null,null,null,null,null,null,null,null,null,null,null,null,null,null,null,null,null,null,null,null,null,null,null,null,null,null,null,null,null,null,null,null,null,null,null,null,null,null,null,null,null,null,null,null,null,null,null,null,null,null,null,null,null,null,null,null,"RPS-1981U-38"]
[]
["■発注日",null,null,null,null,null,"　　年　 　月　   日"]
[]
[]
["■発注者"]
[null,null,null,null,"会社名"]
[null,null,null,null,null,null,null,null,null,null,null,null,null,null,null,null,null,null,null,null,null,null,null,null,null,null,{"$f":"G17","v":"RP-7040U-32"}]
[null,null,null,null,"担当者名"]
[]
[null,null,null,null,"電話番号",null,null,null,null,null,null,null,null,null,null,null,null,null,null,null,null,null,null,null,null,null,null,null,null,{"$f":"_xlfn.XLOOKUP(AA11,一覧_品番!A:A,一覧_品番!B:B, \"\", FALSE)","v":32}]
[null,null,null,null,null,null,null,null,null,null,null,null,null,null,null,null,null,null,null,null,null,null,null,null,null,null,"厚み"]
[null,null,null,null,null,null,null,null,null,null,null,null,null,null,null,null,null,null,null,null,null,null,null,null,null,null,null,null,null,{"$f":"_xlfn.XLOOKUP(AA11,一覧_品番!A:A,一覧_品番!C:C, \"\", FALSE)","v":"ライブエッジ"}]
["■品番",null,null,null,null,null,{"$f":"_xlfn.XLOOKUP(S17,注文書一覧!A:A,注文書一覧!B:B,\"\")","v":"RP-7040U-32"},null,null,null,null,null,null,null,null,null,null,null,99,null,null,null,null,null,null,null,"木縁形状"]
[null,null,null,null,null,null,null,null,null,null,null,null,null,null,null,null,null,null,null,null,null,null,null,null,null,null,"木縁位置",null,null,{"$f":"G21","v":"未選択"}]
[]
[null,null,null,null,null,null,"↓左のカーソルで選択下さい。→右下にイラストが表示されます",null,null,null,null,null,null,null,null,null,null,null,null,null,null,null,null,null,null,null,null,null,null,{"$f":"_xlfn.XLOOKUP(AA11,一覧_品番!A:A,一覧_品番!E:E, \"\", FALSE)","v":"チャコール"}]
["■木縁添付位置",null,null,null,null,null,{"$f":"VLOOKUP(AA27,一覧_木縁!A2:C9,2,FALSE)","v":"未選択"},null,null,null,null,null,null,null,null,null,null,null,null,null,null,null,null,null,null,null,"塗装色"]
[null,null,null,null,null,null,null,null,null,null,null,null,null,null,null,null,null,null,null,null,null,null,null,null,null,null,"表面材",null,null,{"$f":"_xlfn.XLOOKUP(AA11,一覧_品番!A:A,一覧_品番!F:F, \"\", FALSE)","v":"VM-7040U"}]
[]
[null,null,null,null,null,null,"↓プルダウンで選択下さい"]
["■裏面材",null,null,null,null,null,{"$f":"INDEX(一覧_裏面!A1:A2,A1)","v":"BK（バッカ―）"},null,null,null,null,null,null,null,null,null,null,null,null,null,null,null,null,null,null,null,null,null,null,{"$f":"G25","v":"BK（バッカ―）"}]
[null,null,null,null,null,null,null,null,null,null,null,null,null,null,null,null,null,null,null,null,null,null,null,null,null,null,"裏面材"]
[null,null,null,null,null,null,null,null,null,null,null,null,null,null,null,null,null,null,null,null,null,null,null,null,null,null,8]
[null,null,null,null,null,null,"↓300～1200ｍｍの間で入力下さい"]
["■サイズ",null,null,null,"縦（D)",null,null,null,null,null,null,null,null,null,null,null,null,null,null,null,null,null,"縦（D）"]
[null,null,null,null,null,null,null,null,null,null,null,null,null,null,null,null,null,null,null,null,null,null,{"$f":"SUM(G29)","v":0}]
[null,null,null,null,null,null,"↓600～2400ｍｍの間で入力下さい"]
[null,null,null,null,"横（W)",null,null,null,null,null,null,null,null,null,null,null,null,null,null,null,null,null,null,null,"㎜"]
[]
[]
["■数量"]
[null,null,null,null,null,null,null,null,null,null,null,null,null,null,null,null,null,null,null,null,null,null,null,null,null,null,null,null,null,null,null,null,{"$f":"SUM(G32)","v":0}]
[null,null,null,null,null,null,null,null,null,null,null,null,null,null,null,null,null,null,null,null,null,null,null,null,null,null,null,null,null,null,null,null,null,null,null,null,null,"㎜"]
["■希望納期",null,null,null,null,null,"　　年　 　月　   日",null,null,null,null,null,null,null,null,null,null,null,null,null,null,null,null,null,null,null,null,null,null,null,null,null,null,"横（W)"]
[]
[]
["■納入場所",null,null,null,null,null,"納入会社名",null,null,null,null,null,null,null,null,null,null,null,"　納入住所",null,null,null,null,null,null,null,null,null,null,null,null,null,null,null,null,null,null,null,"納入電話番号"]
[null,null,null,null,null,null,null,null,null,null,null,null,null,null,null,null,null,null,"〒"]

{"sheet":"RPS-7088U-32","index":52,"n_rows":42,"n_cols":157,"rows_kept":42,"cut":false,"hidden":false,"merged":[[37,6,38,17],[37,33,37,36],[41,6,43,17],[41,18,43,37],[41,38,43,46],[35,32,36,36],[19,29,20,33],[20,6,21,17],[21,26,22,27],[21,29,22,33],[24,6,25,17],[24,29,25,33],[28,6,29,17],[28,22,28,24],[29,22,30,24],[31,6,32,17],[34,6,35,17],[10,6,11,17],[10,26,12,33],[12,6,13,17],[13,29,14,33],[15,29,16,33],[16,6,17,17],[17,26,18,28],[17,29,18,33],[2,22,2,28],[3,31,3,33],[5,0,6,3],[5,6,6,17],[8,0,9,3],[8,6,9,17]]}
[2,null,null,null,null,null,null,null,null,null,null,null,null,null,null,null,null,null,null,null,null,"■イビケン記入箇所"]
[null,null,null,null,null,null,null,null,null,null,null,null,null,null,null,null,null,null,null,null,null,null,"オーダーNo",null,null,null,null,null,null,null,"メイン",null,null,null,null,"W寸",null,"D寸",null,"形状",null,"木縁",null,"裏面"]
[null,null,null,null,null,null,null,null,null,null,null,null,null,null,null,null,null,null,null,null,null,null,null,null,null,null,null,null,null,{"$f":"AA11","v":"RPS-7088U-32"},null,null,null,null,"-",{"$f":"G32","v":0},"-",{"$f":"G29","v":0},"-","IG","-",{"$f":"G21","v":0},"-",{"$f":"IF(AD25=\"BK（バッカー）\",\"BK\",IF(AD25=\"DS（表同柄）※オプション価格\",\"DS\",\"\"))","v":"BK"}]
["※オーダーシートは仕様指示書となります。注文書は別途ご用意ください。",null,null,null,null,null,null,null,null,null,null,null,null,null,null,null,null,null,null,null,null,null,null,null,null,null,null,null,null,null,null,null,null,null,null,null,null,null,null,null,null,null,null,null,null,null,null,null,null,null,null,null,null,null,null,null,null,null,null,null,null,null,null,null,null,null,null,null,null,null,null,null,null,null,null,null,null,null,null,null,null,null,null,null,null,null,null,null,null,null,null,null,null,null,null,null,null,null,null,null,null,null,null,null,null,null,null,null,null,null,null,null,null,null,null,null,null,null,null,null,null,null,null,null,null,null,null,null,null,null,null,null,null,null,null,null,null,null,null,null,null,null,null,null,null,null,null,null,null,null,null,null,null,null,null,null,"RPS-1981U-38"]
[]
["■発注日",null,null,null,null,null,"　　年　 　月　   日"]
[]
[]
["■発注者"]
[null,null,null,null,"会社名"]
[null,null,null,null,null,null,null,null,null,null,null,null,null,null,null,null,null,null,null,null,null,null,null,null,null,null,{"$f":"G17","v":"RPS-7088U-32"}]
[null,null,null,null,"担当者名"]
[]
[null,null,null,null,"電話番号",null,null,null,null,null,null,null,null,null,null,null,null,null,null,null,null,null,null,null,null,null,null,null,null,{"$f":"_xlfn.XLOOKUP(AA11,一覧_品番!A:A,一覧_品番!B:B, \"\", FALSE)","v":32}]
[null,null,null,null,null,null,null,null,null,null,null,null,null,null,null,null,null,null,null,null,null,null,null,null,null,null,"厚み"]
[null,null,null,null,null,null,null,null,null,null,null,null,null,null,null,null,null,null,null,null,null,null,null,null,null,null,null,null,null,{"$f":"_xlfn.XLOOKUP(AA11,一覧_品番!A:A,一覧_品番!C:C, \"\", FALSE)","v":"ストレート"}]
["■品番",null,null,null,null,null,{"$f":"_xlfn.XLOOKUP(S17,注文書一覧!A:A,注文書一覧!B:B,\"\")","v":"RPS-7088U-32"},null,null,null,null,null,null,null,null,null,null,null,101,null,null,null,null,null,null,null,"木縁形状"]
[null,null,null,null,null,null,null,null,null,null,null,null,null,null,null,null,null,null,null,null,null,null,null,null,null,null,"木縁位置",null,null,{"$f":"G21","v":0}]
[]
[null,null,null,null,null,null,"↓左のカーソルで選択下さい。→右下にイラストが表示されます",null,null,null,null,null,null,null,null,null,null,null,null,null,null,null,null,null,null,null,null,null,null,{"$f":"_xlfn.XLOOKUP(AA11,一覧_品番!A:A,一覧_品番!E:E, \"\", FALSE)","v":"ブラウン"}]
["■木縁添付位置",null,null,null,null,null,null,null,null,null,null,null,null,null,null,null,null,null,null,null,null,null,null,null,null,null,"塗装色"]
[null,null,null,null,null,null,null,null,null,null,null,null,null,null,null,null,null,null,null,null,null,null,null,null,null,null,"表面材",null,null,{"$f":"_xlfn.XLOOKUP(AA11,一覧_品番!A:A,一覧_品番!F:F, \"\", FALSE)","v":"VM-7088U"}]
[]
[null,null,null,null,null,null,"↓プルダウンで選択下さい"]
["■裏面材",null,null,null,null,null,{"$f":"INDEX(一覧_裏面!A1:A2,A1)","v":"BK（バッカ―）"},null,null,null,null,null,null,null,null,null,null,null,null,null,null,null,null,null,null,null,null,null,null,{"$f":"G25","v":"BK（バッカ―）"}]
[null,null,null,null,null,null,null,null,null,null,null,null,null,null,null,null,null,null,null,null,null,null,null,null,null,null,"裏面材"]
[null,null,null,null,null,null,null,null,null,null,null,null,null,null,null,null,null,null,null,null,null,null,null,null,null,null,8]
[null,null,null,null,null,null,"↓300～1200ｍｍの間で入力下さい"]
["■サイズ",null,null,null,"縦（D)",null,null,null,null,null,null,null,null,null,null,null,null,null,null,null,null,null,"縦（D）"]
[null,null,null,null,null,null,null,null,null,null,null,null,null,null,null,null,null,null,null,null,null,null,{"$f":"SUM(G29)","v":0}]
[null,null,null,null,null,null,"↓600～2400ｍｍの間で入力下さい"]
[null,null,null,null,"横（W)",null,null,null,null,null,null,null,null,null,null,null,null,null,null,null,null,null,null,null,"㎜"]
[]
[]
["■数量"]
[null,null,null,null,null,null,null,null,null,null,null,null,null,null,null,null,null,null,null,null,null,null,null,null,null,null,null,null,null,null,null,null,{"$f":"SUM(G32)","v":0}]
[null,null,null,null,null,null,null,null,null,null,null,null,null,null,null,null,null,null,null,null,null,null,null,null,null,null,null,null,null,null,null,null,null,null,null,null,null,"㎜"]
["■希望納期",null,null,null,null,null,"　　年　 　月　   日",null,null,null,null,null,null,null,null,null,null,null,null,null,null,null,null,null,null,null,null,null,null,null,null,null,null,"横（W)"]
[]
[]
["■納入場所",null,null,null,null,null,"納入会社名",null,null,null,null,null,null,null,null,null,null,null,"　納入住所",null,null,null,null,null,null,null,null,null,null,null,null,null,null,null,null,null,null,null,"納入電話番号"]
[null,null,null,null,null,null,null,null,null,null,null,null,null,null,null,null,null,null,"〒"]

{"sheet":"RP-7088U-32","index":53,"n_rows":42,"n_cols":157,"rows_kept":42,"cut":false,"hidden":false,"merged":[[37,6,38,17],[37,33,37,36],[41,6,43,17],[41,18,43,37],[41,38,43,46],[35,32,36,36],[19,29,20,33],[20,6,21,17],[21,26,22,27],[21,29,22,33],[24,6,25,17],[24,29,25,33],[28,6,29,17],[28,22,28,24],[29,22,30,24],[31,6,32,17],[34,6,35,17],[10,6,11,17],[10,26,12,33],[12,6,13,17],[13,29,14,33],[15,29,16,33],[16,6,17,17],[17,26,18,28],[17,29,18,33],[2,22,2,28],[3,31,3,33],[5,0,6,3],[5,6,6,17],[8,0,9,3],[8,6,9,17]]}
[2,null,null,null,null,null,null,null,null,null,null,null,null,null,null,null,null,null,null,null,null,"■イビケン記入箇所"]
[null,null,null,null,null,null,null,null,null,null,null,null,null,null,null,null,null,null,null,null,null,null,"オーダーNo",null,null,null,null,null,null,null,"メイン",null,null,null,null,"W寸",null,"D寸",null,"形状",null,"木縁",null,"裏面"]
[null,null,null,null,null,null,null,null,null,null,null,null,null,null,null,null,null,null,null,null,null,null,null,null,null,null,null,null,null,{"$f":"AA11","v":"RP-7088U-32"},null,null,null,null,"-",{"$f":"G32","v":0},"-",{"$f":"G29","v":0},"-","IG","-",{"$f":"G21","v":"未選択"},"-",{"$f":"IF(AD25=\"BK（バッカー）\",\"BK\",IF(AD25=\"DS（表同柄）※オプション価格\",\"DS\",\"\"))","v":"BK"}]
["※オーダーシートは仕様指示書となります。注文書は別途ご用意ください。",null,null,null,null,null,null,null,null,null,null,null,null,null,null,null,null,null,null,null,null,null,null,null,null,null,null,null,null,null,null,null,null,null,null,null,null,null,null,null,null,null,null,null,null,null,null,null,null,null,null,null,null,null,null,null,null,null,null,null,null,null,null,null,null,null,null,null,null,null,null,null,null,null,null,null,null,null,null,null,null,null,null,null,null,null,null,null,null,null,null,null,null,null,null,null,null,null,null,null,null,null,null,null,null,null,null,null,null,null,null,null,null,null,null,null,null,null,null,null,null,null,null,null,null,null,null,null,null,null,null,null,null,null,null,null,null,null,null,null,null,null,null,null,null,null,null,null,null,null,null,null,null,null,null,null,"RPS-1981U-38"]
[]
["■発注日",null,null,null,null,null,"　　年　 　月　   日"]
[]
[]
["■発注者"]
[null,null,null,null,"会社名"]
[null,null,null,null,null,null,null,null,null,null,null,null,null,null,null,null,null,null,null,null,null,null,null,null,null,null,{"$f":"G17","v":"RP-7088U-32"}]
[null,null,null,null,"担当者名"]
[]
[null,null,null,null,"電話番号",null,null,null,null,null,null,null,null,null,null,null,null,null,null,null,null,null,null,null,null,null,null,null,null,{"$f":"_xlfn.XLOOKUP(AA11,一覧_品番!A:A,一覧_品番!B:B, \"\", FALSE)","v":32}]
[null,null,null,null,null,null,null,null,null,null,null,null,null,null,null,null,null,null,null,null,null,null,null,null,null,null,"厚み"]
[null,null,null,null,null,null,null,null,null,null,null,null,null,null,null,null,null,null,null,null,null,null,null,null,null,null,null,null,null,{"$f":"_xlfn.XLOOKUP(AA11,一覧_品番!A:A,一覧_品番!C:C, \"\", FALSE)","v":"ライブエッジ"}]
["■品番",null,null,null,null,null,{"$f":"_xlfn.XLOOKUP(S17,注文書一覧!A:A,注文書一覧!B:B,\"\")","v":"RP-7088U-32"},null,null,null,null,null,null,null,null,null,null,null,103,null,null,null,null,null,null,null,"木縁形状"]
[null,null,null,null,null,null,null,null,null,null,null,null,null,null,null,null,null,null,null,null,null,null,null,null,null,null,"木縁位置",null,null,{"$f":"G21","v":"未選択"}]
[]
[null,null,null,null,null,null,"↓左のカーソルで選択下さい。→右下にイラストが表示されます",null,null,null,null,null,null,null,null,null,null,null,null,null,null,null,null,null,null,null,null,null,null,{"$f":"_xlfn.XLOOKUP(AA11,一覧_品番!A:A,一覧_品番!E:E, \"\", FALSE)","v":"ブラウン"}]
["■木縁添付位置",null,null,null,null,null,{"$f":"VLOOKUP(AA27,一覧_木縁!A2:C9,2,FALSE)","v":"未選択"},null,null,null,null,null,null,null,null,null,null,null,null,null,null,null,null,null,null,null,"塗装色"]
[null,null,null,null,null,null,null,null,null,null,null,null,null,null,null,null,null,null,null,null,null,null,null,null,null,null,"表面材",null,null,{"$f":"_xlfn.XLOOKUP(AA11,一覧_品番!A:A,一覧_品番!F:F, \"\", FALSE)","v":"VM-7088U"}]
[]
[null,null,null,null,null,null,"↓プルダウンで選択下さい"]
["■裏面材",null,null,null,null,null,{"$f":"INDEX(一覧_裏面!A1:A2,A1)","v":"BK（バッカ―）"},null,null,null,null,null,null,null,null,null,null,null,null,null,null,null,null,null,null,null,null,null,null,{"$f":"G25","v":"BK（バッカ―）"}]
[null,null,null,null,null,null,null,null,null,null,null,null,null,null,null,null,null,null,null,null,null,null,null,null,null,null,"裏面材"]
[null,null,null,null,null,null,null,null,null,null,null,null,null,null,null,null,null,null,null,null,null,null,null,null,null,null,8]
[null,null,null,null,null,null,"↓300～1200ｍｍの間で入力下さい"]
["■サイズ",null,null,null,"縦（D)",null,null,null,null,null,null,null,null,null,null,null,null,null,null,null,null,null,"縦（D）"]
[null,null,null,null,null,null,null,null,null,null,null,null,null,null,null,null,null,null,null,null,null,null,{"$f":"SUM(G29)","v":0}]
[null,null,null,null,null,null,"↓600～2400ｍｍの間で入力下さい"]
[null,null,null,null,"横（W)",null,null,null,null,null,null,null,null,null,null,null,null,null,null,null,null,null,null,null,"㎜"]
[]
[]
["■数量"]
[null,null,null,null,null,null,null,null,null,null,null,null,null,null,null,null,null,null,null,null,null,null,null,null,null,null,null,null,null,null,null,null,{"$f":"SUM(G32)","v":0}]
[null,null,null,null,null,null,null,null,null,null,null,null,null,null,null,null,null,null,null,null,null,null,null,null,null,null,null,null,null,null,null,null,null,null,null,null,null,"㎜"]
["■希望納期",null,null,null,null,null,"　　年　 　月　   日",null,null,null,null,null,null,null,null,null,null,null,null,null,null,null,null,null,null,null,null,null,null,null,null,null,null,"横（W)"]
[]
[]
["■納入場所",null,null,null,null,null,"納入会社名",null,null,null,null,null,null,null,null,null,null,null,"　納入住所",null,null,null,null,null,null,null,null,null,null,null,null,null,null,null,null,null,null,null,"納入電話番号"]
[null,null,null,null,null,null,null,null,null,null,null,null,null,null,null,null,null,null,"〒"]

{"sheet":"RPS-7090U-32","index":54,"n_rows":42,"n_cols":157,"rows_kept":42,"cut":false,"hidden":false,"merged":[[37,6,38,17],[37,33,37,36],[41,6,43,17],[41,18,43,37],[41,38,43,46],[35,32,36,36],[19,29,20,33],[20,6,21,17],[21,26,22,27],[21,29,22,33],[24,6,25,17],[24,29,25,33],[28,6,29,17],[28,22,28,24],[29,22,30,24],[31,6,32,17],[34,6,35,17],[10,6,11,17],[10,26,12,33],[12,6,13,17],[13,29,14,33],[15,29,16,33],[16,6,17,17],[17,26,18,28],[17,29,18,33],[2,22,2,28],[3,31,3,33],[5,0,6,3],[5,6,6,17],[8,0,9,3],[8,6,9,17]]}
[2,null,null,null,null,null,null,null,null,null,null,null,null,null,null,null,null,null,null,null,null,"■イビケン記入箇所"]
[null,null,null,null,null,null,null,null,null,null,null,null,null,null,null,null,null,null,null,null,null,null,"オーダーNo",null,null,null,null,null,null,null,"メイン",null,null,null,null,"W寸",null,"D寸",null,"形状",null,"木縁",null,"裏面"]
[null,null,null,null,null,null,null,null,null,null,null,null,null,null,null,null,null,null,null,null,null,null,null,null,null,null,null,null,null,{"$f":"AA11","v":"RPS-7090U-32"},null,null,null,null,"-",{"$f":"G32","v":0},"-",{"$f":"G29","v":0},"-","IG","-",{"$f":"G21","v":"未選択"},"-",{"$f":"IF(AD25=\"BK（バッカー）\",\"BK\",IF(AD25=\"DS（表同柄）※オプション価格\",\"DS\",\"\"))","v":"BK"}]
["※オーダーシートは仕様指示書となります。注文書は別途ご用意ください。",null,null,null,null,null,null,null,null,null,null,null,null,null,null,null,null,null,null,null,null,null,null,null,null,null,null,null,null,null,null,null,null,null,null,null,null,null,null,null,null,null,null,null,null,null,null,null,null,null,null,null,null,null,null,null,null,null,null,null,null,null,null,null,null,null,null,null,null,null,null,null,null,null,null,null,null,null,null,null,null,null,null,null,null,null,null,null,null,null,null,null,null,null,null,null,null,null,null,null,null,null,null,null,null,null,null,null,null,null,null,null,null,null,null,null,null,null,null,null,null,null,null,null,null,null,null,null,null,null,null,null,null,null,null,null,null,null,null,null,null,null,null,null,null,null,null,null,null,null,null,null,null,null,null,null,"RPS-1981U-38"]
[]
["■発注日",null,null,null,null,null,"　　年　 　月　   日"]
[]
[]
["■発注者"]
[null,null,null,null,"会社名"]
[null,null,null,null,null,null,null,null,null,null,null,null,null,null,null,null,null,null,null,null,null,null,null,null,null,null,{"$f":"G17","v":"RPS-7090U-32"}]
[null,null,null,null,"担当者名"]
[]
[null,null,null,null,"電話番号",null,null,null,null,null,null,null,null,null,null,null,null,null,null,null,null,null,null,null,null,null,null,null,null,{"$f":"_xlfn.XLOOKUP(AA11,一覧_品番!A:A,一覧_品番!B:B, \"\", FALSE)","v":32}]
[null,null,null,null,null,null,null,null,null,null,null,null,null,null,null,null,null,null,null,null,null,null,null,null,null,null,"厚み"]
[null,null,null,null,null,null,null,null,null,null,null,null,null,null,null,null,null,null,null,null,null,null,null,null,null,null,null,null,null,{"$f":"_xlfn.XLOOKUP(AA11,一覧_品番!A:A,一覧_品番!C:C, \"\", FALSE)","v":"ストレート"}]
["■品番",null,null,null,null,null,{"$f":"_xlfn.XLOOKUP(S17,注文書一覧!A:A,注文書一覧!B:B,\"\")","v":"RPS-7090U-32"},null,null,null,null,null,null,null,null,null,null,null,105,null,null,null,null,null,null,null,"木縁形状"]
[null,null,null,null,null,null,null,null,null,null,null,null,null,null,null,null,null,null,null,null,null,null,null,null,null,null,"木縁位置",null,null,{"$f":"G21","v":"未選択"}]
[]
[null,null,null,null,null,null,"↓左のカーソルで選択下さい。→右下にイラストが表示されます",null,null,null,null,null,null,null,null,null,null,null,null,null,null,null,null,null,null,null,null,null,null,{"$f":"_xlfn.XLOOKUP(AA11,一覧_品番!A:A,一覧_品番!E:E, \"\", FALSE)","v":"チャコール"}]
["■木縁添付位置",null,null,null,null,null,{"$f":"VLOOKUP(AA27,一覧_木縁!A2:C9,2,FALSE)","v":"未選択"},null,null,null,null,null,null,null,null,null,null,null,null,null,null,null,null,null,null,null,"塗装色"]
[null,null,null,null,null,null,null,null,null,null,null,null,null,null,null,null,null,null,null,null,null,null,null,null,null,null,"表面材",null,null,{"$f":"_xlfn.XLOOKUP(AA11,一覧_品番!A:A,一覧_品番!F:F, \"\", FALSE)","v":"VM-7090U"}]
[]
[null,null,null,null,null,null,"↓プルダウンで選択下さい"]
["■裏面材",null,null,null,null,null,{"$f":"INDEX(一覧_裏面!A1:A2,A1)","v":"BK（バッカ―）"},null,null,null,null,null,null,null,null,null,null,null,null,null,null,null,null,null,null,null,null,null,null,{"$f":"G25","v":"BK（バッカ―）"}]
[null,null,null,null,null,null,null,null,null,null,null,null,null,null,null,null,null,null,null,null,null,null,null,null,null,null,"裏面材"]
[null,null,null,null,null,null,null,null,null,null,null,null,null,null,null,null,null,null,null,null,null,null,null,null,null,null,8]
[null,null,null,null,null,null,"↓300～1200ｍｍの間で入力下さい"]
["■サイズ",null,null,null,"縦（D)",null,null,null,null,null,null,null,null,null,null,null,null,null,null,null,null,null,"縦（D）"]
[null,null,null,null,null,null,null,null,null,null,null,null,null,null,null,null,null,null,null,null,null,null,{"$f":"SUM(G29)","v":0}]
[null,null,null,null,null,null,"↓600～2400ｍｍの間で入力下さい"]
[null,null,null,null,"横（W)",null,null,null,null,null,null,null,null,null,null,null,null,null,null,null,null,null,null,null,"㎜"]
[]
[]
["■数量"]
[null,null,null,null,null,null,null,null,null,null,null,null,null,null,null,null,null,null,null,null,null,null,null,null,null,null,null,null,null,null,null,null,{"$f":"SUM(G32)","v":0}]
[null,null,null,null,null,null,null,null,null,null,null,null,null,null,null,null,null,null,null,null,null,null,null,null,null,null,null,null,null,null,null,null,null,null,null,null,null,"㎜"]
["■希望納期",null,null,null,null,null,"　　年　 　月　   日",null,null,null,null,null,null,null,null,null,null,null,null,null,null,null,null,null,null,null,null,null,null,null,null,null,null,"横（W)"]
[]
[]
["■納入場所",null,null,null,null,null,"納入会社名",null,null,null,null,null,null,null,null,null,null,null,"　納入住所",null,null,null,null,null,null,null,null,null,null,null,null,null,null,null,null,null,null,null,"納入電話番号"]
[null,null,null,null,null,null,null,null,null,null,null,null,null,null,null,null,null,null,"〒"]

{"sheet":"RP-7090U-32","index":55,"n_rows":42,"n_cols":157,"rows_kept":42,"cut":false,"hidden":false,"merged":[[37,6,38,17],[37,33,37,36],[41,6,43,17],[41,18,43,37],[41,38,43,46],[35,32,36,36],[19,29,20,33],[20,6,21,17],[21,26,22,27],[21,29,22,33],[24,6,25,17],[24,29,25,33],[28,6,29,17],[28,22,28,24],[29,22,30,24],[31,6,32,17],[34,6,35,17],[10,6,11,17],[10,26,12,33],[12,6,13,17],[13,29,14,33],[15,29,16,33],[16,6,17,17],[17,26,18,28],[17,29,18,33],[2,22,2,28],[3,31,3,33],[5,0,6,3],[5,6,6,17],[8,0,9,3],[8,6,9,17]]}
[2,null,null,null,null,null,null,null,null,null,null,null,null,null,null,null,null,null,null,null,null,"■イビケン記入箇所"]
[null,null,null,null,null,null,null,null,null,null,null,null,null,null,null,null,null,null,null,null,null,null,"オーダーNo",null,null,null,null,null,null,null,"メイン",null,null,null,null,"W寸",null,"D寸",null,"形状",null,"木縁",null,"裏面"]
[null,null,null,null,null,null,null,null,null,null,null,null,null,null,null,null,null,null,null,null,null,null,null,null,null,null,null,null,null,{"$f":"AA11","v":"RP-7090U-32"},null,null,null,null,"-",{"$f":"G32","v":0},"-",{"$f":"G29","v":0},"-","IG","-",{"$f":"G21","v":"未選択"},"-",{"$f":"IF(AD25=\"BK（バッカー）\",\"BK\",IF(AD25=\"DS（表同柄）※オプション価格\",\"DS\",\"\"))","v":"BK"}]
["※オーダーシートは仕様指示書となります。注文書は別途ご用意ください。",null,null,null,null,null,null,null,null,null,null,null,null,null,null,null,null,null,null,null,null,null,null,null,null,null,null,null,null,null,null,null,null,null,null,null,null,null,null,null,null,null,null,null,null,null,null,null,null,null,null,null,null,null,null,null,null,null,null,null,null,null,null,null,null,null,null,null,null,null,null,null,null,null,null,null,null,null,null,null,null,null,null,null,null,null,null,null,null,null,null,null,null,null,null,null,null,null,null,null,null,null,null,null,null,null,null,null,null,null,null,null,null,null,null,null,null,null,null,null,null,null,null,null,null,null,null,null,null,null,null,null,null,null,null,null,null,null,null,null,null,null,null,null,null,null,null,null,null,null,null,null,null,null,null,null,"RPS-1981U-38"]
[]
["■発注日",null,null,null,null,null,"　　年　 　月　   日"]
[]
[]
["■発注者"]
[null,null,null,null,"会社名"]
[null,null,null,null,null,null,null,null,null,null,null,null,null,null,null,null,null,null,null,null,null,null,null,null,null,null,{"$f":"G17","v":"RP-7090U-32"}]
[null,null,null,null,"担当者名"]
[]
[null,null,null,null,"電話番号",null,null,null,null,null,null,null,null,null,null,null,null,null,null,null,null,null,null,null,null,null,null,null,null,{"$f":"_xlfn.XLOOKUP(AA11,一覧_品番!A:A,一覧_品番!B:B, \"\", FALSE)","v":32}]
[null,null,null,null,null,null,null,null,null,null,null,null,null,null,null,null,null,null,null,null,null,null,null,null,null,null,"厚み"]
[null,null,null,null,null,null,null,null,null,null,null,null,null,null,null,null,null,null,null,null,null,null,null,null,null,null,null,null,null,{"$f":"_xlfn.XLOOKUP(AA11,一覧_品番!A:A,一覧_品番!C:C, \"\", FALSE)","v":"ライブエッジ"}]
["■品番",null,null,null,null,null,{"$f":"_xlfn.XLOOKUP(S17,注文書一覧!A:A,注文書一覧!B:B,\"\")","v":"RP-7090U-32"},null,null,null,null,null,null,null,null,null,null,null,107,null,null,null,null,null,null,null,"木縁形状"]
[null,null,null,null,null,null,null,null,null,null,null,null,null,null,null,null,null,null,null,null,null,null,null,null,null,null,"木縁位置",null,null,{"$f":"G21","v":"未選択"}]
[]
[null,null,null,null,null,null,"↓左のカーソルで選択下さい。→右下にイラストが表示されます",null,null,null,null,null,null,null,null,null,null,null,null,null,null,null,null,null,null,null,null,null,null,{"$f":"_xlfn.XLOOKUP(AA11,一覧_品番!A:A,一覧_品番!E:E, \"\", FALSE)","v":"チャコール"}]
["■木縁添付位置",null,null,null,null,null,{"$f":"VLOOKUP(AA27,一覧_木縁!A2:C9,2,FALSE)","v":"未選択"},null,null,null,null,null,null,null,null,null,null,null,null,null,null,null,null,null,null,null,"塗装色"]
[null,null,null,null,null,null,null,null,null,null,null,null,null,null,null,null,null,null,null,null,null,null,null,null,null,null,"表面材",null,null,{"$f":"_xlfn.XLOOKUP(AA11,一覧_品番!A:A,一覧_品番!F:F, \"\", FALSE)","v":"VM-7090U"}]
[]
[null,null,null,null,null,null,"↓プルダウンで選択下さい"]
["■裏面材",null,null,null,null,null,{"$f":"INDEX(一覧_裏面!A1:A2,A1)","v":"BK（バッカ―）"},null,null,null,null,null,null,null,null,null,null,null,null,null,null,null,null,null,null,null,null,null,null,{"$f":"G25","v":"BK（バッカ―）"}]
[null,null,null,null,null,null,null,null,null,null,null,null,null,null,null,null,null,null,null,null,null,null,null,null,null,null,"裏面材"]
[null,null,null,null,null,null,null,null,null,null,null,null,null,null,null,null,null,null,null,null,null,null,null,null,null,null,8]
[null,null,null,null,null,null,"↓300～1200ｍｍの間で入力下さい"]
["■サイズ",null,null,null,"縦（D)",null,null,null,null,null,null,null,null,null,null,null,null,null,null,null,null,null,"縦（D）"]
[null,null,null,null,null,null,null,null,null,null,null,null,null,null,null,null,null,null,null,null,null,null,{"$f":"SUM(G29)","v":0}]
[null,null,null,null,null,null,"↓600～2400ｍｍの間で入力下さい"]
[null,null,null,null,"横（W)",null,null,null,null,null,null,null,null,null,null,null,null,null,null,null,null,null,null,null,"㎜"]
[]
[]
["■数量"]
[null,null,null,null,null,null,null,null,null,null,null,null,null,null,null,null,null,null,null,null,null,null,null,null,null,null,null,null,null,null,null,null,{"$f":"SUM(G32)","v":0}]
[null,null,null,null,null,null,null,null,null,null,null,null,null,null,null,null,null,null,null,null,null,null,null,null,null,null,null,null,null,null,null,null,null,null,null,null,null,"㎜"]
["■希望納期",null,null,null,null,null,"　　年　 　月　   日",null,null,null,null,null,null,null,null,null,null,null,null,null,null,null,null,null,null,null,null,null,null,null,null,null,null,"横（W)"]
[]
[]
["■納入場所",null,null,null,null,null,"納入会社名",null,null,null,null,null,null,null,null,null,null,null,"　納入住所",null,null,null,null,null,null,null,null,null,null,null,null,null,null,null,null,null,null,null,"納入電話番号"]
[null,null,null,null,null,null,null,null,null,null,null,null,null,null,null,null,null,null,"〒"]

{"sheet":"一覧_木縁","index":56,"n_rows":9,"n_cols":3,"rows_kept":9,"cut":false,"hidden":true,"merged":[]}
["番号","名称","形状"]
[8,"未選択"]
[7,"W"]
[6,"WDL"]
[5,"WDR"]
[4,"WW"]
[3,"WDD"]
[2,"WWD"]
[1,4]

{"sheet":"一覧_裏面","index":57,"n_rows":3,"n_cols":2,"rows_kept":3,"cut":false,"hidden":true,"merged":[]}
["DS（表同柄）※オプション価格","DS"]
["BK（バッカ―）","BK"]
["DS（表同柄）※オプション価格","DS"]